Workbook

Sheet Instructions
A2: STATE OF CALIFORNIA
A3: UNIVERSAL APPLICATION FOR THE
A4: DEVELOPMENT OF AFFORDABLE RENTAL HOUSING
AF12: ='General '!AO10 -> UA Version 5/1/20
A13: INSTRUCTIONS
A15: 1. | C15: Use this application form to apply for assistance for a multifamily rental housing development from CTCAC, CalHFA, HCD or CDLAC. A separate submission is required for each agency; please indicate which agency you are currently applying to in the top section of the next sheet, and revise this section for subsequent applications to other agencies. Also, please update the rest of the application to reflect changes in your development proposal.
A16: 2. | C16: In addition to this application form, each agency requires submission of program-specific documentation. Please review the checklists and instructions applicable to each program, located in each agencies website for specific requirements.
A17: 3. | C17: Areas intended for applicant entry are shaded in yellow. Instructions are included as Excel comments, such as the one to the right. To view these comments, hold your mouse over the red marks.
A18: 4. | C18: Some information carries over from one section to the next. If you start from the beginning "General" worksheet and continue in order, you will minimize error messages.
A19: 5. | C19: To navigate between worksheets (pages), click the tabs at the bottom of your screen, or right-click on the triangles to the left of the tabs. To print the entire application at once, go to File, Print, then under the "Print what" heading select "Entire workbook."
A20: 6. | C20: If you have technical issues specific to this application form, please contact the following Departmental staff:
C22: Department Program | T22: Contact | U22: Christina DiFrancesco | AA22: Phone | AF22: Email
C23: California Dept. of Housing and Community Development: Affordable Housing and Sustainable Communities (AHSC) | T23: George Rodine | AA23: 9162636105 | AF23: grodine@hcd.ca.gov
C24: Home Investment Partnerships (HOME) Program
C25: Housing for a Healthy California (HHC)
C26: Infill Infrastructure Grant Program (IIG)
C27: Joe Serna, Jr. Farmworker Housing Grant
C28: Multifamily Housing Program (MHP) - General
C29: MHP - Supportive Housing
C30: MHP - Homeless Youth
C31: National Housing Trust Fund (NHTF)
C32: No Place Like Home (NPLH)
C33: Predevelopment Loan Program
C34: Transit Oriented Development (TOD) Housing Program
C35: Veterans Housing and Homelessness Prevention (VHHP)
C36: California Housing Finance Agency (CalHFA) | T36: Marisa Fogal | U36: Christina DiFrancesco | AA36: 9163268811 | AF36: mfogal@calhfa.ca.gov
C37: California State Treasurer: California Debt Limit Allocation Committee (CDLAC) | T37: Misty Armstrong | U37: Christina DiFrancesco | AA37: 9166533461 | AF37: marmstrong@treasurer.ca.gov
C38: California State Treasurer: California Tax Credit Allocation Committee (CTCAC) | T38: Gina Ferguson | U38: Christina DiFrancesco | AA38: 9166546340 | AF38: gferguson@treasurer.ca.gov

Sheet General
AZ1: General | BA1: General | BB1: General | BC1: General
A2: STATE OF CALIFORNIA | AZ2: County | BA2: AssemblyDistrictCode | BB2: CongressionalDistrictCode | BC2: SenateDistrictCode
A3: UNIVERSAL APPLICATION FOR THE | AZ3: Alameda | BA3: 1 | BB3: 1 | BC3: 1
A4: DEVELOPMENT OF AFFORDABLE RENTAL HOUSING | AZ4: Alpine | BA4: 2 | BB4: 2 | BC4: 2
AZ5: Amador | BA5: 3 | BB5: 3 | BC5: 3
AZ6: Butte | BA6: 4 | BB6: 4 | BC6: 4
AZ7: Calaveras | BA7: 5 | BB7: 5 | BC7: 5
AZ8: Colusa | BA8: 6 | BB8: 6 | BC8: 6
A9: GENERAL INFORMATION | AZ9: Contra Costa | BA9: 7 | BB9: 7 | BC9: 7
A10: Date of this Application or Update: | AO10: UA Version 5/1/20 | AZ10: Del Norte | BA10: 8 | BB10: 8 | BC10: 8
AZ11: El Dorado | BA11: 9 | BB11: 9 | BC11: 9
A12: =A45 -> 0 | AZ12: Fresno | BA12: 10 | BB12: 10 | BC12: 10
A13: Getting Started: When you open thIs file, you may see a yellow banner at the top with a button that says "Enable Content" or "Enable Editing". It is essential that you click this box so that the macros are enabled. Enabling macros is necessary for full workbook functionality. Macros may not work with Apple Mac Microsoft Excel, but users have stated Mac MS Excel version 16.16.11 (Office 365) works. | AZ13: Glenn | BA13: 11 | BB13: 11 | BC13: 11
A14: THIS APPLICATION REQUESTS FINANCING OR AN ALLOCATION FROM THE FOLLOWING: | AZ14: Humboldt | BA14: 12 | BB14: 12 | BC14: 12
F15: CTCAC | Q15: HCD | X15: CDLAC | AH15: CalHFA | AZ15: Imperial | BA15: 13 | BB15: 13 | BC15: 13
A16: Check all that apply: | H16: Amount | N16: HOME Funds | V16: Tax-Exempt Bonds | AC16: Is tax-exempt financing needed for construction? | AZ16: Inyo | BA16: 14 | BB16: 14 | BC16: 14
C17: Federal 9% | H17: 0 | N17: HOME Activity Amount | V17: Allocation Amount | AZ17: Kern | BA17: 15 | BB17: 15 | BC17: 15
C18: Federal 4% | H18: 0 | O18: 0 | W18: 0 | AC18: If yes, amount needed | AK18: 0 | AZ18: Kings | BA18: 16 | BB18: 16 | BC18: 16
C19: State Credits | H19: 0 | N19: HOME Admin. Amount | V19: Pool | AC19: Application Type: | AZ19: Lake | BA19: 17 | BB19: 17 | BC19: 17
O20: 0 | AZ20: Lassen | BA20: 18 | BB20: 18 | BC20: 18
A21: CTCAC Application Type: | N21: HOME Activity Delivery | AC21: Multifamily Financing Programs: | AZ21: Los Angeles | BA21: 19 | BB21: 19 | BC21: 19
O22: 0 | V22: Amount of | AH22: Amount | AL22: Rate | AN22: Term | AZ22: Madera | BA22: 20 | BB22: 20 | BC22: 20
A23: If Reapplication, Previous CTCAC No.: | V23: Taxable Tail (if any) | AC23: Predevelopment | AH23: 0 | AZ23: Marin | BA23: 21 | BB23: 21 | BC23: 21
C24: - | F24: - | N24: Name of HCD Funding | W24: 0 | AC24: Acquisition | AH24: 0 | AZ24: Mariposa | BA24: 22 | BB24: 22 | BC24: 22
A25: State Set-a-Side | AC25: Rehabilitation | AH25: 0 | AZ25: Mendocino | BA25: 23 | BB25: 23 | BC25: 23
N26: Amount | V26: Amount of any prior | AC26: Construction | AH26: 0 | AZ26: Merced | BA26: 24 | BB26: 24 | BC26: 24
A27: Federal Minimum Set-a-Side | V27: CDLAC Allocations | AC27: Permanent | AH27: 0 | AZ27: Modoc | BA27: 25 | BB27: 25 | BC27: 25
V28: for this Project | AC28: Bridge Loan | AH28: 0 | AZ28: Mono | BA28: 26 | BB28: 26 | BC28: 26
A29: CTCAC Housing Type | N29: Name of HCD Funding | W29: 0 | AC29: Second Mortgage | AH29: 0 | AZ29: Monterey | BA29: 27 | BB29: 27 | BC29: 27
AH30: 0 | AZ30: Napa | BA30: 28 | BB30: 28 | BC30: 28
A31: DDA or Qualified Census Tract? | N31: Amount | V31: Prior Application # | AZ31: Nevada | BA31: 29 | BB31: 29 | BC31: 29
AC32: Special Needs? | AZ32: Orange | BA32: 30 | BB32: 30 | BC32: 30
A33: CTCAC Geographical Area | AZ33: Placer | BA33: 31 | BB33: 31 | BC33: 31
N34: Name of HCD Funding | AC34: Local Government SNHP Funds | AZ34: Plumas | BA34: 32 | BB34: 32 | BC34: 32
A35: For CTCAC Use Only | AC35: Loan Type | AH35: Amount | AN35: Term | AZ35: Riverside | BA35: 33 | BB35: 33 | BC35: 33
N36: Amount | AC36: Construction | AH36: 0 | AZ36: Sacramento | BA36: 34 | BB36: 34 | BC36: 34
AC37: Permanent | AH37: 0 | AZ37: San Benito | BA37: 35 | BB37: 35 | BC37: 35
N38: Name of HCD Funding | AZ38: San Bernardino | BA38: 36 | BB38: 36 | BC38: 36
AC39: Capitalized Operating Subsidy Reserve (COSR) | AZ39: San Diego | BA39: 37 | BB39: 37 | BC39: 37
N40: Amount | AH40: Amount | AZ40: San Francisco | BA40: 38 | BB40: 38 | BC40: 38
AC41: From County | AH41: 0 | AZ41: San Joaquin | BA41: 39 | BB41: 39 | BC41: 39
AC42: From Borrower | AH42: 0 | AZ42: San Luis Obispo | BA42: 40 | BB42: 40 | BC42: 40
A43: PROPOSED DEVELOPMENT | AZ43: San Mateo | BA43: 41 | BB43: 41
A44: Proposed Name | N44: Street Address or Location(s) | Y44: City | AE44: Zip Code | AI44: County | AZ44: Santa Barbara | BA44: 42 | BB44: 42
AZ45: Santa Clara | BA45: 43 | BB45: 43
AZ46: Santa Cruz | BA46: 44 | BB46: 44
AZ47: Shasta | BA47: 45 | BB47: 45
AZ48: Sierra | BA48: 46 | BB48: 46
AZ49: Siskiyou | BA49: 47 | BB49: 47
A50: Development Type | H50: Age Restrictions | N50: Special Facility Type | T50: Tenure Type | Y50: APN(s) | AI50: Census Tract(s) | AZ50: Solano | BA50: 48 | BB50: 48
AZ51: Sonoma | BA51: 49 | BB51: 49
A52: # of Units | D52: LIHTC Units | G52: Project Site Area | L52: Units per Acre | R52: Multiple Parcels? | AZ52: Stanislaus | BA52: 50 | BB52: 50
J53: Acres | L53: =A53/G53 ->  | O53: Per Acre | AZ53: Sutter | BA53: 51 | BB53: 51
A54: Relocation Req'd.? | F54: Commercial Space? | L54: HOPE VI Project? | R54: Federally "At Risk"? | Y54: "At-Risk" expiration date | AF54: Rental Subsidy? | AK54: HUD 811 Project? | AZ54: Tehama | BA54: 52 | BB54: 52
AZ55: Trinity | BA55: 53 | BB55: 53
A56: APPLICANT (Update based on funding source -- see comment in first box) | AZ56: Tulare | BA56: 54
A57: Legal Name of Organization | Z57: Applicant Role | AZ57: Tuolumne | BA57: 55
AZ58: Ventura | BA58: 56
A59: LEGISLATIVE INFORMATION | AZ59: Yolo | BA59: 57
A60: Congressperson Name(s) | J60: District # | M60: State Senator Name(s) | X60: District # | AB60: State Assembly Member Name(s) | AM60: District # | AZ60: Yuba | BA60: 58
BA61: 59
BA62: 60
BA63: 61
BA64: 62
BA65: 63
BA66: 64
BA67: 65
BA68: 66
BA69: 67
BA70: 68
BA71: 69
BA72: 70
BA73: 71
BA74: 72
BA75: 73
BA76: 74
BA77: 75
BA78: 76
BA79: 77
BA80: 78
BA81: 79
BA82: 80

Sheet Contacts
A1: ='General '!A45 -> 0
A2: CONTACT INFORMATION
A3: (Please complete to the extent known)
A4: Applicant | D4: Applicant Contact
A5: Legal Name | D5: Organization
A6: Form of Entity | D6: Contact Person
A7: Senior Official | D7: Title
A8: Street Address | D8: Street Address
A9: City | D9: City
A10: State | D10: State
A11: Zip Code | D11: Zip Code
A12: Phone No. | D12: Phone No.
A13: Fax No. | D13: Fax No.
A14: Email Address | D14: Email Address
A15: Owner (Borrowing Entity) | D15: Owner Partner or Member #1
A16: Legal Name | D16: Legal Name
A17: Form of Entity | D17: Form of Entity
A18: Contact Person | D18: Role
A19: Street Address | D19: Contact Person
A20: City | D20: Street Address
A21: State | D21: City
A22: Zip Code | D22: State
A23: Phone No. | D23: Zip Code
A24: Fax No. | D24: Phone No.
A25: Email Address | D25: Fax No.
A26: Owner Partner or Member #2 | D26: Owner Partner or Member #3
A27: Legal Name | D27: Legal Name
A28: Form of Entity | D28: Form of Entity
A29: Role | D29: Role
A30: Contact Person | D30: Contact Person
A31: Street Address | D31: Street Address
A32: City | D32: City
A33: State | D33: State
A34: Zip Code | D34: Zip Code
A35: Phone No. | D35: Phone No.
A36: Fax No. | D36: Fax No.
A37: Email Address | D37: Email Address
A38: Sponsor / Developer #1 | D38: Sponsor / Developer #2
A39: Legal Name | D39: Legal Name
A40: Form of Entity | D40: Form of Entity
A41: Contact Person | D41: Contact Person
A42: Role | D42: Role
A43: Street Address | D43: Street Address
A44: City | D44: City
A45: State | D45: State
A46: Zip Code | D46: Zip Code
A47: Phone No. | D47: Phone No.
A48: Fax No. | D48: Fax No.
A49: Email Address | D49: Email Address
A50: Turnkey Developer
A51: Legal Name | D51: Applicant Notes
A52: Form of Entity
A53: Partner Role
A54: % of Ownership
A55: Street Address
A56: City
A57: State
A58: Zip Code
A59: Phone No.
A60: Fax No.
A61: Email Address
A62: Property Management Agent | D62: Financial Consultant
A63: Legal Name | D63: Legal Name
A64: Contact Person | D64: Contact Person
A65: Street Address | D65: Street Address
A66: City | D66: City
A67: State | D67: State
A68: Zip Code | D68: Zip Code
A69: Phone No. | D69: Phone No.
A70: Fax No. | D70: Fax No.
A71: Email Address | D71: Email Address
A72: Primary Service Provider | D72: Borrower Legal Counsel
A73: Legal Name | D73: Legal Name
A74: Services Provided | D74: Type of Counsel
A75: Contact Person | D75: Contact Person
A76: Street Address | D76: Street Address
A77: City | D77: City
A78: State | D78: State
A79: Zip Code | D79: Zip Code
A80: Phone No. | D80: Phone No.
A81: Fax No. | D81: Fax No.
A82: Email Address | D82: Email Address
A83: Bond Counsel | D83: Bond Underwriter
A84: Firm Name | D84: Firm Name
A85: Attorney Contact | D85: Agent Name
A86: Street Address | D86: Street Address
A87: City | D87: City
A88: State | D88: State
A89: Zip Code | D89: Zip Code
A90: Phone No. | D90: Phone No.
A91: Fax No. | D91: Fax No.
A92: Email Address | D92: Email Address
A93: Private Placement Agent (if applicable) | D93: Private Placement Purchaser (if applicable)
A94: Firm Name | D94: Firm Name
A95: Agent Name | D95: Agent Name
A96: Street Address | D96: Street Address
A97: City | D97: City
A98: State | D98: State
A99: Zip Code | D99: Zip Code
A100: Phone No. | D100: Phone No.
A101: Fax No. | D101: Fax No.
A102: Email Address | D102: Email Address
A103: Credit Enhancement Provider (if applicable) | D103: Tax Credit Equity Investor
A104: Firm Name | D104: Legal Name
A105: Agent Name | D105: Contact Person
A106: Street Address | D106: Street Address
A107: City | D107: City
A108: State | D108: State
A109: Zip Code | D109: Zip Code
A110: Phone No. | D110: Phone No.
A111: Fax No. | D111: Fax No.
A112: Email Address | D112: Email Address
A113: General Contractor | D113: Architect
A114: Legal Name | D114: Legal Name
A115: Contact Person | D115: Contact Person
A116: Street Address | D116: Street Address
A117: City | D117: City
A118: State | D118: State
A119: Zip Code | D119: Zip Code
A120: Phone No. | D120: Phone No.
A121: Fax No. | D121: Fax No.
A122: Email Address | D122: Email Address
A123: Development Funding Source | D123: Development Funding Source
A124: Type | D124: Type
A125: Legal Name | D125: Legal Name
A126: Contact Person | D126: Contact Person
A127: Street Address | D127: Street Address
A128: City | D128: City
A129: State | D129: State
A130: Zip Code | D130: Zip Code
A131: Phone No. | D131: Phone No.
A132: Fax No. | D132: Fax No.
A133: Email Address | D133: Email Address
A134: Development Funding Source | D134: Development Funding Source
A135: Type | D135: Type
A136: Legal Name | D136: Legal Name
A137: Contact Person | D137: Contact Person
A138: Street Address | D138: Street Address
A139: City | D139: City
A140: State | D140: State
A141: Zip Code | D141: Zip Code
A142: Phone No. | D142: Phone No.
A143: Fax No. | D143: Fax No.
A144: Email Address | D144: Email Address
A145: Development Funding Source | D145: Development Funding Source
A146: Type | D146: Type
A147: Legal Name | D147: Legal Name
A148: Contact Person | D148: Contact Person
A149: Street Address | D149: Street Address
A150: City | D150: City
A151: State | D151: State
A152: Zip Code | D152: Zip Code
A153: Phone No. | D153: Phone No.
A154: Fax No. | D154: Fax No.
A155: Email Address | D155: Email Address
A156: Development Funding Source | D156: Development Funding Source
A157: Type | D157: Type
A158: Legal Name | D158: Legal Name
A159: Contact Person | D159: Contact Person
A160: Street Address | D160: Street Address
A161: City | D161: City
A162: State | D162: State
A163: Zip Code | D163: Zip Code
A164: Phone No. | D164: Phone No.
A165: Fax No. | D165: Fax No.
A166: Email Address | D166: Email Address
A167: Development Funding Source | D167: Development Funding Source
A168: Type | D168: Type
A169: Legal Name | D169: Legal Name
A170: Contact Person | D170: Contact Person
A171: Street Address | D171: Street Address
A172: City | D172: City
A173: State | D173: State
A174: Zip Code | D174: Zip Code
A175: Phone No. | D175: Phone No.
A176: Fax No. | D176: Fax No.
A177: Email Address | D177: Email Address
A178: Development Funding Source | D178: Development Funding Source
A179: Type | D179: Type
A180: Legal Name | D180: Legal Name
A181: Contact Person | D181: Contact Person
A182: Street Address | D182: Street Address
A183: City | D183: City
A184: State | D184: State
A185: Zip Code | D185: Zip Code
A186: Phone No. | D186: Phone No.
A187: Fax No. | D187: Fax No.
A188: Email Address | D188: Email Address
A189: Development Funding Source | D189: Development Funding Source
A190: Type | D190: Type
A191: Legal Name | D191: Legal Name
A192: Contact Person | D192: Contact Person
A193: Street Address | D193: Street Address
A194: City | D194: City
A195: State | D195: State
A196: Zip Code | D196: Zip Code
A197: Phone No. | D197: Phone No.
A198: Fax No. | D198: Fax No.
A199: Email Address | D199: Email Address
A200: Rent / Operating Subsidy Source | D200: Rent / Operating Subsidy Source
... 33 more rows

Sheet Narrative
A1: =+'General '!A45 -> 0
A2: PROPOSED PROJECT DESCRIPTION Instruction: Describe, at minimum, the following topics. Narrative used for Project Summary Reports.
A3: 1) Type of Development
A5: 2) Topography and Special Site Features
A7: 3) Surrounding Neighborhood
A9: 4) Proposed Tenant Population and Any Special Occupancy Restrictions (inc. those tied to land use approvals)
A11: 5) Any On-Site Services
A13: 6) Specific Issues (relocation, environmental, historical, etc.)
A15: 7) Any Demolition
A17: 8) Scope of Rehabilitation Work
A19: 9) Expected Start and Completion Date of Construction/Rehabilitation
A21: 10) Changes in Land Area during Development (e.g. subsidivision)
A23: 11) Rent Subsidies
A25: 12) Whether Prevailing Wages will be paid.
A27: ='General '!AO10 -> UA Version 5/1/20

Sheet Site & Units
A1: ='General '!A45 -> 0
A2: SITE & UNIT INFORMATION
A3: SITE CONTROL
A4: Site address or location:
A6: Type of Site Control | M6: Dated | Q6: Expires | V6: Extensions Available | AF6: Purchase Price | AK6: Total Land Area
AN7: acres
A8: Current Owner | O8: Current Owner Address
A10: PLANNED AND COMPLETED PROPERTY TRANSFER(S)
A11: Ground Lease Planned? | K11: Lessor | Z11: Term | AF11: Annual Payment Amount
A13: Below, describe property transfers occurring in connection with development of the Project
A17: SITE USE
A18: Current Use | N18: Proposed Zoning (code and name) | AC18: Is Site Improved? | AI18: Year Improvements Built
A20: Demolition Planned? | G20: or Done? | J20: Rent Control? | O20: Access Road Maintenance | W20: Applicant Notes
A22: SITE CONDITIONS AND ADJOINING LAND USES
C23: Poor drainage | K23: Grade 5-10% | S23: Describe adjoining land uses within 300 feet of the Project
C24: Erosion problems | K24: Grade over 10% | S24: West
C25: Unstable soil | K25: Airport within 2 miles
C26: Retaining wall | K26: Possible high noise levels | S26: East
C27: Possible lead paint | K27: Abandoned well(s)
C28: Possible asbestos | K28: Railroad tracks w/i 100 yards | S28: North
C29: Wetlands area | K29: Unusual ingress/egress
C30: On-site stream/creek | K30: Ground water contamination | S30: South
C31: 100-yr. flood plain | K31: High water table
C32: Possible soil pollution | K32: Underground storage tanks | S32: Unique Features
A35: EXISTING VERSUS PROPOSED UNITS (include manager's units) | Z35: Total # | AC35: Total # | AF35: Total # | AI35: Total # | AL35: Total # of
E36: Beds | H36: 0 Bdrm | K36: 1 Bdrm | N36: 2 Bdrm | Q36: 3 Bdrm | T36: 4 Bdrm | W36: 5 Bdrm | Z36: Units | AC36: Bedrooms | AF36: Buildings | AI36: Mgr. Units | AL36: Parking Spaces
A37: EXISTING | Z37: =H37+K37+N37+Q37+T37+W37 -> 0 | AC37: =SUM((H37*1)+(K37*1)+(N37*2)+(Q37*3)+(T37*4)+(W37*5)) -> 0
A38: PROPOSED | Z38: =H38+K38+N38+Q38+T38+W38 -> 0 | AC38: =SUM((H38*1)+(K38*1)+(N38*2)+(Q38*3)+(T38*4)+(W38*5)) -> 0
A40: BUILDING TYPES | H40: New Construction | P40: Rehabilitation | Y40: Unit Size | AB40: Baths | AE40: Layout | AI40: Ave. Sq. Ft. | AM40: No. of Units
H41: Units | J41: Stories | M41: Bldgs. | P41: Units | R41: Stories | U41: Bldgs.
A42: Townhouse/Row House
A43: One or Two Story Walk-Up
A44: Mid-Rise (3-5 stories)
A45: High-Rise (6+stories)
A46: Detached Single Family
A47: Duplex/4-Plex
A48: Non-Residential Bldg(s)
G49: TOTALS | H49: =SUM(H42:H47) -> 0 | M49: =SUM(M42:N48) -> 0 | P49: =SUM(P42:Q47) -> 0 | U49: =SUM(U42:V48) -> 0
A50: Applicant Notes
AL53: Total Units | AM53: =SUM(AM41:AO52) -> 0
AK59: ='General '!AO10 -> UA Version 5/1/20
A60: AMENITIES
A61: Unit Amenities/Features | P61: Project Amenities | Y61: Security & Other | AG61: Other On-Site Services
C62: Air Conditioning | J62: Ceiling Fans | R62: Elevator(s) | AA62: Gated Entry
C63: Refrigerator | J63: Curtains/Blinds | R63: Laundry Rms. | AA63: Bldg. Card Key
C64: Range | J64: Fireplace | U64: Washers | AA64: Security Patrol
C65: Microwave | J65: Emergency Call | U65: Dryers | Y65: Describe any mandatory charges to tenants beyond allowable rents.
C66: Disposal | J66: Free Cable TV | R66: Community Room
C67: Dishwasher | J67: Lofts | R67: Community Kitchen
C68: Walk-In Closet | J68: Storage Area | R68: Computer Room
C69: Fenced Rear Yard | J69: Balcony | R69: High Speed Internet
J70: Patio | R70: Fitness Room
R71: Picnic/BBQ Area(s)
B72: Laundry Hookups or Appliances in Units | R72: Tot Lot/Playground
R73: Sports Court
R74: Tennis Court
R75: Pool
R76: Jacuzzi/Sauna

Sheet Misc.
A1: ='General '!A45 -> 0
A2: MISCELLANEOUS INFORMATION
A3: RESIDENTIAL SPACE | O3: RESIDENTIAL PARKING | AB3: COMMERCIAL SPACE
A4: Residential Square Footage
A5: Residential Units | O5: Free Residential Parking Spaces | AC5: Commercial Square Footage
A6: Residential Common Areas | O6: Uncovered Tenant Parking | AC6: Commercial Area
A7: Community Room | O7: Covered Tenant Parking | AC7: Offices
A8: Leasing Office | O8: Enclosed Tenant Parking | AC8: Childcare Center
A9: Additional Storage Space | O9: Tenant Guest Spaces | AC9: Storage Space
H10: Subtotal | I10: =SUM(I5:K9) -> 0 | W10: Subtotal Parking Spaces | X10: =SUM(X6:Y9) -> 0 | AC10: Other
A11: Maintenance Shop | O11: Extra Spaces Tenants Can Rent | AJ11: Total Commercial SF | AK11: =SUM(AK6:AM10) -> 0
A12: Childcare Center | O12: Uncovered Parking
A13: Service Area | O13: Covered Parking | AC13: Parking Spaces for Commercial Tenants
A14: Service Office | O14: Enclosed Parking | AC14: Uncovered
A15: Other | W15: Grand Total Parking Spaces | X15: =SUM(X10:Y14) -> 0 | AC15: Covered Spaces
H16: Total Residential SF | I16: =SUM(I10:K15) -> 0 | AG16: Total Spaces | AL16: =SUM(AL14:AM15) -> 0
O17: Total Handicap Parking Spaces
O18: (included in totals above) | AC18: Describe other available parking for
AC19: commercial patrons.
A23: INCOME FROM SOURCES OTHER THAN RESIDENTIAL RENTS AND SUBSIDIES
A24: Laundry | Q24: Other Leased Spaces
A25: No. of Units Using Central Laundry | Q25: Residential | Y25: Lease Terms | AC25: Sq. Feet | AG25: Rent/SF/Mo. | AK25: Annual Gross
A26: Weekly Assumed Income Per Unit | AK26: =+AC26*AG26*12 -> 0
A27: Annual Total Laundry Income | L27: =+L26*L25*52 -> 0 | AK27: =+AC27*AG27*12 -> 0
A28: Residential Parking | AK28: =+AC28*AG28*12 -> 0
A29: Tenant Rental Spaces | L29: =SUM(X12:Y14) -> 0 | AK29: =+AC29*AG29*12 -> 0
A30: Monthly Income Per Space | Q30: Commercial
A31: Annual Residential Parking Income | L31: =+L29*L30*12 -> 0 | AK31: =+AC31*AG31*12 -> 0
A32: Commercial Parking | AK32: =+AC32*AG32*12 -> 0
A33: Number of Rental Spaces | L33: =+AL16 -> 0 | AK33: =+AC33*AG33*12 -> 0
A34: Monthly Income Per Space | AK34: =+AC34*AG34*12 -> 0
A35: Annual Commercial Parking Income | L35: =+L33*L34*12 -> 0 | Q35: Total Income from Other Leased Spaces | AK35: =SUM(AK26:AO34) -> 0
A37: MONTHLY UTILITY ALLOWANCE
H38: Type of Utility | O38: Does the owner or | X38: Enter Allowances for Tenant Paid Utilities by Bdrm. Size
A39: Utilities | H39: (Gas, Electric, etc.) | O39: tenant pay utilities? | X39: 0 bdrm | AA39: 1 bdrm | AD39: 2 bdrms | AG39: 3 bdrms | AJ39: 4 bdrms | AM39: ≥5 bdrms
A40: Heating | X40: 0 | AA40: 0 | AD40: 0 | AG40: 0 | AJ40: 0 | AM40: 0
A41: Cooking | X41: 0 | AA41: 0 | AD41: 0 | AG41: 0 | AJ41: 0 | AM41: 0
A42: Other Electric | X42: 0 | AA42: 0 | AD42: 0 | AG42: 0 | AJ42: 0 | AM42: 0
A43: Air Conditioning | X43: 0 | AA43: 0 | AD43: 0 | AG43: 0 | AJ43: 0 | AM43: 0
A44: Water Heating | X44: 0 | AA44: 0 | AD44: 0 | AG44: 0 | AJ44: 0 | AM44: 0
A45: Water | X45: 0 | AA45: 0 | AD45: 0 | AG45: 0 | AJ45: 0 | AM45: 0
A46: Sewer | X46: 0 | AA46: 0 | AD46: 0 | AG46: 0 | AJ46: 0 | AM46: 0
A47: Trash | X47: 0 | AA47: 0 | AD47: 0 | AG47: 0 | AJ47: 0 | AM47: 0
A48: Other | X48: 0 | AA48: 0 | AD48: 0 | AG48: 0 | AJ48: 0 | AM48: 0
W49: Total Tenant Utility Allowance | X49: =SUM(X40:Z48) -> 0 | AA49: =SUM(AA40:AC48) -> 0 | AD49: =SUM(AD40:AF48) -> 0 | AG49: =SUM(AG40:AI48) -> 0 | AJ49: =SUM(AJ40:AL48) -> 0 | AM49: =SUM(AM40:AO48) -> 0
A50: Source for Utility Allowances
B51: Local PHA | G51: Name | AD51: Effective Date
B53: HUD | G53: USDA RD | M53: Utility Company (Actual Survey) | Y53: Other
AG54: ='General '!AO10 -> UA Version 5/1/20
A55: Applicant Notes

Sheet Rents
A1: ='General '!A45 -> 0 | AA1: =IF(OR('General '!N24="VHHP",'General '!N29="VHHP",'General '!N34="VHHP",'General '!N38="VHHP"),"Yes","NO") -> NO
A2: RENTS & UNIT MIX INFORMATION
A3: =IF(Y1="Yes","Include all project restricted rent levels on this worksheet, but do not include the units receiving operating subsidy resulting from a VHHP operating reserve offset tranche (use the VHHP Rents worksheet for units receiving the operating subsidy).","") ->  | Z3: Income and Rent Calculation Tables
A4: Tax Credit 50% Income Limits for County of : | E4: ='General '!$AI$45 -> 0 | H4: HUD Notice Date: | J4: 2020-04-01
Z5: TCAC/CDLAC/MHP/CalHFA Income Limits Calculated from HUD 50% Income Limits
A6: Household Size: | C6: 1 | D6: 2 | E6: 3 | F6: 4 | G6: 5 | H6: 6 | I6: 7 | J6: 8
A7: Income Limit: | C7: =IF($E$4=0,"",VLOOKUP($E$4,'Income Limits'!$A$1:$I$58,2,FALSE)) ->  | D7: =IF($E$4=0,"",VLOOKUP($E$4,'Income Limits'!$A$1:$I$58,3,FALSE)) ->  | E7: =IF($E$4=0,"",VLOOKUP($E$4,'Income Limits'!$A$1:$I$58,4,FALSE)) ->  | F7: =IF($E$4=0,"",VLOOKUP($E$4,'Income Limits'!$A$1:$I$58,5,FALSE)) ->  | G7: =IF($E$4=0,"",VLOOKUP($E$4,'Income Limits'!$A$1:$I$58,6,FALSE)) ->  | H7: =IF($E$4=0,"",VLOOKUP($E$4,'Income Limits'!$A$1:$I$58,7,FALSE)) ->  | I7: =IF($E$4=0,"",VLOOKUP($E$4,'Income Limits'!$A$1:$I$58,8,FALSE)) ->  | J7: =IF($E$4=0,"",VLOOKUP($E$4,'Income Limits'!$A$1:$I$58,9,FALSE)) ->  | Z7: Income | AA7: Household Size
A8: Rows 18-24 are only for restricted manager units. Show rent limits set by the most restrictive regulatory agency. | Z8: Level | AA8: 1 | AB8: 2 | AC8: 3 | AD8: 4 | AE8: 5 | AF8: 6 | AG8: 7 | AH8: 8
A9: CTCAC, CDLAC, MHP and CalHFA rent limits are calculated based on the above income limits, and are automatically | Z9: 1.2 | AA9: =AA17*2 ->  | AB9: =AB17*2 ->  | AH9: =AH17*2 -> 
A10: shown below. If the most restrictive rent limits applicable to some units are required by another program, such as | Z10: 1.1 | AA10: =AA18*2 ->  | AB10: =AB18*2 ->  | AH10: =AH18*2 -> 
A11: HOME or USDA Rural Development, | D11: click here | E11: to enter these limits. | G11: (Or scroll to bottom of worksheeet) | Z11: 1 | AA11: =AA19*2 ->  | AB11: =AB19*2 -> 
A12: =IF(OR('General '!N24="NPLH -No Place Like Home",'General '!N29="NPLH -No Place Like Home",'General '!N34="NPLH -No Place Like Home",'General '!N38="NPLH -No Place Like Home"),"NPLH projects must use the rent limit sets in rows 18-24, 26-32, 34-40, 42-48 and 50-56 for 15%, 20%. 25% and 30% AMI restricted units (these limits will flow to the 'NPLH Rents' worksheet).","") ->  | Z12: 0.9 | AA12: =+AA$19*($Z12/$Z$19) -> 
Z13: 0.8
A14: Income Limit (% AMI) | C14: Unit Size | D14: No. of Units | E14: Maximum Gross Rent | F14: Less Utility Allowance | G14: Maximum Net Rent | H14: Proposed Net Rent | I14: Monthly Income at Proposed Rents | J14: Monthly Income at Maximum Rents | Z14: 0.75
Z15: 0.7
Z16: 0.65
Z17: 0.6
C18: Beds | D18: 0 | E18: 0 | F18: 0 | G18: 0 | H18: 0 | I18: =IF(D18>0,+H18*D18," ") ->  | J18: =IF(D18>0,G18*D18," ") ->  | Z18: 0.55 | AA18: =+AA$19*($Z18/$Z$19) ->  | AB18: =+AB$19*($Z18/$Z$19) -> 
A19: Rows 18-24 enter restricted manager unit(s) only; unrestricted Manager's unit(s) use rows 121-123. | C19: 0 Bdrm. | D19: 0 | E19: =IF(D19=0," ",IF($B$18="TCAC",VLOOKUP($A$18,TCACrents,2,FALSE),IF($B$18="CalHFA",VLOOKUP($A$18,CalHFArents,2,FALSE),VLOOKUP($A$18,Otherrents,2,FALSE)))) ->  | F19: =IF(D19>0,-Misc.!$X$49," ") ->  | G19: =IF(D19>0,SUM(E19:F19)," ") ->  | H19: 0 | Z19: 0.5 | AA19: =C7 -> 
C20: 1 Bdrm. | D20: 0 | E20: =IF(D20=0," ",IF($B$18="TCAC",VLOOKUP($A$18,TCACrents,3,FALSE),IF($B$18="CalHFA",VLOOKUP($A$18,CalHFArents,3,FALSE),VLOOKUP($A$18,Otherrents,3,FALSE)))) ->  | F20: =IF(D20>0,-Misc.!$AA$49," ") ->  | H20: 0 | Z20: 0.45 | AA20: =+AA$19*($Z20/$Z$19) -> 
C21: 2 Bdrm. | D21: 0 | E21: =IF(D21=0," ",IF($B$18="TCAC",VLOOKUP($A$18,TCACrents,4,FALSE),IF($B$18="CalHFA",VLOOKUP($A$18,CalHFArents,4,FALSE),VLOOKUP($A$18,Otherrents,4,FALSE)))) ->  | F21: =IF(D21>0,-Misc.!$AD$49," ") ->  | H21: 0 | Z21: 0.4
A22: % of Restricted Units in | C22: 3 Bdrm. | D22: 0 | E22: =IF(D22=0," ",IF($B$18="TCAC",VLOOKUP($A$18,TCACrents,5,FALSE),IF($B$18="CalHFA",VLOOKUP($A$18,CalHFArents,5,FALSE),VLOOKUP($A$18,Otherrents,5,FALSE)))) ->  | F22: =IF(D22>0,-Misc.!$AG$49," ") ->  | H22: 0 | Z22: 0.35
A23: this category | B23: =+D25/D$110 ->  | C23: 4 Bdrm. | D23: 0 | E23: =IF(D23=0," ",IF($B$18="TCAC",VLOOKUP($A$18,TCACrents,6,FALSE),IF($B$18="CalHFA",VLOOKUP($A$18,CalHFArents,6,FALSE),VLOOKUP($A$18,Otherrents,6,FALSE)))) ->  | F23: =IF(D23>0,-Misc.!$AJ$49," ") ->  | H23: 0 | Z23: 0.3
C24: 5 Bdrm. | D24: 0 | E24: =IF(D24=0," ",IF($B$18="TCAC",VLOOKUP($A$18,TCACrents,7,FALSE),IF($B$18="CalHFA",VLOOKUP($A$18,CalHFArents,7,FALSE),VLOOKUP($A$18,Otherrents,7,FALSE)))) ->  | F24: =IF(D24>0,-Misc.!$AM$49," ") ->  | H24: 0 | Z24: 0.25
D25: =SUM(D18:D24) -> 0 | E25: Subtotal | I25: =SUM(I18:I24) -> 0 | J25: =SUM(J18:J24) -> 0 | Z25: 0.2
C26: Beds | D26: 0 | E26: 0 | F26: 0 | G26: 0 | H26: 0 | I26: =IF(D26>0,+H26*D26," ") ->  | J26: =IF(D26>0,G26*D26," ") ->  | Z26: 0.15
C27: 0 Bdrm. | D27: 0 | E27: =IF(D27=0," ",IF($B$26="TCAC",VLOOKUP($A$26,TCACrents,2,FALSE),IF($B$26="CalHFA",VLOOKUP($A$26,CalHFArents,2,FALSE),VLOOKUP($A$26,Otherrents,2,FALSE)))) ->  | F27: =IF(D27>0,-Misc.!$X$49," ") ->  | G27: =IF(D27>0,SUM(E27:F27)," ") ->  | H27: 0 | I27: =IF(D27>0,+H27*D27," ") ->  | Z27: FALSE | AA27: TRUE
A28: % of Restricted Units in | C28: 1 Bdrm. | D28: 0 | E28: =IF(D28=0," ",IF($B$26="TCAC",VLOOKUP($A$26,TCACrents,3,FALSE),IF($B$26="CalHFA",VLOOKUP($A$26,CalHFArents,3,FALSE),VLOOKUP($A$26,Otherrents,3,FALSE)))) ->  | F28: =IF(D28>0,-Misc.!$AA$49," ") ->  | H28: 0 | Z28: CalHFA 50% Rent Limits
A29: this category | B29: =+D33/D$110 ->  | C29: 2 Bdrm. | D29: 0 | E29: =IF(D29=0," ",IF($B$26="TCAC",VLOOKUP($A$26,TCACrents,4,FALSE),IF($B$26="CalHFA",VLOOKUP($A$26,CalHFArents,4,FALSE),VLOOKUP($A$26,Otherrents,4,FALSE)))) ->  | F29: =IF(D29>0,-Misc.!$AD$49," ") ->  | H29: 0 | Z29: (Assumes 1 person in 0-bedroom, 2 people in a 1 bdrm and 1 additional person per addn'l bedroom)
C30: 3 Bdrm. | D30: 0 | E30: =IF(D30=0," ",IF($B$26="TCAC",VLOOKUP($A$26,TCACrents,5,FALSE),IF($B$26="CalHFA",VLOOKUP($A$26,CalHFArents,5,FALSE),VLOOKUP($A$26,Otherrents,5,FALSE)))) ->  | F30: =IF(D30>0,-Misc.!$AG$49," ") ->  | H30: 0
C31: 4 Bdrm. | D31: 0 | E31: =IF(D31=0," ",IF($B$26="TCAC",VLOOKUP($A$26,TCACrents,6,FALSE),IF($B$26="CalHFA",VLOOKUP($A$26,CalHFArents,6,FALSE),VLOOKUP($A$26,Otherrents,6,FALSE)))) ->  | F31: =IF(D31>0,-Misc.!$AJ$49," ") ->  | H31: 0 | Z31: Income
C32: 5 Bdrm. | D32: 0 | E32: =IF(D32=0," ",IF($B$26="TCAC",VLOOKUP($A$26,TCACrents,7,FALSE),IF($B$26="CalHFA",VLOOKUP($A$26,CalHFArents,7,FALSE),VLOOKUP($A$26,Otherrents,7,FALSE)))) ->  | F32: =IF(D32>0,-Misc.!$AM$49," ") ->  | H32: 0 | Z32: Level | AA32: 0 Bdrm. | AB32: 1 Bdrm. | AC32: 2 Bdrm. | AD32: 3 Bdrm. | AE32: 4 Bdrm. | AF32: 5 Bdrm.
D33: =SUM(D26:D32) -> 0 | E33: Subtotal | I33: =SUM(I26:I32) -> 0 | J33: =SUM(J26:J32) -> 0 | Z33: 0.5 | AA33: =+AA19/12*0.3 -> 
C34: Beds | D34: 0 | E34: 0 | F34: 0 | G34: 0 | H34: 0 | I34: =IF(D34>0,+H34*D34," ") ->  | J34: =IF(D34>0,G34*D34," ") -> 
C35: 0 Bdrm. | D35: 0 | E35: =IF(D35=0," ",IF($B$34="TCAC",VLOOKUP($A$34,TCACrents,2,FALSE),IF($B$34="CalHFA",VLOOKUP($A$34,CalHFArents,2,FALSE),VLOOKUP($A$34,Otherrents,2,FALSE)))) ->  | F35: =IF(D35>0,-Misc.!$X$49," ") ->  | G35: =IF(D35>0,SUM(E35:F35)," ") ->  | H35: 0 | I35: =IF(D35>0,+H35*D35," ") ->  | Z35: TCAC/CDLAC/MHP Rent Limits
A36: % of Restricted Units in | C36: 1 Bdrm. | D36: 0 | E36: =IF(D36=0," ",IF($B$34="TCAC",VLOOKUP($A$34,TCACrents,3,FALSE),IF($B$34="CalHFA",VLOOKUP($A$34,CalHFArents,3,FALSE),VLOOKUP($A$34,Otherrents,3,FALSE)))) ->  | F36: =IF(D36>0,-Misc.!$AA$49," ") ->  | H36: 0 | Z36: (Assumes 1 person in 0-bdrm unit, 1.5 people per bedroom in other units)
A37: this category | B37: =+D41/D$110 ->  | C37: 2 Bdrm. | D37: 0 | E37: =IF(D37=0," ",IF($B$34="TCAC",VLOOKUP($A$34,TCACrents,4,FALSE),IF($B$34="CalHFA",VLOOKUP($A$34,CalHFArents,4,FALSE),VLOOKUP($A$34,Otherrents,4,FALSE)))) ->  | F37: =IF(D37>0,-Misc.!$AD$49," ") ->  | H37: 0
C38: 3 Bdrm. | D38: 0 | E38: =IF(D38=0," ",IF($B$34="TCAC",VLOOKUP($A$34,TCACrents,5,FALSE),IF($B$34="CalHFA",VLOOKUP($A$34,CalHFArents,5,FALSE),VLOOKUP($A$34,Otherrents,5,FALSE)))) ->  | F38: =IF(D38>0,-Misc.!$AG$49," ") ->  | H38: 0 | Z38: Income
C39: 4 Bdrm. | D39: 0 | E39: =IF(D39=0," ",IF($B$34="TCAC",VLOOKUP($A$34,TCACrents,6,FALSE),IF($B$34="CalHFA",VLOOKUP($A$34,CalHFArents,6,FALSE),VLOOKUP($A$34,Otherrents,6,FALSE)))) ->  | F39: =IF(D39>0,-Misc.!$AJ$49," ") ->  | H39: 0 | Z39: Limit | AA39: 0 Bdrm. | AB39: 1 Bdrm. | AC39: 2 Bdrm. | AD39: 3 Bdrm. | AE39: 4 Bdrm. | AF39: 5 Bdrm.
C40: 5 Bdrm. | D40: 0 | E40: =IF(D40=0," ",IF($B$34="TCAC",VLOOKUP($A$34,TCACrents,7,FALSE),IF($B$34="CalHFA",VLOOKUP($A$34,CalHFArents,7,FALSE),VLOOKUP($A$34,Otherrents,7,FALSE)))) ->  | F40: =IF(D40>0,-Misc.!$AM$49," ") ->  | H40: 0 | Z40: 1.2 | AA40: =TRUNC(AA9/12*0.3) ->  | AB40: =TRUNC((AA9+AB9)/2/12*0.3) ->  | AC40: =TRUNC(AC9/12*0.3) ->  | AD40: =TRUNC((AD9+AE9)/2/12*0.3) ->  | AE40: =TRUNC(AF9/12*0.3) ->  | AF40: =TRUNC((AG9+AH9)/2/12*0.3) -> 
D41: =SUM(D34:D40) -> 0 | E41: Subtotal | I41: =SUM(I34:I40) -> 0 | J41: =SUM(J34:J40) -> 0 | Z41: 1.1
C42: Beds | D42: 0 | E42: 0 | F42: 0 | G42: 0 | H42: 0 | I42: =IF(D42>0,+H42*D42," ") ->  | J42: =IF(D42>0,G42*D42," ") ->  | Z42: 1
C43: 0 Bdrm. | D43: 0 | E43: =IF(D43=0," ",IF($B$42="TCAC",VLOOKUP($A$42,TCACrents,2,FALSE),IF($B$42="CalHFA",VLOOKUP($A$42,CalHFArents,2,FALSE),VLOOKUP($A$42,Otherrents,2,FALSE)))) ->  | F43: =IF(D43>0,-Misc.!$X$49," ") ->  | G43: =IF(D43>0,SUM(E43:F43)," ") ->  | H43: 0 | I43: =IF(D43>0,+H43*D43," ") ->  | Z43: 0.9
A44: % of Restricted Units in | C44: 1 Bdrm. | D44: 0 | E44: =IF(D44=0," ",IF($B$42="TCAC",VLOOKUP($A$42,TCACrents,3,FALSE),IF($B$42="CalHFA",VLOOKUP($A$42,CalHFArents,3,FALSE),VLOOKUP($A$42,Otherrents,3,FALSE)))) ->  | F44: =IF(D44>0,-Misc.!$AA$49," ") ->  | H44: 0 | Z44: 0.8
A45: this category | B45: =+D49/D$110 ->  | C45: 2 Bdrm. | D45: 0 | E45: =IF(D45=0," ",IF($B$42="TCAC",VLOOKUP($A$42,TCACrents,4,FALSE),IF($B$42="CalHFA",VLOOKUP($A$42,CalHFArents,4,FALSE),VLOOKUP($A$42,Otherrents,4,FALSE)))) ->  | F45: =IF(D45>0,-Misc.!$AD$49," ") ->  | H45: 0 | Z45: 0.75
C46: 3 Bdrm. | D46: 0 | E46: =IF(D46=0," ",IF($B$42="TCAC",VLOOKUP($A$42,TCACrents,5,FALSE),IF($B$42="CalHFA",VLOOKUP($A$42,CalHFArents,5,FALSE),VLOOKUP($A$42,Otherrents,5,FALSE)))) ->  | F46: =IF(D46>0,-Misc.!$AG$49," ") ->  | H46: 0 | Z46: 0.7
C47: 4 Bdrm. | D47: 0 | E47: =IF(D47=0," ",IF($B$42="TCAC",VLOOKUP($A$42,TCACrents,6,FALSE),IF($B$42="CalHFA",VLOOKUP($A$42,CalHFArents,6,FALSE),VLOOKUP($A$42,Otherrents,6,FALSE)))) ->  | F47: =IF(D47>0,-Misc.!$AJ$49," ") ->  | H47: 0 | Z47: 0.65
C48: 5 Bdrm. | D48: 0 | E48: =IF(D48=0," ",IF($B$42="TCAC",VLOOKUP($A$42,TCACrents,7,FALSE),IF($B$42="CalHFA",VLOOKUP($A$42,CalHFArents,7,FALSE),VLOOKUP($A$42,Otherrents,7,FALSE)))) ->  | F48: =IF(D48>0,-Misc.!$AM$49," ") ->  | H48: 0 | Z48: 0.6
D49: =SUM(D42:D48) -> 0 | E49: Subtotal | I49: =SUM(I42:I48) -> 0 | J49: =SUM(J42:J48) -> 0 | Z49: 0.55
C50: Beds | D50: 0 | E50: 0 | F50: 0 | G50: 0 | H50: 0 | I50: =IF(D50>0,+H50*D50," ") ->  | J50: =IF(D50>0,G50*D50," ") ->  | Z50: 0.5 | AA50: =TRUNC(+AA19/12*0.3) ->  | AB50: =TRUNC((+AA19+AB19)/2/12*0.3) ->  | AC50: =TRUNC(+AC19/12*0.3) ->  | AD50: =TRUNC((+AD19+AE19)/2/12*0.3) ->  | AE50: =TRUNC(+AF19/12*0.3) ->  | AF50: =TRUNC((+AG19+AH19)/2/12*0.3) -> 
C51: 0 Bdrm. | D51: 0 | E51: =IF(D51=0," ",IF($B$50="TCAC",VLOOKUP($A$50,TCACrents,2,FALSE),IF($B$50="CalHFA",VLOOKUP($A$50,CalHFArents,2,FALSE),VLOOKUP($A$50,Otherrents,2,FALSE)))) ->  | F51: =IF(D51>0,-Misc.!$X$49," ") ->  | G51: =IF(D51>0,SUM(E51:F51)," ") ->  | H51: 0 | I51: =IF(D51>0,+H51*D51," ") ->  | Z51: 0.45 | AA51: =TRUNC(+AA20/12*0.3) ->  | AB51: =TRUNC((+AA20+AB20)/2/12*0.3) ->  | AC51: =TRUNC(+AC20/12*0.3) ->  | AD51: =TRUNC((+AD20+AE20)/2/12*0.3) ->  | AE51: =TRUNC(+AF20/12*0.3) ->  | AF51: =TRUNC((+AG20+AH20)/2/12*0.3) -> 
A52: % of Restricted Units in | C52: 1 Bdrm. | D52: 0 | E52: =IF(D52=0," ",IF($B$50="TCAC",VLOOKUP($A$50,TCACrents,3,FALSE),IF($B$50="CalHFA",VLOOKUP($A$50,CalHFArents,3,FALSE),VLOOKUP($A$50,Otherrents,3,FALSE)))) ->  | F52: =IF(D52>0,-Misc.!$AA$49," ") ->  | H52: 0 | Z52: 0.4 | AA52: =TRUNC(AA21/12*0.3) ->  | AB52: =TRUNC((AA21+AB21)/2/12*0.3) ->  | AC52: =TRUNC(AC21/12*0.3) ->  | AD52: =TRUNC((AD21+AE21)/2/12*0.3) ->  | AE52: =TRUNC(AF21/12*0.3) ->  | AF52: =TRUNC((AG21+AH21)/2/12*0.3) -> 
A53: this category | B53: =+D57/D$110 ->  | C53: 2 Bdrm. | D53: 0 | E53: =IF(D53=0," ",IF($B$50="TCAC",VLOOKUP($A$50,TCACrents,4,FALSE),IF($B$50="CalHFA",VLOOKUP($A$50,CalHFArents,4,FALSE),VLOOKUP($A$50,Otherrents,4,FALSE)))) ->  | F53: =IF(D53>0,-Misc.!$AD$49," ") ->  | H53: 0 | Z53: 0.35
C54: 3 Bdrm. | D54: 0 | E54: =IF(D54=0," ",IF($B$50="TCAC",VLOOKUP($A$50,TCACrents,5,FALSE),IF($B$50="CalHFA",VLOOKUP($A$50,CalHFArents,5,FALSE),VLOOKUP($A$50,Otherrents,5,FALSE)))) ->  | F54: =IF(D54>0,-Misc.!$AG$49," ") ->  | H54: 0 | Z54: 0.3
C55: 4 Bdrm. | D55: 0 | E55: =IF(D55=0," ",IF($B$50="TCAC",VLOOKUP($A$50,TCACrents,6,FALSE),IF($B$50="CalHFA",VLOOKUP($A$50,CalHFArents,6,FALSE),VLOOKUP($A$50,Otherrents,6,FALSE)))) ->  | F55: =IF(D55>0,-Misc.!$AJ$49," ") ->  | H55: 0 | Z55: 0.25
C56: 5 Bdrm. | D56: 0 | E56: =IF(D56=0," ",IF($B$50="TCAC",VLOOKUP($A$50,TCACrents,7,FALSE),IF($B$50="CalHFA",VLOOKUP($A$50,CalHFArents,7,FALSE),VLOOKUP($A$50,Otherrents,7,FALSE)))) ->  | F56: =IF(D56>0,-Misc.!$AM$49," ") ->  | H56: 0 | Z56: 0.2
D57: =SUM(D50:D56) -> 0 | E57: Subtotal | I57: =SUM(I50:I56) -> 0 | J57: =SUM(J50:J56) -> 0 | Z57: 0.15
A58: Income Limit (% AMI) | B58: Rent Limit Calc. Formula | C58: Unit Size | D58: No. of Units | E58: Maximum Gross Rent | F58: Less Utility Allowance | G58: Maximum Net Rent | H58: Proposed Net Rent | I58: Monthly Income at Proposed Rents | J58: Monthly Income at Maximum Rents
C62: Beds | D62: 0 | E62: 0 | F62: 0 | G62: 0 | H62: 0 | I62: =IF(D62>0,+H62*D62," ") ->  | J62: =IF(D62>0,G62*D62," ") -> 
C63: 0 Bdrm. | D63: 0 | E63: =IF(D63=0," ",IF($B$62="TCAC",VLOOKUP($A$62,TCACrents,2,FALSE),IF($B$62="CalHFA",VLOOKUP($A$62,CalHFArents,2,FALSE),VLOOKUP($A$62,Otherrents,2,FALSE)))) ->  | F63: =IF(D63>0,-Misc.!$X$49," ") ->  | G63: =IF(D63>0,SUM(E63:F63)," ") ->  | H63: 0 | I63: =IF(D63>0,+H63*D63," ") -> 
A64: % of Restricted Units in | C64: 1 Bdrm. | D64: 0 | E64: =IF(D64=0," ",IF($B$62="TCAC",VLOOKUP($A$62,TCACrents,3,FALSE),IF($B$62="CalHFA",VLOOKUP($A$62,CalHFArents,3,FALSE),VLOOKUP($A$62,Otherrents,3,FALSE)))) ->  | F64: =IF(D64>0,-Misc.!$AA$49," ") ->  | H64: 0
A65: this category | B65: =+D69/D$110 ->  | C65: 2 Bdrm. | D65: 0 | E65: =IF(D65=0," ",IF($B$62="TCAC",VLOOKUP($A$62,TCACrents,4,FALSE),IF($B$62="CalHFA",VLOOKUP($A$62,CalHFArents,4,FALSE),VLOOKUP($A$62,Otherrents,4,FALSE)))) ->  | F65: =IF(D65>0,-Misc.!$AD$49," ") ->  | H65: 0
C66: 3 Bdrm. | D66: 0 | E66: =IF(D66=0," ",IF($B$62="TCAC",VLOOKUP($A$62,TCACrents,5,FALSE),IF($B$62="CalHFA",VLOOKUP($A$62,CalHFArents,5,FALSE),VLOOKUP($A$62,Otherrents,5,FALSE)))) ->  | F66: =IF(D66>0,-Misc.!$AG$49," ") ->  | H66: 0
C67: 4 Bdrm. | D67: 0 | E67: =IF(D67=0," ",IF($B$62="TCAC",VLOOKUP($A$62,TCACrents,6,FALSE),IF($B$62="CalHFA",VLOOKUP($A$62,CalHFArents,6,FALSE),VLOOKUP($A$62,Otherrents,6,FALSE)))) ->  | F67: =IF(D67>0,-Misc.!$AJ$49," ") ->  | H67: 0
C68: 5 Bdrm. | D68: 0 | E68: =IF(D68=0," ",IF($B$62="TCAC",VLOOKUP($A$62,TCACrents,7,FALSE),IF($B$62="CalHFA",VLOOKUP($A$62,CalHFArents,7,FALSE),VLOOKUP($A$62,Otherrents,7,FALSE)))) ->  | F68: =IF(D68>0,-Misc.!$AM$49," ") ->  | H68: 0
D69: =SUM(D62:D68) -> 0 | E69: Subtotal | I69: =SUM(I62:I68) -> 0 | J69: =SUM(J62:J68) -> 0
C70: Beds | D70: 0 | E70: 0 | F70: 0 | G70: 0 | H70: 0 | I70: =IF(D70>0,+H70*D70," ") ->  | J70: =IF(D70>0,G70*D70," ") -> 
C71: 0 Bdrm. | D71: 0 | E71: =IF(D71=0," ",IF($B$70="TCAC",VLOOKUP($A$70,TCACrents,2,FALSE),IF($B$70="CalHFA",VLOOKUP($A$70,CalHFArents,2,FALSE),VLOOKUP($A$70,Otherrents,2,FALSE)))) ->  | F71: =IF(D71>0,-Misc.!$X$49," ") ->  | G71: =IF(D71>0,SUM(E71:F71)," ") ->  | H71: 0 | I71: =IF(D71>0,+H71*D71," ") -> 
A72: % of Restricted Units in | C72: 1 Bdrm. | D72: 0 | E72: =IF(D72=0," ",IF($B$70="TCAC",VLOOKUP($A$70,TCACrents,3,FALSE),IF($B$70="CalHFA",VLOOKUP($A$70,CalHFArents,3,FALSE),VLOOKUP($A$70,Otherrents,3,FALSE)))) ->  | F72: =IF(D72>0,-Misc.!$AA$49," ") ->  | H72: 0
A73: this category | B73: =+D77/D$110 ->  | C73: 2 Bdrm. | D73: 0 | E73: =IF(D73=0," ",IF($B$70="TCAC",VLOOKUP($A$70,TCACrents,4,FALSE),IF($B$70="CalHFA",VLOOKUP($A$70,CalHFArents,4,FALSE),VLOOKUP($A$70,Otherrents,4,FALSE)))) ->  | F73: =IF(D73>0,-Misc.!$AD$49," ") ->  | H73: 0
C74: 3 Bdrm. | D74: 0 | E74: =IF(D74=0," ",IF($B$70="TCAC",VLOOKUP($A$70,TCACrents,5,FALSE),IF($B$70="CalHFA",VLOOKUP($A$70,CalHFArents,5,FALSE),VLOOKUP($A$70,Otherrents,5,FALSE)))) ->  | F74: =IF(D74>0,-Misc.!$AG$49," ") ->  | H74: 0
C75: 4 Bdrm. | D75: 0 | E75: =IF(D75=0," ",IF($B$70="TCAC",VLOOKUP($A$70,TCACrents,6,FALSE),IF($B$70="CalHFA",VLOOKUP($A$70,CalHFArents,6,FALSE),VLOOKUP($A$70,Otherrents,6,FALSE)))) ->  | F75: =IF(D75>0,-Misc.!$AJ$49," ") ->  | H75: 0
C76: 5 Bdrm. | D76: 0 | E76: =IF(D76=0," ",IF($B$70="TCAC",VLOOKUP($A$70,TCACrents,7,FALSE),IF($B$70="CalHFA",VLOOKUP($A$70,CalHFArents,7,FALSE),VLOOKUP($A$70,Otherrents,7,FALSE)))) ->  | F76: =IF(D76>0,-Misc.!$AM$49," ") ->  | H76: 0
D77: =SUM(D70:D76) -> 0 | E77: Subtotal | I77: =SUM(I70:I76) -> 0 | J77: =SUM(J70:J76) -> 0
C78: Beds | D78: 0 | E78: 0 | F78: 0 | G78: 0 | H78: 0 | I78: =IF(D78>0,+H78*D78," ") ->  | J78: =IF(D78>0,G78*D78," ") -> 
C79: 0 Bdrm. | D79: 0 | E79: =IF(D79=0," ",IF($B$78="TCAC",VLOOKUP($A$78,TCACrents,2,FALSE),IF($B$78="CalHFA",VLOOKUP($A$78,CalHFArents,2,FALSE),VLOOKUP($A$78,Otherrents,2,FALSE)))) ->  | F79: =IF(D79>0,-Misc.!$X$49," ") ->  | G79: =IF(D79>0,SUM(E79:F79)," ") ->  | H79: 0 | I79: =IF(D79>0,+H79*D79," ") -> 
A80: % of Restricted Units in | C80: 1 Bdrm. | D80: 0 | E80: =IF(D80=0," ",IF($B$78="TCAC",VLOOKUP($A$78,TCACrents,3,FALSE),IF($B$78="CalHFA",VLOOKUP($A$78,CalHFArents,3,FALSE),VLOOKUP($A$78,Otherrents,3,FALSE)))) ->  | F80: =IF(D80>0,-Misc.!$AA$49," ") ->  | H80: 0
A81: this category | B81: =+D85/D$110 ->  | C81: 2 Bdrm. | D81: 0 | E81: =IF(D81=0," ",IF($B$78="TCAC",VLOOKUP($A$78,TCACrents,4,FALSE),IF($B$78="CalHFA",VLOOKUP($A$78,CalHFArents,4,FALSE),VLOOKUP($A$78,Otherrents,4,FALSE)))) ->  | F81: =IF(D81>0,-Misc.!$AD$49," ") ->  | H81: 0
C82: 3 Bdrm. | D82: 0 | E82: =IF(D82=0," ",IF($B$78="TCAC",VLOOKUP($A$78,TCACrents,5,FALSE),IF($B$78="CalHFA",VLOOKUP($A$78,CalHFArents,5,FALSE),VLOOKUP($A$78,Otherrents,5,FALSE)))) ->  | F82: =IF(D82>0,-Misc.!$AG$49," ") ->  | H82: 0
C83: 4 Bdrm. | D83: 0 | E83: =IF(D83=0," ",IF($B$78="TCAC",VLOOKUP($A$78,TCACrents,6,FALSE),IF($B$78="CalHFA",VLOOKUP($A$78,CalHFArents,6,FALSE),VLOOKUP($A$78,Otherrents,6,FALSE)))) ->  | F83: =IF(D83>0,-Misc.!$AJ$49," ") ->  | H83: 0
C84: 5 Bdrm. | D84: 0 | E84: =IF(D84=0," ",IF($B$78="TCAC",VLOOKUP($A$78,TCACrents,7,FALSE),IF($B$78="CalHFA",VLOOKUP($A$78,CalHFArents,7,FALSE),VLOOKUP($A$78,Otherrents,7,FALSE)))) ->  | F84: =IF(D84>0,-Misc.!$AM$49," ") ->  | H84: 0
D85: =SUM(D78:D84) -> 0 | E85: Subtotal | I85: =SUM(I78:I84) -> 0 | J85: =SUM(J78:J84) -> 0
C86: Beds | D86: 0 | E86: 0 | F86: 0 | G86: 0 | H86: 0 | I86: =IF(D86>0,+H86*D86," ") ->  | J86: =IF(D86>0,G86*D86," ") -> 
C87: 0 Bdrm. | D87: 0 | E87: =IF(D87=0," ",IF($B$86="TCAC",VLOOKUP($A$86,TCACrents,2,FALSE),IF($B$86="CalHFA",VLOOKUP($A$86,CalHFArents,2,FALSE),VLOOKUP($A$86,Otherrents,2,FALSE)))) ->  | F87: =IF(D87>0,-Misc.!$X$49," ") ->  | G87: =IF(D87>0,SUM(E87:F87)," ") ->  | H87: 0 | I87: =IF(D87>0,+H87*D87," ") -> 
A88: % of Restricted Units in | C88: 1 Bdrm. | D88: 0 | E88: =IF(D88=0," ",IF($B$86="TCAC",VLOOKUP($A$86,TCACrents,3,FALSE),IF($B$86="CalHFA",VLOOKUP($A$86,CalHFArents,3,FALSE),VLOOKUP($A$86,Otherrents,3,FALSE)))) ->  | F88: =IF(D88>0,-Misc.!$AA$49," ") ->  | H88: 0
A89: this category | B89: =+D93/D$110 ->  | C89: 2 Bdrm. | D89: 0 | E89: =IF(D89=0," ",IF($B$86="TCAC",VLOOKUP($A$86,TCACrents,4,FALSE),IF($B$86="CalHFA",VLOOKUP($A$86,CalHFArents,4,FALSE),VLOOKUP($A$86,Otherrents,4,FALSE)))) ->  | F89: =IF(D89>0,-Misc.!$AD$49," ") ->  | H89: 0
C90: 3 Bdrm. | D90: 0 | E90: =IF(D90=0," ",IF($B$86="TCAC",VLOOKUP($A$86,TCACrents,5,FALSE),IF($B$86="CalHFA",VLOOKUP($A$86,CalHFArents,5,FALSE),VLOOKUP($A$86,Otherrents,5,FALSE)))) ->  | F90: =IF(D90>0,-Misc.!$AG$49," ") ->  | H90: 0
C91: 4 Bdrm. | D91: 0 | E91: =IF(D91=0," ",IF($B$86="TCAC",VLOOKUP($A$86,TCACrents,6,FALSE),IF($B$86="CalHFA",VLOOKUP($A$86,CalHFArents,6,FALSE),VLOOKUP($A$86,Otherrents,6,FALSE)))) ->  | F91: =IF(D91>0,-Misc.!$AJ$49," ") ->  | H91: 0
C92: 5 Bdrm. | D92: 0 | E92: =IF(D92=0," ",IF($B$86="TCAC",VLOOKUP($A$86,TCACrents,7,FALSE),IF($B$86="CalHFA",VLOOKUP($A$86,CalHFArents,7,FALSE),VLOOKUP($A$86,Otherrents,7,FALSE)))) ->  | F92: =IF(D92>0,-Misc.!$AM$49," ") ->  | H92: 0
D93: =SUM(D86:D92) -> 0 | E93: Subtotal | I93: =SUM(I86:I92) -> 0 | J93: =SUM(J86:J92) -> 0
C94: Beds | D94: 0 | E94: 0 | F94: 0 | G94: 0 | H94: 0 | I94: =IF(D94>0,+H94*D94," ") ->  | J94: =IF(D94>0,G94*D94," ") -> 
C95: 0 Bdrm. | D95: 0 | E95: =IF(D95=0," ",IF($B$94="TCAC",VLOOKUP($A$94,TCACrents,2,FALSE),IF($B$94="CalHFA",VLOOKUP($A$94,CalHFArents,2,FALSE),VLOOKUP($A$94,Otherrents,2,FALSE)))) ->  | F95: =IF(D95>0,-Misc.!$X$49," ") ->  | G95: =IF(D95>0,SUM(E95:F95)," ") ->  | H95: 0 | I95: =IF(D95>0,+H95*D95," ") -> 
A96: % of Restricted Units in | C96: 1 Bdrm. | D96: 0 | E96: =IF(D96=0," ",IF($B$94="TCAC",VLOOKUP($A$94,TCACrents,3,FALSE),IF($B$94="CalHFA",VLOOKUP($A$94,CalHFArents,3,FALSE),VLOOKUP($A$94,Otherrents,3,FALSE)))) ->  | F96: =IF(D96>0,-Misc.!$AA$49," ") ->  | H96: 0
A97: this category | B97: =+D101/D$110 ->  | C97: 2 Bdrm. | D97: 0 | E97: =IF(D97=0," ",IF($B$94="TCAC",VLOOKUP($A$94,TCACrents,4,FALSE),IF($B$94="CalHFA",VLOOKUP($A$94,CalHFArents,4,FALSE),VLOOKUP($A$94,Otherrents,4,FALSE)))) ->  | F97: =IF(D97>0,-Misc.!$AD$49," ") ->  | H97: 0
C98: 3 Bdrm. | D98: 0 | E98: =IF(D98=0," ",IF($B$94="TCAC",VLOOKUP($A$94,TCACrents,5,FALSE),IF($B$94="CalHFA",VLOOKUP($A$94,CalHFArents,5,FALSE),VLOOKUP($A$94,Otherrents,5,FALSE)))) ->  | F98: =IF(D98>0,-Misc.!$AG$49," ") ->  | H98: 0
C99: 4 Bdrm. | D99: 0 | E99: =IF(D99=0," ",IF($B$94="TCAC",VLOOKUP($A$94,TCACrents,6,FALSE),IF($B$94="CalHFA",VLOOKUP($A$94,CalHFArents,6,FALSE),VLOOKUP($A$94,Otherrents,6,FALSE)))) ->  | F99: =IF(D99>0,-Misc.!$AJ$49," ") ->  | H99: 0
C100: 5 Bdrm. | D100: 0 | E100: =IF(D100=0," ",IF($B$94="TCAC",VLOOKUP($A$94,TCACrents,7,FALSE),IF($B$94="CalHFA",VLOOKUP($A$94,CalHFArents,7,FALSE),VLOOKUP($A$94,Otherrents,7,FALSE)))) ->  | F100: =IF(D100>0,-Misc.!$AM$49," ") ->  | H100: 0
D101: =SUM(D94:D100) -> 0 | E101: Subtotal | I101: =SUM(I94:I100) -> 0 | J101: =SUM(J94:J100) -> 0
C102: Beds | D102: 0 | E102: 0 | F102: 0 | G102: 0 | H102: 0 | I102: =IF(D102>0,+H102*D102," ") ->  | J102: =IF(D102>0,G102*D102," ") -> 
C103: 0 Bdrm. | D103: 0 | E103: =IF(D103=0," ",IF($B$102="TCAC",VLOOKUP($A$102,TCACrents,2,FALSE),IF($B$102="CalHFA",VLOOKUP($A$102,CalHFArents,2,FALSE),VLOOKUP($A$102,Otherrents,2,FALSE)))) ->  | F103: =IF(D103>0,-Misc.!$X$49," ") ->  | G103: =IF(D103>0,SUM(E103:F103)," ") ->  | H103: 0 | I103: =IF(D103>0,+H103*D103," ") -> 
A104: % of Restricted Units in | C104: 1 Bdrm. | D104: 0 | E104: =IF(D104=0," ",IF($B$102="TCAC",VLOOKUP($A$102,TCACrents,3,FALSE),IF($B$102="CalHFA",VLOOKUP($A$102,CalHFArents,3,FALSE),VLOOKUP($A$102,Otherrents,3,FALSE)))) ->  | F104: =IF(D104>0,-Misc.!$AA$49," ") ->  | H104: 0
A105: this category | B105: =+D109/D$110 ->  | C105: 2 Bdrm. | D105: 0 | E105: =IF(D105=0," ",IF($B$102="TCAC",VLOOKUP($A$102,TCACrents,4,FALSE),IF($B$102="CalHFA",VLOOKUP($A$102,CalHFArents,4,FALSE),VLOOKUP($A$102,Otherrents,4,FALSE)))) ->  | F105: =IF(D105>0,-Misc.!$AD$49," ") ->  | H105: 0
C106: 3 Bdrm. | D106: 0 | E106: =IF(D106=0," ",IF($B$102="TCAC",VLOOKUP($A$102,TCACrents,5,FALSE),IF($B$102="CalHFA",VLOOKUP($A$102,CalHFArents,5,FALSE),VLOOKUP($A$102,Otherrents,5,FALSE)))) ->  | F106: =IF(D106>0,-Misc.!$AG$49," ") ->  | H106: 0
C107: 4 Bdrm. | D107: 0 | E107: =IF(D107=0," ",IF($B$102="TCAC",VLOOKUP($A$102,TCACrents,6,FALSE),IF($B$102="CalHFA",VLOOKUP($A$102,CalHFArents,6,FALSE),VLOOKUP($A$102,Otherrents,6,FALSE)))) ->  | F107: =IF(D107>0,-Misc.!$AJ$49," ") ->  | H107: 0
C108: 5 Bdrm. | D108: 0 | E108: =IF(D108=0," ",IF($B$102="TCAC",VLOOKUP($A$102,TCACrents,7,FALSE),IF($B$102="CalHFA",VLOOKUP($A$102,CalHFArents,7,FALSE),VLOOKUP($A$102,Otherrents,7,FALSE)))) ->  | F108: =IF(D108>0,-Misc.!$AM$49," ") ->  | H108: 0
D109: =SUM(D102:D108) -> 0 | E109: Subtotal | I109: =SUM(I102:I108) -> 0 | J109: =SUM(J102:J108) -> 0
A110: Total Restricted Units | D110: =+D25+D33+D41+D49+D57+D69+D77+D85+D93+D101+D109 -> 0 | E110: Monthly Rental Income from Restricted Units | I110: =+I25+I33+I41+I49+I57+I69+I77+I85+I93+I101+I109 -> 0 | J110: =+J25+J33+J41+J49+J57+J69+J77+J85+J93+J101+J109 -> 0
A112: Unrestricted Units | D112: 0 | H112: 0 | I112: =+D112*H112 -> 0
D113: 0 | H113: 0 | I113: =+D113*H113 -> 0
D114: 0 | H114: 0 | I114: 0
D115: 0 | H115: 0 | I115: =+D115*H115 -> 0
D116: 0 | H116: 0 | I116: =+D116*H116 -> 0
D117: 0 | H117: 0 | I117: =+D117*H117 -> 0
D118: 0 | H118: 0 | I118: =+D118*H118 -> 0
D119: 0 | H119: 0 | I119: 0
D120: 0 | H120: 0 | I120: 0
A121: Manager Unit | D121: 0 | H121: 0 | I121: 0
A122: Manager Unit | D122: 0 | H122: 0 | I122: =+D122*H122 -> 0
A123: Manager Unit | D123: 0 | H123: 0 | I123: 0
A124: Total Unrestricted Units | D124: =SUM(D112:D123) -> 0 | H124: Subtotal | I124: =SUM(I112:I123) -> 0
A125: Total Units | D125: =D110+D124 -> 0
A126: Other Rent Limits
A127: Enter below any rent limits that are both the most restrictive and that are required by sources other than tax credits,
A128: bonds, or MHP (e.g.. HOME or USDA Rural Development). Describe the limts in the box to the right.
A129: After you are done, complete the table above.
B131: Gross Rent Limits | H131: Description of Other Rent Limits
A133: Income | B133: Unit Size (Bdrms)
A134: Level | B134: 0 | C134: 1 | D134: 2 | E134: 3 | F134: 4 | G134: 5
A135: 0.65 | B135: 0 | C135: 0 | D135: 0 | E135: 0 | F135: 0 | G135: 0
A136: 0.6 | B136: 0 | C136: 0 | D136: 0 | E136: 0 | F136: 0 | G136: 0
A137: 0.55 | B137: 0 | C137: 0 | D137: 0 | E137: 0 | F137: 0 | G137: 0
A138: 0.5 | B138: 0 | C138: 0 | D138: 0 | E138: 0 | F138: 0 | G138: 0
A139: 0.45 | B139: 0 | C139: 0 | D139: 0 | E139: 0 | F139: 0 | G139: 0
A140: 0.4 | B140: 0 | C140: 0 | D140: 0 | E140: 0 | F140: 0 | G140: 0
A141: 0.35 | B141: 0 | C141: 0 | D141: 0 | E141: 0 | F141: 0 | G141: 0
A142: 0.3 | B142: 0 | C142: 0 | D142: 0 | E142: 0 | F142: 0 | G142: 0
A143: 0.25 | B143: 0 | C143: 0 | D143: 0 | E143: 0 | F143: 0 | G143: 0
A144: 0.2 | B144: 0 | C144: 0 | D144: 0 | E144: 0 | F144: 0 | G144: 0
A145: 0.15 | B145: 0 | C145: 0 | D145: 0 | E145: 0 | F145: 0 | G145: 0
A147: Restricted Units by Income and Unit Size
B149: Restricted Units by Income Level | F149: Restricted Units by Unit Size
D151: % of | H151: % of
B152: Income | D152: Restricted | F152: Unit | H152: Restricted
B153: Level | C153: No. | D153: Units | F153: Size | G153: Units | H153: Units
B154: 0.65 | C154: =+D154*D$110 -> 0 | D154: =SUM(IF(A$18=B154,B$23,0),IF(A$26=B154,B$29,0),IF(A$34=B154,B$37,0),IF(A$42=B154,B$45,0),IF(A$50=B154,B$53,0),IF(A$62=B154,B$65,0),IF(A$70=B154,B$73,0),IF(A$78=B154,B$81,0),IF(A$86=B154,$B$89,0),IF(A$94=B154,$B$97,0),IF(A$102=B154,$B$105)) -> 0 | F154: Beds | G154: =SUMIF($C$18:C$108,$F$154,$D$18:$D$108) -> 0 | H154: =+G154/G$161 -> 
B155: 0.6 | C155: 0 | D155: 0 | F155: 0 Bdrm. | G155: =SUMIF(C$18:C$108,F155,D$18:D$108) -> 0
B156: 0.55 | C156: 0 | D156: 0 | F156: 1 Bdrm. | G156: 0
B157: 0.5 | C157: 0 | D157: 0 | F157: 2 Bdrm. | G157: 0
B158: 0.45 | C158: 0 | D158: 0 | F158: 3 Bdrm. | G158: 0
B159: 0.4 | C159: 0 | D159: 0 | F159: 4 Bdrm. | G159: 0
B160: 0.35 | C160: 0 | D160: 0 | F160: 5 Bdrm. | G160: 0
B161: 0.3 | C161: 0 | D161: 0 | F161: Total: | G161: =SUM(G154:G160) -> 0
B162: 0.25 | C162: 0 | D162: 0
B163: 0.2 | C163: 0 | D163: 0
B164: 0.15 | C164: 0 | D164: 0
B165: Total: | C165: =SUM(C154:C164) -> 0 | D165: =SUM(D154:D164) -> 0
H166: ='General '!AO10 -> UA Version 5/1/20

Sheet NPLH Rents
A1: ='General '!A45 -> 0
A2: No Place Like Home (NPLH) Program - Rents and Unit Mix for units assisted by NPLH
A4: Income Limit (% AMI) | B4: Rent Limit Calc. Formula | C4: Unit Size | D4: No. of NPLH Units | E4: Maximum Gross Rent | F4: Less Utility Allowance | G4: Maximum Net Rent | H4: Proposed Net Rent | I4: Monthly Income at Proposed Rents | J4: Monthly Income at Maximum Rents
A8: =IF('Rents '!A18="","",'Rents '!A18) ->  | B8: =IF('Rents '!B18="","",'Rents '!B18) ->  | C8: Beds | D8: 0 | E8: 0 | F8: 0 | G8: 0 | H8: ='Rents '!H18 -> 0 | I8: =IF(D8>0,+H8*D8," ") ->  | J8: =IF(D8>0,G8*D8," ") -> 
C9: 0 Bdrm. | D9: 0 | E9: =IF(D9=0," ",IF($B$8="TCAC",VLOOKUP($A$8,TCACrents,2,FALSE),IF($B$8="CalHFA",VLOOKUP($A$8,CalHFArents,2,FALSE),VLOOKUP($A$8,Otherrents,2,FALSE)))) ->  | F9: =IF(D9>0,-Misc.!$X$49," ") ->  | G9: =IF(D9>0,SUM(E9:F9)," ") ->  | H9: ='Rents '!H19 -> 0
A10: % of Restricted Units in | C10: 1 Bdrm. | D10: 0 | E10: =IF(D10=0," ",IF($B$8="TCAC",VLOOKUP($A$8,TCACrents,3,FALSE),IF($B$8="CalHFA",VLOOKUP($A$8,CalHFArents,3,FALSE),VLOOKUP($A$8,Otherrents,3,FALSE)))) ->  | F10: =IF(D10>0,-Misc.!$AA$49," ") ->  | H10: ='Rents '!H20 -> 0
A11: this category | B11: =+D15/D$48 ->  | C11: 2 Bdrm. | D11: 0 | E11: =IF(D11=0," ",IF($B$8="TCAC",VLOOKUP($A$8,TCACrents,4,FALSE),IF($B$8="CalHFA",VLOOKUP($A$8,CalHFArents,4,FALSE),VLOOKUP($A$8,Otherrents,4,FALSE)))) ->  | F11: =IF(D11>0,-Misc.!$AD$49," ") ->  | H11: ='Rents '!H21 -> 0
C12: 3 Bdrm. | D12: 0 | E12: =IF(D12=0," ",IF($B$8="TCAC",VLOOKUP($A$8,TCACrents,5,FALSE),IF($B$8="CalHFA",VLOOKUP($A$8,CalHFArents,5,FALSE),VLOOKUP($A$8,Otherrents,5,FALSE)))) ->  | F12: =IF(D12>0,-Misc.!$AG$49," ") ->  | H12: ='Rents '!H22 -> 0
C13: 4 Bdrm. | D13: 0 | E13: =IF(D13=0," ",IF($B$8="TCAC",VLOOKUP($A$8,TCACrents,6,FALSE),IF($B$8="CalHFA",VLOOKUP($A$8,CalHFArents,6,FALSE),VLOOKUP($A$8,Otherrents,6,FALSE)))) ->  | F13: =IF(D13>0,-Misc.!$AJ$49," ") ->  | H13: ='Rents '!H23 -> 0
C14: 5 Bdrm. | D14: 0 | E14: =IF(D14=0," ",IF($B$8="TCAC",VLOOKUP($A$8,TCACrents,7,FALSE),IF($B$8="CalHFA",VLOOKUP($A$8,CalHFArents,7,FALSE),VLOOKUP($A$8,Otherrents,7,FALSE)))) ->  | F14: =IF(D14>0,-Misc.!$AM$49," ") ->  | H14: ='Rents '!H24 -> 0
D15: =SUM(D8:D14) -> 0 | E15: Subtotal | I15: =SUM(I8:I14) -> 0 | J15: =SUM(J8:J14) -> 0
A16: =IF('Rents '!A26="","",'Rents '!A26) ->  | B16: =IF('Rents '!B26="","",'Rents '!B26) ->  | C16: Beds | D16: 0 | E16: 0 | F16: 0 | G16: 0 | H16: ='Rents '!H26 -> 0 | I16: =IF(D16>0,+H16*D16," ") ->  | J16: =IF(D16>0,G16*D16," ") -> 
C17: 0 Bdrm. | D17: 0 | E17: =IF(D17=0," ",IF($B$16="TCAC",VLOOKUP($A$16,TCACrents,2,FALSE),IF($B$16="CalHFA",VLOOKUP($A$16,CalHFArents,2,FALSE),VLOOKUP($A$16,Otherrents,2,FALSE)))) ->  | F17: =IF(D17>0,-Misc.!$X$49," ") ->  | G17: =IF(D17>0,SUM(E17:F17)," ") ->  | H17: ='Rents '!H27 -> 0
A18: % of Restricted Units in | C18: 1 Bdrm. | D18: 0 | E18: =IF(D18=0," ",IF($B$16="TCAC",VLOOKUP($A$16,TCACrents,3,FALSE),IF($B$16="CalHFA",VLOOKUP($A$16,CalHFArents,3,FALSE),VLOOKUP($A$16,Otherrents,3,FALSE)))) ->  | F18: =IF(D18>0,-Misc.!$AA$49," ") ->  | H18: ='Rents '!H28 -> 0
A19: this category | B19: =+D23/D$48 ->  | C19: 2 Bdrm. | D19: 0 | E19: =IF(D19=0," ",IF($B$16="TCAC",VLOOKUP($A$16,TCACrents,4,FALSE),IF($B$16="CalHFA",VLOOKUP($A$16,CalHFArents,4,FALSE),VLOOKUP($A$16,Otherrents,4,FALSE)))) ->  | F19: =IF(D19>0,-Misc.!$AD$49," ") ->  | H19: ='Rents '!H29 -> 0
C20: 3 Bdrm. | D20: 0 | E20: =IF(D20=0," ",IF($B$16="TCAC",VLOOKUP($A$16,TCACrents,5,FALSE),IF($B$16="CalHFA",VLOOKUP($A$16,CalHFArents,5,FALSE),VLOOKUP($A$16,Otherrents,5,FALSE)))) ->  | F20: =IF(D20>0,-Misc.!$AG$49," ") ->  | H20: ='Rents '!H30 -> 0
C21: 4 Bdrm. | D21: 0 | E21: =IF(D21=0," ",IF($B$16="TCAC",VLOOKUP($A$16,TCACrents,6,FALSE),IF($B$16="CalHFA",VLOOKUP($A$16,CalHFArents,6,FALSE),VLOOKUP($A$16,Otherrents,6,FALSE)))) ->  | F21: =IF(D21>0,-Misc.!$AJ$49," ") ->  | H21: ='Rents '!H31 -> 0
C22: 5 Bdrm. | D22: 0 | E22: =IF(D22=0," ",IF($B$16="TCAC",VLOOKUP($A$16,TCACrents,7,FALSE),IF($B$16="CalHFA",VLOOKUP($A$16,CalHFArents,7,FALSE),VLOOKUP($A$16,Otherrents,7,FALSE)))) ->  | F22: =IF(D22>0,-Misc.!$AM$49," ") ->  | H22: ='Rents '!H32 -> 0
D23: =SUM(D16:D22) -> 0 | E23: Subtotal | I23: =SUM(I16:I22) -> 0 | J23: =SUM(J16:J22) -> 0
A24: =IF('Rents '!A34="","",'Rents '!A34) ->  | B24: =IF('Rents '!B34="","",'Rents '!B34) ->  | C24: Beds | D24: 0 | E24: 0 | F24: 0 | G24: 0 | H24: ='Rents '!H34 -> 0 | I24: =IF(D24>0,+H24*D24," ") ->  | J24: =IF(D24>0,G24*D24," ") -> 
C25: 0 Bdrm. | D25: 0 | E25: =IF(D25=0," ",IF($B$24="TCAC",VLOOKUP($A$24,TCACrents,2,FALSE),IF($B$24="CalHFA",VLOOKUP($A$24,CalHFArents,2,FALSE),VLOOKUP($A$24,Otherrents,2,FALSE)))) ->  | F25: =IF(D25>0,-Misc.!$X$49," ") ->  | G25: =IF(D25>0,SUM(E25:F25)," ") ->  | H25: ='Rents '!H35 -> 0
A26: % of Restricted Units in | C26: 1 Bdrm. | D26: 0 | E26: =IF(D26=0," ",IF($B$24="TCAC",VLOOKUP($A$24,TCACrents,3,FALSE),IF($B$24="CalHFA",VLOOKUP($A$24,CalHFArents,3,FALSE),VLOOKUP($A$24,Otherrents,3,FALSE)))) ->  | F26: =IF(D26>0,-Misc.!$AA$49," ") ->  | H26: ='Rents '!H36 -> 0
A27: this category | B27: =+D31/D$48 ->  | C27: 2 Bdrm. | D27: 0 | E27: =IF(D27=0," ",IF($B$24="TCAC",VLOOKUP($A$24,TCACrents,4,FALSE),IF($B$24="CalHFA",VLOOKUP($A$24,CalHFArents,4,FALSE),VLOOKUP($A$24,Otherrents,4,FALSE)))) ->  | F27: =IF(D27>0,-Misc.!$AD$49," ") ->  | H27: ='Rents '!H37 -> 0
C28: 3 Bdrm. | D28: 0 | E28: =IF(D28=0," ",IF($B$24="TCAC",VLOOKUP($A$24,TCACrents,5,FALSE),IF($B$24="CalHFA",VLOOKUP($A$24,CalHFArents,5,FALSE),VLOOKUP($A$24,Otherrents,5,FALSE)))) ->  | F28: =IF(D28>0,-Misc.!$AG$49," ") ->  | H28: ='Rents '!H38 -> 0
C29: 4 Bdrm. | D29: 0 | E29: =IF(D29=0," ",IF($B$24="TCAC",VLOOKUP($A$24,TCACrents,6,FALSE),IF($B$24="CalHFA",VLOOKUP($A$24,CalHFArents,6,FALSE),VLOOKUP($A$24,Otherrents,6,FALSE)))) ->  | F29: =IF(D29>0,-Misc.!$AJ$49," ") ->  | H29: ='Rents '!H39 -> 0
C30: 5 Bdrm. | D30: 0 | E30: =IF(D30=0," ",IF($B$24="TCAC",VLOOKUP($A$24,TCACrents,7,FALSE),IF($B$24="CalHFA",VLOOKUP($A$24,CalHFArents,7,FALSE),VLOOKUP($A$24,Otherrents,7,FALSE)))) ->  | F30: =IF(D30>0,-Misc.!$AM$49," ") ->  | H30: ='Rents '!H40 -> 0
D31: =SUM(D24:D30) -> 0 | E31: Subtotal | I31: =SUM(I24:I30) -> 0 | J31: =SUM(J24:J30) -> 0
A32: =IF('Rents '!A42="","",'Rents '!A42) ->  | B32: =IF('Rents '!B42="","",'Rents '!B42) ->  | C32: Beds | D32: 0 | E32: 0 | F32: 0 | G32: 0 | H32: ='Rents '!H42 -> 0 | I32: =IF(D32>0,+H32*D32," ") ->  | J32: =IF(D32>0,G32*D32," ") -> 
C33: 0 Bdrm. | D33: 0 | E33: =IF(D33=0," ",IF($B$32="TCAC",VLOOKUP($A$32,TCACrents,2,FALSE),IF($B$32="CalHFA",VLOOKUP($A$32,CalHFArents,2,FALSE),VLOOKUP($A$32,Otherrents,2,FALSE)))) ->  | F33: =IF(D33>0,-Misc.!$X$49," ") ->  | G33: =IF(D33>0,SUM(E33:F33)," ") ->  | H33: ='Rents '!H43 -> 0
A34: % of Restricted Units in | C34: 1 Bdrm. | D34: 0 | E34: =IF(D34=0," ",IF($B$32="TCAC",VLOOKUP($A$32,TCACrents,3,FALSE),IF($B$32="CalHFA",VLOOKUP($A$32,CalHFArents,3,FALSE),VLOOKUP($A$32,Otherrents,3,FALSE)))) ->  | F34: =IF(D34>0,-Misc.!$AA$49," ") ->  | H34: ='Rents '!H44 -> 0
A35: this category | B35: =+D39/D$48 ->  | C35: 2 Bdrm. | D35: 0 | E35: =IF(D35=0," ",IF($B$32="TCAC",VLOOKUP($A$32,TCACrents,4,FALSE),IF($B$32="CalHFA",VLOOKUP($A$32,CalHFArents,4,FALSE),VLOOKUP($A$32,Otherrents,4,FALSE)))) ->  | F35: =IF(D35>0,-Misc.!$AD$49," ") ->  | H35: ='Rents '!H45 -> 0
C36: 3 Bdrm. | D36: 0 | E36: =IF(D36=0," ",IF($B$32="TCAC",VLOOKUP($A$32,TCACrents,5,FALSE),IF($B$32="CalHFA",VLOOKUP($A$32,CalHFArents,5,FALSE),VLOOKUP($A$32,Otherrents,5,FALSE)))) ->  | F36: =IF(D36>0,-Misc.!$AG$49," ") ->  | H36: ='Rents '!H46 -> 0
C37: 4 Bdrm. | D37: 0 | E37: =IF(D37=0," ",IF($B$32="TCAC",VLOOKUP($A$32,TCACrents,6,FALSE),IF($B$32="CalHFA",VLOOKUP($A$32,CalHFArents,6,FALSE),VLOOKUP($A$32,Otherrents,6,FALSE)))) ->  | F37: =IF(D37>0,-Misc.!$AJ$49," ") ->  | H37: ='Rents '!H47 -> 0
C38: 5 Bdrm. | D38: 0 | E38: =IF(D38=0," ",IF($B$32="TCAC",VLOOKUP($A$32,TCACrents,7,FALSE),IF($B$32="CalHFA",VLOOKUP($A$32,CalHFArents,7,FALSE),VLOOKUP($A$32,Otherrents,7,FALSE)))) ->  | F38: =IF(D38>0,-Misc.!$AM$49," ") ->  | H38: ='Rents '!H48 -> 0
D39: =SUM(D32:D38) -> 0 | E39: Subtotal | I39: =SUM(I32:I38) -> 0 | J39: =SUM(J32:J38) -> 0
A40: =IF('Rents '!A50="","",'Rents '!A50) ->  | B40: =IF('Rents '!B50="","",'Rents '!B50) ->  | C40: Beds | D40: 0 | E40: 0 | F40: 0 | G40: 0 | H40: ='Rents '!H50 -> 0 | I40: =IF(D40>0,+H40*D40," ") ->  | J40: =IF(D40>0,G40*D40," ") -> 
C41: 0 Bdrm. | D41: 0 | E41: =IF(D41=0," ",IF($B$40="TCAC",VLOOKUP($A$40,TCACrents,2,FALSE),IF($B$40="CalHFA",VLOOKUP($A$40,CalHFArents,2,FALSE),VLOOKUP($A$40,Otherrents,2,FALSE)))) ->  | F41: =IF(D41>0,-Misc.!$X$49," ") ->  | G41: =IF(D41>0,SUM(E41:F41)," ") ->  | H41: ='Rents '!H51 -> 0
A42: % of Restricted Units in | C42: 1 Bdrm. | D42: 0 | E42: =IF(D42=0," ",IF($B$40="TCAC",VLOOKUP($A$40,TCACrents,3,FALSE),IF($B$40="CalHFA",VLOOKUP($A$40,CalHFArents,3,FALSE),VLOOKUP($A$40,Otherrents,3,FALSE)))) ->  | F42: =IF(D42>0,-Misc.!$AA$49," ") ->  | H42: ='Rents '!H52 -> 0
A43: this category | B43: =+D47/D$48 ->  | C43: 2 Bdrm. | D43: 0 | E43: =IF(D43=0," ",IF($B$40="TCAC",VLOOKUP($A$40,TCACrents,4,FALSE),IF($B$40="CalHFA",VLOOKUP($A$40,CalHFArents,4,FALSE),VLOOKUP($A$40,Otherrents,4,FALSE)))) ->  | F43: =IF(D43>0,-Misc.!$AD$49," ") ->  | H43: ='Rents '!H53 -> 0
C44: 3 Bdrm. | D44: 0 | E44: =IF(D44=0," ",IF($B$40="TCAC",VLOOKUP($A$40,TCACrents,5,FALSE),IF($B$40="CalHFA",VLOOKUP($A$40,CalHFArents,5,FALSE),VLOOKUP($A$40,Otherrents,5,FALSE)))) ->  | F44: =IF(D44>0,-Misc.!$AG$49," ") ->  | H44: ='Rents '!H54 -> 0
C45: 4 Bdrm. | D45: 0 | E45: =IF(D45=0," ",IF($B$40="TCAC",VLOOKUP($A$40,TCACrents,6,FALSE),IF($B$40="CalHFA",VLOOKUP($A$40,CalHFArents,6,FALSE),VLOOKUP($A$40,Otherrents,6,FALSE)))) ->  | F45: =IF(D45>0,-Misc.!$AJ$49," ") ->  | H45: ='Rents '!H55 -> 0
C46: 5 Bdrm. | D46: 0 | E46: =IF(D46=0," ",IF($B$40="TCAC",VLOOKUP($A$40,TCACrents,7,FALSE),IF($B$40="CalHFA",VLOOKUP($A$40,CalHFArents,7,FALSE),VLOOKUP($A$40,Otherrents,7,FALSE)))) ->  | F46: =IF(D46>0,-Misc.!$AM$49," ") ->  | H46: ='Rents '!H56 -> 0
D47: =SUM(D40:D46) -> 0 | E47: Subtotal | I47: =SUM(I40:I46) -> 0 | J47: =SUM(J40:J46) -> 0
A48: Total NPLH units | D48: =D15+D23+D31+D39+D47 -> 0 | E48: Monthly Rental Income from Restricted Units | I48: =+I15+I23+I31+I39+I47 -> 0 | J48: =+J15+J23+J31+J39+J47 -> 0

Sheet HHC Rents
A1: ='General '!A45 -> 0
A2: Housing for a Healthy California (HHC) Program - Article 1 Rents and Unit Mix for units assisted by HHC
A4: Income Limit (% AMI) | B4: Rent Limit Calc. Formula | C4: Unit Size | D4: No. of HHC Units | E4: Maximum Gross Rent | F4: Less Utility Allowance | G4: Maximum Net Rent | H4: Proposed Net Rent | I4: Monthly Income at Proposed Rents | J4: Monthly Income at Maximum Rents
A8: =IF('Rents '!A18="","",'Rents '!A18) ->  | B8: =IF('Rents '!B18="","",'Rents '!B18) ->  | C8: Beds | D8: 0 | E8: 0 | F8: 0 | G8: 0 | H8: ='Rents '!H18 -> 0 | I8: =IF(D8>0,+H8*D8," ") ->  | J8: =IF(D8>0,G8*D8," ") -> 
C9: 0 Bdrm. | D9: 0 | E9: =IF(D9=0," ",IF($B$8="TCAC",VLOOKUP($A$8,TCACrents,2,FALSE),IF($B$8="CalHFA",VLOOKUP($A$8,CalHFArents,2,FALSE),VLOOKUP($A$8,Otherrents,2,FALSE)))) ->  | F9: =IF(D9>0,-Misc.!$X$49," ") ->  | G9: =IF(D9>0,SUM(E9:F9)," ") ->  | H9: ='Rents '!H19 -> 0
A10: % of Restricted Units in | C10: 1 Bdrm. | D10: 0 | E10: =IF(D10=0," ",IF($B$8="TCAC",VLOOKUP($A$8,TCACrents,3,FALSE),IF($B$8="CalHFA",VLOOKUP($A$8,CalHFArents,3,FALSE),VLOOKUP($A$8,Otherrents,3,FALSE)))) ->  | F10: =IF(D10>0,-Misc.!$AA$49," ") ->  | H10: ='Rents '!H20 -> 0
A11: this category | B11: =+D15/D$48 ->  | C11: 2 Bdrm. | D11: 0 | E11: =IF(D11=0," ",IF($B$8="TCAC",VLOOKUP($A$8,TCACrents,4,FALSE),IF($B$8="CalHFA",VLOOKUP($A$8,CalHFArents,4,FALSE),VLOOKUP($A$8,Otherrents,4,FALSE)))) ->  | F11: =IF(D11>0,-Misc.!$AD$49," ") ->  | H11: ='Rents '!H21 -> 0
C12: 3 Bdrm. | D12: 0 | E12: =IF(D12=0," ",IF($B$8="TCAC",VLOOKUP($A$8,TCACrents,5,FALSE),IF($B$8="CalHFA",VLOOKUP($A$8,CalHFArents,5,FALSE),VLOOKUP($A$8,Otherrents,5,FALSE)))) ->  | F12: =IF(D12>0,-Misc.!$AG$49," ") ->  | H12: ='Rents '!H22 -> 0
C13: 4 Bdrm. | D13: 0 | E13: =IF(D13=0," ",IF($B$8="TCAC",VLOOKUP($A$8,TCACrents,6,FALSE),IF($B$8="CalHFA",VLOOKUP($A$8,CalHFArents,6,FALSE),VLOOKUP($A$8,Otherrents,6,FALSE)))) ->  | F13: =IF(D13>0,-Misc.!$AJ$49," ") ->  | H13: ='Rents '!H23 -> 0
C14: 5 Bdrm. | D14: 0 | E14: =IF(D14=0," ",IF($B$8="TCAC",VLOOKUP($A$8,TCACrents,7,FALSE),IF($B$8="CalHFA",VLOOKUP($A$8,CalHFArents,7,FALSE),VLOOKUP($A$8,Otherrents,7,FALSE)))) ->  | F14: =IF(D14>0,-Misc.!$AM$49," ") ->  | H14: ='Rents '!H24 -> 0
D15: =SUM(D8:D14) -> 0 | E15: Subtotal | I15: =SUM(I8:I14) -> 0 | J15: =SUM(J8:J14) -> 0
A16: =IF('Rents '!A26="","",'Rents '!A26) ->  | B16: =IF('Rents '!B26="","",'Rents '!B26) ->  | C16: Beds | D16: 0 | E16: 0 | F16: 0 | G16: 0 | H16: ='Rents '!H26 -> 0 | I16: =IF(D16>0,+H16*D16," ") ->  | J16: =IF(D16>0,G16*D16," ") -> 
C17: 0 Bdrm. | D17: 0 | E17: =IF(D17=0," ",IF($B$16="TCAC",VLOOKUP($A$16,TCACrents,2,FALSE),IF($B$16="CalHFA",VLOOKUP($A$16,CalHFArents,2,FALSE),VLOOKUP($A$16,Otherrents,2,FALSE)))) ->  | F17: =IF(D17>0,-Misc.!$X$49," ") ->  | G17: =IF(D17>0,SUM(E17:F17)," ") ->  | H17: ='Rents '!H27 -> 0
A18: % of Restricted Units in | C18: 1 Bdrm. | D18: 0 | E18: =IF(D18=0," ",IF($B$16="TCAC",VLOOKUP($A$16,TCACrents,3,FALSE),IF($B$16="CalHFA",VLOOKUP($A$16,CalHFArents,3,FALSE),VLOOKUP($A$16,Otherrents,3,FALSE)))) ->  | F18: =IF(D18>0,-Misc.!$AA$49," ") ->  | H18: ='Rents '!H28 -> 0
A19: this category | B19: =+D23/D$48 ->  | C19: 2 Bdrm. | D19: 0 | E19: =IF(D19=0," ",IF($B$16="TCAC",VLOOKUP($A$16,TCACrents,4,FALSE),IF($B$16="CalHFA",VLOOKUP($A$16,CalHFArents,4,FALSE),VLOOKUP($A$16,Otherrents,4,FALSE)))) ->  | F19: =IF(D19>0,-Misc.!$AD$49," ") ->  | H19: ='Rents '!H29 -> 0
C20: 3 Bdrm. | D20: 0 | E20: =IF(D20=0," ",IF($B$16="TCAC",VLOOKUP($A$16,TCACrents,5,FALSE),IF($B$16="CalHFA",VLOOKUP($A$16,CalHFArents,5,FALSE),VLOOKUP($A$16,Otherrents,5,FALSE)))) ->  | F20: =IF(D20>0,-Misc.!$AG$49," ") ->  | H20: ='Rents '!H30 -> 0
C21: 4 Bdrm. | D21: 0 | E21: =IF(D21=0," ",IF($B$16="TCAC",VLOOKUP($A$16,TCACrents,6,FALSE),IF($B$16="CalHFA",VLOOKUP($A$16,CalHFArents,6,FALSE),VLOOKUP($A$16,Otherrents,6,FALSE)))) ->  | F21: =IF(D21>0,-Misc.!$AJ$49," ") ->  | H21: ='Rents '!H31 -> 0
C22: 5 Bdrm. | D22: 0 | E22: =IF(D22=0," ",IF($B$16="TCAC",VLOOKUP($A$16,TCACrents,7,FALSE),IF($B$16="CalHFA",VLOOKUP($A$16,CalHFArents,7,FALSE),VLOOKUP($A$16,Otherrents,7,FALSE)))) ->  | F22: =IF(D22>0,-Misc.!$AM$49," ") ->  | H22: ='Rents '!H32 -> 0
D23: =SUM(D16:D22) -> 0 | E23: Subtotal | I23: =SUM(I16:I22) -> 0 | J23: =SUM(J16:J22) -> 0
A24: =IF('Rents '!A34="","",'Rents '!A34) ->  | B24: =IF('Rents '!B34="","",'Rents '!B34) ->  | C24: Beds | D24: 0 | E24: 0 | F24: 0 | G24: 0 | H24: ='Rents '!H34 -> 0 | I24: =IF(D24>0,+H24*D24," ") ->  | J24: =IF(D24>0,G24*D24," ") -> 
C25: 0 Bdrm. | D25: 0 | E25: =IF(D25=0," ",IF($B$24="TCAC",VLOOKUP($A$24,TCACrents,2,FALSE),IF($B$24="CalHFA",VLOOKUP($A$24,CalHFArents,2,FALSE),VLOOKUP($A$24,Otherrents,2,FALSE)))) ->  | F25: =IF(D25>0,-Misc.!$X$49," ") ->  | G25: =IF(D25>0,SUM(E25:F25)," ") ->  | H25: ='Rents '!H35 -> 0
A26: % of Restricted Units in | C26: 1 Bdrm. | D26: 0 | E26: =IF(D26=0," ",IF($B$24="TCAC",VLOOKUP($A$24,TCACrents,3,FALSE),IF($B$24="CalHFA",VLOOKUP($A$24,CalHFArents,3,FALSE),VLOOKUP($A$24,Otherrents,3,FALSE)))) ->  | F26: =IF(D26>0,-Misc.!$AA$49," ") ->  | H26: ='Rents '!H36 -> 0
A27: this category | B27: =+D31/D$48 ->  | C27: 2 Bdrm. | D27: 0 | E27: =IF(D27=0," ",IF($B$24="TCAC",VLOOKUP($A$24,TCACrents,4,FALSE),IF($B$24="CalHFA",VLOOKUP($A$24,CalHFArents,4,FALSE),VLOOKUP($A$24,Otherrents,4,FALSE)))) ->  | F27: =IF(D27>0,-Misc.!$AD$49," ") ->  | H27: ='Rents '!H37 -> 0
C28: 3 Bdrm. | D28: 0 | E28: =IF(D28=0," ",IF($B$24="TCAC",VLOOKUP($A$24,TCACrents,5,FALSE),IF($B$24="CalHFA",VLOOKUP($A$24,CalHFArents,5,FALSE),VLOOKUP($A$24,Otherrents,5,FALSE)))) ->  | F28: =IF(D28>0,-Misc.!$AG$49," ") ->  | H28: ='Rents '!H38 -> 0
C29: 4 Bdrm. | D29: 0 | E29: =IF(D29=0," ",IF($B$24="TCAC",VLOOKUP($A$24,TCACrents,6,FALSE),IF($B$24="CalHFA",VLOOKUP($A$24,CalHFArents,6,FALSE),VLOOKUP($A$24,Otherrents,6,FALSE)))) ->  | F29: =IF(D29>0,-Misc.!$AJ$49," ") ->  | H29: ='Rents '!H39 -> 0
C30: 5 Bdrm. | D30: 0 | E30: =IF(D30=0," ",IF($B$24="TCAC",VLOOKUP($A$24,TCACrents,7,FALSE),IF($B$24="CalHFA",VLOOKUP($A$24,CalHFArents,7,FALSE),VLOOKUP($A$24,Otherrents,7,FALSE)))) ->  | F30: =IF(D30>0,-Misc.!$AM$49," ") ->  | H30: ='Rents '!H40 -> 0
D31: =SUM(D24:D30) -> 0 | E31: Subtotal | I31: =SUM(I24:I30) -> 0 | J31: =SUM(J24:J30) -> 0
A32: =IF('Rents '!A42="","",'Rents '!A42) ->  | B32: =IF('Rents '!B42="","",'Rents '!B42) ->  | C32: Beds | D32: 0 | E32: 0 | F32: 0 | G32: 0 | H32: ='Rents '!H42 -> 0 | I32: =IF(D32>0,+H32*D32," ") ->  | J32: =IF(D32>0,G32*D32," ") -> 
C33: 0 Bdrm. | D33: 0 | E33: =IF(D33=0," ",IF($B$32="TCAC",VLOOKUP($A$32,TCACrents,2,FALSE),IF($B$32="CalHFA",VLOOKUP($A$32,CalHFArents,2,FALSE),VLOOKUP($A$32,Otherrents,2,FALSE)))) ->  | F33: =IF(D33>0,-Misc.!$X$49," ") ->  | G33: =IF(D33>0,SUM(E33:F33)," ") ->  | H33: ='Rents '!H43 -> 0
A34: % of Restricted Units in | C34: 1 Bdrm. | D34: 0 | E34: =IF(D34=0," ",IF($B$32="TCAC",VLOOKUP($A$32,TCACrents,3,FALSE),IF($B$32="CalHFA",VLOOKUP($A$32,CalHFArents,3,FALSE),VLOOKUP($A$32,Otherrents,3,FALSE)))) ->  | F34: =IF(D34>0,-Misc.!$AA$49," ") ->  | H34: ='Rents '!H44 -> 0
A35: this category | B35: =+D39/D$48 ->  | C35: 2 Bdrm. | D35: 0 | E35: =IF(D35=0," ",IF($B$32="TCAC",VLOOKUP($A$32,TCACrents,4,FALSE),IF($B$32="CalHFA",VLOOKUP($A$32,CalHFArents,4,FALSE),VLOOKUP($A$32,Otherrents,4,FALSE)))) ->  | F35: =IF(D35>0,-Misc.!$AD$49," ") ->  | H35: ='Rents '!H45 -> 0
C36: 3 Bdrm. | D36: 0 | E36: =IF(D36=0," ",IF($B$32="TCAC",VLOOKUP($A$32,TCACrents,5,FALSE),IF($B$32="CalHFA",VLOOKUP($A$32,CalHFArents,5,FALSE),VLOOKUP($A$32,Otherrents,5,FALSE)))) ->  | F36: =IF(D36>0,-Misc.!$AG$49," ") ->  | H36: ='Rents '!H46 -> 0
C37: 4 Bdrm. | D37: 0 | E37: =IF(D37=0," ",IF($B$32="TCAC",VLOOKUP($A$32,TCACrents,6,FALSE),IF($B$32="CalHFA",VLOOKUP($A$32,CalHFArents,6,FALSE),VLOOKUP($A$32,Otherrents,6,FALSE)))) ->  | F37: =IF(D37>0,-Misc.!$AJ$49," ") ->  | H37: ='Rents '!H47 -> 0
C38: 5 Bdrm. | D38: 0 | E38: =IF(D38=0," ",IF($B$32="TCAC",VLOOKUP($A$32,TCACrents,7,FALSE),IF($B$32="CalHFA",VLOOKUP($A$32,CalHFArents,7,FALSE),VLOOKUP($A$32,Otherrents,7,FALSE)))) ->  | F38: =IF(D38>0,-Misc.!$AM$49," ") ->  | H38: ='Rents '!H48 -> 0
D39: =SUM(D32:D38) -> 0 | E39: Subtotal | I39: =SUM(I32:I38) -> 0 | J39: =SUM(J32:J38) -> 0
A40: =IF('Rents '!A50="","",'Rents '!A50) ->  | B40: =IF('Rents '!B50="","",'Rents '!B50) ->  | C40: Beds | D40: 0 | E40: 0 | F40: 0 | G40: 0 | H40: ='Rents '!H50 -> 0 | I40: =IF(D40>0,+H40*D40," ") ->  | J40: =IF(D40>0,G40*D40," ") -> 
C41: 0 Bdrm. | D41: 0 | E41: =IF(D41=0," ",IF($B$40="TCAC",VLOOKUP($A$40,TCACrents,2,FALSE),IF($B$40="CalHFA",VLOOKUP($A$40,CalHFArents,2,FALSE),VLOOKUP($A$40,Otherrents,2,FALSE)))) ->  | F41: =IF(D41>0,-Misc.!$X$49," ") ->  | G41: =IF(D41>0,SUM(E41:F41)," ") ->  | H41: ='Rents '!H51 -> 0
A42: % of Restricted Units in | C42: 1 Bdrm. | D42: 0 | E42: =IF(D42=0," ",IF($B$40="TCAC",VLOOKUP($A$40,TCACrents,3,FALSE),IF($B$40="CalHFA",VLOOKUP($A$40,CalHFArents,3,FALSE),VLOOKUP($A$40,Otherrents,3,FALSE)))) ->  | F42: =IF(D42>0,-Misc.!$AA$49," ") ->  | H42: ='Rents '!H52 -> 0
A43: this category | B43: =+D47/D$48 ->  | C43: 2 Bdrm. | D43: 0 | E43: =IF(D43=0," ",IF($B$40="TCAC",VLOOKUP($A$40,TCACrents,4,FALSE),IF($B$40="CalHFA",VLOOKUP($A$40,CalHFArents,4,FALSE),VLOOKUP($A$40,Otherrents,4,FALSE)))) ->  | F43: =IF(D43>0,-Misc.!$AD$49," ") ->  | H43: ='Rents '!H53 -> 0
C44: 3 Bdrm. | D44: 0 | E44: =IF(D44=0," ",IF($B$40="TCAC",VLOOKUP($A$40,TCACrents,5,FALSE),IF($B$40="CalHFA",VLOOKUP($A$40,CalHFArents,5,FALSE),VLOOKUP($A$40,Otherrents,5,FALSE)))) ->  | F44: =IF(D44>0,-Misc.!$AG$49," ") ->  | H44: ='Rents '!H54 -> 0
C45: 4 Bdrm. | D45: 0 | E45: =IF(D45=0," ",IF($B$40="TCAC",VLOOKUP($A$40,TCACrents,6,FALSE),IF($B$40="CalHFA",VLOOKUP($A$40,CalHFArents,6,FALSE),VLOOKUP($A$40,Otherrents,6,FALSE)))) ->  | F45: =IF(D45>0,-Misc.!$AJ$49," ") ->  | H45: ='Rents '!H55 -> 0
C46: 5 Bdrm. | D46: 0 | E46: =IF(D46=0," ",IF($B$40="TCAC",VLOOKUP($A$40,TCACrents,7,FALSE),IF($B$40="CalHFA",VLOOKUP($A$40,CalHFArents,7,FALSE),VLOOKUP($A$40,Otherrents,7,FALSE)))) ->  | F46: =IF(D46>0,-Misc.!$AM$49," ") ->  | H46: ='Rents '!H56 -> 0
D47: =SUM(D40:D46) -> 0 | E47: Subtotal | I47: =SUM(I40:I46) -> 0 | J47: =SUM(J40:J46) -> 0
A48: Total HHC units | D48: =D15+D23+D31+D39+D47 -> 0 | E48: Monthly Rental Income from Restricted Units | I48: =+I15+I23+I31+I39+I47 -> 0 | J48: =+J15+J23+J31+J39+J47 -> 0

Sheet Subsidies
A1: ='General '!A45 -> 0
A2: SUBSIDY INFORMATION
A3: Incremental Income from Rent/Operating Subsidies Based on Contract Rents
A5: The top part of this section estimates incremental income from rent subsidy contracts, such as Section 8, above and beyond either 1) maximum restricted rents or 2) proposed rents. Complete this part only if the Project will have a rent subsidy based on contract rents.
A7: List all Project-based or sponsor-based rent/operating subsidies in the bottom portion of this section, under the "Rent/Operating Subsidy Programs" heading.
K8: ='General '!AO10 -> UA Version 5/1/20
A9: Is Subsidy payments over net rent based on Restricted or Proposed Rents? | I9: Restricted Rents | K9: =IF(I9<>"Proposed Rents",1,0) -> 1
D11: Incremental Income from Rent/Operating Subsidy | I11: Incremental Income from Rent/Operating Subsidy
D13: Subsidy Program Name: | I13: Subsidy Program Name:
A14: Income Limit (% AMI) | B14: Rent Limit Calc. Formula | C14: Unit Size | D14: Gross Monthly Contract Rent | E14: Subsidy Payment Over Net Rent | F14: Units Subsidized | G14: Total Monthly Extra Income | I14: Gross Monthly Contract Rent | J14: Subsidy Payment Over Net Rent | K14: Units Subsidized | L14: Total Monthly Extra Income
A18: =IF('Rents '!A18="","",'Rents '!A18) ->  | B18: =IF('Rents '!B18="","",'Rents '!B18) ->  | C18: Beds | D18: 0 | E18: =IF(F18>0,IF($K$9=1,D18-'Rents '!G18,D18-'Rents '!H18)," ") ->  | F18: 0 | G18: =IF(F18>0,+E18*F18," ") ->  | I18: 0 | J18: =IF(K18>0,IF($K$9=1,I18-'Rents '!G18,I18-'Rents '!H18)," ") ->  | K18: 0 | L18: =IF(K18>0,+J18*K18," ") ->  | N18: ='Rents '!D18+'NPLH Rents'!D8 -> 0
C19: 0 Bdrm. | D19: 0 | E19: =IF(F19>0,IF($K$9=1,D19-'Rents '!G19,D19-'Rents '!H19)," ") ->  | F19: 0 | I19: 0 | J19: =IF(K19>0,IF($K$9=1,I19-'Rents '!G19,I19-'Rents '!H19)," ") ->  | K19: 0 | N19: ='Rents '!D19+'NPLH Rents'!D9 -> 0
C20: 1 Bdrm. | D20: 0 | E20: =IF(F20>0,IF($K$9=1,D20-'Rents '!G20,D20-'Rents '!H20)," ") ->  | F20: 0 | I20: 0 | J20: =IF(K20>0,IF($K$9=1,I20-'Rents '!G20,I20-'Rents '!H20)," ") ->  | K20: 0 | N20: ='Rents '!D20+'NPLH Rents'!D10 -> 0
C21: 2 Bdrm. | D21: 0 | E21: =IF(F21>0,IF($K$9=1,D21-'Rents '!G21,D21-'Rents '!H21)," ") ->  | F21: 0 | I21: 0 | J21: =IF(K21>0,IF($K$9=1,I21-'Rents '!G21,I21-'Rents '!H21)," ") ->  | K21: 0 | N21: ='Rents '!D21+'NPLH Rents'!D11 -> 0
C22: 3 Bdrm. | D22: 0 | E22: =IF(F22>0,IF($K$9=1,D22-'Rents '!G22,D22-'Rents '!H22)," ") ->  | F22: 0 | I22: 0 | J22: =IF(K22>0,IF($K$9=1,I22-'Rents '!G22,I22-'Rents '!H22)," ") ->  | K22: 0 | N22: ='Rents '!D22+'NPLH Rents'!D12 -> 0
C23: 4 Bdrm. | D23: 0 | E23: =IF(F23>0,IF($K$9=1,D23-'Rents '!G23,D23-'Rents '!H23)," ") ->  | F23: 0 | I23: 0 | J23: =IF(K23>0,IF($K$9=1,I23-'Rents '!G23,I23-'Rents '!H23)," ") ->  | K23: 0 | N23: ='Rents '!D23+'NPLH Rents'!D13 -> 0
C24: 5 Bdrm. | D24: 0 | E24: =IF(F24>0,IF($K$9=1,D24-'Rents '!G24,D24-'Rents '!H24)," ") ->  | F24: 0 | I24: 0 | J24: =IF(K24>0,IF($K$9=1,I24-'Rents '!G24,I24-'Rents '!H24)," ") ->  | K24: 0 | N24: ='Rents '!D24+'NPLH Rents'!D14 -> 0
A26: =IF('Rents '!A26="","",'Rents '!A26) ->  | B26: =IF('Rents '!B26="","",'Rents '!B26) ->  | C26: Beds | D26: 0 | E26: =IF(F26>0,IF($K$9=1,D26-'Rents '!G26,D26-'Rents '!H26)," ") ->  | F26: 0 | G26: =IF(F26>0,+E26*F26," ") ->  | I26: 0 | J26: =IF(K26>0,IF($K$9=1,I26-'Rents '!G26,I26-'Rents '!H26)," ") ->  | K26: 0 | L26: =IF(K26>0,+J26*K26," ") ->  | N26: ='Rents '!D26+'NPLH Rents'!D16 -> 0
C27: 0 Bdrm. | D27: 0 | E27: =IF(F27>0,IF($K$9=1,D27-'Rents '!G27,D27-'Rents '!H27)," ") ->  | F27: 0 | I27: 0 | J27: =IF(K27>0,IF($K$9=1,I27-'Rents '!G27,I27-'Rents '!H27)," ") ->  | K27: 0 | N27: ='Rents '!D27+'NPLH Rents'!D17 -> 0
C28: 1 Bdrm. | D28: 0 | E28: =IF(F28>0,IF($K$9=1,D28-'Rents '!G28,D28-'Rents '!H28)," ") ->  | F28: 0 | I28: 0 | J28: =IF(K28>0,IF($K$9=1,I28-'Rents '!G28,I28-'Rents '!H28)," ") ->  | K28: 0 | N28: ='Rents '!D28+'NPLH Rents'!D18 -> 0
C29: 2 Bdrm. | D29: 0 | E29: =IF(F29>0,IF($K$9=1,D29-'Rents '!G29,D29-'Rents '!H29)," ") ->  | F29: 0 | I29: 0 | J29: =IF(K29>0,IF($K$9=1,I29-'Rents '!G29,I29-'Rents '!H29)," ") ->  | K29: 0 | N29: ='Rents '!D29+'NPLH Rents'!D19 -> 0
C30: 3 Bdrm. | D30: 0 | E30: =IF(F30>0,IF($K$9=1,D30-'Rents '!G30,D30-'Rents '!H30)," ") ->  | F30: 0 | I30: 0 | J30: =IF(K30>0,IF($K$9=1,I30-'Rents '!G30,I30-'Rents '!H30)," ") ->  | K30: 0 | N30: ='Rents '!D30+'NPLH Rents'!D20 -> 0
C31: 4 Bdrm. | D31: 0 | E31: =IF(F31>0,IF($K$9=1,D31-'Rents '!G31,D31-'Rents '!H31)," ") ->  | F31: 0 | I31: 0 | J31: =IF(K31>0,IF($K$9=1,I31-'Rents '!G31,I31-'Rents '!H31)," ") ->  | K31: 0 | N31: ='Rents '!D31+'NPLH Rents'!D21 -> 0
C32: 5 Bdrm. | D32: 0 | E32: =IF(F32>0,IF($K$9=1,D32-'Rents '!G32,D32-'Rents '!H32)," ") ->  | F32: 0 | I32: 0 | J32: =IF(K32>0,IF($K$9=1,I32-'Rents '!G32,I32-'Rents '!H32)," ") ->  | K32: 0 | N32: ='Rents '!D32+'NPLH Rents'!D22 -> 0
A34: =IF('Rents '!A34="","",'Rents '!A34) ->  | B34: =IF('Rents '!B34="","",'Rents '!B34) ->  | C34: Beds | D34: 0 | E34: =IF(F34>0,IF($K$9=1,D34-'Rents '!G34,D34-'Rents '!H34)," ") ->  | F34: 0 | G34: =IF(F34>0,+E34*F34," ") ->  | I34: 0 | J34: =IF(K34>0,IF($K$9=1,I34-'Rents '!G34,I34-'Rents '!H34)," ") ->  | K34: 0 | L34: =IF(K34>0,+J34*K34," ") ->  | N34: ='Rents '!D34+'NPLH Rents'!D24 -> 0
C35: 0 Bdrm. | D35: 0 | E35: =IF(F35>0,IF($K$9=1,D35-'Rents '!G35,D35-'Rents '!H35)," ") ->  | F35: 0 | I35: 0 | J35: =IF(K35>0,IF($K$9=1,I35-'Rents '!G35,I35-'Rents '!H35)," ") ->  | K35: 0 | N35: ='Rents '!D35+'NPLH Rents'!D25 -> 0
C36: 1 Bdrm. | D36: 0 | E36: =IF(F36>0,IF($K$9=1,D36-'Rents '!G36,D36-'Rents '!H36)," ") ->  | F36: 0 | I36: 0 | J36: =IF(K36>0,IF($K$9=1,I36-'Rents '!G36,I36-'Rents '!H36)," ") ->  | K36: 0 | N36: ='Rents '!D36+'NPLH Rents'!D26 -> 0
C37: 2 Bdrm. | D37: 0 | E37: =IF(F37>0,IF($K$9=1,D37-'Rents '!G37,D37-'Rents '!H37)," ") ->  | F37: 0 | I37: 0 | J37: =IF(K37>0,IF($K$9=1,I37-'Rents '!G37,I37-'Rents '!H37)," ") ->  | K37: 0 | N37: ='Rents '!D37+'NPLH Rents'!D27 -> 0
C38: 3 Bdrm. | D38: 0 | E38: =IF(F38>0,IF($K$9=1,D38-'Rents '!G38,D38-'Rents '!H38)," ") ->  | F38: 0 | I38: 0 | J38: =IF(K38>0,IF($K$9=1,I38-'Rents '!G38,I38-'Rents '!H38)," ") ->  | K38: 0 | N38: ='Rents '!D38+'NPLH Rents'!D28 -> 0
C39: 4 Bdrm. | D39: 0 | E39: =IF(F39>0,IF($K$9=1,D39-'Rents '!G39,D39-'Rents '!H39)," ") ->  | F39: 0 | I39: 0 | J39: =IF(K39>0,IF($K$9=1,I39-'Rents '!G39,I39-'Rents '!H39)," ") ->  | K39: 0 | N39: ='Rents '!D39+'NPLH Rents'!D29 -> 0
C40: 5 Bdrm. | D40: 0 | E40: =IF(F40>0,IF($K$9=1,D40-'Rents '!G40,D40-'Rents '!H40)," ") ->  | F40: 0 | I40: 0 | J40: =IF(K40>0,IF($K$9=1,I40-'Rents '!G40,I40-'Rents '!H40)," ") ->  | K40: 0 | N40: ='Rents '!D40+'NPLH Rents'!D30 -> 0
A42: =IF('Rents '!A42="","",'Rents '!A42) ->  | B42: =IF('Rents '!B42="","",'Rents '!B42) ->  | C42: Beds | D42: 0 | E42: =IF(F42>0,IF($K$9=1,D42-'Rents '!G42,D42-'Rents '!H42)," ") ->  | F42: 0 | G42: =IF(F42>0,+E42*F42," ") ->  | I42: 0 | J42: =IF(K42>0,IF($K$9=1,I42-'Rents '!G42,I42-'Rents '!H42)," ") ->  | K42: 0 | L42: =IF(K42>0,+J42*K42," ") ->  | N42: ='Rents '!D42+'NPLH Rents'!D32 -> 0
C43: 0 Bdrm. | D43: 0 | E43: =IF(F43>0,IF($K$9=1,D43-'Rents '!G43,D43-'Rents '!H43)," ") ->  | F43: 0 | I43: 0 | J43: =IF(K43>0,IF($K$9=1,I43-'Rents '!G43,I43-'Rents '!H43)," ") ->  | K43: 0 | N43: ='Rents '!D43+'NPLH Rents'!D33 -> 0
C44: 1 Bdrm. | D44: 0 | E44: =IF(F44>0,IF($K$9=1,D44-'Rents '!G44,D44-'Rents '!H44)," ") ->  | F44: 0 | I44: 0 | J44: =IF(K44>0,IF($K$9=1,I44-'Rents '!G44,I44-'Rents '!H44)," ") ->  | K44: 0 | N44: ='Rents '!D44+'NPLH Rents'!D34 -> 0
C45: 2 Bdrm. | D45: 0 | E45: =IF(F45>0,IF($K$9=1,D45-'Rents '!G45,D45-'Rents '!H45)," ") ->  | F45: 0 | I45: 0 | J45: =IF(K45>0,IF($K$9=1,I45-'Rents '!G45,I45-'Rents '!H45)," ") ->  | K45: 0 | N45: ='Rents '!D45+'NPLH Rents'!D35 -> 0
C46: 3 Bdrm. | D46: 0 | E46: =IF(F46>0,IF($K$9=1,D46-'Rents '!G46,D46-'Rents '!H46)," ") ->  | F46: 0 | I46: 0 | J46: =IF(K46>0,IF($K$9=1,I46-'Rents '!G46,I46-'Rents '!H46)," ") ->  | K46: 0 | N46: ='Rents '!D46+'NPLH Rents'!D36 -> 0
C47: 4 Bdrm. | D47: 0 | E47: =IF(F47>0,IF($K$9=1,D47-'Rents '!G47,D47-'Rents '!H47)," ") ->  | F47: 0 | I47: 0 | J47: =IF(K47>0,IF($K$9=1,I47-'Rents '!G47,I47-'Rents '!H47)," ") ->  | K47: 0 | N47: ='Rents '!D47+'NPLH Rents'!D37 -> 0
C48: 5 Bdrm. | D48: 0 | E48: =IF(F48>0,IF($K$9=1,D48-'Rents '!G48,D48-'Rents '!H48)," ") ->  | F48: 0 | I48: 0 | J48: =IF(K48>0,IF($K$9=1,I48-'Rents '!G48,I48-'Rents '!H48)," ") ->  | K48: 0 | N48: ='Rents '!D48+'NPLH Rents'!D38 -> 0
A50: =IF('Rents '!A50="","",'Rents '!A50) ->  | B50: =IF('Rents '!B50="","",'Rents '!B50) ->  | C50: Beds | D50: 0 | E50: =IF(F50>0,IF($K$9=1,D50-'Rents '!G50,D50-'Rents '!H50)," ") ->  | F50: 0 | G50: =IF(F50>0,+E50*F50," ") ->  | I50: 0 | J50: =IF(K50>0,IF($K$9=1,I50-'Rents '!G50,I50-'Rents '!H50)," ") ->  | K50: 0 | L50: =IF(K50>0,+J50*K50," ") ->  | N50: ='Rents '!D50+'NPLH Rents'!D40 -> 0
C51: 0 Bdrm. | D51: 0 | E51: =IF(F51>0,IF($K$9=1,D51-'Rents '!G51,D51-'Rents '!H51)," ") ->  | F51: 0 | I51: 0 | J51: =IF(K51>0,IF($K$9=1,I51-'Rents '!G51,I51-'Rents '!H51)," ") ->  | K51: 0 | N51: ='Rents '!D51+'NPLH Rents'!D41 -> 0
C52: 1 Bdrm. | D52: 0 | E52: =IF(F52>0,IF($K$9=1,D52-'Rents '!G52,D52-'Rents '!H52)," ") ->  | F52: 0 | I52: 0 | J52: =IF(K52>0,IF($K$9=1,I52-'Rents '!G52,I52-'Rents '!H52)," ") ->  | K52: 0 | N52: ='Rents '!D52+'NPLH Rents'!D42 -> 0
C53: 2 Bdrm. | D53: 0 | E53: =IF(F53>0,IF($K$9=1,D53-'Rents '!G53,D53-'Rents '!H53)," ") ->  | F53: 0 | I53: 0 | J53: =IF(K53>0,IF($K$9=1,I53-'Rents '!G53,I53-'Rents '!H53)," ") ->  | K53: 0 | N53: ='Rents '!D53+'NPLH Rents'!D43 -> 0
C54: 3 Bdrm. | D54: 0 | E54: =IF(F54>0,IF($K$9=1,D54-'Rents '!G54,D54-'Rents '!H54)," ") ->  | F54: 0 | I54: 0 | J54: =IF(K54>0,IF($K$9=1,I54-'Rents '!G54,I54-'Rents '!H54)," ") ->  | K54: 0 | N54: ='Rents '!D54+'NPLH Rents'!D44 -> 0
C55: 4 Bdrm. | D55: 0 | E55: =IF(F55>0,IF($K$9=1,D55-'Rents '!G55,D55-'Rents '!H55)," ") ->  | F55: 0 | I55: 0 | J55: =IF(K55>0,IF($K$9=1,I55-'Rents '!G55,I55-'Rents '!H55)," ") ->  | K55: 0 | N55: ='Rents '!D55+'NPLH Rents'!D45 -> 0
C56: 5 Bdrm. | D56: 0 | E56: =IF(F56>0,IF($K$9=1,D56-'Rents '!G56,D56-'Rents '!H56)," ") ->  | F56: 0 | I56: 0 | J56: =IF(K56>0,IF($K$9=1,I56-'Rents '!G56,I56-'Rents '!H56)," ") ->  | K56: 0 | N56: ='Rents '!D56+'NPLH Rents'!D46 -> 0
D57: Incremental Income from Rent/Operating Subsidy | I57: Incremental Income from Rent/Operating Subsidy
D59: Subsidy Program Name: | F59: =+F13 -> 0 | I59: Subsidy Program Name: | K59: =+K13 -> 0
A60: Income Limit (% AMI) | B60: Rent Limit Calc. Formula | C60: Unit Size | D60: Gross Monthly Contract Rent | E60: Subsidy Payment Over Net Rent | F60: Units Subsidized | G60: Total Monthly Extra Income | I60: Gross Monthly Contract Rent | J60: Subsidy Payment Over Net Rent | K60: Units Subsidized | L60: Total Monthly Extra Income
A64: =IF('Rents '!A62="","",'Rents '!A62) ->  | B64: =IF('Rents '!B62="","",'Rents '!B62) ->  | C64: Beds | D64: 0 | E64: =IF(F64>0,IF($K$9=1,D64-'Rents '!G62,D64-'Rents '!H62)," ") ->  | F64: 0 | G64: =IF(F64>0,+E64*F64," ") ->  | I64: 0 | J64: =IF(K64>0,IF($K$9=1,I64-'Rents '!G62,I64-'Rents '!H62)," ") ->  | K64: 0 | L64: =IF(K64>0,+J64*K64," ") ->  | N64: ='Rents '!D62 -> 0
C65: 0 Bdrm. | D65: 0 | E65: =IF(F65>0,IF($K$9=1,D65-'Rents '!G63,D65-'Rents '!H63)," ") ->  | F65: 0 | I65: 0 | J65: =IF(K65>0,IF($K$9=1,I65-'Rents '!G63,I65-'Rents '!H63)," ") ->  | K65: 0 | N65: ='Rents '!D63 -> 0
C66: 1 Bdrm. | D66: 0 | E66: =IF(F66>0,IF($K$9=1,D66-'Rents '!G64,D66-'Rents '!H64)," ") ->  | F66: 0 | I66: 0 | J66: =IF(K66>0,IF($K$9=1,I66-'Rents '!G64,I66-'Rents '!H64)," ") ->  | K66: 0 | N66: ='Rents '!D64 -> 0
C67: 2 Bdrm. | D67: 0 | E67: =IF(F67>0,IF($K$9=1,D67-'Rents '!G65,D67-'Rents '!H65)," ") ->  | F67: 0 | I67: 0 | J67: =IF(K67>0,IF($K$9=1,I67-'Rents '!G65,I67-'Rents '!H65)," ") ->  | K67: 0 | N67: ='Rents '!D65 -> 0
C68: 3 Bdrm. | D68: 0 | E68: =IF(F68>0,IF($K$9=1,D68-'Rents '!G66,D68-'Rents '!H66)," ") ->  | F68: 0 | I68: 0 | J68: =IF(K68>0,IF($K$9=1,I68-'Rents '!G66,I68-'Rents '!H66)," ") ->  | K68: 0 | N68: ='Rents '!D66 -> 0
C69: 4 Bdrm. | D69: 0 | E69: =IF(F69>0,IF($K$9=1,D69-'Rents '!G67,D69-'Rents '!H67)," ") ->  | F69: 0 | I69: 0 | J69: =IF(K69>0,IF($K$9=1,I69-'Rents '!G67,I69-'Rents '!H67)," ") ->  | K69: 0 | N69: ='Rents '!D67 -> 0
C70: 5 Bdrm. | D70: 0 | E70: =IF(F70>0,IF($K$9=1,D70-'Rents '!G68,D70-'Rents '!H68)," ") ->  | F70: 0 | I70: 0 | J70: =IF(K70>0,IF($K$9=1,I70-'Rents '!G68,I70-'Rents '!H68)," ") ->  | K70: 0 | N70: ='Rents '!D68 -> 0
A72: =IF('Rents '!A70="","",'Rents '!A70) ->  | B72: =IF('Rents '!B70="","",'Rents '!B70) ->  | C72: Beds | D72: 0 | E72: =IF(F72>0,IF($K$9=1,D72-'Rents '!G70,D72-'Rents '!H70)," ") ->  | F72: 0 | G72: =IF(F72>0,+E72*F72," ") ->  | I72: 0 | J72: =IF(K72>0,IF($K$9=1,I72-'Rents '!G70,I72-'Rents '!H70)," ") ->  | K72: 0 | L72: =IF(K72>0,+J72*K72," ") ->  | N72: ='Rents '!D70 -> 0
C73: 0 Bdrm. | D73: 0 | E73: =IF(F73>0,IF($K$9=1,D73-'Rents '!G71,D73-'Rents '!H71)," ") ->  | F73: 0 | I73: 0 | J73: =IF(K73>0,IF($K$9=1,I73-'Rents '!G71,I73-'Rents '!H71)," ") ->  | K73: 0 | N73: ='Rents '!D71 -> 0
C74: 1 Bdrm. | D74: 0 | E74: =IF(F74>0,IF($K$9=1,D74-'Rents '!G72,D74-'Rents '!H72)," ") ->  | F74: 0 | I74: 0 | J74: =IF(K74>0,IF($K$9=1,I74-'Rents '!G72,I74-'Rents '!H72)," ") ->  | K74: 0 | N74: ='Rents '!D72 -> 0
C75: 2 Bdrm. | D75: 0 | E75: =IF(F75>0,IF($K$9=1,D75-'Rents '!G73,D75-'Rents '!H73)," ") ->  | F75: 0 | I75: 0 | J75: =IF(K75>0,IF($K$9=1,I75-'Rents '!G73,I75-'Rents '!H73)," ") ->  | K75: 0 | N75: ='Rents '!D73 -> 0
C76: 3 Bdrm. | D76: 0 | E76: =IF(F76>0,IF($K$9=1,D76-'Rents '!G74,D76-'Rents '!H74)," ") ->  | F76: 0 | I76: 0 | J76: =IF(K76>0,IF($K$9=1,I76-'Rents '!G74,I76-'Rents '!H74)," ") ->  | K76: 0 | N76: ='Rents '!D74 -> 0
C77: 4 Bdrm. | D77: 0 | E77: =IF(F77>0,IF($K$9=1,D77-'Rents '!G75,D77-'Rents '!H75)," ") ->  | F77: 0 | I77: 0 | J77: =IF(K77>0,IF($K$9=1,I77-'Rents '!G75,I77-'Rents '!H75)," ") ->  | K77: 0 | N77: ='Rents '!D75 -> 0
C78: 5 Bdrm. | D78: 0 | E78: =IF(F78>0,IF($K$9=1,D78-'Rents '!G76,D78-'Rents '!H76)," ") ->  | F78: 0 | I78: 0 | J78: =IF(K78>0,IF($K$9=1,I78-'Rents '!G76,I78-'Rents '!H76)," ") ->  | K78: 0 | N78: ='Rents '!D76 -> 0
A80: =IF('Rents '!A78="","",'Rents '!A78) ->  | B80: =IF('Rents '!B78="","",'Rents '!B78) ->  | C80: Beds | D80: 0 | E80: =IF(F80>0,IF($K$9=1,D80-'Rents '!G78,D80-'Rents '!H78)," ") ->  | F80: 0 | G80: =IF(F80>0,+E80*F80," ") ->  | I80: 0 | J80: =IF(K80>0,IF($K$9=1,I80-'Rents '!G78,I80-'Rents '!H78)," ") ->  | K80: 0 | L80: =IF(K80>0,+J80*K80," ") ->  | N80: ='Rents '!D78 -> 0
C81: 0 Bdrm. | D81: 0 | E81: =IF(F81>0,IF($K$9=1,D81-'Rents '!G79,D81-'Rents '!H79)," ") ->  | F81: 0 | I81: 0 | J81: =IF(K81>0,IF($K$9=1,I81-'Rents '!G79,I81-'Rents '!H79)," ") ->  | K81: 0 | N81: ='Rents '!D79 -> 0
C82: 1 Bdrm. | D82: 0 | E82: =IF(F82>0,IF($K$9=1,D82-'Rents '!G80,D82-'Rents '!H80)," ") ->  | F82: 0 | I82: 0 | J82: =IF(K82>0,IF($K$9=1,I82-'Rents '!G80,I82-'Rents '!H80)," ") ->  | K82: 0 | N82: ='Rents '!D80 -> 0
C83: 2 Bdrm. | D83: 0 | E83: =IF(F83>0,IF($K$9=1,D83-'Rents '!G81,D83-'Rents '!H81)," ") ->  | F83: 0 | I83: 0 | J83: =IF(K83>0,IF($K$9=1,I83-'Rents '!G81,I83-'Rents '!H81)," ") ->  | K83: 0 | N83: ='Rents '!D81 -> 0
C84: 3 Bdrm. | D84: 0 | E84: =IF(F84>0,IF($K$9=1,D84-'Rents '!G82,D84-'Rents '!H82)," ") ->  | F84: 0 | I84: 0 | J84: =IF(K84>0,IF($K$9=1,I84-'Rents '!G82,I84-'Rents '!H82)," ") ->  | K84: 0 | N84: ='Rents '!D82 -> 0
C85: 4 Bdrm. | D85: 0 | E85: =IF(F85>0,IF($K$9=1,D85-'Rents '!G83,D85-'Rents '!H83)," ") ->  | F85: 0 | I85: 0 | J85: =IF(K85>0,IF($K$9=1,I85-'Rents '!G83,I85-'Rents '!H83)," ") ->  | K85: 0 | N85: ='Rents '!D83 -> 0
C86: 5 Bdrm. | D86: 0 | E86: =IF(F86>0,IF($K$9=1,D86-'Rents '!G84,D86-'Rents '!H84)," ") ->  | F86: 0 | I86: 0 | J86: =IF(K86>0,IF($K$9=1,I86-'Rents '!G84,I86-'Rents '!H84)," ") ->  | K86: 0 | N86: ='Rents '!D84 -> 0
A88: =IF('Rents '!A86="","",'Rents '!A86) ->  | B88: =IF('Rents '!B86="","",'Rents '!B86) ->  | C88: Beds | D88: 0 | E88: =IF(F88>0,IF($K$9=1,D88-'Rents '!G86,D88-'Rents '!H86)," ") ->  | F88: 0 | G88: =IF(F88>0,+E88*F88," ") ->  | I88: 0 | J88: =IF(K88>0,IF($K$9=1,I88-'Rents '!G86,I88-'Rents '!H86)," ") ->  | K88: 0 | L88: =IF(K88>0,+J88*K88," ") ->  | N88: ='Rents '!D86 -> 0
C89: 0 Bdrm. | D89: 0 | E89: =IF(F89>0,IF($K$9=1,D89-'Rents '!G87,D89-'Rents '!H87)," ") ->  | F89: 0 | I89: 0 | J89: =IF(K89>0,IF($K$9=1,I89-'Rents '!G87,I89-'Rents '!H87)," ") ->  | K89: 0 | N89: ='Rents '!D87 -> 0
C90: 1 Bdrm. | D90: 0 | E90: =IF(F90>0,IF($K$9=1,D90-'Rents '!G88,D90-'Rents '!H88)," ") ->  | F90: 0 | I90: 0 | J90: =IF(K90>0,IF($K$9=1,I90-'Rents '!G88,I90-'Rents '!H88)," ") ->  | K90: 0 | N90: ='Rents '!D88 -> 0
C91: 2 Bdrm. | D91: 0 | E91: =IF(F91>0,IF($K$9=1,D91-'Rents '!G89,D91-'Rents '!H89)," ") ->  | F91: 0 | I91: 0 | J91: =IF(K91>0,IF($K$9=1,I91-'Rents '!G89,I91-'Rents '!H89)," ") ->  | K91: 0 | N91: ='Rents '!D89 -> 0
C92: 3 Bdrm. | D92: 0 | E92: =IF(F92>0,IF($K$9=1,D92-'Rents '!G90,D92-'Rents '!H90)," ") ->  | F92: 0 | I92: 0 | J92: =IF(K92>0,IF($K$9=1,I92-'Rents '!G90,I92-'Rents '!H90)," ") ->  | K92: 0 | N92: ='Rents '!D90 -> 0
C93: 4 Bdrm. | D93: 0 | E93: =IF(F93>0,IF($K$9=1,D93-'Rents '!G91,D93-'Rents '!H91)," ") ->  | F93: 0 | I93: 0 | J93: =IF(K93>0,IF($K$9=1,I93-'Rents '!G91,I93-'Rents '!H91)," ") ->  | K93: 0 | N93: ='Rents '!D91 -> 0
C94: 5 Bdrm. | D94: 0 | E94: =IF(F94>0,IF($K$9=1,D94-'Rents '!G92,D94-'Rents '!H92)," ") ->  | F94: 0 | I94: 0 | J94: =IF(K94>0,IF($K$9=1,I94-'Rents '!G92,I94-'Rents '!H92)," ") ->  | K94: 0 | N94: ='Rents '!D92 -> 0
A96: =IF('Rents '!A94="","",'Rents '!A94) ->  | B96: =IF('Rents '!B94="","",'Rents '!B94) ->  | C96: Beds | D96: 0 | E96: =IF(F96>0,IF($K$9=1,D96-'Rents '!G94,D96-'Rents '!H94)," ") ->  | F96: 0 | G96: =IF(F96>0,+E96*F96," ") ->  | I96: 0 | J96: =IF(K96>0,IF($K$9=1,I96-'Rents '!G94,I96-'Rents '!H94)," ") ->  | K96: 0 | L96: =IF(K96>0,+J96*K96," ") ->  | N96: ='Rents '!D94 -> 0
C97: 0 Bdrm. | D97: 0 | E97: =IF(F97>0,IF($K$9=1,D97-'Rents '!G95,D97-'Rents '!H95)," ") ->  | F97: 0 | I97: 0 | J97: =IF(K97>0,IF($K$9=1,I97-'Rents '!G95,I97-'Rents '!H95)," ") ->  | K97: 0 | N97: ='Rents '!D95 -> 0
C98: 1 Bdrm. | D98: 0 | E98: =IF(F98>0,IF($K$9=1,D98-'Rents '!G96,D98-'Rents '!H96)," ") ->  | F98: 0 | I98: 0 | J98: =IF(K98>0,IF($K$9=1,I98-'Rents '!G96,I98-'Rents '!H96)," ") ->  | K98: 0 | N98: ='Rents '!D96 -> 0
C99: 2 Bdrm. | D99: 0 | E99: =IF(F99>0,IF($K$9=1,D99-'Rents '!G97,D99-'Rents '!H97)," ") ->  | F99: 0 | I99: 0 | J99: =IF(K99>0,IF($K$9=1,I99-'Rents '!G97,I99-'Rents '!H97)," ") ->  | K99: 0 | N99: ='Rents '!D97 -> 0
C100: 3 Bdrm. | D100: 0 | E100: =IF(F100>0,IF($K$9=1,D100-'Rents '!G98,D100-'Rents '!H98)," ") ->  | F100: 0 | I100: 0 | J100: =IF(K100>0,IF($K$9=1,I100-'Rents '!G98,I100-'Rents '!H98)," ") ->  | K100: 0 | N100: ='Rents '!D98 -> 0
C101: 4 Bdrm. | D101: 0 | E101: =IF(F101>0,IF($K$9=1,D101-'Rents '!G99,D101-'Rents '!H99)," ") ->  | F101: 0 | I101: 0 | J101: =IF(K101>0,IF($K$9=1,I101-'Rents '!G99,I101-'Rents '!H99)," ") ->  | K101: 0 | N101: ='Rents '!D99 -> 0
C102: 5 Bdrm. | D102: 0 | E102: =IF(F102>0,IF($K$9=1,D102-'Rents '!G100,D102-'Rents '!H100)," ") ->  | F102: 0 | I102: 0 | J102: =IF(K102>0,IF($K$9=1,I102-'Rents '!G100,I102-'Rents '!H100)," ") ->  | K102: 0 | N102: ='Rents '!D100 -> 0
A104: =IF('Rents '!A102="","",'Rents '!A102) ->  | B104: =IF('Rents '!B102="","",'Rents '!B102) ->  | C104: Beds | D104: 0 | E104: =IF(F104>0,IF($K$9=1,D104-'Rents '!G102,D104-'Rents '!H102)," ") ->  | F104: 0 | G104: =IF(F104>0,+E104*F104," ") ->  | I104: 0 | J104: =IF(K104>0,IF($K$9=1,I104-'Rents '!G102,I104-'Rents '!H102)," ") ->  | K104: 0 | L104: =IF(K104>0,+J104*K104," ") ->  | N104: ='Rents '!D102 -> 0
C105: 0 Bdrm. | D105: 0 | E105: =IF(F105>0,IF($K$9=1,D105-'Rents '!G103,D105-'Rents '!H103)," ") ->  | F105: 0 | I105: 0 | J105: =IF(K105>0,IF($K$9=1,I105-'Rents '!G103,I105-'Rents '!H103)," ") ->  | K105: 0 | N105: ='Rents '!D103 -> 0
C106: 1 Bdrm. | D106: 0 | E106: =IF(F106>0,IF($K$9=1,D106-'Rents '!G104,D106-'Rents '!H104)," ") ->  | F106: 0 | I106: 0 | J106: =IF(K106>0,IF($K$9=1,I106-'Rents '!G104,I106-'Rents '!H104)," ") ->  | K106: 0 | N106: ='Rents '!D104 -> 0
C107: 2 Bdrm. | D107: 0 | E107: =IF(F107>0,IF($K$9=1,D107-'Rents '!G105,D107-'Rents '!H105)," ") ->  | F107: 0 | I107: 0 | J107: =IF(K107>0,IF($K$9=1,I107-'Rents '!G105,I107-'Rents '!H105)," ") ->  | K107: 0 | N107: ='Rents '!D105 -> 0
C108: 3 Bdrm. | D108: 0 | E108: =IF(F108>0,IF($K$9=1,D108-'Rents '!G106,D108-'Rents '!H106)," ") ->  | F108: 0 | I108: 0 | J108: =IF(K108>0,IF($K$9=1,I108-'Rents '!G106,I108-'Rents '!H106)," ") ->  | K108: 0 | N108: ='Rents '!D106 -> 0
C109: 4 Bdrm. | D109: 0 | E109: =IF(F109>0,IF($K$9=1,D109-'Rents '!G107,D109-'Rents '!H107)," ") ->  | F109: 0 | I109: 0 | J109: =IF(K109>0,IF($K$9=1,I109-'Rents '!G107,I109-'Rents '!H107)," ") ->  | K109: 0 | N109: ='Rents '!D107 -> 0
C110: 5 Bdrm. | D110: 0 | E110: =IF(F110>0,IF($K$9=1,D110-'Rents '!G108,D110-'Rents '!H108)," ") ->  | F110: 0 | I110: 0 | J110: =IF(K110>0,IF($K$9=1,I110-'Rents '!G108,I110-'Rents '!H108)," ") ->  | K110: 0 | N110: ='Rents '!D108 -> 0
E111: Total Units Subsidized | F111: =SUM(F18:F110) -> 0 | J111: Total Units Subsidized | K111: =SUM(K18:K110) -> 0
E112: Total Monthly Subsidy | G112: =SUMIF(G18:G110,">0",G18:G110) -> 0 | J112: Total Monthly Subsidy | L112: =SUMIF(L18:L110,">0",L18:L110) -> 0
A114: Rent/Operating Subsidy Programs
A115: Subsidy Program Name:
A116: Subsidy Program Component:
A117: Subsidy Currently in Place?
A118: Date Application Submitted or To be Submitted:
A119: Date Award Expected:
A120: Contract Term (Years):
A121: Expected 1st Year Amount, if not based on contract rents:
A122: Basis for Subsequent Amounts, if not based on contract rents:
A124: Continuum of Care Process
A126: If one or more of the subsidy programs listed above is part of your local Continuum of Care process (i.e., Shelter Plus Care,
A127: Supportive Housing Program, Section 8 Mod Rehab SRO, etc.), please complete the following:
A129: 1. Has your community completed its Continuum of Care ranking process?
A131: 2. If you answered yes to question number one, is your Project ranked within the fundable range?
A133: 3. If you answered no to question number one, when will your community complete its Continuum of Care ranking process?
A134: Applicant Notes

Sheet Dev Sources
A1: ='General '!A45 -> 0
A2: SOURCES OF DEVELOPMENT FUNDS
A3: Construction Period Sources of Funds
A4: Committed? | B4: Source Name (in lien priority order) | D4: Lien No. | E4: Amount | F4: Interest Rate | G4: Required Payment | H4: Loan Term (months) | I4: Tax Exempt Amount | J4: Residential Amount | K4: Commercial Amount
A19: Equity Investor | F19: Type of Tax Credits | J19: =E19 -> 0
A20: Construction Totals | E20: =SUM(E6:E19) -> 0 | I20: =SUM(I6:I19) -> 0 | J20: =SUM(J6:J19) -> 0 | K20: =SUM(K6:K19) -> 0
A22: Permanent Sources of Funds
A23: Committed? | B23: Source Name (in lien priority order) | D23: Lien No. | E23: Amount | F23: Interest Rate | H23: Amortiz'n Period (yrs.) | I23: Repayment Terms | K23: Required Residential Debt Service | L23: Required Commercial Debt Service | M23: Tax Exempt Amount | N23: Residential Amount | O23: Commerical Amount
F24: Rate | G24: Type | I24: Type | J24: Due in (yrs)
S25: =COUNTIFS($E$25:E25,">"&0)*(E25>0) -> 0
S26: =COUNTIFS($E$25:E26,">"&0)*(E26>0) -> 0
S27: =COUNTIFS($E$25:E27,">"&0)*(E27>0) -> 0
S28: =COUNTIFS($E$25:E28,">"&0)*(E28>0) -> 0
S29: =COUNTIFS($E$25:E29,">"&0)*(E29>0) -> 0
S30: =COUNTIFS($E$25:E30,">"&0)*(E30>0) -> 0
S31: =COUNTIFS($E$25:E31,">"&0)*(E31>0) -> 0
S32: =COUNTIFS($E$25:E32,">"&0)*(E32>0) -> 0
S33: =COUNTIFS($E$25:E33,">"&0)*(E33>0) -> 0
S34: =COUNTIFS($E$25:E34,">"&0)*(E34>0) -> 0
S35: =COUNTIFS($E$25:E35,">"&0)*(E35>0) -> 0
S36: =COUNTIFS($E$25:E36,">"&0)*(E36>0) -> 0
S37: =COUNTIFS($E$25:E37,">"&0)*(E37>0) -> 0
S38: =COUNTIFS($E$25:E38,">"&0)*(E38>0) -> 0
A39: Equity Investor | F39: Type of Tax Credits | H39: =H19 -> 0 | N39: =E39 -> 0
A40: Permanent Totals | E40: =SUM(E25:E39) -> 0 | K40: =SUM(K25:K39) -> 0 | L40: =SUM(L25:L39) -> 0 | M40: =SUM(M25:M39) -> 0 | N40: =SUM(N25:N39) -> 0 | O40: =SUM(O25:O39) -> 0
A42: Applicant Comments | M42: ='General '!AO10 -> UA Version 5/1/20

Sheet Dev Budget
A1: ='General '!A45 -> 0 | B1: PROJECT DEVELOPMENT BUDGET
A2: DEVELOPMENT COST | B2: Total Project Costs | C2: Residential Costs | D2: Commercial Costs | E2: =IF('Dev Sources'!H39="","30% PVC for New Const/Rehab",IF('Dev Sources'!H39=0.09,"70% PVC for New Const/Rehab",IF('Dev Sources'!H39=0.04,"30% PVC for New Const/Rehab","N/A - No tax credits per Dev Sources"))) -> N/A - No tax credits per Dev Sources | F2: =IF('Dev Sources'!H39="","30% PVC for Acquisition",IF('Dev Sources'!H39=0.09,"30% PVC for Acquisition",IF('Dev Sources'!H39=0.04,"30% PVC for Acquisition","N/A - No tax credits per Dev Sources"))) -> N/A - No tax credits per Dev Sources | G2: Comments and explanation of basis changes | J2: 2017 UMRs
A3: LAND COST/ACQUISITION | J3: 2019 MHP Guidelines
A4: Land Cost or Value | B4: =SUM(C4+D4) -> 0
A5: Demolition | B5: =SUM(C5+D5) -> 0
A6: Legal | B6: =SUM(C6+D6) -> 0
A7: Land Lease Rent Prepayment | B7: =SUM(C7+D7) -> 0
A8: Total Land Cost or Value | B8: =SUM(C8:D8) -> 0 | C8: =SUM(C4:C7) -> 0 | D8: 0
A9: Existing Improvements Cost or Value | B9: =SUM(C9+D9) -> 0
A10: Off-Site Improvements | B10: =SUM(C10+D10) -> 0
A11: Total Acquisition Cost | B11: =SUM(C11:D11) -> 0 | C11: =SUM(C9:C10) -> 0 | D11: 0 | F11: 0
A12: Total Land Cost / Acquisition Cost | B12: =SUM(B8+B11) -> 0 | C12: 0 | D12: 0
A13: Predevelopment Interest/Holding Cost | B13: =SUM(C13+D13) -> 0
A14: Assumed, Accrued Interest on Existing Debt (Rehab/Acq) | B14: =SUM(C14+D14) -> 0
A15: Excess Purchase Price Over Appraisal | B15: =SUM(C15+D15) -> 0
A16: REHABILITATION
A17: Site Work | B17: =SUM(C17:D17) -> 0
A18: Structures | B18: 0
A19: General Requirements | B19: 0
A20: Contractor Overhead | B20: 0
A21: Contractor Profit | B21: 0
A22: Prevailing Wages | B22: 0
A23: General Liability Insurance | B23: 0
A24: Other: (Specify) | B24: =SUM(C24:D24) -> 0
A25: Other: (Specify) | B25: 0
A26: Other: (Specify) | B26: =SUM(C26:D26) -> 0
A27: Other: (Specify) | B27: 0
A28: Total Rehabilitation Costs | B28: 0 | C28: =SUM(C17:C27) -> 0 | D28: =SUM(D17:D27) -> 0 | E28: =SUM(E17:E27) -> 0 | F28: =SUM(F17:F27) -> 0
A29: Total Relocation Expenses | B29: 0
A30: NEW CONSTRUCTION
A31: Site Work | B31: =SUM(C31+D31) -> 0
A32: Structures | B32: 0
A33: General Requirements | B33: 0
A34: Contractor Overhead | B34: 0
A35: Contractor Profit | B35: 0
A36: Prevailing Wages | B36: 0
A37: General Liability Insurance | B37: 0
A38: Other: (Specify) | B38: 0
A39: Other: (Specify) | B39: 0
A40: Other: (Specify) | B40: =SUM(C40+D40) -> 0
A41: Other: (Specify) | B41: 0
A42: Total New Construction Costs | B42: 0 | C42: =SUM(C31:C41) -> 0 | D42: =SUM(D31:D41) -> 0 | E42: =SUM(E31:E41) -> 0 | F42: =SUM(F31:F41) -> 0
A43: ARCHITECTURAL FEES
A44: Design | B44: =SUM(C44+D44) -> 0
A45: Supervision | B45: =SUM(C45+D45) -> 0
A46: Total Architectural Costs | B46: =SUM(C46:D46) -> 0 | C46: =SUM(C43:C45) -> 0 | D46: =SUM(D43:D45) -> 0 | E46: =SUM(E44:E45) -> 0 | F46: 0
A47: Total Survey & Engineering | B47: =SUM(C47:D47) -> 0
A48: CONSTRUCTION INTEREST & FEES
A49: Construction Loan Interest | B49: =SUM(C49+D49) -> 0
A50: Origination Fee | B50: 0
A51: Credit Enhancement/Application Fee | B51: 0
A52: Bond Premium | B52: 0
A53: Cost of Issuance | B53: 0
A54: Title & Recording | B54: 0
A55: Taxes | B55: 0
A56: Insurance | B56: 0
A57: Other: (Specify) | B57: =SUM(C57+D57) -> 0
A58: Other: (Specify) | B58: 0
A59: Other: (Specify) | B59: 0
A60: Total Construction Interest & Fees | B60: =SUM(C60:D60) -> 0 | C60: =SUM(C49:C59) -> 0 | D60: =SUM(D49:D59) -> 0 | E60: =SUM(E49:E59) -> 0 | F60: =SUM(F49:F59) -> 0
A61: PERMANENT FINANCING
A62: Loan Origination Fee | B62: =SUM(C62+D62) -> 0
A63: Credit Enhancement/Application Fee | B63: 0
A64: Title & Recording | B64: 0
A65: Taxes | B65: 0
A66: Insurance | B66: 0
A67: Other: (Specify) | B67: 0
A68: Other: (Specify) | B68: 0
A69: Total Permanent Financing Costs | B69: =SUM(C69:D69) -> 0 | C69: =SUM(C62:C68) -> 0 | D69: 0
A70: Subtotals Forward | B70: =SUM(C70:D70) -> 0 | C70: =SUM(C8+C11+C13+C14+C15+C28+C29+C42+C46+C47+C60+C69) -> 0 | D70: =SUM(D8+D11+D13+D14+D15+D28+D29+D42+D46+D47+D60+D69) -> 0 | E70: =SUM(E10+E13+E14+E15+E28+E29+E42+E46+E47+E60) -> 0 | F70: =SUM(F11+F13+F14+F15+F28+F29+F42+F46+F47+F60) -> 0
A71: LEGAL FEES
A72: Legal Paid by Applicant | B72: =SUM(C72+D72) -> 0
A73: Other: (Specify) | B73: =SUM(C73+D73) -> 0
A74: Total Attorney Costs | B74: =SUM(C74:D74) -> 0 | C74: =SUM(C71:C73) -> 0 | D74: =SUM(D71:D73) -> 0 | E74: =SUM(E72:E73) -> 0 | F74: 0
A75: RESERVES
A76: Operating Reserve | B76: =SUM(C76+D76) -> 0
A77: Replacement Reserve | B77: 0
A78: Transition Reserve | B78: 0
A79: Rent Reserve | B79: 0
A80: =IF(OR('General '!$N$24="HHC - Hsng for Healthy Ca.",'General '!$N$29="HHC - Hsng for Healthy Ca.",'General '!$N$34="HHC - Hsng for Healthy Ca.",'General '!$N$38="HHC - Hsng for Healthy Ca."),"HHC Cap.Op. Subsidy Reserve (COSR)","Other: (specify)") -> Other: (specify) | B80: 0
A81: =IF(OR('General '!$N$24="NPLH -No Place Like Home",'General '!$N$29="NPLH -No Place Like Home",'General '!$N$34="NPLH -No Place Like Home",'General '!$N$38="NPLH -No Place Like Home"),"NPLH Cap. Op. Subsidy Reserve (COSR)","Other: (specify)") -> Other: (specify) | B81: 0
A82: Other: (Specify) | B82: 0
A83: Total Reserve Costs | B83: =SUM(C83:D83) -> 0 | C83: =SUM(C76:C82) -> 0 | D83: 0
A84: CONTINGENCY COSTS
A85: Construction Hard Cost Contingency | B85: =SUM(C85+D85) -> 0
A86: Soft Cost Contingency | B86: =SUM(C86+D86) -> 0
A87: Total Contingency Costs | B87: =SUM(C87:D87) -> 0 | C87: =SUM(C85:C86) -> 0 | D87: =SUM(D85:D86) -> 0 | E87: 0 | F87: 0
A88: OTHER PROJECT COSTS
A89: TCAC App/Allocation/Monitoring Fees | B89: =SUM(C89+D89) -> 0
A90: Environmental Audit | B90: =SUM(C90+D90) -> 0
A91: Local Development Impact Fees | B91: 0
A92: Permit Processing Fees | B92: 0
A93: Capital Fees | B93: 0
A94: Marketing | B94: 0
A95: Furnishings | B95: 0
A96: Market Study | B96: 0
A97: Accounting/Reimbursable | B97: 0
A98: Appraisal Costs | B98: 0
A99: Other: (Specify) | B99: =SUM(C99+D99) -> 0
A100: Other: (Specify) | B100: =SUM(C100+D100) -> 0
A101: Other: (Specify) | B101: 0
A102: Other: (Specify) | B102: =SUM(C102+D102) -> 0
A103: Other: (Specify) | B103: =SUM(C103+D103) -> 0
A104: Other: (Specify) | B104: =SUM(C104+D104) -> 0
A105: Total Other Costs | B105: =SUM(C105:D105) -> 0 | C105: =SUM(C89:C104) -> 0 | D105: =SUM(D89:D104) -> 0 | E105: =SUM(E90:E93,E95:E104) -> 0 | F105: =SUM(F90:F93,F95:F104) -> 0
A106: SUBTOTAL PROJECT COST | B106: =SUM(C106:D106) -> 0 | C106: =SUM(C70+C74+C83+C87+C105) -> 0 | D106: =SUM(D70+D74+D83+D87+D105) -> 0 | E106: =SUM(+E70+E74+E87+E105) -> 0 | F106: =SUM(F70+F74+F87+F105) -> 0
A107: DEVELOPER COSTS
A108: Developer Overhead/Profit | B108: =SUM(C108+D108) -> 0
A109: Consultant/Processing Agent | B109: 0
A110: Project Administration | B110: 0
A111: Broker Fees Paid to a Related Party | B111: 0
A112: Construction Oversight by Developer | B112: 0
A113: Other: (Specify) | B113: 0
A114: Total Developer Costs | B114: =SUM(C114:D114) -> 0 | C114: =SUM(C108:C113) -> 0 | D114: 0 | E114: 0 | F114: 0
A115: TOTAL PROJECT COST | B115: =SUM(C115:D115) -> 0 | C115: =SUM(C106+C114) -> 0 | D115: 0 | E115: =E106+E114 -> 0 | F115: =F106+F114 -> 0
D116: Eligible Basis: | E116: =E115 -> 0 | F116: =F115 -> 0
E117: Total Eligible Basis: | F117: =SUM(E116:F116) -> 0
E118: DF 2019 | F118: DF 2017 UMR
A119: Total Developer Fee (equals Total Developer Costs above): | E119: ='Dev Fee 2019'!H5 -> 0 | F119: ='Dev Fee 2017 UMR'!H5 -> 0
A120: Total Developer Fee paid from development funding sources: | E120: ='Dev Fee 2019'!H6 -> 0 | F120: ='Dev Fee 2017 UMR'!H6 -> 0
A121: Deferred Developer Fee payable on a priority basis from available Cash Flow: | E121: ='Dev Fee 2019'!H7 -> 0 | F121: ='Dev Fee 2017 UMR'!H7 -> 0
A122: Deferred Developer Fee payable from allowable 50% Distribution: | E122: ='Dev Fee 2019'!H8 -> 0 | F122: ='Dev Fee 2017 UMR'!H8 -> 0
A123: Developer Fee Contributed as Capital: | E123: ='Dev Fee 2019'!F10 -> 0 | F123: ='Dev Fee 2017 UMR'!I11 -> 0

Sheet Perm S&U
A1: =IF('General '!A45="","",('General '!A45)) -> 
D2: Residential Permanent Sources of Funds | U2: Commercial Sources
A3: USES OF FUNDS | B3: Total Costs (Residential & Commercial) | C3: Total Residential Cost from Dev Budget | D3: ='Dev Sources'!B25 -> 0 | E3: ='Dev Sources'!B26 -> 0 | F3: ='Dev Sources'!B27 -> 0 | G3: ='Dev Sources'!B28 -> 0 | H3: ='Dev Sources'!B29 -> 0 | I3: ='Dev Sources'!B30 -> 0 | J3: ='Dev Sources'!B31 -> 0 | K3: ='Dev Sources'!B32 -> 0 | L3: ='Dev Sources'!B33 -> 0 | M3: ='Dev Sources'!B34 -> 0 | N3: ='Dev Sources'!B35 -> 0 | O3: ='Dev Sources'!B36 -> 0 | P3: ='Dev Sources'!B37 -> 0 | Q3: ='Dev Sources'!B38 -> 0 | R3: Gross Tax Credit Equity | S3: Total Residential Sources | T3: Commercial Costs | U3: Source Name: | V3: Source Name: | W3: Residential Cost Difference Dev Budget vs. Sources
T4: Total
A5: ='Dev Budget'!A3 -> LAND COST/ACQUISITION
A6: ='Dev Budget'!A4 -> Land Cost or Value | B6: ='Dev Budget'!B4 -> 0 | C6: ='Dev Budget'!C4 -> 0 | S6: =SUM(D6:R6) -> 0 | T6: ='Dev Budget'!D4 -> 0 | W6: =C6-S6 -> 0
A7: ='Dev Budget'!A5 -> Demolition | B7: ='Dev Budget'!B5 -> 0 | C7: ='Dev Budget'!C5 -> 0 | S7: =SUM(D7:R7) -> 0 | T7: ='Dev Budget'!D5 -> 0 | W7: =C7-S7 -> 0
A8: ='Dev Budget'!A6 -> Legal | B8: ='Dev Budget'!B6 -> 0 | C8: ='Dev Budget'!C6 -> 0 | S8: 0 | T8: ='Dev Budget'!D6 -> 0 | W8: 0
A9: ='Dev Budget'!A7 -> Land Lease Rent Prepayment | B9: ='Dev Budget'!B7 -> 0 | C9: ='Dev Budget'!C7 -> 0 | S9: 0 | T9: ='Dev Budget'!D7 -> 0 | W9: 0
A10: ='Dev Budget'!A8 -> Total Land Cost or Value | B10: ='Dev Budget'!B8 -> 0 | C10: ='Dev Budget'!C8 -> 0 | D10: =SUM(D6:D9) -> 0 | E10: =SUM(E6:E9) -> 0 | F10: 0 | G10: 0 | H10: 0 | I10: 0 | J10: 0 | K10: 0 | L10: 0 | M10: 0 | N10: 0 | O10: 0 | P10: 0 | Q10: 0 | R10: 0 | S10: 0 | T10: 0 | U10: =SUM(U6:U9) -> 0 | V10: 0 | W10: 0
A11: ='Dev Budget'!A9 -> Existing Improvements Cost or Value | B11: ='Dev Budget'!B9 -> 0 | C11: ='Dev Budget'!C9 -> 0 | S11: =SUM(D11:R11) -> 0 | T11: ='Dev Budget'!D9 -> 0 | W11: 0
A12: ='Dev Budget'!A10 -> Off-Site Improvements | B12: ='Dev Budget'!B10 -> 0 | C12: ='Dev Budget'!C10 -> 0 | S12: 0 | T12: ='Dev Budget'!D10 -> 0 | W12: 0
A13: ='Dev Budget'!A11 -> Total Acquisition Cost | B13: ='Dev Budget'!B11 -> 0 | C13: ='Dev Budget'!C11 -> 0 | D13: =SUM(D11:D12) -> 0 | E13: =SUM(E11:E12) -> 0 | F13: 0 | G13: 0 | H13: 0 | I13: 0 | J13: 0 | K13: 0 | L13: 0 | M13: 0 | N13: 0 | O13: 0 | P13: 0 | Q13: 0 | R13: 0 | S13: =SUM(S11:S12) -> 0 | T13: 0 | U13: =SUM(U11:U12) -> 0 | V13: 0 | W13: =SUM(W11:W12) -> 0
A14: ='Dev Budget'!A12 -> Total Land Cost / Acquisition Cost | B14: ='Dev Budget'!B12 -> 0 | C14: ='Dev Budget'!C12 -> 0 | D14: =SUM(D10+D13) -> 0 | E14: =SUM(E10+E13) -> 0 | F14: 0 | G14: 0 | H14: 0 | I14: 0 | J14: 0 | K14: 0 | L14: 0 | M14: 0 | N14: 0 | O14: 0 | P14: 0 | Q14: 0 | R14: 0 | S14: =SUM(S10+S13) -> 0 | T14: 0 | U14: =SUM(U10+U13) -> 0 | V14: 0 | W14: =SUM(W10+W13) -> 0
A15: ='Dev Budget'!A13 -> Predevelopment Interest/Holding Cost | B15: ='Dev Budget'!B13 -> 0 | C15: ='Dev Budget'!C13 -> 0 | S15: =SUM(D15:R15) -> 0 | T15: ='Dev Budget'!D13 -> 0 | W15: =C15-S15 -> 0
A16: ='Dev Budget'!A14 -> Assumed, Accrued Interest on Existing Debt (Rehab/Acq) | B16: ='Dev Budget'!B14 -> 0 | C16: ='Dev Budget'!C14 -> 0 | S16: 0 | T16: ='Dev Budget'!D14 -> 0 | W16: 0
A17: ='Dev Budget'!A15 -> Excess Purchase Price Over Appraisal | B17: ='Dev Budget'!B15 -> 0 | C17: ='Dev Budget'!C15 -> 0 | S17: 0 | T17: ='Dev Budget'!D15 -> 0 | W17: 0
A18: ='Dev Budget'!A16 -> REHABILITATION
A19: ='Dev Budget'!A17 -> Site Work | B19: ='Dev Budget'!B17 -> 0 | C19: ='Dev Budget'!C17 -> 0 | S19: =SUM(D19:R19) -> 0 | T19: ='Dev Budget'!D17 -> 0 | W19: 0
A20: ='Dev Budget'!A18 -> Structures | B20: ='Dev Budget'!B18 -> 0 | C20: ='Dev Budget'!C18 -> 0 | S20: 0 | T20: ='Dev Budget'!D18 -> 0 | W20: 0
A21: ='Dev Budget'!A19 -> General Requirements | B21: ='Dev Budget'!B19 -> 0 | C21: ='Dev Budget'!C19 -> 0 | S21: 0 | T21: ='Dev Budget'!D19 -> 0 | W21: 0
A22: ='Dev Budget'!A20 -> Contractor Overhead | B22: ='Dev Budget'!B20 -> 0 | C22: ='Dev Budget'!C20 -> 0 | S22: 0 | T22: ='Dev Budget'!D20 -> 0 | W22: 0
A23: ='Dev Budget'!A21 -> Contractor Profit | B23: ='Dev Budget'!B21 -> 0 | C23: ='Dev Budget'!C21 -> 0 | S23: 0 | T23: ='Dev Budget'!D21 -> 0 | W23: 0
A24: ='Dev Budget'!A22 -> Prevailing Wages | B24: ='Dev Budget'!B22 -> 0 | C24: ='Dev Budget'!C22 -> 0 | S24: 0 | T24: ='Dev Budget'!D22 -> 0 | W24: 0
A25: ='Dev Budget'!A23 -> General Liability Insurance | B25: ='Dev Budget'!B23 -> 0 | C25: ='Dev Budget'!C23 -> 0 | S25: 0 | T25: ='Dev Budget'!D23 -> 0 | W25: 0
A26: ='Dev Budget'!A24 -> Other: (Specify) | B26: ='Dev Budget'!B24 -> 0 | C26: ='Dev Budget'!C24 -> 0 | S26: 0 | T26: ='Dev Budget'!D24 -> 0 | W26: 0
A27: ='Dev Budget'!A25 -> Other: (Specify) | B27: ='Dev Budget'!B25 -> 0 | C27: ='Dev Budget'!C25 -> 0 | S27: 0 | T27: ='Dev Budget'!D25 -> 0 | W27: 0
A28: ='Dev Budget'!A26 -> Other: (Specify) | B28: ='Dev Budget'!B26 -> 0 | C28: ='Dev Budget'!C26 -> 0 | S28: 0 | T28: ='Dev Budget'!D26 -> 0 | W28: 0
A29: ='Dev Budget'!A27 -> Other: (Specify) | B29: ='Dev Budget'!B27 -> 0 | C29: ='Dev Budget'!C27 -> 0 | S29: 0 | T29: ='Dev Budget'!D27 -> 0 | W29: 0
A30: ='Dev Budget'!A28 -> Total Rehabilitation Costs | B30: ='Dev Budget'!B28 -> 0 | C30: ='Dev Budget'!C28 -> 0 | D30: =SUM(D19:D29) -> 0 | E30: =SUM(E19:E29) -> 0 | F30: 0 | G30: 0 | H30: 0 | I30: 0 | J30: 0 | K30: 0 | L30: 0 | M30: 0 | N30: 0 | O30: 0 | P30: 0 | Q30: 0 | R30: 0 | S30: =SUM(S19:S29) -> 0 | T30: =SUM(T19:T29) -> 0 | U30: =SUM(U19:U29) -> 0 | V30: =SUM(V19:V29) -> 0 | W30: 0
A31: ='Dev Budget'!A29 -> Total Relocation Expenses | B31: ='Dev Budget'!B29 -> 0 | C31: ='Dev Budget'!C29 -> 0 | S31: =SUM(D31:R31) -> 0 | T31: ='Dev Budget'!D29 -> 0 | W31: 0
A32: ='Dev Budget'!A30 -> NEW CONSTRUCTION
A33: ='Dev Budget'!A31 -> Site Work | B33: ='Dev Budget'!B31 -> 0 | C33: ='Dev Budget'!C31 -> 0 | S33: =SUM(D33:R33) -> 0 | T33: ='Dev Budget'!D31 -> 0 | W33: =C33-S33 -> 0
A34: ='Dev Budget'!A32 -> Structures | B34: ='Dev Budget'!B32 -> 0 | C34: ='Dev Budget'!C32 -> 0 | S34: 0 | T34: ='Dev Budget'!D32 -> 0 | W34: 0
A35: ='Dev Budget'!A33 -> General Requirements | B35: ='Dev Budget'!B33 -> 0 | C35: ='Dev Budget'!C33 -> 0 | S35: 0 | T35: ='Dev Budget'!D33 -> 0 | W35: 0
A36: ='Dev Budget'!A34 -> Contractor Overhead | B36: ='Dev Budget'!B34 -> 0 | C36: ='Dev Budget'!C34 -> 0 | S36: 0 | T36: ='Dev Budget'!D34 -> 0 | W36: 0
A37: ='Dev Budget'!A35 -> Contractor Profit | B37: ='Dev Budget'!B35 -> 0 | C37: ='Dev Budget'!C35 -> 0 | S37: 0 | T37: ='Dev Budget'!D35 -> 0 | W37: 0
A38: ='Dev Budget'!A36 -> Prevailing Wages | B38: ='Dev Budget'!B36 -> 0 | C38: ='Dev Budget'!C36 -> 0 | S38: 0 | T38: ='Dev Budget'!D36 -> 0 | W38: 0
A39: ='Dev Budget'!A37 -> General Liability Insurance | B39: ='Dev Budget'!B37 -> 0 | C39: ='Dev Budget'!C37 -> 0 | S39: 0 | T39: ='Dev Budget'!D37 -> 0 | W39: 0
A40: ='Dev Budget'!A38 -> Other: (Specify) | B40: ='Dev Budget'!B38 -> 0 | C40: ='Dev Budget'!C38 -> 0 | S40: 0 | T40: ='Dev Budget'!D38 -> 0 | W40: 0
A41: ='Dev Budget'!A39 -> Other: (Specify) | B41: ='Dev Budget'!B39 -> 0 | C41: ='Dev Budget'!C39 -> 0 | S41: 0 | T41: ='Dev Budget'!D39 -> 0 | W41: 0
A42: ='Dev Budget'!A40 -> Other: (Specify) | B42: ='Dev Budget'!B40 -> 0 | C42: ='Dev Budget'!C40 -> 0 | S42: 0 | T42: ='Dev Budget'!D40 -> 0 | W42: 0
A43: ='Dev Budget'!A41 -> Other: (Specify) | B43: ='Dev Budget'!B41 -> 0 | C43: ='Dev Budget'!C41 -> 0 | S43: 0 | T43: ='Dev Budget'!D41 -> 0 | W43: 0
A44: ='Dev Budget'!A42 -> Total New Construction Costs | B44: ='Dev Budget'!B42 -> 0 | C44: ='Dev Budget'!C42 -> 0 | D44: =SUM(D33:D43) -> 0 | E44: =SUM(E33:E43) -> 0 | F44: 0 | G44: 0 | H44: 0 | I44: 0 | J44: 0 | K44: 0 | L44: 0 | M44: 0 | N44: 0 | O44: 0 | P44: 0 | Q44: 0 | R44: 0 | S44: =SUM(S33:S43) -> 0 | T44: =SUM(T33:T43) -> 0 | U44: =SUM(U33:U43) -> 0 | V44: =SUM(V33:V43) -> 0 | W44: 0
A45: ='Dev Budget'!A43 -> ARCHITECTURAL FEES
A46: ='Dev Budget'!A44 -> Design | B46: ='Dev Budget'!B44 -> 0 | C46: ='Dev Budget'!C44 -> 0 | S46: =SUM(D46:R46) -> 0 | T46: ='Dev Budget'!D44 -> 0 | W46: =C46-S46 -> 0
A47: ='Dev Budget'!A45 -> Supervision | B47: ='Dev Budget'!B45 -> 0 | C47: ='Dev Budget'!C45 -> 0 | S47: 0 | T47: ='Dev Budget'!D45 -> 0 | W47: 0
A48: ='Dev Budget'!A46 -> Total Architectural Costs | B48: ='Dev Budget'!B46 -> 0 | C48: ='Dev Budget'!C46 -> 0 | D48: =SUM(D45:D47) -> 0 | E48: =SUM(E45:E47) -> 0 | F48: 0 | G48: 0 | H48: 0 | I48: 0 | J48: 0 | K48: 0 | L48: 0 | M48: 0 | N48: 0 | O48: 0 | P48: 0 | Q48: 0 | R48: 0 | S48: =SUM(S45:S47) -> 0 | T48: =SUM(T45:T47) -> 0 | U48: =SUM(U45:U47) -> 0 | V48: =SUM(V45:V47) -> 0 | W48: 0
A49: ='Dev Budget'!A47 -> Total Survey & Engineering | B49: ='Dev Budget'!B47 -> 0 | C49: ='Dev Budget'!C47 -> 0 | S49: 0 | T49: ='Dev Budget'!D47 -> 0 | W49: 0
A50: ='Dev Budget'!A48 -> CONSTRUCTION INTEREST & FEES
A51: ='Dev Budget'!A49 -> Construction Loan Interest | B51: ='Dev Budget'!B49 -> 0 | C51: ='Dev Budget'!C49 -> 0 | S51: =SUM(D51:R51) -> 0 | T51: ='Dev Budget'!D49 -> 0 | W51: =C51-S51 -> 0
A52: ='Dev Budget'!A50 -> Origination Fee | B52: ='Dev Budget'!B50 -> 0 | C52: ='Dev Budget'!C50 -> 0 | S52: 0 | T52: ='Dev Budget'!D50 -> 0 | W52: 0
A53: ='Dev Budget'!A51 -> Credit Enhancement/Application Fee | B53: ='Dev Budget'!B51 -> 0 | C53: ='Dev Budget'!C51 -> 0 | S53: 0 | T53: ='Dev Budget'!D51 -> 0 | W53: 0
A54: ='Dev Budget'!A52 -> Bond Premium | B54: ='Dev Budget'!B52 -> 0 | C54: ='Dev Budget'!C52 -> 0 | S54: 0 | T54: ='Dev Budget'!D52 -> 0 | W54: 0
A55: ='Dev Budget'!A53 -> Cost of Issuance | B55: ='Dev Budget'!B53 -> 0 | C55: ='Dev Budget'!C53 -> 0 | S55: 0 | T55: ='Dev Budget'!D53 -> 0 | W55: 0
A56: ='Dev Budget'!A54 -> Title & Recording | B56: ='Dev Budget'!B54 -> 0 | C56: ='Dev Budget'!C54 -> 0 | S56: 0 | T56: ='Dev Budget'!D54 -> 0 | W56: 0
A57: ='Dev Budget'!A55 -> Taxes | B57: ='Dev Budget'!B55 -> 0 | C57: ='Dev Budget'!C55 -> 0 | S57: 0 | T57: ='Dev Budget'!D55 -> 0 | W57: 0
A58: ='Dev Budget'!A56 -> Insurance | B58: ='Dev Budget'!B56 -> 0 | C58: ='Dev Budget'!C56 -> 0 | S58: 0 | T58: ='Dev Budget'!D56 -> 0 | W58: 0
A59: ='Dev Budget'!A57 -> Other: (Specify) | B59: ='Dev Budget'!B57 -> 0 | C59: ='Dev Budget'!C57 -> 0 | S59: 0 | T59: ='Dev Budget'!D57 -> 0 | W59: 0
A60: ='Dev Budget'!A58 -> Other: (Specify) | B60: ='Dev Budget'!B58 -> 0 | C60: ='Dev Budget'!C58 -> 0 | S60: 0 | T60: ='Dev Budget'!D58 -> 0 | W60: 0
A61: ='Dev Budget'!A59 -> Other: (Specify) | B61: ='Dev Budget'!B59 -> 0 | C61: ='Dev Budget'!C59 -> 0 | S61: 0 | T61: ='Dev Budget'!D59 -> 0 | W61: 0
A62: ='Dev Budget'!A60 -> Total Construction Interest & Fees | B62: ='Dev Budget'!B60 -> 0 | C62: ='Dev Budget'!C60 -> 0 | D62: =SUM(D51:D61) -> 0 | E62: =SUM(E51:E61) -> 0 | F62: 0 | G62: 0 | H62: 0 | I62: 0 | J62: 0 | K62: 0 | L62: 0 | M62: 0 | N62: 0 | O62: 0 | P62: 0 | Q62: 0 | R62: 0 | S62: =SUM(S51:S61) -> 0 | T62: =SUM(T51:T61) -> 0 | U62: =SUM(U51:U61) -> 0 | V62: =SUM(V51:V61) -> 0 | W62: 0
A63: ='Dev Budget'!A61 -> PERMANENT FINANCING
A64: ='Dev Budget'!A62 -> Loan Origination Fee | B64: ='Dev Budget'!B62 -> 0 | C64: ='Dev Budget'!C62 -> 0 | S64: =SUM(D64:R64) -> 0 | T64: ='Dev Budget'!D62 -> 0 | W64: =C64-S64 -> 0
A65: ='Dev Budget'!A63 -> Credit Enhancement/Application Fee | B65: ='Dev Budget'!B63 -> 0 | C65: ='Dev Budget'!C63 -> 0 | S65: 0 | T65: ='Dev Budget'!D63 -> 0 | W65: 0
A66: ='Dev Budget'!A64 -> Title & Recording | B66: ='Dev Budget'!B64 -> 0 | C66: ='Dev Budget'!C64 -> 0 | S66: 0 | T66: ='Dev Budget'!D64 -> 0 | W66: 0
A67: ='Dev Budget'!A65 -> Taxes | B67: ='Dev Budget'!B65 -> 0 | C67: ='Dev Budget'!C65 -> 0 | S67: 0 | T67: ='Dev Budget'!D65 -> 0 | W67: 0
A68: ='Dev Budget'!A66 -> Insurance | B68: ='Dev Budget'!B66 -> 0 | C68: ='Dev Budget'!C66 -> 0 | S68: 0 | T68: ='Dev Budget'!D66 -> 0 | W68: 0
A69: ='Dev Budget'!A67 -> Other: (Specify) | B69: ='Dev Budget'!B67 -> 0 | C69: ='Dev Budget'!C67 -> 0 | S69: 0 | T69: ='Dev Budget'!D67 -> 0 | W69: 0
A70: ='Dev Budget'!A68 -> Other: (Specify) | B70: ='Dev Budget'!B68 -> 0 | C70: ='Dev Budget'!C68 -> 0 | S70: 0 | T70: ='Dev Budget'!D68 -> 0 | W70: 0
A71: ='Dev Budget'!A69 -> Total Permanent Financing Costs | B71: ='Dev Budget'!B69 -> 0 | C71: ='Dev Budget'!C69 -> 0 | D71: =SUM(D64:D70) -> 0 | E71: =SUM(E64:E70) -> 0 | F71: 0 | G71: 0 | H71: 0 | I71: 0 | J71: 0 | K71: 0 | L71: 0 | M71: 0 | N71: 0 | O71: 0 | P71: 0 | Q71: 0 | R71: 0 | S71: =SUM(S64:S70) -> 0 | T71: 0 | U71: =SUM(U64:U70) -> 0 | V71: =SUM(V64:V70) -> 0 | W71: =SUM(W64:W70) -> 0
A72: ='Dev Budget'!A70 -> Subtotals Forward | B72: ='Dev Budget'!B70 -> 0 | C72: ='Dev Budget'!C70 -> 0 | D72: =SUM(D10+D13+D15+D16+D17+D30+D31+D44+D48+D49+D62+D71) -> 0 | E72: =SUM(E10+E13+E15+E16+E17+E30+E31+E44+E48+E49+E62+E71) -> 0 | F72: 0 | G72: 0 | H72: 0 | I72: 0 | J72: 0 | K72: 0 | L72: 0 | M72: 0 | N72: 0 | O72: 0 | P72: 0 | Q72: 0 | R72: 0 | S72: =SUM(S10+S13+S15+S16+S17+S30+S31+S44+S48+S49+S62+S71) -> 0 | T72: =SUM(T10+T13+T15+T16+T17+T30+T31+T44+T48+T49+T62+T71) -> 0 | U72: =SUM(U10+U13+U15+U16+U17+U30+U31+U44+U48+U49+U62+U71) -> 0 | V72: =SUM(V10+V13+V15+V16+V17+V30+V31+V44+V48+V49+V62+V71) -> 0 | W72: =SUM(W10+W13+W15+W16+W17+W30+W31+W44+W48+W49+W62+W71) -> 0
A73: ='Dev Budget'!A71 -> LEGAL FEES
A74: ='Dev Budget'!A72 -> Legal Paid by Applicant | B74: ='Dev Budget'!B72 -> 0 | C74: ='Dev Budget'!C72 -> 0 | S74: =SUM(D74:R74) -> 0 | T74: ='Dev Budget'!D72 -> 0 | W74: =C74-S74 -> 0
A75: ='Dev Budget'!A73 -> Other: (Specify) | B75: ='Dev Budget'!B73 -> 0 | C75: ='Dev Budget'!C73 -> 0 | S75: 0 | T75: ='Dev Budget'!D73 -> 0 | W75: 0
A76: ='Dev Budget'!A74 -> Total Attorney Costs | B76: ='Dev Budget'!B74 -> 0 | C76: ='Dev Budget'!C74 -> 0 | D76: =SUM(D73:D75) -> 0 | E76: =SUM(E73:E75) -> 0 | F76: 0 | G76: 0 | H76: 0 | I76: 0 | J76: 0 | K76: 0 | L76: 0 | M76: 0 | N76: 0 | O76: 0 | P76: 0 | Q76: 0 | R76: 0 | S76: =SUM(S73:S75) -> 0 | T76: =SUM(T73:T75) -> 0 | U76: =SUM(U73:U75) -> 0 | V76: =SUM(V73:V75) -> 0 | W76: 0
A77: ='Dev Budget'!A75 -> RESERVES
A78: ='Dev Budget'!A76 -> Operating Reserve | B78: ='Dev Budget'!B76 -> 0 | C78: ='Dev Budget'!C76 -> 0 | S78: =SUM(D78:R78) -> 0 | T78: ='Dev Budget'!D76 -> 0 | W78: =C78-S78 -> 0
A79: ='Dev Budget'!A77 -> Replacement Reserve | B79: ='Dev Budget'!B77 -> 0 | C79: ='Dev Budget'!C77 -> 0 | S79: 0 | T79: ='Dev Budget'!D77 -> 0 | W79: 0
A80: ='Dev Budget'!A78 -> Transition Reserve | B80: ='Dev Budget'!B78 -> 0 | C80: ='Dev Budget'!C78 -> 0 | S80: 0 | T80: ='Dev Budget'!D78 -> 0 | W80: 0
A81: ='Dev Budget'!A79 -> Rent Reserve | B81: ='Dev Budget'!B79 -> 0 | C81: ='Dev Budget'!C79 -> 0 | S81: 0 | T81: ='Dev Budget'!D79 -> 0 | W81: 0
A82: ='Dev Budget'!A80 -> Other: (specify) | B82: ='Dev Budget'!B80 -> 0 | C82: ='Dev Budget'!C80 -> 0 | S82: 0 | T82: ='Dev Budget'!D80 -> 0 | W82: 0
A83: ='Dev Budget'!A81 -> Other: (specify) | B83: ='Dev Budget'!B81 -> 0 | C83: ='Dev Budget'!C81 -> 0 | S83: 0 | T83: ='Dev Budget'!D81 -> 0 | W83: 0
A84: ='Dev Budget'!A82 -> Other: (Specify) | B84: ='Dev Budget'!B82 -> 0 | C84: ='Dev Budget'!C82 -> 0 | S84: 0 | T84: ='Dev Budget'!D82 -> 0 | W84: 0
A85: ='Dev Budget'!A83 -> Total Reserve Costs | B85: ='Dev Budget'!B83 -> 0 | C85: ='Dev Budget'!C83 -> 0 | D85: =SUM(D78:D84) -> 0 | E85: =SUM(E78:E84) -> 0 | F85: 0 | G85: 0 | H85: 0 | I85: 0 | J85: 0 | K85: 0 | L85: 0 | M85: 0 | N85: 0 | O85: 0 | P85: 0 | Q85: 0 | R85: 0 | S85: 0 | T85: 0 | U85: =SUM(U78:U84) -> 0 | V85: 0 | W85: 0
A86: ='Dev Budget'!A84 -> CONTINGENCY COSTS
A87: ='Dev Budget'!A85 -> Construction Hard Cost Contingency | B87: ='Dev Budget'!B85 -> 0 | C87: ='Dev Budget'!C85 -> 0 | S87: =SUM(D87:R87) -> 0 | T87: ='Dev Budget'!D85 -> 0 | W87: =C87-S87 -> 0
A88: ='Dev Budget'!A86 -> Soft Cost Contingency | B88: ='Dev Budget'!B86 -> 0 | C88: ='Dev Budget'!C86 -> 0 | S88: 0 | T88: ='Dev Budget'!D86 -> 0 | W88: 0
A89: ='Dev Budget'!A87 -> Total Contingency Costs | B89: ='Dev Budget'!B87 -> 0 | C89: ='Dev Budget'!C87 -> 0 | D89: =SUM(D87:D88) -> 0 | E89: 0 | F89: 0 | G89: 0 | H89: 0 | I89: 0 | J89: 0 | K89: 0 | L89: 0 | M89: 0 | N89: 0 | O89: 0 | P89: 0 | Q89: 0 | R89: 0 | S89: 0 | T89: 0 | U89: =SUM(U87:U88) -> 0 | V89: 0 | W89: 0
A90: ='Dev Budget'!A88 -> OTHER PROJECT COSTS
A91: ='Dev Budget'!A89 -> TCAC App/Allocation/Monitoring Fees | B91: ='Dev Budget'!B89 -> 0 | C91: ='Dev Budget'!C89 -> 0 | S91: =SUM(D91:R91) -> 0 | T91: ='Dev Budget'!D89 -> 0 | W91: =C91-S91 -> 0
A92: ='Dev Budget'!A90 -> Environmental Audit | B92: ='Dev Budget'!B90 -> 0 | C92: ='Dev Budget'!C90 -> 0 | S92: 0 | T92: ='Dev Budget'!D90 -> 0 | W92: 0
A93: ='Dev Budget'!A91 -> Local Development Impact Fees | B93: ='Dev Budget'!B91 -> 0 | C93: ='Dev Budget'!C91 -> 0 | S93: 0 | T93: ='Dev Budget'!D91 -> 0 | W93: 0
A94: ='Dev Budget'!A92 -> Permit Processing Fees | B94: ='Dev Budget'!B92 -> 0 | C94: ='Dev Budget'!C92 -> 0 | S94: 0 | T94: ='Dev Budget'!D92 -> 0 | W94: 0
A95: ='Dev Budget'!A93 -> Capital Fees | B95: ='Dev Budget'!B93 -> 0 | C95: ='Dev Budget'!C93 -> 0 | S95: 0 | T95: ='Dev Budget'!D93 -> 0 | W95: 0
A96: ='Dev Budget'!A94 -> Marketing | B96: ='Dev Budget'!B94 -> 0 | C96: ='Dev Budget'!C94 -> 0 | S96: 0 | T96: ='Dev Budget'!D94 -> 0 | W96: 0
A97: ='Dev Budget'!A95 -> Furnishings | B97: ='Dev Budget'!B95 -> 0 | C97: ='Dev Budget'!C95 -> 0 | S97: 0 | T97: ='Dev Budget'!D95 -> 0 | W97: 0
A98: ='Dev Budget'!A96 -> Market Study | B98: ='Dev Budget'!B96 -> 0 | C98: ='Dev Budget'!C96 -> 0 | S98: 0 | T98: ='Dev Budget'!D96 -> 0 | W98: 0
A99: ='Dev Budget'!A97 -> Accounting/Reimbursable | B99: ='Dev Budget'!B97 -> 0 | C99: ='Dev Budget'!C97 -> 0 | S99: 0 | T99: ='Dev Budget'!D97 -> 0 | W99: 0
A100: ='Dev Budget'!A98 -> Appraisal Costs | B100: ='Dev Budget'!B98 -> 0 | C100: ='Dev Budget'!C98 -> 0 | S100: 0 | T100: ='Dev Budget'!D98 -> 0 | W100: 0
A101: ='Dev Budget'!A99 -> Other: (Specify) | B101: ='Dev Budget'!B99 -> 0 | C101: ='Dev Budget'!C99 -> 0 | S101: 0 | T101: ='Dev Budget'!D99 -> 0 | W101: 0
A102: ='Dev Budget'!A100 -> Other: (Specify) | B102: ='Dev Budget'!B100 -> 0 | C102: ='Dev Budget'!C100 -> 0 | S102: 0 | T102: ='Dev Budget'!D100 -> 0 | W102: 0
A103: ='Dev Budget'!A101 -> Other: (Specify) | B103: ='Dev Budget'!B101 -> 0 | C103: ='Dev Budget'!C101 -> 0 | S103: 0 | T103: ='Dev Budget'!D101 -> 0 | W103: 0
A104: ='Dev Budget'!A102 -> Other: (Specify) | B104: ='Dev Budget'!B102 -> 0 | C104: ='Dev Budget'!C102 -> 0 | S104: 0 | T104: ='Dev Budget'!D102 -> 0 | W104: 0
A105: ='Dev Budget'!A103 -> Other: (Specify) | B105: ='Dev Budget'!B103 -> 0 | C105: ='Dev Budget'!C103 -> 0 | S105: 0 | T105: ='Dev Budget'!D103 -> 0 | W105: 0
A106: ='Dev Budget'!A104 -> Other: (Specify) | B106: ='Dev Budget'!B104 -> 0 | C106: ='Dev Budget'!C104 -> 0 | S106: 0 | T106: ='Dev Budget'!D104 -> 0 | W106: 0
A107: ='Dev Budget'!A105 -> Total Other Costs | B107: ='Dev Budget'!B105 -> 0 | C107: ='Dev Budget'!C105 -> 0 | D107: =SUM(D91:D106) -> 0 | E107: =SUM(E91:E106) -> 0 | F107: 0 | G107: 0 | H107: 0 | I107: 0 | J107: 0 | K107: 0 | L107: 0 | M107: 0 | N107: 0 | O107: 0 | P107: 0 | Q107: 0 | R107: 0 | S107: =SUM(S91:S106) -> 0 | T107: =SUM(T91:T106) -> 0 | U107: =SUM(U91:U106) -> 0 | V107: =SUM(V91:V106) -> 0 | W107: 0
A108: ='Dev Budget'!A106 -> SUBTOTAL PROJECT COST | B108: ='Dev Budget'!B106 -> 0 | C108: ='Dev Budget'!C106 -> 0 | D108: =SUM(D72+D76+D85+D89+D107) -> 0 | E108: =SUM(E72+E76+E85+E89+E107) -> 0 | F108: 0 | G108: 0 | H108: 0 | I108: 0 | J108: 0 | K108: 0 | L108: 0 | M108: 0 | N108: 0 | O108: 0 | P108: 0 | Q108: 0 | R108: 0 | S108: =SUM(S72+S76+S85+S89+S107) -> 0 | T108: =SUM(T72+T76+T85+T89+T107) -> 0 | U108: =SUM(U72+U76+U85+U89+U107) -> 0 | V108: =SUM(V72+V76+V85+V89+V107) -> 0 | W108: =SUM(W72+W76+W85+W89+W107) -> 0
A109: ='Dev Budget'!A107 -> DEVELOPER COSTS
A110: ='Dev Budget'!A108 -> Developer Overhead/Profit | B110: ='Dev Budget'!B108 -> 0 | C110: ='Dev Budget'!C108 -> 0 | S110: =SUM(D110:R110) -> 0 | T110: ='Dev Budget'!D108 -> 0 | W110: =C110-S110 -> 0
A111: ='Dev Budget'!A109 -> Consultant/Processing Agent | B111: ='Dev Budget'!B109 -> 0 | C111: ='Dev Budget'!C109 -> 0 | S111: 0 | T111: ='Dev Budget'!D109 -> 0 | W111: 0
A112: ='Dev Budget'!A110 -> Project Administration | B112: ='Dev Budget'!B110 -> 0 | C112: ='Dev Budget'!C110 -> 0 | S112: 0 | T112: ='Dev Budget'!D110 -> 0 | W112: 0
A113: ='Dev Budget'!A111 -> Broker Fees Paid to a Related Party | B113: ='Dev Budget'!B111 -> 0 | C113: ='Dev Budget'!C111 -> 0 | S113: 0 | T113: ='Dev Budget'!D111 -> 0 | W113: 0
A114: ='Dev Budget'!A112 -> Construction Oversight by Developer | B114: ='Dev Budget'!B112 -> 0 | C114: ='Dev Budget'!C112 -> 0 | S114: 0 | T114: ='Dev Budget'!D112 -> 0 | W114: 0
A115: ='Dev Budget'!A113 -> Other: (Specify) | B115: ='Dev Budget'!B113 -> 0 | C115: ='Dev Budget'!C113 -> 0 | S115: 0 | T115: ='Dev Budget'!D113 -> 0 | W115: 0
A116: ='Dev Budget'!A114 -> Total Developer Costs | B116: ='Dev Budget'!B114 -> 0 | C116: ='Dev Budget'!C114 -> 0 | D116: =SUM(D110:D115) -> 0 | E116: =SUM(E110:E115) -> 0 | F116: 0 | G116: 0 | H116: 0 | I116: 0 | J116: 0 | K116: 0 | L116: 0 | M116: 0 | N116: 0 | O116: 0 | P116: 0 | Q116: 0 | R116: 0 | S116: =SUM(S110:S115) -> 0 | T116: 0 | U116: =SUM(U110:U115) -> 0 | V116: 0 | W116: =SUM(W110:W115) -> 0
A117: ='Dev Budget'!A115 -> TOTAL PROJECT COST | B117: ='Dev Budget'!B115 -> 0 | C117: ='Dev Budget'!C115 -> 0 | D117: =SUM(D108+D116) -> 0 | E117: =SUM(E108+E116) -> 0 | F117: 0 | G117: 0 | H117: 0 | I117: 0 | J117: 0 | K117: 0 | L117: 0 | M117: 0 | N117: 0 | O117: 0 | P117: 0 | Q117: 0 | R117: 0 | S117: =SUM(S108+S116) -> 0 | T117: 0 | U117: =SUM(U108+U116) -> 0 | V117: 0 | W117: =SUM(W108+W116) -> 0

Sheet TBL and High Cost Test
A1: TCAC Threshold Basis Limit for HCD Developer Fee 2017 UMR §8312(c) & (b) and High Cost Test for HCD Limits on Development Costs 2017 UMR §8311(a) & (b) Complete all yellow shaded cells; see cell comments for tips | BA1: 12/27/19 | BB1: SRO & STUDIO 4% | BC1: 1 BEDROOM | BD1: 2 BEDROOMS | BE1: 3 BEDROOMS | BF1: 4+ BEDROOMS | BG1: SRO & STUDIO 9% | BH1: 1 BEDROOM | BI1: 2 BEDROOMS | BJ1: 3 BEDROOMS | BK1: 4+ BEDROOMS
A2: Project Name: | F2: =IF('General '!A45="","",'General '!A45) ->  | Z2: County: | AC2: =IF('General '!AI45="","",'General '!AI45) ->  | AI2: Project's Proposed Tax Credits: | BA2: Alameda | BB2: 353748 | BC2: 407868 | BD2: 492000 | BE2: 629760 | BF2: 701592 | BG2: 307732 | BH2: 354812 | BI2: 428000 | BJ2: 547840 | BK2: 610328
A3: Rep Name: | AK3: HCD Phase: | AO3: ='Dev Fee 2019'!C2 -> Origination | BA3: Alpine | BB3: 261141 | BC3: 301093 | BD3: 363200 | BE3: 464896 | BF3: 517923 | BG3: 230655 | BH3: 265943 | BI3: 320800 | BJ3: 410624 | BK3: 457461
A4: Unit Size | I4: =CONCATENATE(BA1," TCAC Threshold Basis Limits (TBL) ") -> 12/27/19 TCAC Threshold Basis Limits (TBL) | Y4: Number of Units | AO4: Basis x Number of Units | BA4: Amador | BB4: 261141 | BC4: 301093 | BD4: 363200 | BE4: 464896 | BF4: 517923 | BG4: 230655 | BH4: 265943 | BI4: 320800 | BJ4: 410624 | BK4: 457461
A5: SRO/Studio | I5: =IF(AC2="","",IF(AT2="9%",VLOOKUP(AC2,BA1:BK59,AY5),VLOOKUP(AC2,BA1:BK59,AX5))) ->  | Y5: ='Rents '!D19+'Rents '!D27+'Rents '!D35+'Rents '!D43+'Rents '!D51+'Rents '!D63+'Rents '!D71+'Rents '!D79+'Rents '!D87+'Rents '!D95+'Rents '!D103+SUMIF('Rents '!$C$112:$D$123,"0 Bdrm.",'Rents '!$D$112:$D$123) -> 0 | AO5: =IF(ISERROR((I5*Y5)),0,(I5*Y5)) -> 0 | AX5: 2 | AY5: 7 | BA5: Butte | BB5: 281848 | BC5: 324968 | BD5: 392000 | BE5: 501760 | BF5: 558992 | BG5: 238708 | BH5: 275228 | BI5: 332000 | BJ5: 424960 | BK5: 473432
A6: 1 Bedroom | I6: =IF(AC2="","",IF(AT2="9%",VLOOKUP(AC2,BA1:BK59,AY6),VLOOKUP(AC2,BA1:BK59,AX6))) ->  | Y6: ='Rents '!D20+'Rents '!D28+'Rents '!D36+'Rents '!D44+'Rents '!D52+'Rents '!D64+'Rents '!D72+'Rents '!D80+'Rents '!D88+'Rents '!D96+'Rents '!D104+SUMIF('Rents '!$C$112:$D$123,"1 Bdrm.",'Rents '!$D$112:$D$123) -> 0 | AO6: =IF(ISERROR((I6*Y6)),0,(I6*Y6)) -> 0 | AX6: =AX5+1 -> 3 | AY6: =AY5+1 -> 8 | BA6: Calaveras | BB6: 261141 | BC6: 301093 | BD6: 363200 | BE6: 464896 | BF6: 517923 | BG6: 230655 | BH6: 265943 | BI6: 320800 | BJ6: 410624 | BK6: 457461
A7: 2 Bedrooms | I7: =IF(AC2="","",IF(AT2="9%",VLOOKUP(AC2,BA1:BK59,AY7),VLOOKUP(AC2,BA1:BK59,AX7))) ->  | Y7: ='Rents '!D21+'Rents '!D29+'Rents '!D37+'Rents '!D45+'Rents '!D53+'Rents '!D65+'Rents '!D73+'Rents '!D81+'Rents '!D89+'Rents '!D97+'Rents '!D105+SUMIF('Rents '!$C$112:$D$123,"2 Bdrm.",'Rents '!$D$112:$D$123) -> 0 | AO7: =IF(ISERROR((I7*Y7)),0,(I7*Y7)) -> 0 | AX7: =AX6+1 -> 4 | AY7: =AY6+1 -> 9 | BA7: Colusa | BB7: 261141 | BC7: 301093 | BD7: 363200 | BE7: 464896 | BF7: 517923 | BG7: 230655 | BH7: 265943 | BI7: 320800 | BJ7: 410624 | BK7: 457461
A8: 3 Bedrooms | I8: =IF(AC2="","",IF(AT2="9%",VLOOKUP(AC2,BA1:BK59,AY8),VLOOKUP(AC2,BA1:BK59,AX8))) ->  | Y8: ='Rents '!D22+'Rents '!D30+'Rents '!D38+'Rents '!D46+'Rents '!D54+'Rents '!D66+'Rents '!D74+'Rents '!D82+'Rents '!D90+'Rents '!D98+'Rents '!D106+SUMIF('Rents '!$C$112:$D$123,"3 Bdrm.",'Rents '!$D$112:$D$123) -> 0 | AO8: =IF(ISERROR((I8*Y8)),0,(I8*Y8)) -> 0 | AX8: 5 | AY8: =AY7+1 -> 10 | BA8: Contra Costa | BB8: 337642 | BC8: 389298 | BD8: 469600 | BE8: 601088 | BF8: 669650 | BG8: 292202 | BH8: 336906 | BI8: 406400 | BJ8: 520192 | BK8: 579526
A9: 4+ Bedrooms | I9: =IF(AC2="","",IF(AT2="9%",VLOOKUP(AC2,BA1:BK59,AY9),VLOOKUP(AC2,BA1:BK59,AX9))) ->  | Y9: ='Rents '!D23+'Rents '!D31+'Rents '!D39+'Rents '!D47+'Rents '!D55+'Rents '!D67+'Rents '!D75+'Rents '!D83+'Rents '!D91+'Rents '!D99+'Rents '!D107+SUMIF('Rents '!$C$112:$D$123,"4 Bdrm.",'Rents '!$D$112:$D$123)+'Rents '!D24+'Rents '!D32+'Rents '!D40+'Rents '!D48+'Rents '!D56+'Rents '!D68+'Rents '!D76+'Rents '!D84+'Rents '!D92+'Rents '!D100+'Rents '!D108+SUMIF('Rents '!$C$112:$D$123,"5 Bdrm.",'Rents '!$D$112:$D$123) -> 0 | AO9: =IF(ISERROR((I9*Y9)),0,(I9*Y9)) -> 0 | AX9: 6 | AY9: =AY8+1 -> 11 | BA9: Del Norte | BB9: 261141 | BC9: 301093 | BD9: 363200 | BE9: 464896 | BF9: 517923 | BG9: 230655 | BH9: 265943 | BI9: 320800 | BJ9: 410624 | BK9: 457461
A10: Number of Manager Units in Project: | T10: TOTAL UNITS: | Y10: =SUM(Y5:Y9) -> 0 | BA10: El Dorado | BB10: 261141 | BC10: 301093 | BD10: 363200 | BE10: 464896 | BF10: 517923 | BG10: 230655 | BH10: 265943 | BI10: 320800 | BJ10: 410624 | BK10: 457461
A11: TOTAL UNADJUSTED THRESHOLD BASIS LIMIT (TBL): | AO11: =SUM(AO5:AO9) -> 0 | BA11: Fresno | BB11: 261141 | BC11: 301093 | BD11: 363200 | BE11: 464896 | BF11: 517923 | BG11: 230655 | BH11: 265943 | BI11: 320800 | BJ11: 410624 | BK11: 457461
A12: TBL ADJUSTMENTS §10327(c)(5)(A-F): | AL12: Yes/No | BA12: Glenn | BB12: 261141 | BC12: 301093 | BD12: 363200 | BE12: 464896 | BF12: 517923 | BG12: 230655 | BH12: 265943 | BI12: 320800 | BJ12: 410624 | BK12: 457461
A13: (a) | B13: Project paid in whole or part out of public funds subject to a legal requirement for the payment of state or federal prevailing wages or financed in part by a labor-affiliated organization requiring the employment of construction workers who are paid at least state or federal prevailing wages. (20%) | AO13: =ROUND(IF(AL13="yes",AO11*0.2,0),0) -> 0 | BA13: Humboldt | BB13: 261141 | BC13: 301093 | BD13: 363200 | BE13: 464896 | BF13: 517923 | BG13: 230655 | BH13: 265943 | BI13: 320800 | BJ13: 410624 | BK13: 457461
BA14: Imperial | BB14: 261141 | BC14: 301093 | BD14: 363200 | BE14: 464896 | BF14: 517923 | BG14: 230655 | BH14: 265943 | BI14: 320800 | BJ14: 410624 | BK14: 457461
B15: Project certifies that (1) they are subject to a Project labor agreement within the meaning of §2500(b)(1) of the Public Contract Code, or (2) they will use a skilled and trained workforce as defined by §25536.7 of the Health and Safety Code to perform all onsite work within an apprenticeable occupation in the building and construction trades. (5%) | AO15: =ROUND(IF(AL15="yes",AO11*0.05,0),0) -> 0 | BA15: Inyo | BB15: 261141 | BC15: 301093 | BD15: 363200 | BE15: 464896 | BF15: 517923 | BG15: 230655 | BH15: 265943 | BI15: 320800 | BJ15: 410624 | BK15: 457461
BA16: Kern | BB16: 261141 | BC16: 301093 | BD16: 363200 | BE16: 464896 | BF16: 517923 | BG16: 230655 | BH16: 265943 | BI16: 320800 | BJ16: 410624 | BK16: 457461
A17: (b) | B17: New construction Project required to provide parking beneath residential units (not "tuck under" parking) or through construction of an on-site parking structure of two or more levels. (7%) | AO17: =ROUND(IF(AL17="yes",AO11*0.07,0),0) -> 0 | BA17: Kings | BB17: 261141 | BC17: 301093 | BD17: 363200 | BE17: 464896 | BF17: 517923 | BG17: 230655 | BH17: 265943 | BI17: 320800 | BJ17: 410624 | BK17: 457461
BA18: Lake | BB18: 261141 | BC18: 301093 | BD18: 363200 | BE18: 464896 | BF18: 517923 | BG18: 230655 | BH18: 265943 | BI18: 320800 | BJ18: 410624 | BK18: 457461
A19: (c) | B19: Project where a day care center is part of the development. (2%) | AO19: =ROUND(IF(AL19="yes",AO11*0.02,0),0) -> 0 | BA19: Lassen | BB19: 261141 | BC19: 301093 | BD19: 363200 | BE19: 464896 | BF19: 517923 | BG19: 230655 | BH19: 265943 | BI19: 320800 | BJ19: 410624 | BK19: 457461
A20: (d) | B20: Project where 100 percent of the units are for Special Needs populations. (2%) | AO20: =ROUND(IF(AL20="yes",AO11*0.02,0),0) -> 0 | BA20: Los Angeles | BB20: 293352 | BC20: 338232 | BD20: 408000 | BE20: 522240 | BF20: 581808 | BG20: 254238 | BH20: 293134 | BI20: 353600 | BJ20: 452608 | BK20: 504234
A21: (e) | B21: Project where at least 95% of the Project's upper floor units are serviced by an elevator. (10%) | AO21: =ROUND(IF(AL21="yes",(AO11*0.1),0),0) -> 0 | BA21: Madera | BB21: 261141 | BC21: 301093 | BD21: 363200 | BE21: 464896 | BF21: 517923 | BG21: 230655 | BH21: 265943 | BI21: 320800 | BJ21: 410624 | BK21: 457461
BA22: Marin | BB22: 293352 | BC22: 338232 | BD22: 408000 | BE22: 522240 | BF22: 581808 | BG22: 253663 | BH22: 292471 | BI22: 352800 | BJ22: 451584 | BK22: 503093
A23: (f) | B23: Project applying under §10325 or §10326 of these regulations that include one or more of the features below. (up to 10%) | AO23: =IF(SUM(AL25:AL42)>0.005,MIN(0.1,SUM(AL25:AL42))*AO11,0) -> 0 | BA23: Mariposa | BB23: 261141 | BC23: 301093 | BD23: 363200 | BE23: 464896 | BF23: 517923 | BG23: 230655 | BH23: 265943 | BI23: 320800 | BJ23: 410624 | BK23: 457461
BA24: Mendocino | BB24: 261141 | BC24: 301093 | BD24: 363200 | BE24: 464896 | BF24: 517923 | BG24: 230655 | BH24: 265943 | BI24: 320800 | BJ24: 410624 | BK24: 457461
A25: Proposed energy efficiency/resource conservation/indoor air quality items | B25: (1) Project shall have onsite renewable generation estimated to produce 50% or more of annual tenant electricity use. If the combined available roof area of the Project structures, including carports, is insufficient for provision of 50% of annual electricity use, then the Project shall have onsite renewable generation based on at least 90% of the available solar accessible roof area. Available solar accessible area is defined as roof area less north facing roof area for sloped roofs, equipment, solar thermal hot water and required local or state fire department set-backs and access routes. A Project not availing itself of the 90% roof area exception may also receive an increase under paragraph (2) only if the renewable generation used to calculate each basis increase does not overlap. (5%) | BA25: Merced | BB25: 261141 | BC25: 301093 | BD25: 363200 | BE25: 464896 | BF25: 517923 | BG25: 230655 | BH25: 265943 | BI25: 320800 | BJ25: 410624 | BK25: 457461
AL26: =IF(AL25="Yes",0.05,0) -> 0 | BA26: Modoc | BB26: 261141 | BC26: 301093 | BD26: 363200 | BE26: 464896 | BF26: 517923 | BG26: 230655 | BH26: 265943 | BI26: 320800 | BJ26: 410624 | BK26: 457461
B27: (2) Project shall have onsite renewable generation estimated to produce 75% or more of annual common area electricity use. If the combined available roof area of the Project structures, including carports, is insufficient for provision of 75% of annual electricity use, then the Project shall have onsite renewable generation based on at least 90% of the available solar accessible roof area. Available solar accessible area is defined as roof area less north facing roof area for sloped roofs, equipment, solar thermal hot water and required local or state fire department set-backs and access routes. A Project not availing itself of the 90% roof area exception may also receive an increase under paragraph (1) only if the renewable generation used to calculate each basis increase does not overlap. (2%) | BA27: Mono | BB27: 261141 | BC27: 301093 | BD27: 363200 | BE27: 464896 | BF27: 517923 | BG27: 230655 | BH27: 265943 | BI27: 320800 | BJ27: 410624 | BK27: 457461
AL28: =IF(AL27="Yes",0.02,0) -> 0 | BA28: Monterey | BB28: 285299 | BC28: 328947 | BD28: 396800 | BE28: 507904 | BF28: 565837 | BG28: 255964 | BH28: 295124 | BI28: 356000 | BJ28: 455680 | BK28: 507656
B29: (3) Newly constructed Project buildings shall be 15% or more energy efficient than the 2016 Energy Efficiency Standards (California Code of Regulations, Part 6 of Title 24), except that if the local building department has determined that building permit applications submitted on or before December 31, 2016 are complete, then newly constructed Project buildings shall be fifteen percent (15%) or more energy efficient than the 2013 Energy Efficiency Standards (California Code of Regulations, Part 6 of Title 24). (4%) | BA29: Napa | BB29: 293352 | BC29: 338232 | BD29: 408000 | BE29: 522240 | BF29: 581808 | BG29: 253663 | BH29: 292471 | BI29: 352800 | BJ29: 451584 | BK29: 503093
AL30: =IF(AL29="Yes",0.04,0) -> 0 | BA30: Nevada | BB30: 261141 | BC30: 301093 | BD30: 363200 | BE30: 464896 | BF30: 517923 | BG30: 230655 | BH30: 265943 | BI30: 320800 | BJ30: 410624 | BK30: 457461
B31: (4) Rehab Project buildings shall have 80% decrease in estimated TDV energy use (or improvement in energy efficiency) post rehab as demonstrated using the appropriate performance module of CEC approved software. (4%) | BA31: Orange | BB31: 261141 | BC31: 301093 | BD31: 363200 | BE31: 464896 | BF31: 517923 | BG31: 230655 | BH31: 265943 | BI31: 320800 | BJ31: 410624 | BK31: 457461
AL32: =IF(AL31="Yes",0.04,0) -> 0 | BA32: Placer | BB32: 261141 | BC32: 301093 | BD32: 363200 | BE32: 464896 | BF32: 517923 | BG32: 230655 | BH32: 265943 | BI32: 320800 | BJ32: 410624 | BK32: 457461
B33: (5) Irrigate only with reclaimed water, greywater, or rainwater (excepting water used for Community Gardens) or irrigate with reclaimed water, grey water, or rainwater in an amount that annually equals or exceeds 20,000 gallons or 300 gallons per unit, whichever is less. (1%) | BA33: Plumas | BB33: 261141 | BC33: 301093 | BD33: 363200 | BE33: 464896 | BF33: 517923 | BG33: 230655 | BH33: 265943 | BI33: 320800 | BJ33: 410624 | BK33: 457461
AL34: =IF(AL33="Yes",0.02,0) -> 0 | BA34: Riverside | BB34: 261141 | BC34: 301093 | BD34: 363200 | BE34: 464896 | BF34: 517923 | BG34: 230655 | BH34: 265943 | BI34: 320800 | BJ34: 410624 | BK34: 457461
B35: (6) Community Gardens of at least 60 square feet per unit. Permanent site improvements that provide a viable growing space within the Project including solar access, fencing, watering systems, secure storage space for tools, and pedestrian access. (1%) | BA35: Sacramento | BB35: 261141 | BC35: 301093 | BD35: 363200 | BE35: 464896 | BF35: 517923 | BG35: 230655 | BH35: 265943 | BI35: 320800 | BJ35: 410624 | BK35: 457461
AL36: =IF(AL35="Yes",0.01,0) -> 0 | BA36: San Benito | BB36: 261141 | BC36: 301093 | BD36: 363200 | BE36: 464896 | BF36: 517923 | BG36: 230655 | BH36: 265943 | BI36: 320800 | BJ36: 410624 | BK36: 457461
B37: (7) Install bamboo, cork, salvaged or FSC-Certified wood, natural linoleum, natural rubber, or ceramic tile in all kitchens, living rooms, and bathrooms (where no VOC adhesives or backing is also used). (1%) | BA37: San Bernardino | BB37: 261141 | BC37: 301093 | BD37: 363200 | BE37: 464896 | BF37: 517923 | BG37: 230655 | BH37: 265943 | BI37: 320800 | BJ37: 410624 | BK37: 457461
AL38: =IF(AL37="Yes",0.01,0) -> 0 | BA38: San Diego | BB38: 255964 | BC38: 295124 | BD38: 356000 | BE38: 455680 | BF38: 507656 | BG38: 230655 | BH38: 265943 | BI38: 320800 | BJ38: 410624 | BK38: 457461
B39: (8) Install bamboo, stained concrete, cork, salvaged or FSC-Certified wood, ceramic tile, or natural linoleum in all common areas. (2%) | BA39: San Francisco | BB39: 440603 | BC39: 508011 | BD39: 612800 | BE39: 784384 | BF39: 873853 | BG39: 390561 | BH39: 450313 | BI39: 543200 | BJ39: 695296 | BK39: 774603
AL40: =IF(AL39="Yes",0.02,0) -> 0 | BA40: San Joaquin | BB40: 261141 | BC40: 301093 | BD40: 363200 | BE40: 464896 | BF40: 517923 | BG40: 230655 | BH40: 265943 | BI40: 320800 | BJ40: 410624 | BK40: 457461
B41: (9) Meet all requirements of the U.S. Environmental Protection Agency Indoor Air Plus Program. (2%) | BA41: San Luis Obispo | BB41: 261141 | BC41: 301093 | BD41: 363200 | BE41: 464896 | BF41: 517923 | BG41: 230655 | BH41: 265943 | BI41: 320800 | BJ41: 410624 | BK41: 457461
AL42: =IF(AL41="Yes",0.02,0) -> 0 | BA42: San Mateo | BB42: 341669 | BC42: 393941 | BD42: 475200 | BE42: 608256 | BF42: 677635 | BG42: 289326 | BH42: 333590 | BI42: 402400 | BJ42: 515072 | BK42: 573822
A43: (g) | B43: Project requires seismic upgrading of existing structures, and/or requires toxic or other environmental mitigation as certified by the Project architect/ engineer. (lesser of costs or 15% basis adjustment) | AO43: =IF(AL43="Yes",MIN(AG45,AO11*0.15),0) -> 0 | BA43: Santa Barbara | BB43: 259415 | BC43: 299103 | BD43: 360800 | BE43: 461824 | BF43: 514501 | BG43: 231806 | BH43: 267270 | BI43: 322400 | BJ43: 412672 | BK43: 459742
AL44: =IF(AL43="yes","Please Select Type of Work and Enter Cost:",0) -> 0 | BA44: Santa Clara | BB44: 319811 | BC44: 368739 | BD44: 444800 | BE44: 569344 | BF44: 634285 | BG44: 267468 | BH44: 308388 | BI44: 372000 | BJ44: 476160 | BK44: 530472
B45: If Yes, select type of work: | U45: Enter Certified Costs of Work: | AG45: 0 | BA45: Santa Cruz | BB45: 261141 | BC45: 301093 | BD45: 363200 | BE45: 464896 | BF45: 517923 | BG45: 230655 | BH45: 265943 | BI45: 320800 | BJ45: 410624 | BK45: 457461
A46: (h) | B46: Local development impact fees required to be paid to local government entities. Certification from local entities assessing fees also required. WAIVED IMPACT FEES ARE INELIGIBLE. | AO46: 0 | BA46: Shasta | BB46: 281848 | BC46: 324968 | BD46: 392000 | BE46: 501760 | BF46: 558992 | BG46: 238708 | BH46: 275228 | BI46: 332000 | BJ46: 424960 | BK46: 473432
AL47: =IF(AL46="yes","Please Enter Amount Above:",0) -> 0 | BA47: Sierra | BB47: 261141 | BC47: 301093 | BD47: 363200 | BE47: 464896 | BF47: 517923 | BG47: 230655 | BH47: 265943 | BI47: 320800 | BJ47: 410624 | BK47: 457461
A48: (i) | B48: Projects within a county with an unadjusted 9% threshold basis limit for a 2-bedroom unit equal or less than $400,000 and within a census tract designated on the TCAC/HCD Opportunity Map as Highest or High Resource. (10%) | AL48: =IF(AND(F50="Yes",OR(AB50="Highest Resource",AB50="High Resource")),"Yes","No") -> No | AO48: =ROUND(IF(AND(F50="Yes",OR(AB50="High Resource",AB50="Highest Resource"),AL48="Yes"),AO11*0.1,0),0) -> 0 | BA48: Siskiyou | BB48: 261141 | BC48: 301093 | BD48: 363200 | BE48: 464896 | BF48: 517923 | BG48: 230655 | BH48: 265943 | BI48: 320800 | BJ48: 410624 | BK48: 457461
AL49: =IF(F50="Yes","In yellow cells, enter Tract ID # and TCAC/HCD Opportunity Map Resource level","") ->  | BA49: Solano | BB49: 293352 | BC49: 338232 | BD49: 408000 | BE49: 522240 | BF49: 581808 | BG49: 253663 | BH49: 292471 | BI49: 352800 | BJ49: 451584 | BK49: 503093
B50: County eligibility: | F50: =IFERROR(IF(VLOOKUP(AC2,BA1:BK59,AY7,FALSE)<=400000,"Yes","No"),"") ->  | H50: TCAC/HCD Opportunity Area Map Tract ID #: | V50: Opportunity Map Resource level: | BA50: Sonoma | BB50: 312334 | BC50: 360118 | BD50: 434400 | BE50: 556032 | BF50: 619454 | BG50: 268043 | BH50: 309051 | BI50: 372800 | BJ50: 477184 | BK50: 531613
A51: TOTAL HCD ADJ. THRESHOLD BASIS LIMIT: | AO51: =AO13+AO15+AO17+AO19+AO20+AO21+AO11+AO23+AO43+AO46+AO48 -> 0 | BA51: Stanislaus | BB51: 261141 | BC51: 301093 | BD51: 363200 | BE51: 464896 | BF51: 517923 | BG51: 230655 | BH51: 265943 | BI51: 320800 | BJ51: 410624 | BK51: 457461
A52: =IF(AO3="Perm Close","Adjusted Threshold Basis Limit multiplied by 170%:","Adjusted Threshold Basis Limit multiplied by 160%:") -> Adjusted Threshold Basis Limit multiplied by 160%: | AO52: =IF(AO3="Perm Close",AO51*1.7,AO51*1.6) -> 0 | BA52: Sutter | BB52: 261141 | BC52: 301093 | BD52: 363200 | BE52: 464896 | BF52: 517923 | BG52: 230655 | BH52: 265943 | BI52: 320800 | BJ52: 410624 | BK52: 457461
A53: =IF(G2="",CONCATENATE("HCD HIGH COST TEST RESULT: ",G2),CONCATENATE("HCD HIGH COST TEST RESULT FOR: ",G2)) -> HCD HIGH COST TEST RESULT: | AE53: =IF(AO51=0,0,AE54/AO51) -> 0 | BA53: Tehama | BB53: 261141 | BC53: 301093 | BD53: 363200 | BE53: 464896 | BF53: 517923 | BG53: 230655 | BH53: 265943 | BI53: 320800 | BJ53: 410624 | BK53: 457461
A54: (j) | B54: Total Eligible Basis (Dev Budget F117) | AE54: ='Dev Budget'!F117 -> 0 | AL54: =IF(AE54=0,"",IF(AE54<=AO52,"Costs Reasonable",IF(AO3="Perm Close","Costs too high > 170%","Costs too high > 160%"))) ->  | BA54: Trinity | BB54: 261141 | BC54: 301093 | BD54: 363200 | BE54: 464896 | BF54: 517923 | BG54: 230655 | BH54: 265943 | BI54: 320800 | BJ54: 410624 | BK54: 457461
BA55: Tulare | BB55: 261141 | BC55: 301093 | BD55: 363200 | BE55: 464896 | BF55: 517923 | BG55: 230655 | BH55: 265943 | BI55: 320800 | BJ55: 410624 | BK55: 457461
BA56: Tuolumne | BB56: 261141 | BC56: 301093 | BD56: 363200 | BE56: 464896 | BF56: 517923 | BG56: 230655 | BH56: 265943 | BI56: 320800 | BJ56: 410624 | BK56: 457461
BA57: Ventura | BB57: 261141 | BC57: 301093 | BD57: 363200 | BE57: 464896 | BF57: 517923 | BG57: 230655 | BH57: 265943 | BI57: 320800 | BJ57: 410624 | BK57: 457461
BA58: Yolo | BB58: 263442 | BC58: 303746 | BD58: 366400 | BE58: 468992 | BF58: 522486 | BG58: 234682 | BH58: 270586 | BI58: 326400 | BJ58: 417792 | BK58: 465446
BA59: Yuba | BB59: 261141 | BC59: 301093 | BD59: 363200 | BE59: 464896 | BF59: 517923 | BG59: 230655 | BH59: 265943 | BI59: 320800 | BJ59: 410624 | BK59: 457461

Sheet Dev Fee 2019
A1: HCD 2019 Developer Fee Calculator - revised 2/4/20 (complete YELLOW shaded cells) Projects that apply in 2019 or later for the Multifamily Housing Program (MHP), Veterans Housing and Homelessness Prevention (VHHP), No Place Like Home (NPLH), and Serna Farmworker Housing Grant Programs must use this 'Dev Fee 2019' calculator.
A2: Project Phase: | C2: Origination | D2: Proposed Project Type: | G2: TCAC Project #:
A3: Project Name: | C3: =IF('General '!A45="","",'General '!A45) ->  | F3: HCD Contract #s:
A4: Project's Developer Fee Summary (SEE INSTRUCTIONS ABOVE) | G4: HCD Limit | H4: Project Amt.
B5: =IF(LEFT(F2,1)="9","Max Total Developer Fee - 1h","Max Total Developer Fee - 2d") -> Max Total Developer Fee - 2d | G5: =IF(F2="No Tax Credits",H55,IF(LEFT(F2,1)="9",I22,H34)) -> 0 | H5: =F9 -> 0 | I5: =MAX(0,ROUND(H5,0)-ROUND(G5,0)) -> 0
B6: =IF(LEFT(F2,1)="9","Max Developer Fee payable from development funding sources - 1h","Max Developer Fee payable from development funding sources - lesser of 1h & 2d") -> Max Developer Fee payable from development funding sources - lesser of 1h & 2d | G6: =IF(F2="No Tax Credits",G5,IF(LEFT(F2,1)="9",I22,MIN(G5,I22))) -> 0 | H6: =MAX(0,H5-F10-I10) -> 0 | I6: =MAX(0,ROUND(H6,0)-ROUND(G6,0)) -> 0
B7: Deferred Developer Fee payable on a priority basis from available Cash Flow | G7: =MAX(0,MIN(G5,3500000)-G6) -> 0 | H7: =MAX(0,MIN(G5,H5-F10,3500000)-H6) -> 0
B8: Deferred Developer Fee payable exclusively from Sponsor Distributions - 2h | G8: =G5-G6-G7 -> 0 | H8: =MAX(0,H5-H6-H7-F10) -> 0
A9: Total Budgeted or Actual Developer Fee | F9: ='Dev Budget'!B114 -> 0
A10: Developer Fee Contributed as Capital | F10: 0 | G10: Deferred Developer Fee | I10: 0
A12: =IF(F2="","Section 1. UMR §8312(c)(1) - for all 4% Projects (project costs per TCAC 9% rules)",IF(LEFT(F2,1)="4","Section 1. UMR §8312(c)(1) - for all 4% Projects (project costs per TCAC 9% rules)","Section 1. UMR §8312(b) - for all 9% Projects")) -> Section 1. UMR §8312(c)(1) - for all 4% Projects (project costs per TCAC 9% rules)
A13: a. | B13: Project's type of construction: | D13: =IF(F2="No Tax Credits","",MID(F2,12,26)) ->  | F13: Number of Affordable Tax Credit Units | G13: 0 | I13: =IF(D13="New Construction",2200000,2000000) -> 2000000
A14: b. | B14: Project's Eligible Basis (exclude Developer Fee) | G14: ='Dev Budget'!E106+'Dev Budget'!F106 -> 0 | H14: x 15% = | I14: =G14*0.15 -> 0
A15: c. | B15: Basis for Non-Residential Costs (Commercial - exclude Developer Fee) | G15: ='Dev Budget'!D106 -> 0 | H15: x 15% = | I15: =G15*0.15 -> 0
A16: d. | B16: =IF(D13="New Construction","Base limit: amount that could be included in project costs under 9% rules - lesser of 1a or (1b + 1c.):","Max developer fee that could be included in project costs under 9% rules - lesser of 1a or (1b + 1c):") -> Max developer fee that could be included in project costs under 9% rules - lesser of 1a or (1b + 1c): | I16: =MIN(I13,I14+I15) -> 0
A17: High Cost Test Adjustment - New Construction only §10327(c)(2)(A)
A18: e. | B18: Total Adjusted Threshold Basis Limit - §10327(c)(5) | I18: ='TBL and High Cost Test'!AO51 -> 0 | J18: =IF(F2<>"4% Credits New Construction",0,2500000+IF(G13<101,0,(G13-100)*10000)) -> 0
A19: f1. | B19: Total Eligible Basis - §10327(c)(2)(A) | D19: ='Dev Budget'!F117 -> 0 | E19: =IF(LEFT(F2,1)="9","","4% Eligible Basis reduced to reflect exclusion of DF in excess of TCAC cash out threshold §10317(i)(6)") -> 4% Eligible Basis reduced to reflect exclusion of DF in excess of TCAC cash out threshold §10317(i)(6) | H19: =IF(LEFT(F2,1)="9","","f1 - f2 + f3") -> f1 - f2 + f3 | I19: =IF(LEFT(F2,1)="9",D19,D19-D20+H20) -> 0
A20: f2. | B20: =IF(F2="9% Credits New Construction","","Developer Fee in Eligible Basis") -> Developer Fee in Eligible Basis | D20: ='Dev Budget'!E114+'Dev Budget'!F114 -> 0 | E20: f3. Amount of DF in EB inc. in high cost test using 4% rules based on $2.5M + $10,000 per affordable unit above 100 | H20: =MIN(D20,J18) -> 0
A21: g1. | B21: High Cost Test Factor | D21: =IFERROR(I19/I18,0) -> 0 | E21: =200%-D21 -> 2 | G21: ="g2. ("&TEXT(ROUND(E21,5),"###.##0%")&" + "&"100%)"&" / 2" -> g2. (200.0% + 100%) / 2 | I21: =AVERAGE(200%-D21,100%) -> 1.5
A22: h. | B22: =IF(LEFT(F2,1)="9","Maximum Total Developer Fee - UMR §8312(b)","Maximum Developer Fee payable from development funding sources - UMR §8312(c)(1)") -> Maximum Developer Fee payable from development funding sources - UMR §8312(c)(1) | I22: =IF(D13="New Construction",ROUND(I21*I16,0),I16) -> 0
A24: Section 2. UMR §8312(c)(2) - Maximum Developer Fee allowed in Eligible Basis under TCAC 4% rules
B25: Max Developer Fee allowed in Eligible Basis under TCAC 4% rules
A26: a. | B26: =IF(OR(F2="",F2="4% Credits New Construction",F2="4% Credits Rehabilitation"),"New Construction & Rehab - Unadjusted Eligible Basis (exclude Developer Fee) - §10327(c)(2)(B)(i)","Not Applicable") -> New Construction & Rehab - Unadjusted Eligible Basis (exclude Developer Fee) - §10327(c)(2)(B)(i) | G26: ='Dev Budget'!E106 -> 0 | H26: x 15% = | I26: =G26*0.15 -> 0
A27: b. | B27: =IF(OR(C2="",D13="Acq. Rehabilitation",D13="Adaptive Reuse"),"Acq/Rehab - Unadjusted Eligible Const. Related Basis (exclude Developer Fee) - §10327(c)(2)(B)(ii)","Not Applicable") -> Not Applicable | G27: ='Dev Budget'!E106 -> 0 | H27: x 15% = | I27: =G27*0.15 -> 0
A28: c1. | B28: =IF(OR(C2="",D13="Acq. Rehabilitation",D13="Adaptive Reuse"),"Acq/Rehab - at-risk development meeting the requirements of §10325(g)(4)? - §10327(c)(2)(B)(ii)","Not Applicable") -> Not Applicable
A29: c2. | B29: =IF(AND(C2<>"",D13<>"Acq. Rehabilitation"),"Not Applicable","Acq/Rehab - rehabilitation hard construction costs per unit at least $25,000 per unit? - §10327(c)(2)(B)(ii)") -> Not Applicable
A30: c3. | B30: =IF(OR(C2="",D13="Acq. Rehabilitation",D13="Adaptive Reuse"),"Acq/Rehab-30% or more of units restricted to incomes and rents of 50% AMI or less? - §10327(c)(2)(B)(ii)","Not Applicable") -> Not Applicable
A31: c4. | B31: =IF(OR(C2="",D13="Acq. Rehabilitation",D13="Adaptive Reuse"),"Acq/Rehab - Unadj. Eligible Acq. Basis - §10327(c)(2)(B)(ii) = 15% if c1, c2 or c3 is Yes","Not Applicable") -> Not Applicable | G31: ='Dev Budget'!F106 -> 0 | H31: =IF(OR(H28="Yes",H29="Yes",H30="Yes"),0.15,0.05) -> 0.05 | I31: =G31*H31 -> 0
A32: d. | B32: Maximum Developer Fee in Eligible Basis under 4% rules §8312(c) | I32: =IF(OR(D13="New Construction",D13="Rehabilitation"),I26,I27+I31) -> 0
B33: Max Developer Fee per §8312(c)
A34: e. | B34: Total Developer Fee Limit including deferred fee - Eligible Basis under 4% rules total UMR §8312(c) (2d) | H34: =ROUND(I32,0) -> 0
A35: =IF(F2="9% Credits","o.","h.") -> h. | B35: Total Budgeted or Actual Developer Fee | H35: ='Dev Budget'!B114 -> 0 | I35: =IF(ROUND(H35,0)>ROUND(H34,0),"Excess Dev Fee"&TEXT(H35-H34," $#,###"),"") -> 
A36: i. | B36: Budgeted Developer Fee paid from Development Sources | F36: Sum of Deferred and Contributed Developer Fee | G36: =F10+I10 -> 0 | H36: =H35-G36 -> 0 | I36: =IF(H36>I22,"Cannot exceed"&TEXT(MIN(I22,H34)," $#,###"),"") -> 
A37: j. | B37: Deferred Developer Fee payable on a priority basis from available Cash Flow - UMR §8312(c)(2) | H37: =MAX(0,MIN(H34,H35,3500000)-MIN(I22,H34)) -> 0
A39: Section 3. UMR §8312(a) Instructions: Complete the yellow, shaded cells - choose only one in the 'A', 'B' or 'C' sections.
A40: a. New construction and substantial rehab projects UMR §8312(a)(1)
A41: a1. | B41: Number of units (include manager's unit) | F41: 0
A42: a2. | B42: First 30 units at: | D42: 27000 | E42: each | G42: =IF(F41>29,D42*30,+F41*D42) -> 0
A43: a3. | B43: Units in excess of 30 at: | D43: 10500 | E43: each | G43: =IF(F41<30,0,(F41-30)*D43) -> 0
A44: a4. | B44: Total (a2 + a3) | H44: =+G42+G43 -> 0
A45: b. Acquisition and rehab projects UMR §8312(a)(2)
B46: with construction cost for rehab work (excluding contractor profit and overhead) between $10,500 - $37,000 per unit
A47: b1. | B47: Number of units (include manager's unit) | F47: 0
A48: b2. | B48: First 30 units at: | D48: 12000 | E48: each | G48: =IF(F47>29,D48*30,+F47*D48) -> 0
A49: b3. | B49: Units in excess of 30 at: | D49: 5500 | E49: each | G49: =IF(F47<30,0,(F47-30)*D49) -> 0
A50: b4. | B50: Total (b2 + b3) | H50: =+G48+G49 -> 0
A51: c. All other projects UMR §8312(a)(3)
A52: c1. | B52: Number of units (include manager's unit) | F52: 0
A53: c2. | B53: Total at: | D53: 2000 | E53: per unit | H53: =+F52*D53 -> 0
A54: d. Sponsor capital contribution of funds or real property UMR §8312(d) | H54: 0
A55: e. Maximum allowable Developer Fee (a4, b4 or c2; plus d) | H55: =H44+H50+H53+H54 -> 0

Sheet Dev Fee 2017 UMR
A1: HCD 2017 UMR Developer Fee Calculator - revised 2/4/20 (complete YELLOW shaded cells) Projects that apply in 2019 or later for the Multifamily Housing Program (MHP), Veterans Housing and Homelessness Prevention (VHHP), No Place Like Home (NPLH), and Serna Farmworker Housing Grant Programs must use the 'Dev Fee 2019' calculator. Projects subject to the 2017 UMRs that received awards or will apply under any other HCD Program must use this 'Dev Fee 2017 UMR' calculator.
A2: Project Phase: | C2: Origination | D2: Proposed Project Type:
A3: Project Name: | C3: =IF('General '!A45="","",'General '!A45) -> 
A4: Project's Developer Fee Summary (SEE INSTRUCTIONS ABOVE) | G4: HCD Limit | H4: Project Amt. | I4: =IF(OR(I5<>0,I6<>0,I8<>0),"","") -> 
B5: =IF(LEFT(F2,1)="9","Maximum Total Developer Fee - 1i","Maximum Total Developer Fee - 2g") -> Maximum Total Developer Fee - 2g | G5: =IF(F2="No Tax Credits",H60,IF(LEFT(F2,1)="9",I24+I11,H39)) -> 0 | H5: =F9 -> 0 | I5: =MAX(0,ROUND(H5,0)-ROUND(G5,0)) -> 0
B6: =IF(LEFT(F2,1)="9","Max Developer Fee payable from development funding sources - 1i","Max Developer Fee payable from development funding sources - lesser of 1i & 2g") -> Max Developer Fee payable from development funding sources - lesser of 1i & 2g | G6: =IF(F2="No Tax Credits",G5,IF(LEFT(F2,1)="9",I24,MIN(G5-I11,I24))) -> 0 | H6: =MAX(0,H5-F10-I10) -> 0 | I6: =MAX(0,ROUND(H6,0)-ROUND(G6,0)) -> 0
B7: Deferred Developer Fee payable on a priority basis from available Cash Flow | G7: =MAX(0,MIN(3500000,G5-I11)-G6) -> 0 | H7: =MAX(0,MIN(G5,H5-F10,3500000)-H6) -> 0
B8: Deferred Developer Fee payable exclusively from Sponsor Distributions - 2j | G8: =G5-G6-G7 -> 0 | H8: =MAX(0,H5-H6-H7-F10) -> 0
A9: Total Budgeted or Actual Developer Fee | F9: ='Dev Budget'!B114 -> 0
A10: Developer Fee Contributed as Capital | F10: 0 | G10: Deferred Developer Fee | I10: 0
A11: Real Property Contributed as Capital | F11: 0 | G11: Sponsor Contributions | I11: =F10+F11 -> 0
A13: =IF(F2="","Section 1. UMR §8312(c)(1) - for all 4% Projects (project costs per TCAC 9% rules)",IF(LEFT(F2,1)="4","Section 1. UMR §8312(c)(1) - for all 4% Projects (project costs per TCAC 9% rules)","Section 1. UMR §8312(b) - for all 9% Projects")) -> Section 1. UMR §8312(c)(1) - for all 4% Projects (project costs per TCAC 9% rules)
A14: a. | B14: Project's type of construction: | D14: =IF(F2="No Tax Credits","",MID(F2,12,26)) ->  | I14: =IF(D14="New Construction",2200000,2000000) -> 2000000
A15: b. | B15: Project's Eligible Basis (exclude Developer Fee) | G15: ='Dev Budget'!E106+'Dev Budget'!F106 -> 0 | H15: x 15% = | I15: =G15*0.15 -> 0
A16: c. | B16: Basis for Non-Residential Costs (Commercial - exclude Developer Fee) | G16: ='Dev Budget'!D106 -> 0 | H16: x 15% = | I16: =G16*0.15 -> 0
A17: d. | B17: =IF(D14="New Construction","Base limit: amount that could be included in project costs under 9% rules - lesser of 1a or (1b + 1c.):","Max developer fee that could be included in project costs under 9% rules - lesser of 1a or (1b + 1c):") -> Max developer fee that could be included in project costs under 9% rules - lesser of 1a or (1b + 1c): | I17: =MIN(I14,I15+I16) -> 0
A18: High Cost Test Adjustment - New Construction only §10327(c)(2)(A)
A19: e. | B19: Total Adjusted Threshold Basis Limit - §10327(c)(5) | I19: ='TBL and High Cost Test'!AO51 -> 0
A20: f1. | B20: Total Eligible Basis - §10327(c)(2)(A) | D20: ='Dev Budget'!F117 -> 0 | E20: =IF(LEFT(F2,1)="9","","4% EB reduced by Max DF in EB using 9% rules §10327(c)(2)(A)(i)") -> 4% EB reduced by Max DF in EB using 9% rules §10327(c)(2)(A)(i) | H20: =IF(LEFT(F2,1)="9",""," f1 - f2 + f3") -> f1 - f2 + f3 | I20: =IF(LEFT(F2,1)="9",D20,D20-D21+H21) -> 0
A21: f2. | B21: =IF(F2="9% Credits New Construction","","Developer Fee in Eligible Basis") -> Developer Fee in Eligible Basis | D21: ='Dev Budget'!E114+'Dev Budget'!F114 -> 0 | E21: =IF(H21=I17,"f3. Max DF in EB using 9% rules §10327(c)(2)(A)(i) based on DF amount allowed in project costs","f3. Max DF in EB using 9% rules §10327(c)(2)(A)(i) based on Actual DF in EB") -> f3. Max DF in EB using 9% rules §10327(c)(2)(A)(i) based on DF amount allowed in project costs | H21: =MIN(D21,I17) -> 0
A22: g. | B22: High Cost Test Factor - §10327(c)(2)(A) | E22: (1f1 / 1e) | F22: ="= "&TEXT(ROUND(I20,0)," $#,##0")&" / "&TEXT(ROUND(I19,0)," $#,##0") -> = $0 / $0 | I22: =IF(I19=0,0,I20/I19) -> 0
A23: h. | B23: Max Developer Fee in Project Costs under 9% rules - §10327(c)(2)(A); UMR §8312(c)(1) | G23: =IF(D14="New Construction","(200% - 1g) * 1d","") ->  | I23: =IF(D14="New Construction",ROUND((2-I22)*I17,0),I17) -> 0
A24: i. | B24: =IF(LEFT(F2,1)="9","Maximum Total Developer Fee - UMR §8312(b)","Maximum Developer Fee payable from development funding sources - UMR §8312(c)(1)") -> Maximum Developer Fee payable from development funding sources - UMR §8312(c)(1) | I24: =+I23 -> 0
A26: Section 2. UMR §8312(c)(2) - Maximum Developer Fee allowed in Eligible Basis under TCAC 4% rules
B27: Max Developer Fee allowed in Eligible Basis under TCAC 4% rules
A28: a. | B28: =IF(OR(F2="",F2="4% Credits New Construction",F2="4% Credits Rehabilitation"),"New Construction & Rehab - Unadjusted Eligible Basis (exclude Developer Fee) - §10327(c)(2)(B)(i)","Not Applicable") -> New Construction & Rehab - Unadjusted Eligible Basis (exclude Developer Fee) - §10327(c)(2)(B)(i) | G28: ='Dev Budget'!E106 -> 0 | H28: x 15% = | I28: =G28*0.15 -> 0
A29: b. | B29: =IF(OR(C2="",D14="Acq. Rehabilitation",D14="Adaptive Reuse"),"Acq/Rehab - Unadjusted Eligible Const. Related Basis (exclude Developer Fee) - §10327(c)(2)(B)(ii)","Not Applicable") -> Not Applicable | G29: ='Dev Budget'!E106 -> 0 | H29: x 15% = | I29: =G29*0.15 -> 0
A30: c1. | B30: =IF(OR(C2="",D14="Acq. Rehabilitation",D14="Adaptive Reuse"),"Acq/Rehab - at-risk development meeting the requirements of §10325(g)(4)? - §10327(c)(2)(B)(ii)","Not Applicable") -> Not Applicable
A31: c2. | B31: =IF(AND(C2<>"",D14<>"Acq. Rehabilitation"),"Not Applicable","Acq/Rehab - rehabilitation hard construction costs per unit at least $25,000 per unit? - §10327(c)(2)(B)(ii)") -> Not Applicable
A32: c3. | B32: =IF(OR(C2="",D14="Acq. Rehabilitation",D14="Adaptive Reuse"),"Acq/Rehab-30% or more of units restricted to incomes and rents of 50% AMI or less? - §10327(c)(2)(B)(ii)","Not Applicable") -> Not Applicable
A33: c4. | B33: =IF(OR(C2="",D14="Acq. Rehabilitation",D14="Adaptive Reuse"),"Acq/Rehab - Unadj. Eligible Acq. Basis - §10327(c)(2)(B)(ii) = 15% if c1, c2 or c3 is Yes","Not Applicable") -> Not Applicable | G33: ='Dev Budget'!F106 -> 0 | H33: =IF(OR(H30="Yes",H31="Yes",H32="Yes"),0.15,0.05) -> 0.05 | I33: =G33*H33 -> 0
A34: d. | B34: Maximum Developer Fee in Eligible Basis under 4% rules §8312(c) | I34: =IF(OR(D14="New Construction",D14="Rehabilitation"),I28,I29+I33) -> 0
B35: Max Developer Fee per §8312(c)
A36: e. | B36: Total Developer Fee Limit (including deferred fee and with no sponsor contribution)
B37: -- lesser of $3,500,000 or amount in Eligible Basis under 4% rules total UMR §8312(c) amount (2d above) | H37: =MIN(3500000,ROUND(I34,0)) -> 0
A38: f. | B38: Capital Contribution by Sponsor or affiliate - UMR §8312(d) | H38: =I11 -> 0
A39: g. | B39: Maximum Total Developer Fee - total UMR §8312(c) + UMR §8312(d) 1e + 1f | H39: =+H37+H38 -> 0
A40: =IF(F2="9% Credits","o.","h.") -> h. | B40: Total Budgeted or Actual Developer Fee | H40: =F9 -> 0 | I40: =IF(ROUND(H40,0)>ROUND(H39,0),"Excess Dev Fee"&TEXT(H40-H39," $#,###"),"") -> 
A41: i. | B41: Budgeted Developer Fee paid from Development Sources | F41: Sum of Deferred and Contributed Developer Fee | G41: =F10+I10 -> 0 | H41: =H40-G41 -> 0 | I41: =IF(H41>I24,"Cannot exceed"&TEXT(MIN(I24,H39)," $#,###"),"") -> 
A42: j. | B42: Deferred Developer Fee payable on a priority basis from available Cash Flow - UMR §8312(c)(2) | H42: =MAX(0,MIN(H37,H40)-MIN(I24,H37)) -> 0
A44: Section 3. UMR §8312(a) Instructions: Complete the yellow, shaded cells - choose only one in the 'A', 'B' or 'C' sections.
A45: a. New construction and substantial rehab projects UMR §8312(a)(1)
A46: a1. | B46: Number of units (include manager's unit) | F46: 0
A47: a2. | B47: First 30 units at: | D47: 27000 | E47: each | G47: =IF(F46>29,D47*30,+F46*D47) -> 0
A48: a3. | B48: Units in excess of 30 at: | D48: 10500 | E48: each | G48: =IF(F46<30,0,(F46-30)*D48) -> 0
A49: a4. | B49: Total (a2 + a3) | H49: =+G47+G48 -> 0
A50: b. Acquisition and rehab projects UMR §8312(a)(2)
B51: with construction cost for rehab work (excluding contractor profit and overhead) between $10,500 - $37,000 per unit
A52: b1. | B52: Number of units (include manager's unit) | F52: 0
A53: b2. | B53: First 30 units at: | D53: 12000 | E53: each | G53: =IF(F52>29,D53*30,+F52*D53) -> 0
A54: b3. | B54: Units in excess of 30 at: | D54: 5500 | E54: each | G54: =IF(F52<30,0,(F52-30)*D54) -> 0
A55: b4. | B55: Total (b2 + b3) | H55: =+G53+G54 -> 0
A56: c. All other projects UMR §8312(a)(3)
A57: c1. | B57: Number of units (include manager's unit) | F57: 0
A58: c2. | B58: Total at: | D58: 2000 | E58: per unit | H58: =+F57*D58 -> 0
A59: d. Sponsor capital contribution of funds or real property UMR §8312(d) | H59: 0
A60: e. Maximum allowable Developer Fee (a4, b4 or c2; plus d) | H60: =H49+H55+H58+H59 -> 0

Sheet Supportive Services Costs
A1: ='General '!A45 -> 0 | AR1: 8314 (e)(1) | AS1: 8314 (e)(2) | AT1: 8314 (e)(3) | AU1: 8314 (e)(4) | AV1: 8314 (e)(1) | AW1: 8314 (e)(2) | AX1: 8314 (e)(3) | AY1: 8314 (e)(4)
A2: Supportive Services Costs - HCD 2017 UMR Limits (for projects with HCD funding) - NPLH allow for 3.5% annual increase; others 2.5% | AQ2: Fiscal Year | AR2: Chronic Homelessness | AS2: Special Needs Population | AT2: Supportiv Services | AU2: Other | AV2: Chronic Homelessness | AW2: Special Needs Population | AX2: Supportiv Services | AY2: Other
A3: HCD UMR §8301(t): “Supportive Services” - social, health, educational, income support and employment services and benefits, coordination of community building and educational activities, individualized needs assessment, and individualized assistance with obtaining services and benefits. | AQ3: 2017 | AR3: 4080 | AS3: 3060 | AT3: 1051 | AU3: 250
A4: HCD UMR §8301(u): “Supportive Services Costs” - the costs of providing tenants service coordination, case management, and direct resident and Supportive Services. It includes: (1) the cost of providing tenants with information on and referral to social, health, educational, income support and employment services and benefits, coordination of community building and educational activities, individualized needs assessment, and individualized assistance with obtaining services and benefits; (2) salaries, benefits, contracted services, telecommunication expenses, travel costs, supplies, office expenses, staff training, maintenance of on-site equipment used in services programs, such as computer labs, incidental costs related to resident events, and other similar costs approved by the Department. | AQ4: =+AQ3+1 -> 2018 | AR4: =ROUND(AR3*1.025,0) -> 4182 | AS4: =ROUND(AS3*1.025,0) -> 3137 | AT4: =ROUND(AT3*1.025,0) -> 1077 | AU4: =ROUND(AU3*1.025,0) -> 256 | AV4: 4182 | AW4: 3137 | AX4: 1077 | AY4: 256
AQ5: =+AQ4+1 -> 2019 | AR5: =ROUND(AR4*1.025,0) -> 4287 | AS5: =ROUND(AS4*1.025,0) -> 3215 | AT5: =ROUND(AT4*1.025,0) -> 1104 | AU5: =ROUND(AU4*1.025,0) -> 262 | AV5: =ROUND(AV4*1.035,0) -> 4328 | AW5: 3247 | AX5: 1115 | AY5: 265
A6: A. Supportive Services Units: | I6: Total number of units: | M6: ='Rents '!D125 -> 0 | O6: Certification Year - based on completion or update date from Universal Application ('General' worksheet cell K10): | AA6: 2020 | AC6: Total Units | AE6: Max PUPY Expense | AH6: Max Costs | AQ6: =+AQ5+1 -> 2020 | AR6: 4394 | AS6: 3295 | AT6: 1132 | AU6: 269 | AV6: 4479 | AW6: 3361 | AX6: 1154 | AY6: 274
A7: (1) UMR §8314(e)(1): Total number of Supportive Housing (SH) units anticipated to be restricted to individuals or families experiencing chronic homelessness as defined consistent with Health and Safety Code (HSC) §50675.14. | AE7: =IF(OR('General '!N24="NPLH -No Place Like Home",'General '!N29="NPLH -No Place Like Home",'General '!N34="NPLH -No Place Like Home",'General '!N38="NPLH -No Place Like Home"),VLOOKUP($AA$6,$AQ$3:$AY$61,6,FALSE),VLOOKUP($AA$6,$AQ$3:$AY$61,2,FALSE)) -> 4394 | AH7: =IFERROR(AE7*AC7,"") -> 0 | AQ7: =+AQ6+1 -> 2021 | AR7: 4504 | AS7: 3377 | AT7: 1160 | AU7: 276 | AV7: 4636 | AW7: 3479 | AX7: 1194 | AY7: 284
A8: (2) UMR §8314(e)(2): Total number of Supportive Housing (SH) units (other than those restricted to individuals or families experiencing chronic homelessness pursuant to HSC §50675.14), PLUS the total number of units restricted to occupancy by Special Needs Populations (SNP)* under any HCD program. (*click here for definition - §7301(s) of the MHP Regulations). Do not include units included in (1) above. | AE8: =IF(OR('General '!N24="NPLH -No Place Like Home",'General '!N29="NPLH -No Place Like Home",'General '!N34="NPLH -No Place Like Home",'General '!N38="NPLH -No Place Like Home"),VLOOKUP($AA$6,$AQ$3:$AY$61,7,FALSE),VLOOKUP($AA$6,$AQ$3:$AY$61,3,FALSE)) -> 3295 | AH8: =IFERROR(AE8*AC8,"") -> 0 | AQ8: 2022 | AR8: 4617 | AS8: 3461 | AT8: 1189 | AU8: 283 | AV8: 4798 | AW8: 3601 | AX8: 1236 | AY8: 294
A9: (3) UMR §8314(e)(3): Total number of units where the Sponsor, their affiliate, or a service provider under contract to provide Supportive Services at the Project has both: (A) qualified staff devoted exclusively to oversight and quality control of resident services in affordable housing, including the Project; and (B) a system to track and report on tenant outcomes, such as changes in employment status and income. Do not include units included in items (1) and (2) above. | AE9: =IF(OR('General '!N24="NPLH -No Place Like Home",'General '!N29="NPLH -No Place Like Home",'General '!N34="NPLH -No Place Like Home",'General '!N38="NPLH -No Place Like Home"),VLOOKUP($AA$6,$AQ$3:$AY$61,8,FALSE),VLOOKUP($AA$6,$AQ$3:$AY$61,4,FALSE)) -> 1132 | AH9: =IFERROR(AE9*AC9,"") -> 0 | AQ9: 2023 | AR9: 4732 | AS9: 3548 | AT9: 1219 | AU9: 290 | AV9: 4966 | AW9: 3727 | AX9: 1279 | AY9: 304
A10: (4) UMR §8314(e)(4): Total number of units anticipated to be offered Supportive Services provided by the Project Sponsor, a Sponsor affiliate, or contracted service provider that do not satisfy the criteria in items (1), (2) and (3) above. | AE10: =IF(OR('General '!N24="NPLH -No Place Like Home",'General '!N29="NPLH -No Place Like Home",'General '!N34="NPLH -No Place Like Home",'General '!N38="NPLH -No Place Like Home"),VLOOKUP($AA$6,$AQ$3:$AY$61,9,FALSE),VLOOKUP($AA$6,$AQ$3:$AY$61,5,FALSE)) -> 269 | AH10: =IFERROR(AE10*AC10,"") -> 0 | AQ10: 2024 | AR10: 4850 | AS10: 3637 | AT10: 1249 | AU10: 297 | AV10: 5140 | AW10: 3857 | AX10: 1324 | AY10: 315
A11: (5) Maximum Supportive Services Costs | AC11: =SUM(AC7:AD10) -> 0 | AH11: =SUM(AH7:AL10) -> 0 | AQ11: 2025 | AR11: 4971 | AS11: 3728 | AT11: 1280 | AU11: 304 | AV11: 5320 | AW11: 3992 | AX11: 1370 | AY11: 326
AQ12: 2026 | AR12: 5095 | AS12: 3821 | AT12: 1312 | AU12: 312 | AV12: 5506 | AW12: 4132 | AX12: 1418 | AY12: 337

Sheet Reserves
A1: HCD Reserve Requirements (all reserve withdrawals will require prior HCD approval)
A2: Project Name: | E2: =IF('General '!A45="","",'General '!A45) ->  | Z2: Number of Project Units: | AH2: =IF('Rents '!D125=0,0,'Rents '!D125) -> 0 | AJ2: 2019-05-10
A3: Replacement Reserve Calculator UMR §8309
A4: (a) | B4: 0.6% of new construction costs (structures excluding contractor profit, overhead, and general requirements and insurance): | AE4: ='Dev Budget'!B42-'Dev Budget'!B33-'Dev Budget'!B34-'Dev Budget'!B35-'Dev Budget'!B37 -> 0 | AI4: =AE4*0.006 -> 0
A5: (b) | B5: $500 per unit: | AE5: 500 | AI5: =$AH$2*AE5 -> 0
A6: (c) | B6: If a third-party physical needs assessment (PNA) was performed for this Project, must attach PNA: | Y6: PNA per unit amount: | AI6: =$AH$2*AE6 -> 0
A7: (d) | B7: Replacement Reserve amount = New construction: lesser of (a), (b) and (c) above; Rehab: lesser of (b) and (c) | AI7: =IF(AND(AI4>0,AI6>0),MIN(AI4,AI5,AI6),IF(AI4>0,MIN(AI4,AI5),IF(AI6>0,MIN(AI5,AI6),AI5))) -> 0
B8: HCD Required Replacement Reserve Amount - must be included in 'Operating' budget | AI8: =AI7 -> 0
A10: Operating Reserve Calculator UMR §8308
A11: 1 | B11: Total Operating Expenses (including Property Taxes and excluding Service Coordinator salary): | AI11: ='Cash Flow'!D34+'Cash Flow'!D35+'Cash Flow'!D36-'Operating '!D103 -> 0
A12: 2 | B12: Replacement Reserve amount (from above): | AI12: =AI8 -> 0
A13: 3 | B13: Mandatory Permanent Debt Service (enter lender name below):
A14: (a) | B14: ='Cash Flow'!A46 -> 1st Mortgage | AI14: ='Cash Flow'!D46 -> 0
A15: (b) | B15: ='Cash Flow'!A48 -> 2nd Mortgage | AI15: ='Cash Flow'!D48 -> 0
A16: (c) | B16: ='Cash Flow'!A49 -> 3rd Mortgage Debt Service | AI16: ='Cash Flow'!D49 -> 0
A17: (d) | B17: Misc. Financial Expenses: | AI17: ='Cash Flow'!D50 -> 0
B18: Total Annual Mandatory Debt Service: | AI18: =SUM(AI14:AL17) -> 0
A19: 4a | B19: HCD Required Operating Reserve Amount (Tax Credit Project - 3 months) - must be included in 'Dev Budget' for tax credit projects | AI19: =(AI11+AI12+AI18)/4 -> 0
A20: 4b | B20: HCD Required Operating Reserve Amount (Non-Tax Credit Project - 4 months) - must be included in 'Dev Budget' if no tax credits | AI20: =(AI11+AI12+AI18)/3 -> 0
A21: If Reserve amounts are different than the required amount, enter reserve amounts and how they are calculated below:

Sheet Operating
A1: =IF('General '!A45="","",'General '!A45) -> 
A2: ANNUAL INCOME AND EXPENSES
A4: EMPLOYEE INFORMATION | F4: Comments
A5: No. | B5: FTE | C5: Employee Job Title | D5: Salary/Wages | E5: Value of Free Rent
C6: On-Site Manager(s) | D6: 0 | E6: 0
C7: On-Site Assistant Manager(s) | D7: 0 | E7: 0
C8: Supportive Services Staff Supervisor(s) | D8: 0
C9: Supportive Services Coordinator, On-Site | D9: 0
C10: Other Supportive Services Staff (inc. Case Manager) | D10: 0
C11: On-Site Maintenance Employee(s) | D11: 0 | E11: 0
C12: On-Site Leasing Agent/Administrative Employee(s) | D12: 0 | E12: 0
C13: On-Site Security Employee(s) | D13: 0 | E13: 0
D14: 0 | E14: 0
D15: 0 | E15: 0
C16: Total Salaries and Value of Free Rent Units | D16: =SUM(D6:D15) -> 0 | E16: =SUM(E6:E15) -> 0
B17: 6711 | C17: Payroll Taxes | D17: 0 | E17: Show free rent as an
B18: 6722 | C18: Workers Compensation | D18: 0 | E18: expense? | H18: Count free rent as an
B19: 6723 | C19: Employee Benefits | D19: 0 | E19: Yes | H19: expense?
C20: Employee(s) Payroll Taxes, Workers Comp. & Benefits | D20: =SUM(D17:D19) -> 0 | H20: =IF(E19="Yes",1,0) -> 1
C21: Total Employee(s) Expenses | D21: =D20+D16 -> 0
A24: Employee Units
A25: Income Limit | C25: Job Title(s) of Employee(s) Living On-Site | D25: Unit Type (No. of bdrms.) | E25: Square Footage | G25: Income Limit | H25: Job Title(s) of Employee(s) Living On-Site
D26: 0 | E26: 0 | G26: 0.6 | H26: On-Site Manager(s)
D27: 0 | E27: 0 | G27: 0.55 | H27: On-Site Assistant Manager(s)
D28: 0 | E28: 0 | G28: 0.5 | H28: On-Site Maintenance Employee(s)
D29: Total Square Footage | E29: =SUM(E26:E28) -> 0 | G29: None | H29: On-Site Leasing Agent/Administrative Employee(s)
A30: Annual Operating Budget | G30: Other | H30: On-Site Security Employee(s)
A31: Acct. No. | C31: REVENUE - INCOME | D31: Residential | E31: Commercial | F31: Comments | H31: Services Coordinator
A32: 5120/5140 | C32: Rent Revenue - Gross Potential | E32: =+Misc.!AK35 -> 0
C33: Restricted Unit Rents | D33: ='Cash Flow'!D5 -> 0
C34: Unrestricted Unit Rents | D34: ='Cash Flow'!D6 -> 0
A35: 5121 | C35: Tenant Assistance Payments
C36: =Subsidies!F13 -> 0 | D36: =Subsidies!G112*12 -> 0
C37: =Subsidies!K13 -> 0 | D37: =Subsidies!L112*12 -> 0
C38: Operating Subsidies | D38: 0
C39: Other: (specify) | D39: 0 | E39: 0
A40: 5910 | C40: Laundry and Vending Revenue | D40: =Misc.!$L$27 -> 0
A41: 5170 | C41: Garage and Parking Spaces | D41: =+Misc.!L31 -> 0 | E41: =+Misc.!L35 -> 0
A42: 5990 | C42: Miscellaneous Rent Revenue | D42: 0 | E42: 0
C43: Gross Potential Income (GPI) | D43: =SUM(D32:D42) -> 0 | E43: =SUM(E32:E42) -> 0
C45: Vacancy Rate: Restricted Units | D45: 0.05
C46: Vacancy Rate: Unrestricted Units | D46: 0.05
C47: Vacancy Rate: Tenant Assistance Payments | D47: 0.05
C48: ="Vacancy Rate: " & C39 -> Vacancy Rate: Other: (specify) | D48: 0.05
C49: Vacancy Rate: Laundry & Vending & Other Income | D49: 0.05
C50: Vacancy Rate: Commercial Income | E50: 0.5
A51: 5220/5240 | C51: Vacancy Loss(es) | D51: =(D33*D45)+(D34*D46)+((D36+D37)*D47)+(D39*D48)+((D40+D41+D42)*D49) -> 0 | E51: =+E43*E50 -> 0
C52: Effective Gross Income (EGI) | D52: =+D43-D51 -> 0 | E52: =+E43-E51 -> 0
A53: Acct. No. | C53: EXPENSES | D53: Residential | E53: Commercial | F53: Comments
C55: ADMINISTRATIVE EXPENSES: 6200/6300
A56: 6203 | C56: Conventions and Meetings | D56: 0 | E56: 0
A57: 6210 | C57: Advertising and Marketing | D57: 0 | E57: 0
A58: 6250 | C58: Other Renting Expenses | D58: 0 | E58: 0
A59: 6310 | C59: Office/Administrative Salaries -- from above | D59: =+D12 -> 0 | E59: 0
A60: 6311 | C60: Office Expenses | D60: 0 | E60: 0
A61: 6312 | C61: Office or Model Apartment Rent | D61: 0 | E61: 0
A62: 6320 | C62: Management Fee | D62: 0 | E62: 0
A63: 6330 | C63: Site/Resident Manager(s) Salaries -- from above | D63: =+D6+D7 -> 0 | E63: 0
A64: 6331 | C64: Administrative Free Rent Unit -- from above | D64: =IF(H20=1,+E6+E7+E12,0) -> 0 | E64: 0
A65: 6340 | C65: Legal Expense -- Project | D65: 0 | E65: 0
A66: 6350 | C66: Audit Expense | D66: 0 | E66: 0
A67: 6351 | C67: Bookkeeping Fees/Accounting Services | D67: 0 | E67: 0
A68: 6390 | C68: Miscellaneous Administrative Expenses | D68: 0 | E68: 0
A69: 6263T | C69: TOTAL ADMINISTRATIVE EXPENSES | D69: =SUM(D56:D68) -> 0 | E69: =SUM(E56:E68) -> 0
A70: Acct. No. | C70: EXPENSES (continued) | D70: Residential | E70: Commercial | F70: Comments
C71: UTILITIES EXPENSES: 6400
A72: 6450 | C72: Electricity | D72: 0 | E72: 0
A73: 6451 | C73: Water | D73: 0 | E73: 0
A74: 6452 | C74: Gas | D74: 0 | E74: 0
A75: 6453 | C75: Sewer | D75: 0 | E75: 0
C76: Other Utilities: (specify) | D76: 0 | E76: 0
A77: 6400T | C77: TOTAL UTILITIES EXPENSES | D77: =SUM(D72:D76) -> 0 | E77: =SUM(E72:E76) -> 0
C78: OPERATING AND MAINTENANCE EXPENSES: 6500 | F78: Comments
A79: 6510 | C79: Payroll -- from above | D79: =D11+D13+D14+D15 -> 0 | E79: 0
A80: 6515 | C80: Supplies | D80: 0 | E80: 0
A81: 6520 | C81: Contracts | D81: 0 | E81: 0
A82: 6521 | C82: Operating & Maintenance Free Rent Unit -- from above | D82: =IF(H20=1,+E11+E14+E15,0) -> 0 | E82: 0
A83: 6525 | C83: Garbage and Trash Removal | D83: 0 | E83: 0
A84: 6530 | C84: Security Contract | D84: 0 | E84: 0
A85: 6531 | C85: Security Free Rent Unit -- from above | D85: =IF(H20=1,+E13,0) -> 0 | E85: 0
A86: 6546 | C86: Heating/Cooling Repairs and Maintenance | D86: 0 | E86: 0
A87: 6548 | C87: Snow Removal | D87: 0 | E87: 0
A88: 6570 | C88: Vehicle & Maintenance Equipment Operation/Reports | D88: 0 | E88: 0
A89: 6590 | C89: Miscellaneous Operating and Maintenance Expenses | D89: 0 | E89: 0
A90: 6500T | C90: TOTAL OPERATING & MAINTENANCE EXPENSES | D90: =SUM(D79:D89) -> 0 | E90: =SUM(E79:E89) -> 0
C91: TAXES AND INSURANCE: 6700 | F91: Comments
A92: 6710 | C92: Real Estate Taxes | D92: 0 | E92: 0
A93: 6711 | C93: Payroll Taxes (Project's Share) -- from above | D93: =D17 -> 0 | E93: 0
A94: 6720 | C94: Property and Liability Insurance (Hazard) | D94: 0 | E94: 0
A95: 6729 | C95: Other Insurance (e.g. Earthquake) | D95: 0 | E95: 0
A96: 6721 | C96: Fidelity Bond Insurance | D96: 0 | E96: 0
A97: 6722 | C97: Worker's Compensation -- from above | D97: =D18 -> 0 | E97: 0
A98: 6723 | C98: Health Insurance/Other Employee Benefits--from above | D98: =D19 -> 0 | E98: 0
A99: 6790 | C99: Miscellaneous Taxes, Licenses, Permits & Insurance | D99: 0 | E99: 0
A100: 6700T | C100: TOTAL TAXES AND INSURANCE | D100: =SUM(D92:D99) -> 0 | E100: =SUM(E92:E99) -> 0
C101: SUPPORTIVE SERVICES COSTS: 6900 | F101: Comments | G101: Max allowed
A102: 6990 | C102: Staff Supervisor(s) Salaries - from above | D102: =D8 -> 0 | E102: 0 | G102: =(D103+D104)*0.1 -> 0
A103: 6990 | C103: Services Coordinator Salaries, On-Site - from above | D103: =D9 -> 0 | E103: 0
A104: 6990 | C104: Other Supportive Services Staff Salaries - from above | D104: =D10 -> 0 | E104: 0
A105: 6990 | C105: Supportive Services Admin Overhead | D105: 0 | E105: 0 | G105: =SUM(D102:D107)*0.15 -> 0
A106: 6990 | C106: Other Supportive Services Costs: (specify) | D106: 0 | E106: 0
A107: 6990 | C107: Other Supportive Services Costs: (specify) | D107: 0 | E107: 0
A108: 6900T | C108: TOTAL SUPPORTIVE SERVICES COSTS | D108: =SUM(D102:D107) -> 0 | E108: =SUM(E102:E107) -> 0 | G108: ='Supportive Services Costs'!AH11 -> 0
C110: TOTAL OPERATING EXPENSES | D110: =+D69+D77+D90+D100+D108 -> 0 | E110: =+E69+E77+E90+E100+E108 -> 0 | F110: Comments
C111: FUNDED RESERVES: 7200 | D111: Residential | E111: Commercial
A112: 7210 | C112: Required Replacement Reserve Deposits | D112: 0 | E112: 0
A113: 7220 | C113: Other Reserves: (specify) | D113: 0 | E113: 0
A114: 7230 | C114: Other Reserves: (specify) | D114: 0 | E114: 0
A115: 7240 | C115: Other Reserves: (specify) | D115: 0 | E115: 0
C116: TOTAL RESERVES | D116: =SUM(D112:D115) -> 0 | E116: =SUM(E112:E115) -> 0
C117: GROUND LEASE | D117: Residential | E117: Commercial
C118: Ground Lease | D118: 0 | E118: 0
C119: TOTAL GROUND LEASE | D119: =SUM(D118:D118) -> 0 | E119: =SUM(E118:E118) -> 0
C120: NET OPERATING INCOME | D120: =+D52-D110-D116-D119 -> 0 | E120: =+E52-E110-E116-E119 -> 0
C122: FINANCIAL EXPENSES: 6800 | F122: Comments
A123: 6820 | C123: 1st Mortgage Debt Service | D123: 0 | E123: 0
A124: 6830 | C124: 2nd Mortgage Debt Service | D124: 0 | E124: 0
A125: 6840 | C125: 3rd Mortgage Debt Service | D125: 0 | E125: 0
A126: 6890 | C126: Miscellaneous Financial Expenses: (specify) | D126: 0 | E126: 0
A127: 6890 | C127: Miscellaneous Financial Expenses: (specify) | D127: 0 | E127: 0
A128: 6890 | C128: Miscellaneous Financial Expenses: (specify) | D128: 0 | E128: 0
A129: 6890 | C129: Miscellaneous Financial Expenses: (specify) | D129: 0 | E129: 0
A130: 6800T | C130: TOTAL FINANCIAL EXPENSES | D130: =SUM(D123:D129) -> 0 | E130: =SUM(E123:E129) -> 0
C131: CASH FLOW | D131: =+D120-D130 -> 0 | E131: =+E120-E130 -> 0
A133: 7190 | C133: Asset Management/Similar Fees | D133: 0 | E133: 0
D134: Per Year | E134: Per Month
A135: Total Operating Expenses Per Unit
A136: Without any Adjustments | D136: =+D110/('Rents '!D$110+'Rents '!D$124) ->  | E136: =+D136/12 -> 
A137: With the Value of Rent-Free Units Included | D137: =IF(H20=1,+(E16+D110)/('Rents '!D$110+'Rents '!D$124),+D110/('Rents '!D$110+'Rents '!D$124)) ->  | E137: =+D137/12 -> 
A138: Without RE Taxes, Social Services Coordinator or Social Services/Social Programs and With the Value of Rent Fee Units Included | D138: =IF(H20=1,+((E16+D110)-(D92+D108))/('Rents '!D$110+'Rents '!D$124),(+D110-(D92+D108))/('Rents '!D$110+'Rents '!D$124)) ->  | E138: =+D138/12 -> 
E139: ='General '!AO10 -> UA Version 5/1/20

Sheet Cash Flow
A1: =+'General '!A45 -> 0
A2: CASH FLOW ANALYSIS
A3: Is Income from Restricted Units based on Restricted or Proposed Rents? | I3: Restricted Rents | K3: =IF(I3<>"Proposed Rents",1,0) -> 1 | Q3: ='General '!AO10 -> UA Version 5/1/20
A4: INCOME FROM HOUSING UNITS | C4: Inflation | D4: Year 1 | E4: Year 2 | F4: Year 3 | G4: Year 4 | H4: Year 5 | I4: Year 6 | J4: Year 7 | K4: Year 8 | L4: Year 9 | M4: Year 10 | N4: Year 11 | O4: Year 12 | P4: Year 13 | Q4: Year 14 | R4: Year 15 | S4: Year 16 | T4: Year 17 | U4: Year 18 | V4: Year 19 | W4: Year 20 | X4: Year 21 | Y4: Year 22 | Z4: Year 23 | AA4: Year 24 | AB4: Year 25 | AC4: Year 26 | AD4: Year 27 | AE4: Year 28 | AF4: Year 29 | AG4: Year 30 | AH4: Year 31 | AI4: Year 32 | AJ4: Year 33 | AK4: Year 34 | AL4: Year 35 | AM4: Year 36 | AN4: Year 37 | AO4: Year 38 | AP4: Year 39 | AQ4: Year 40
A5: Restricted Unit Rents | C5: 0.025 | D5: =IF(K3=1,+'Rents '!J110*12,'Rents '!I110*12) -> 0 | E5: =D5*(1+$C$5) -> 0 | F5: 0 | G5: 0 | H5: 0 | I5: 0 | J5: 0 | K5: 0 | L5: 0 | M5: 0 | N5: 0 | O5: 0 | P5: 0 | Q5: 0 | R5: =Q5*(1+$C$5) -> 0 | S5: =R5*(1+$C$5) -> 0 | T5: 0 | U5: 0 | V5: 0 | W5: 0 | X5: 0 | Y5: 0 | Z5: 0 | AA5: 0 | AB5: 0 | AC5: 0 | AD5: 0 | AE5: 0 | AF5: 0 | AG5: 0 | AH5: 0 | AI5: 0 | AJ5: 0 | AK5: 0 | AL5: 0 | AM5: 0 | AN5: 0 | AO5: 0 | AP5: 0 | AQ5: 0
A6: Unrestricted Units | C6: 0.025 | D6: =+'Rents '!I124*12 -> 0 | E6: =D6*(1+$C$6) -> 0 | F6: 0 | G6: 0 | H6: 0 | I6: 0 | J6: 0 | K6: 0 | L6: 0 | M6: 0 | N6: 0 | O6: 0 | P6: 0 | Q6: 0 | R6: =Q6*(1+$C$6) -> 0 | S6: =R6*(1+$C$6) -> 0 | T6: 0 | U6: 0 | V6: 0 | W6: 0 | X6: 0 | Y6: 0 | Z6: 0 | AA6: 0 | AB6: 0 | AC6: 0 | AD6: 0 | AE6: 0 | AF6: 0 | AG6: 0 | AH6: 0 | AI6: 0 | AJ6: 0 | AK6: 0 | AL6: 0 | AM6: 0 | AN6: 0 | AO6: 0 | AP6: 0 | AQ6: 0
A7: Tenant Assistance Payments
A8: Program: | B8: =IF(ISTEXT(Subsidies!F13),Subsidies!F13," ") ->  | C8: 0.025 | D8: =+'Operating '!D36 -> 0 | E8: =D8*(1+$C$8) -> 0 | F8: =E8*(1+$C$8) -> 0 | G8: =F8*(1+$C$8) -> 0 | H8: 0 | I8: 0 | J8: 0 | K8: 0 | L8: 0 | M8: 0 | N8: 0 | O8: 0 | P8: 0 | Q8: 0 | R8: =Q8*(1+$C$8) -> 0 | S8: =R8*(1+$C$8) -> 0 | T8: 0 | U8: 0 | V8: 0 | W8: 0 | X8: 0 | Y8: 0 | Z8: 0 | AA8: 0 | AB8: 0 | AC8: 0 | AD8: 0 | AE8: 0 | AF8: 0 | AG8: 0 | AH8: 0 | AI8: 0 | AJ8: 0 | AK8: 0 | AL8: 0 | AM8: 0 | AN8: 0 | AO8: 0 | AP8: 0 | AQ8: 0
A9: Program: | B9: =IF(ISTEXT(Subsidies!K13),Subsidies!K13," ") ->  | C9: 0.025 | D9: =+'Operating '!D37 -> 0 | E9: =D9*(1+$C$9) -> 0 | F9: =E9*(1+$C$9) -> 0 | G9: =F9*(1+$C$9) -> 0 | H9: 0 | I9: 0 | J9: 0 | K9: 0 | L9: 0 | M9: 0 | N9: 0 | O9: 0 | P9: 0 | Q9: 0 | R9: =Q9*(1+$C$9) -> 0 | S9: =R9*(1+$C$9) -> 0 | T9: 0 | U9: 0 | V9: 0 | W9: 0 | X9: 0 | Y9: 0 | Z9: 0 | AA9: 0 | AB9: 0 | AC9: 0 | AD9: 0 | AE9: 0 | AF9: 0 | AG9: 0 | AH9: 0 | AI9: 0 | AJ9: 0 | AK9: 0 | AL9: 0 | AM9: 0 | AN9: 0 | AO9: 0 | AP9: 0 | AQ9: 0
A10: Operating Subsidies | C10: 0.02 | D10: ='Operating '!D38 -> 0 | E10: =D10*(1+$C$10) -> 0 | F10: =E10*(1+$C$10) -> 0 | G10: 0 | H10: 0 | I10: 0 | J10: 0 | K10: 0 | L10: 0 | M10: 0 | N10: 0 | O10: 0 | P10: 0 | Q10: 0 | R10: =Q10*(1+$C$10) -> 0 | S10: =R10*(1+$C$10) -> 0 | T10: 0 | U10: 0 | V10: 0 | W10: 0 | X10: 0 | Y10: 0 | Z10: 0 | AA10: 0 | AB10: 0 | AC10: 0 | AD10: 0 | AE10: 0 | AF10: 0 | AG10: 0 | AH10: 0 | AI10: 0 | AJ10: 0 | AK10: 0 | AL10: 0 | AM10: 0 | AN10: 0 | AO10: 0 | AP10: 0 | AQ10: 0
A11: ='Operating '!C39 -> Other: (specify) | C11: =C8 -> 0.025 | D11: 0 | E11: 0 | F11: 0 | G11: 0 | H11: 0 | I11: 0 | J11: 0 | K11: 0 | L11: 0 | M11: 0 | N11: 0 | O11: 0 | P11: 0 | Q11: 0 | R11: 0 | S11: 0 | T11: 0 | U11: 0 | V11: 0 | W11: 0 | X11: 0 | Y11: 0 | Z11: 0 | AA11: 0 | AB11: 0 | AC11: 0 | AD11: 0 | AE11: 0 | AF11: 0 | AG11: 0 | AH11: 0 | AI11: 0 | AJ11: 0 | AK11: 0 | AL11: 0 | AM11: 0 | AN11: 0 | AO11: 0 | AP11: 0 | AQ11: 0
A12: GROSS POTENTIAL INCOME - HOUSING | D12: =SUM(D5:D11) -> 0 | E12: 0 | F12: 0 | G12: 0 | H12: 0 | I12: 0 | J12: 0 | K12: 0 | L12: 0 | M12: 0 | N12: 0 | O12: 0 | P12: 0 | Q12: 0 | R12: 0 | S12: 0 | T12: 0 | U12: 0 | V12: 0 | W12: 0 | X12: 0 | Y12: 0 | Z12: 0 | AA12: 0 | AB12: 0 | AC12: 0 | AD12: 0 | AE12: 0 | AF12: 0 | AG12: 0 | AH12: 0 | AI12: 0 | AJ12: 0 | AK12: 0 | AL12: 0 | AM12: 0 | AN12: 0 | AO12: 0 | AP12: 0 | AQ12: 0
A14: OTHER INCOME
A15: Laundry & Vending | C15: 0.025 | D15: ='Operating '!D40 -> 0 | E15: =D15*(1+$C$15) -> 0 | F15: 0 | G15: 0 | H15: 0 | I15: 0 | J15: 0 | K15: 0 | L15: 0 | M15: 0 | N15: 0 | O15: 0 | P15: 0 | Q15: 0 | R15: =Q15*(1+$C$15) -> 0 | S15: =R15*(1+$C$15) -> 0 | T15: 0 | U15: 0 | V15: 0 | W15: 0 | X15: 0 | Y15: 0 | Z15: 0 | AA15: 0 | AB15: 0 | AC15: 0 | AD15: 0 | AE15: 0 | AF15: 0 | AG15: 0 | AH15: 0 | AI15: 0 | AJ15: 0 | AK15: 0 | AL15: 0 | AM15: 0 | AN15: 0 | AO15: 0 | AP15: 0 | AQ15: 0
A16: Other Income | C16: 0.025 | D16: ='Operating '!D41+'Operating '!D42 -> 0 | E16: =D16*(1+$C$16) -> 0 | F16: 0 | G16: 0 | H16: 0 | I16: 0 | J16: 0 | K16: 0 | L16: 0 | M16: 0 | N16: 0 | O16: 0 | P16: 0 | Q16: 0 | R16: =Q16*(1+$C$16) -> 0 | S16: =R16*(1+$C$16) -> 0 | T16: 0 | U16: 0 | V16: 0 | W16: 0 | X16: 0 | Y16: 0 | Z16: 0 | AA16: 0 | AB16: 0 | AC16: 0 | AD16: 0 | AE16: 0 | AF16: 0 | AG16: 0 | AH16: 0 | AI16: 0 | AJ16: 0 | AK16: 0 | AL16: 0 | AM16: 0 | AN16: 0 | AO16: 0 | AP16: 0 | AQ16: 0
A17: Commercial Income | C17: 0.025 | D17: ='Operating '!E43 -> 0 | E17: =D17*(1+$C$17) -> 0 | F17: 0 | G17: 0 | H17: 0 | I17: 0 | J17: 0 | K17: 0 | L17: 0 | M17: 0 | N17: 0 | O17: 0 | P17: 0 | Q17: 0 | R17: =Q17*(1+$C$17) -> 0 | S17: =R17*(1+$C$17) -> 0 | T17: 0 | U17: 0 | V17: 0 | W17: 0 | X17: 0 | Y17: 0 | Z17: 0 | AA17: 0 | AB17: 0 | AC17: 0 | AD17: 0 | AE17: 0 | AF17: 0 | AG17: 0 | AH17: 0 | AI17: 0 | AJ17: 0 | AK17: 0 | AL17: 0 | AM17: 0 | AN17: 0 | AO17: 0 | AP17: 0 | AQ17: 0
A18: GROSS POTENTIAL INCOME - OTHER | D18: =SUM(D15:D17) -> 0 | E18: 0 | F18: 0 | G18: 0 | H18: 0 | I18: 0 | J18: 0 | K18: 0 | L18: 0 | M18: 0 | N18: 0 | O18: 0 | P18: 0 | Q18: 0 | R18: 0 | S18: 0 | T18: 0 | U18: 0 | V18: 0 | W18: 0 | X18: 0 | Y18: 0 | Z18: 0 | AA18: 0 | AB18: 0 | AC18: 0 | AD18: 0 | AE18: 0 | AF18: 0 | AG18: 0 | AH18: 0 | AI18: 0 | AJ18: 0 | AK18: 0 | AL18: 0 | AM18: 0 | AN18: 0 | AO18: 0 | AP18: 0 | AQ18: 0
A20: GROSS POTENTIAL INCOME - TOTAL | D20: =D12+D18 -> 0 | E20: 0 | F20: 0 | G20: 0 | H20: 0 | I20: 0 | J20: 0 | K20: 0 | L20: 0 | M20: 0 | N20: 0 | O20: 0 | P20: 0 | Q20: 0 | R20: 0 | S20: =S12+S18 -> 0 | T20: 0 | U20: 0 | V20: 0 | W20: 0 | X20: 0 | Y20: 0 | Z20: 0 | AA20: 0 | AB20: 0 | AC20: 0 | AD20: 0 | AE20: 0 | AF20: 0 | AG20: 0 | AH20: 0 | AI20: 0 | AJ20: 0 | AK20: 0 | AL20: 0 | AM20: 0 | AN20: 0 | AO20: 0 | AP20: 0 | AQ20: 0
A22: VACANCY ASSUMPTIONS
A23: Restricted Units | C23: ='Operating '!D45 -> 0.05 | D23: =+$C23*D5 -> 0 | E23: =+$C23*E5 -> 0 | F23: 0 | G23: 0 | H23: 0 | I23: 0 | J23: 0 | K23: 0 | L23: 0 | M23: 0 | N23: 0 | O23: 0 | P23: 0 | Q23: 0 | R23: 0 | S23: =+$C23*S5 -> 0 | T23: 0 | U23: 0 | V23: 0 | W23: 0 | X23: 0 | Y23: 0 | Z23: 0 | AA23: 0 | AB23: 0 | AC23: 0 | AD23: 0 | AE23: 0 | AF23: 0 | AG23: 0 | AH23: 0 | AI23: 0 | AJ23: 0 | AK23: 0 | AL23: 0 | AM23: 0 | AN23: 0 | AO23: 0 | AP23: 0 | AQ23: 0
A24: Unrestricted Units | C24: ='Operating '!D46 -> 0.05 | D24: =+$C24*D6 -> 0 | E24: =+$C24*E6 -> 0 | F24: 0 | G24: 0 | H24: 0 | I24: 0 | J24: 0 | K24: 0 | L24: 0 | M24: 0 | N24: 0 | O24: 0 | P24: 0 | Q24: 0 | R24: 0 | S24: =+$C24*S6 -> 0 | T24: 0 | U24: 0 | V24: 0 | W24: 0 | X24: 0 | Y24: 0 | Z24: 0 | AA24: 0 | AB24: 0 | AC24: 0 | AD24: 0 | AE24: 0 | AF24: 0 | AG24: 0 | AH24: 0 | AI24: 0 | AJ24: 0 | AK24: 0 | AL24: 0 | AM24: 0 | AN24: 0 | AO24: 0 | AP24: 0 | AQ24: 0
A25: Tenant Assistance Payments | C25: ='Operating '!D47 -> 0.05 | D25: =+$C25*(D8+D9) -> 0 | E25: =+$C25*(E8+E9) -> 0 | F25: =+$C25*(F8+F9) -> 0 | G25: 0 | H25: 0 | I25: 0 | J25: 0 | K25: 0 | L25: 0 | M25: 0 | N25: 0 | O25: 0 | P25: 0 | Q25: 0 | R25: 0 | S25: 0 | T25: 0 | U25: 0 | V25: 0 | W25: 0 | X25: 0 | Y25: 0 | Z25: 0 | AA25: 0 | AB25: 0 | AC25: 0 | AD25: 0 | AE25: 0 | AF25: 0 | AG25: 0 | AH25: 0 | AI25: 0 | AJ25: 0 | AK25: 0 | AL25: 0 | AM25: 0 | AN25: 0 | AO25: 0 | AP25: 0 | AQ25: 0
A26: ='Operating '!C39 -> Other: (specify) | C26: ='Operating '!D48 -> 0.05 | D26: =+$C26*D11 -> 0 | E26: 0 | F26: 0 | G26: 0 | H26: 0 | I26: 0 | J26: 0 | K26: 0 | L26: 0 | M26: 0 | N26: 0 | O26: 0 | P26: 0 | Q26: 0 | R26: 0 | S26: =+$C26*S11 -> 0 | T26: 0 | U26: 0 | V26: 0 | W26: 0 | X26: 0 | Y26: 0 | Z26: 0 | AA26: 0 | AB26: 0 | AC26: 0 | AD26: 0 | AE26: 0 | AF26: 0 | AG26: 0 | AH26: 0 | AI26: 0 | AJ26: 0 | AK26: 0 | AL26: 0 | AM26: 0 | AN26: 0 | AO26: 0 | AP26: 0 | AQ26: 0
A27: Laundry/Vending/Other Income | C27: ='Operating '!D49 -> 0.05 | D27: =+$C27*(D15+D16) -> 0 | E27: 0 | F27: 0 | G27: 0 | H27: 0 | I27: 0 | J27: 0 | K27: 0 | L27: 0 | M27: 0 | N27: 0 | O27: 0 | P27: 0 | Q27: 0 | R27: 0 | S27: =+$C27*(S15+S16) -> 0 | T27: 0 | U27: 0 | V27: 0 | W27: 0 | X27: 0 | Y27: 0 | Z27: 0 | AA27: 0 | AB27: 0 | AC27: 0 | AD27: 0 | AE27: 0 | AF27: 0 | AG27: 0 | AH27: 0 | AI27: 0 | AJ27: 0 | AK27: 0 | AL27: 0 | AM27: 0 | AN27: 0 | AO27: 0 | AP27: 0 | AQ27: 0
A28: Commercial Income | C28: ='Operating '!E50 -> 0.5 | D28: =+$C28*D17 -> 0 | E28: 0 | F28: 0 | G28: 0 | H28: 0 | I28: 0 | J28: 0 | K28: 0 | L28: 0 | M28: 0 | N28: 0 | O28: 0 | P28: 0 | Q28: 0 | R28: 0 | S28: =+$C28*S17 -> 0 | T28: 0 | U28: 0 | V28: 0 | W28: 0 | X28: 0 | Y28: 0 | Z28: 0 | AA28: 0 | AB28: 0 | AC28: 0 | AD28: 0 | AE28: 0 | AF28: 0 | AG28: 0 | AH28: 0 | AI28: 0 | AJ28: 0 | AK28: 0 | AL28: 0 | AM28: 0 | AN28: 0 | AO28: 0 | AP28: 0 | AQ28: 0
A29: TOTAL VACANCY LOSS | D29: =SUM(D23:D28) -> 0 | E29: =SUM(E23:E28) -> 0 | F29: 0 | G29: 0 | H29: 0 | I29: 0 | J29: 0 | K29: 0 | L29: 0 | M29: 0 | N29: 0 | O29: 0 | P29: 0 | Q29: 0 | R29: 0 | S29: =SUM(S23:S28) -> 0 | T29: 0 | U29: 0 | V29: 0 | W29: 0 | X29: 0 | Y29: 0 | Z29: 0 | AA29: 0 | AB29: 0 | AC29: 0 | AD29: 0 | AE29: 0 | AF29: 0 | AG29: 0 | AH29: 0 | AI29: 0 | AJ29: 0 | AK29: 0 | AL29: 0 | AM29: 0 | AN29: 0 | AO29: 0 | AP29: 0 | AQ29: 0
A31: EFFECTIVE GROSS INCOME | D31: =D20-D29 -> 0 | E31: 0 | F31: 0 | G31: 0 | H31: 0 | I31: 0 | J31: 0 | K31: 0 | L31: 0 | M31: 0 | N31: 0 | O31: 0 | P31: 0 | Q31: 0 | R31: 0 | S31: =S20-S29 -> 0 | T31: 0 | U31: 0 | V31: 0 | W31: 0 | X31: 0 | Y31: 0 | Z31: 0 | AA31: 0 | AB31: 0 | AC31: 0 | AD31: 0 | AE31: 0 | AF31: 0 | AG31: 0 | AH31: 0 | AI31: 0 | AJ31: 0 | AK31: 0 | AL31: 0 | AM31: 0 | AN31: 0 | AO31: 0 | AP31: 0 | AQ31: 0
A33: OPERATING EXPENSES & RESERVE DEPOSITS
A34: Residential Exp. (w/o Real Estate Taxes & Sup. Services) | C34: 0.035 | D34: =+'Operating '!D110-'Operating '!D92-'Operating '!D108 -> 0 | E34: =(1+$C$34)*D34 -> 0 | F34: 0 | G34: 0 | H34: 0 | I34: 0 | J34: 0 | K34: 0 | L34: 0 | M34: 0 | N34: 0 | O34: 0 | P34: 0 | Q34: 0 | R34: =(1+$C$34)*Q34 -> 0 | S34: =(1+$C$34)*R34 -> 0 | T34: 0 | U34: 0 | V34: 0 | W34: 0 | X34: 0 | Y34: 0 | Z34: 0 | AA34: 0 | AB34: 0 | AC34: 0 | AD34: 0 | AE34: 0 | AF34: 0 | AG34: 0 | AH34: 0 | AI34: 0 | AJ34: 0 | AK34: 0 | AL34: 0 | AM34: 0 | AN34: 0 | AO34: 0 | AP34: 0 | AQ34: 0
A35: Real Estate Taxes | C35: 0.02 | D35: =+'Operating '!D92 -> 0 | E35: =(1+$C$35)*D35 -> 0 | F35: =(1+$C$35)*E35 -> 0 | G35: 0 | H35: 0 | I35: 0 | J35: 0 | K35: 0 | L35: 0 | M35: 0 | N35: 0 | O35: 0 | P35: 0 | Q35: 0 | R35: =(1+$C$35)*Q35 -> 0 | S35: =(1+$C$35)*R35 -> 0 | T35: 0 | U35: 0 | V35: 0 | W35: 0 | X35: 0 | Y35: 0 | Z35: 0 | AA35: 0 | AB35: 0 | AC35: 0 | AD35: 0 | AE35: 0 | AF35: 0 | AG35: 0 | AH35: 0 | AI35: 0 | AJ35: 0 | AK35: 0 | AL35: 0 | AM35: 0 | AN35: 0 | AO35: 0 | AP35: 0 | AQ35: 0
A36: Supportive Services Costs | C36: 0.025 | D36: ='Operating '!D108 -> 0 | E36: =(1+$C$36)*D36 -> 0 | F36: =(1+$C$36)*E36 -> 0 | G36: =(1+$C$36)*F36 -> 0 | H36: 0 | I36: 0 | J36: 0 | K36: 0 | L36: 0 | M36: 0 | N36: 0 | O36: 0 | P36: 0 | Q36: 0 | R36: 0 | S36: 0 | T36: 0 | U36: 0 | V36: 0 | W36: 0 | X36: 0 | Y36: 0 | Z36: 0 | AA36: 0 | AB36: 0 | AC36: 0 | AD36: 0 | AE36: 0 | AF36: 0 | AG36: 0 | AH36: 0 | AI36: 0 | AJ36: 0 | AK36: 0 | AL36: 0 | AM36: 0 | AN36: 0 | AO36: 0 | AP36: 0 | AQ36: 0
A37: Replacement Reserve | C37: 0 | D37: =+'Operating '!D112+'Operating '!E112 -> 0 | E37: =(1+$C$37)*D37 -> 0 | F37: 0 | G37: 0 | H37: 0 | I37: 0 | J37: 0 | K37: 0 | L37: 0 | M37: 0 | N37: 0 | O37: 0 | P37: 0 | Q37: 0 | R37: =(1+$C$37)*Q37 -> 0 | S37: =(1+$C$37)*R37 -> 0 | T37: 0 | U37: 0 | V37: 0 | W37: 0 | X37: 0 | Y37: 0 | Z37: 0 | AA37: 0 | AB37: 0 | AC37: 0 | AD37: 0 | AE37: 0 | AF37: 0 | AG37: 0 | AH37: 0 | AI37: 0 | AJ37: 0 | AK37: 0 | AL37: 0 | AM37: 0 | AN37: 0 | AO37: 0 | AP37: 0 | AQ37: 0
A38: Other Reserves | C38: 0 | D38: =+'Operating '!D113+'Operating '!D114+'Operating '!D115+'Operating '!E113+'Operating '!E114+'Operating '!E115 -> 0 | E38: =(1+$C$38)*D38 -> 0 | F38: =(1+$C$38)*E38 -> 0 | G38: 0 | H38: 0 | I38: 0 | J38: 0 | K38: 0 | L38: 0 | M38: 0 | N38: 0 | O38: 0 | P38: 0 | Q38: 0 | R38: =(1+$C$38)*Q38 -> 0 | S38: =(1+$C$38)*R38 -> 0 | T38: 0 | U38: 0 | V38: 0 | W38: 0 | X38: 0 | Y38: 0 | Z38: 0 | AA38: 0 | AB38: 0 | AC38: 0 | AD38: 0 | AE38: 0 | AF38: 0 | AG38: 0 | AH38: 0 | AI38: 0 | AJ38: 0 | AK38: 0 | AL38: 0 | AM38: 0 | AN38: 0 | AO38: 0 | AP38: 0 | AQ38: 0
A39: Ground Lease | C39: 0.02 | D39: ='Operating '!D118+'Operating '!E118 -> 0 | E39: =(1+$C$39)*D39 -> 0 | F39: =(1+$C$39)*E39 -> 0 | G39: 0 | H39: 0 | I39: 0 | J39: 0 | K39: 0 | L39: 0 | M39: 0 | N39: 0 | O39: 0 | P39: 0 | Q39: 0 | R39: =(1+$C$39)*Q39 -> 0 | S39: =(1+$C$39)*R39 -> 0 | T39: 0 | U39: 0 | V39: 0 | W39: 0 | X39: 0 | Y39: 0 | Z39: 0 | AA39: 0 | AB39: 0 | AC39: 0 | AD39: 0 | AE39: 0 | AF39: 0 | AG39: 0 | AH39: 0 | AI39: 0 | AJ39: 0 | AK39: 0 | AL39: 0 | AM39: 0 | AN39: 0 | AO39: 0 | AP39: 0 | AQ39: 0
A40: Commercial Expenses | C40: 0.035 | D40: ='Operating '!E110 -> 0 | E40: =(1+$C$40)*D40 -> 0 | F40: 0 | G40: 0 | H40: 0 | I40: 0 | J40: 0 | K40: 0 | L40: 0 | M40: 0 | N40: 0 | O40: 0 | P40: 0 | Q40: 0 | R40: =(1+$C$40)*Q40 -> 0 | S40: =(1+$C$40)*R40 -> 0 | T40: 0 | U40: 0 | V40: 0 | W40: 0 | X40: 0 | Y40: 0 | Z40: 0 | AA40: 0 | AB40: 0 | AC40: 0 | AD40: 0 | AE40: 0 | AF40: 0 | AG40: 0 | AH40: 0 | AI40: 0 | AJ40: 0 | AK40: 0 | AL40: 0 | AM40: 0 | AN40: 0 | AO40: 0 | AP40: 0 | AQ40: 0
A41: TOTAL EXPENSES & RESERVES | D41: =SUM(D34:D40) -> 0 | E41: 0 | F41: 0 | G41: 0 | H41: 0 | I41: 0 | J41: 0 | K41: 0 | L41: 0 | M41: 0 | N41: 0 | O41: 0 | P41: 0 | Q41: 0 | R41: 0 | S41: 0 | T41: 0 | U41: 0 | V41: 0 | W41: 0 | X41: 0 | Y41: 0 | Z41: 0 | AA41: 0 | AB41: 0 | AC41: 0 | AD41: 0 | AE41: 0 | AF41: 0 | AG41: 0 | AH41: 0 | AI41: 0 | AJ41: 0 | AK41: 0 | AL41: 0 | AM41: 0 | AN41: 0 | AO41: 0 | AP41: 0 | AQ41: 0
A43: NET OPERATING INCOME | D43: =D31-D41 -> 0 | E43: 0 | F43: 0 | G43: 0 | H43: 0 | I43: 0 | J43: 0 | K43: 0 | L43: 0 | M43: 0 | N43: 0 | O43: 0 | P43: 0 | Q43: 0 | R43: 0 | S43: 0 | T43: =T31-T41 -> 0 | U43: 0 | V43: 0 | W43: 0 | X43: 0 | Y43: 0 | Z43: 0 | AA43: 0 | AB43: 0 | AC43: 0 | AD43: 0 | AE43: 0 | AF43: 0 | AG43: 0 | AH43: 0 | AI43: 0 | AJ43: 0 | AK43: 0 | AL43: 0 | AM43: 0 | AN43: 0 | AO43: 0 | AP43: 0 | AQ43: 0
A45: DEBT SERVICE
A46: 1st Mortgage | D46: =+'Operating '!D123+'Operating '!E123 -> 0 | E46: =$D$46 -> 0 | F46: 0 | G46: 0 | H46: 0 | I46: 0 | J46: 0 | K46: 0 | L46: 0 | M46: 0 | N46: 0 | O46: 0 | P46: 0 | Q46: 0 | R46: 0 | S46: 0 | T46: 0 | U46: 0 | V46: 0 | W46: 0 | X46: 0 | Y46: 0 | Z46: 0 | AA46: 0 | AB46: 0 | AC46: 0 | AD46: 0 | AE46: 0 | AF46: 0 | AG46: 0 | AH46: 0 | AI46: 0 | AJ46: 0 | AK46: 0 | AL46: 0 | AM46: 0 | AN46: 0 | AO46: 0 | AP46: 0 | AQ46: 0
A47: Bridge Loan (repaid from Investor equity)
A48: 2nd Mortgage | D48: =+'Operating '!D124+'Operating '!E124 -> 0 | E48: =$D$48 -> 0 | F48: 0 | G48: 0 | H48: 0 | I48: 0 | J48: 0 | K48: 0 | L48: 0 | M48: 0 | N48: 0 | O48: 0 | P48: 0 | Q48: 0 | R48: 0 | S48: 0 | T48: 0 | U48: 0 | V48: 0 | W48: 0 | X48: 0 | Y48: 0 | Z48: 0 | AA48: 0 | AB48: 0 | AC48: 0 | AD48: 0 | AE48: 0 | AF48: 0 | AG48: 0 | AH48: 0 | AI48: 0 | AJ48: 0 | AK48: 0 | AL48: 0 | AM48: 0 | AN48: 0 | AO48: 0 | AP48: 0 | AQ48: 0
A49: 3rd Mortgage Debt Service | D49: =+'Operating '!D125+'Operating '!E125 -> 0 | E49: =$D$49 -> 0 | F49: 0 | G49: 0 | H49: 0 | I49: 0 | J49: 0 | K49: 0 | L49: 0 | M49: 0 | N49: 0 | O49: 0 | P49: 0 | Q49: 0 | R49: 0 | S49: 0 | T49: 0 | U49: 0 | V49: 0 | W49: 0 | X49: 0 | Y49: 0 | Z49: 0 | AA49: 0 | AB49: 0 | AC49: 0 | AD49: 0 | AE49: 0 | AF49: 0 | AG49: 0 | AH49: 0 | AI49: 0 | AJ49: 0 | AK49: 0 | AL49: 0 | AM49: 0 | AN49: 0 | AO49: 0 | AP49: 0 | AQ49: 0
A50: Misc. Financial Expenses: (specify) | D50: ='Operating '!D126+'Operating '!E126+'Operating '!D127+'Operating '!E127+'Operating '!D128+'Operating '!E128+'Operating '!D129+'Operating '!E129 -> 0 | E50: =$D$50 -> 0 | F50: =$D$50 -> 0 | G50: 0 | H50: 0 | I50: 0 | J50: 0 | K50: 0 | L50: 0 | M50: 0 | N50: 0 | O50: 0 | P50: 0 | Q50: 0 | R50: 0 | S50: =R50 -> 0 | T50: 0 | U50: 0 | V50: 0 | W50: 0 | X50: 0 | Y50: 0 | Z50: 0 | AA50: 0 | AB50: 0 | AC50: 0 | AD50: 0 | AE50: 0 | AF50: 0 | AG50: 0 | AH50: 0 | AI50: 0 | AJ50: 0 | AK50: 0 | AL50: 0 | AM50: 0 | AN50: 0 | AO50: 0 | AP50: 0 | AQ50: 0
A51: Total Required Debt Service | D51: =SUM(D46,D48,D49,D50) -> 0 | E51: 0 | F51: 0 | G51: 0 | H51: 0 | I51: 0 | J51: 0 | K51: 0 | L51: 0 | M51: 0 | N51: 0 | O51: 0 | P51: 0 | Q51: 0 | R51: 0 | S51: 0 | T51: =SUM(T46,T48,T49,T50) -> 0 | U51: 0 | V51: 0 | W51: 0 | X51: 0 | Y51: 0 | Z51: 0 | AA51: 0 | AB51: 0 | AC51: 0 | AD51: 0 | AE51: 0 | AF51: 0 | AG51: 0 | AH51: 0 | AI51: 0 | AJ51: 0 | AK51: 0 | AL51: 0 | AM51: 0 | AN51: 0 | AO51: 0 | AP51: 0 | AQ51: 0
A54: CASH FLOW after all debt service | D54: =D43-D51 -> 0 | E54: 0 | F54: 0 | G54: 0 | H54: 0 | I54: 0 | J54: 0 | K54: 0 | L54: 0 | M54: 0 | N54: 0 | O54: 0 | P54: 0 | Q54: 0 | R54: 0 | S54: 0 | T54: 0 | U54: 0 | V54: 0 | W54: 0 | X54: 0 | Y54: 0 | Z54: 0 | AA54: 0 | AB54: 0 | AC54: 0 | AD54: 0 | AE54: 0 | AF54: 0 | AG54: 0 | AH54: 0 | AI54: 0 | AJ54: 0 | AK54: 0 | AL54: 0 | AM54: 0 | AN54: 0 | AO54: 0 | AP54: 0 | AQ54: 0
A56: DEBT SERVICE COVERAGE RATIO | D56: =IF(D51<=0,0,((D43/D51))) -> 0 | E56: =IF(E51<=0,0,((E43/E51))) -> 0 | F56: 0 | G56: 0 | H56: 0 | I56: 0 | J56: 0 | K56: 0 | L56: 0 | M56: 0 | N56: 0 | O56: 0 | P56: 0 | Q56: 0 | R56: 0 | S56: 0 | T56: 0 | U56: 0 | V56: 0 | W56: 0 | X56: 0 | Y56: 0 | Z56: 0 | AA56: 0 | AB56: 0 | AC56: 0 | AD56: 0 | AE56: 0 | AF56: 0 | AG56: 0 | AH56: 0 | AI56: 0 | AJ56: 0 | AK56: 0 | AL56: 0 | AM56: 0 | AN56: 0 | AO56: 0 | AP56: 0 | AQ56: 0
A57: Use of Cash Flow After Debt Service - HCD Projects
A58: Asset Mgmt./ Similar Fees | D58: =IF(D54>=D70,D70,MAX(0,D54)) -> 0 | E58: =IF(E54>=E70,E70,MAX(0,E54)) -> 0 | F58: =IF(F54>=F70,F70,MAX(0,F54)) -> 0 | G58: 0 | H58: 0 | I58: 0 | J58: 0 | K58: 0 | L58: 0 | M58: 0 | N58: 0 | O58: 0 | P58: 0 | Q58: 0 | R58: 0 | S58: 0 | T58: 0 | U58: 0 | V58: 0 | W58: 0 | X58: 0 | Y58: 0 | Z58: 0 | AA58: 0 | AB58: 0 | AC58: 0 | AD58: 0 | AE58: 0 | AF58: 0 | AG58: 0 | AH58: 0 | AI58: 0 | AJ58: 0 | AK58: 0 | AL58: 0 | AM58: 0 | AN58: 0 | AO58: 0 | AP58: 0 | AQ58: 0
A59: Deferred Developer Fee prior to
A60: Distributions & residual receipt payments | D60: =IF(D54-D58<=$D$73,MAX(0,D54-D58),$D$73) -> 0 | E60: =IF(D71+E54-E58<=$D$73,MAX(0,E54-E58),$D$73-D71) -> 0 | F60: =IF(E71+F54-F58<=$D$73,MAX(0,F54-F58),$D$73-E71) -> 0 | G60: 0 | H60: 0 | I60: 0 | J60: 0 | K60: 0 | L60: 0 | M60: 0 | N60: 0 | O60: 0 | P60: 0 | Q60: 0 | R60: 0 | S60: 0 | T60: 0 | U60: 0 | V60: 0 | W60: 0 | X60: 0 | Y60: 0 | Z60: 0 | AA60: 0 | AB60: 0 | AC60: 0 | AD60: 0 | AE60: 0 | AF60: 0 | AG60: 0 | AH60: 0 | AI60: 0 | AJ60: 0 | AK60: 0 | AL60: 0 | AM60: 0 | AN60: 0 | AO60: 0 | AP60: 0 | AQ60: 0
A61: Cash Available for Residual Receipts Loans
A62: and Sponsor Distributions | D62: =MAX(0,D54-D58-D60) -> 0 | E62: =MAX(0,E54-E58-E60) -> 0 | F62: =MAX(0,F54-F58-F60) -> 0 | G62: 0 | H62: 0 | I62: 0 | J62: 0 | K62: 0 | L62: 0 | M62: 0 | N62: 0 | O62: 0 | P62: 0 | Q62: 0 | R62: 0 | S62: 0 | T62: 0 | U62: 0 | V62: 0 | W62: 0 | X62: 0 | Y62: 0 | Z62: 0 | AA62: 0 | AB62: 0 | AC62: 0 | AD62: 0 | AE62: 0 | AF62: 0 | AG62: 0 | AH62: 0 | AI62: 0 | AJ62: 0 | AK62: 0 | AL62: 0 | AM62: 0 | AN62: 0 | AO62: 0 | AP62: 0 | AQ62: 0
A63: Sponsor Distributions | C63: 0.5 | D63: =+$C63*D62 -> 0 | E63: 0 | F63: 0 | G63: 0 | H63: 0 | I63: 0 | J63: 0 | K63: 0 | L63: 0 | M63: 0 | N63: 0 | O63: 0 | P63: 0 | Q63: 0 | R63: 0 | S63: =+$C63*S62 -> 0 | T63: 0 | U63: 0 | V63: 0 | W63: 0 | X63: 0 | Y63: 0 | Z63: 0 | AA63: 0 | AB63: 0 | AC63: 0 | AD63: 0 | AE63: 0 | AF63: 0 | AG63: 0 | AH63: 0 | AI63: 0 | AJ63: 0 | AK63: 0 | AL63: 0 | AM63: 0 | AN63: 0 | AO63: 0 | AP63: 0 | AQ63: 0
A64: HCD Residual Payment | C64: 0.5 | D64: =+$C64*D62 -> 0 | E64: =+$C64*E62 -> 0 | F64: 0 | G64: 0 | H64: 0 | I64: 0 | J64: 0 | K64: 0 | L64: 0 | M64: 0 | N64: 0 | O64: 0 | P64: 0 | Q64: 0 | R64: 0 | S64: =+$C64*S62 -> 0 | T64: 0 | U64: 0 | V64: 0 | W64: 0 | X64: 0 | Y64: 0 | Z64: 0 | AA64: 0 | AB64: 0 | AC64: 0 | AD64: 0 | AE64: 0 | AF64: 0 | AG64: 0 | AH64: 0 | AI64: 0 | AJ64: 0 | AK64: 0 | AL64: 0 | AM64: 0 | AN64: 0 | AO64: 0 | AP64: 0 | AQ64: 0
A65: Other Residual Payments | C65: 0 | D65: =+$C65*D62 -> 0 | E65: 0 | F65: 0 | G65: 0 | H65: 0 | I65: 0 | J65: 0 | K65: 0 | L65: 0 | M65: 0 | N65: 0 | O65: 0 | P65: 0 | Q65: 0 | R65: 0 | S65: =+$C65*S62 -> 0 | T65: 0 | U65: 0 | V65: 0 | W65: 0 | X65: 0 | Y65: 0 | Z65: 0 | AA65: 0 | AB65: 0 | AC65: 0 | AD65: 0 | AE65: 0 | AF65: 0 | AG65: 0 | AH65: 0 | AI65: 0 | AJ65: 0 | AK65: 0 | AL65: 0 | AM65: 0 | AN65: 0 | AO65: 0 | AP65: 0 | AQ65: 0
A66: Other Residual Payments | C66: 0 | D66: =+$C66*D62 -> 0 | E66: 0 | F66: 0 | G66: 0 | H66: 0 | I66: 0 | J66: 0 | K66: 0 | L66: 0 | M66: 0 | N66: 0 | O66: 0 | P66: 0 | Q66: 0 | R66: 0 | S66: =+$C66*S62 -> 0 | T66: 0 | U66: 0 | V66: 0 | W66: 0 | X66: 0 | Y66: 0 | Z66: 0 | AA66: 0 | AB66: 0 | AC66: 0 | AD66: 0 | AE66: 0 | AF66: 0 | AG66: 0 | AH66: 0 | AI66: 0 | AJ66: 0 | AK66: 0 | AL66: 0 | AM66: 0 | AN66: 0 | AO66: 0 | AP66: 0 | AQ66: 0
A67: Other Residual Payments | C67: 0 | D67: =+$C67*D62 -> 0 | E67: =+$C67*E62 -> 0 | F67: 0 | G67: 0 | H67: 0 | I67: 0 | J67: 0 | K67: 0 | L67: 0 | M67: 0 | N67: 0 | O67: 0 | P67: 0 | Q67: 0 | R67: 0 | S67: =+$C67*S62 -> 0 | T67: 0 | U67: 0 | V67: 0 | W67: 0 | X67: 0 | Y67: 0 | Z67: 0 | AA67: 0 | AB67: 0 | AC67: 0 | AD67: 0 | AE67: 0 | AF67: 0 | AG67: 0 | AH67: 0 | AI67: 0 | AJ67: 0 | AK67: 0 | AL67: 0 | AM67: 0 | AN67: 0 | AO67: 0 | AP67: 0 | AQ67: 0
A68: Other Residual Payments | C68: 0 | D68: =+$C68*D62 -> 0 | E68: 0 | F68: 0 | G68: 0 | H68: 0 | I68: 0 | J68: 0 | K68: 0 | L68: 0 | M68: 0 | N68: 0 | O68: 0 | P68: 0 | Q68: 0 | R68: 0 | S68: =+$C68*S62 -> 0 | T68: 0 | U68: 0 | V68: 0 | W68: 0 | X68: 0 | Y68: 0 | Z68: 0 | AA68: 0 | AB68: 0 | AC68: 0 | AD68: 0 | AE68: 0 | AF68: 0 | AG68: 0 | AH68: 0 | AI68: 0 | AJ68: 0 | AK68: 0 | AL68: 0 | AM68: 0 | AN68: 0 | AO68: 0 | AP68: 0 | AQ68: 0
A70: Max Asset Mgmt/Similar Fees | C70: 0.035 | D70: ='Operating '!D133 -> 0 | E70: =(1+$C$70)*D70 -> 0 | F70: =(1+$C$70)*E70 -> 0 | G70: 0 | H70: 0 | I70: 0 | J70: 0 | K70: 0 | L70: 0 | M70: 0 | N70: 0 | O70: 0 | P70: 0 | Q70: 0 | R70: =(1+$C$70)*Q70 -> 0 | S70: 0 | T70: 0 | U70: 0 | V70: 0 | W70: 0 | X70: 0 | Y70: 0 | Z70: 0 | AA70: 0 | AB70: 0 | AC70: 0 | AD70: 0 | AE70: 0 | AF70: 0 | AG70: 0 | AH70: 0 | AI70: 0 | AJ70: 0 | AK70: 0 | AL70: 0 | AM70: 0 | AN70: 0 | AO70: 0 | AP70: 0 | AQ70: 0
A71: Cumulative paid Deferred Dev. Fee | D71: =+D60 -> 0 | E71: =+D71+E60 -> 0 | F71: 0 | G71: 0 | H71: 0 | I71: 0 | J71: 0 | K71: 0 | L71: 0 | M71: 0 | N71: 0 | O71: 0 | P71: 0 | Q71: 0 | R71: =+Q71+R60 -> 0 | S71: =+R71+S60 -> 0 | T71: 0 | U71: 0 | V71: 0 | W71: 0 | X71: 0 | Y71: 0 | Z71: 0 | AA71: 0 | AB71: 0 | AC71: 0 | AD71: 0 | AE71: 0 | AF71: 0 | AG71: 0 | AH71: 0 | AI71: 0 | AJ71: 0 | AK71: 0 | AL71: 0 | AM71: 0 | AN71: 0 | AO71: 0 | AP71: 0 | AQ71: 0
A72: Total Deferred Developer Fee budgeted for payment prior
A73: to distributions and residual receipt payments | D73: 0
A75: COSR ANALYSIS - if applicable
A76: Net Operating Income (NOI) | D76: =D43 -> 0 | E76: =E43 -> 0 | F76: 0 | G76: 0 | H76: 0 | I76: 0 | J76: 0 | K76: 0 | L76: 0 | M76: 0 | N76: 0 | O76: 0 | P76: 0 | Q76: 0 | R76: 0 | S76: 0 | T76: 0 | U76: 0 | V76: 0 | W76: 0
A77: Cash Flow after all debt service | D77: =D54 -> 0 | E77: 0 | F77: 0 | G77: 0 | H77: 0 | I77: 0 | J77: 0 | K77: 0 | L77: 0 | M77: 0 | N77: 0 | O77: 0 | P77: 0 | Q77: 0 | R77: 0 | S77: 0 | T77: 0 | U77: 0 | V77: 0 | W77: 0
A78: COSR Draw (or other) | D78: =MIN(D83,IF(OR('General '!$N$24="HHC - Hsng for Healthy Ca.",'General '!$N$29="HHC - Hsng for Healthy Ca.",'General '!$N$34="HHC - Hsng for Healthy Ca.",'General '!$N$38="HHC - Hsng for Healthy Ca.",'General '!$N$24="NPLH -No Place Like Home",'General '!$N$29="NPLH -No Place Like Home",'General '!$N$34="NPLH -No Place Like Home",'General '!$N$38="NPLH -No Place Like Home"),'HHC COSR Calculation'!F46+'NPLH COSR Calculation'!F52,0)) -> 0 | E78: =MIN(E83,IF(OR('General '!$N$24="HHC - Hsng for Healthy Ca.",'General '!$N$29="HHC - Hsng for Healthy Ca.",'General '!$N$34="HHC - Hsng for Healthy Ca.",'General '!$N$38="HHC - Hsng for Healthy Ca.",'General '!$N$24="NPLH -No Place Like Home",'General '!$N$29="NPLH -No Place Like Home",'General '!$N$34="NPLH -No Place Like Home",'General '!$N$38="NPLH -No Place Like Home"),'HHC COSR Calculation'!G46+'NPLH COSR Calculation'!G52,0)) -> 0 | F78: =MIN(F83,IF(OR('General '!$N$24="HHC - Hsng for Healthy Ca.",'General '!$N$29="HHC - Hsng for Healthy Ca.",'General '!$N$34="HHC - Hsng for Healthy Ca.",'General '!$N$38="HHC - Hsng for Healthy Ca.",'General '!$N$24="NPLH -No Place Like Home",'General '!$N$29="NPLH -No Place Like Home",'General '!$N$34="NPLH -No Place Like Home",'General '!$N$38="NPLH -No Place Like Home"),'HHC COSR Calculation'!H46+'NPLH COSR Calculation'!H52,0)) -> 0 | G78: =MIN(G83,IF(OR('General '!$N$24="HHC - Hsng for Healthy Ca.",'General '!$N$29="HHC - Hsng for Healthy Ca.",'General '!$N$34="HHC - Hsng for Healthy Ca.",'General '!$N$38="HHC - Hsng for Healthy Ca.",'General '!$N$24="NPLH -No Place Like Home",'General '!$N$29="NPLH -No Place Like Home",'General '!$N$34="NPLH -No Place Like Home",'General '!$N$38="NPLH -No Place Like Home"),'HHC COSR Calculation'!I46+'NPLH COSR Calculation'!I52,0)) -> 0 | H78: =MIN(H83,IF(OR('General '!$N$24="HHC - Hsng for Healthy Ca.",'General '!$N$29="HHC - Hsng for Healthy Ca.",'General '!$N$34="HHC - Hsng for Healthy Ca.",'General '!$N$38="HHC - Hsng for Healthy Ca.",'General '!$N$24="NPLH -No Place Like Home",'General '!$N$29="NPLH -No Place Like Home",'General '!$N$34="NPLH -No Place Like Home",'General '!$N$38="NPLH -No Place Like Home"),'HHC COSR Calculation'!J46+'NPLH COSR Calculation'!J52,0)) -> 0 | I78: =MIN(I83,IF(OR('General '!$N$24="HHC - Hsng for Healthy Ca.",'General '!$N$29="HHC - Hsng for Healthy Ca.",'General '!$N$34="HHC - Hsng for Healthy Ca.",'General '!$N$38="HHC - Hsng for Healthy Ca.",'General '!$N$24="NPLH -No Place Like Home",'General '!$N$29="NPLH -No Place Like Home",'General '!$N$34="NPLH -No Place Like Home",'General '!$N$38="NPLH -No Place Like Home"),'HHC COSR Calculation'!K46+'NPLH COSR Calculation'!K52,0)) -> 0 | J78: =MIN(J83,IF(OR('General '!$N$24="HHC - Hsng for Healthy Ca.",'General '!$N$29="HHC - Hsng for Healthy Ca.",'General '!$N$34="HHC - Hsng for Healthy Ca.",'General '!$N$38="HHC - Hsng for Healthy Ca.",'General '!$N$24="NPLH -No Place Like Home",'General '!$N$29="NPLH -No Place Like Home",'General '!$N$34="NPLH -No Place Like Home",'General '!$N$38="NPLH -No Place Like Home"),'HHC COSR Calculation'!L46+'NPLH COSR Calculation'!L52,0)) -> 0 | K78: =MIN(K83,IF(OR('General '!$N$24="HHC - Hsng for Healthy Ca.",'General '!$N$29="HHC - Hsng for Healthy Ca.",'General '!$N$34="HHC - Hsng for Healthy Ca.",'General '!$N$38="HHC - Hsng for Healthy Ca.",'General '!$N$24="NPLH -No Place Like Home",'General '!$N$29="NPLH -No Place Like Home",'General '!$N$34="NPLH -No Place Like Home",'General '!$N$38="NPLH -No Place Like Home"),'HHC COSR Calculation'!M46+'NPLH COSR Calculation'!M52,0)) -> 0 | L78: =MIN(L83,IF(OR('General '!$N$24="HHC - Hsng for Healthy Ca.",'General '!$N$29="HHC - Hsng for Healthy Ca.",'General '!$N$34="HHC - Hsng for Healthy Ca.",'General '!$N$38="HHC - Hsng for Healthy Ca.",'General '!$N$24="NPLH -No Place Like Home",'General '!$N$29="NPLH -No Place Like Home",'General '!$N$34="NPLH -No Place Like Home",'General '!$N$38="NPLH -No Place Like Home"),'HHC COSR Calculation'!N46+'NPLH COSR Calculation'!N52,0)) -> 0 | M78: =MIN(M83,IF(OR('General '!$N$24="HHC - Hsng for Healthy Ca.",'General '!$N$29="HHC - Hsng for Healthy Ca.",'General '!$N$34="HHC - Hsng for Healthy Ca.",'General '!$N$38="HHC - Hsng for Healthy Ca.",'General '!$N$24="NPLH -No Place Like Home",'General '!$N$29="NPLH -No Place Like Home",'General '!$N$34="NPLH -No Place Like Home",'General '!$N$38="NPLH -No Place Like Home"),'HHC COSR Calculation'!O46+'NPLH COSR Calculation'!O52,0)) -> 0 | N78: =MIN(N83,IF(OR('General '!$N$24="HHC - Hsng for Healthy Ca.",'General '!$N$29="HHC - Hsng for Healthy Ca.",'General '!$N$34="HHC - Hsng for Healthy Ca.",'General '!$N$38="HHC - Hsng for Healthy Ca.",'General '!$N$24="NPLH -No Place Like Home",'General '!$N$29="NPLH -No Place Like Home",'General '!$N$34="NPLH -No Place Like Home",'General '!$N$38="NPLH -No Place Like Home"),'HHC COSR Calculation'!P46+'NPLH COSR Calculation'!P52,0)) -> 0 | O78: =MIN(O83,IF(OR('General '!$N$24="HHC - Hsng for Healthy Ca.",'General '!$N$29="HHC - Hsng for Healthy Ca.",'General '!$N$34="HHC - Hsng for Healthy Ca.",'General '!$N$38="HHC - Hsng for Healthy Ca.",'General '!$N$24="NPLH -No Place Like Home",'General '!$N$29="NPLH -No Place Like Home",'General '!$N$34="NPLH -No Place Like Home",'General '!$N$38="NPLH -No Place Like Home"),'HHC COSR Calculation'!Q46+'NPLH COSR Calculation'!Q52,0)) -> 0 | P78: =MIN(P83,IF(OR('General '!$N$24="HHC - Hsng for Healthy Ca.",'General '!$N$29="HHC - Hsng for Healthy Ca.",'General '!$N$34="HHC - Hsng for Healthy Ca.",'General '!$N$38="HHC - Hsng for Healthy Ca.",'General '!$N$24="NPLH -No Place Like Home",'General '!$N$29="NPLH -No Place Like Home",'General '!$N$34="NPLH -No Place Like Home",'General '!$N$38="NPLH -No Place Like Home"),'HHC COSR Calculation'!R46+'NPLH COSR Calculation'!R52,0)) -> 0 | Q78: =MIN(Q83,IF(OR('General '!$N$24="HHC - Hsng for Healthy Ca.",'General '!$N$29="HHC - Hsng for Healthy Ca.",'General '!$N$34="HHC - Hsng for Healthy Ca.",'General '!$N$38="HHC - Hsng for Healthy Ca.",'General '!$N$24="NPLH -No Place Like Home",'General '!$N$29="NPLH -No Place Like Home",'General '!$N$34="NPLH -No Place Like Home",'General '!$N$38="NPLH -No Place Like Home"),'HHC COSR Calculation'!S46+'NPLH COSR Calculation'!S52,0)) -> 0 | R78: =MIN(R83,IF(OR('General '!$N$24="HHC - Hsng for Healthy Ca.",'General '!$N$29="HHC - Hsng for Healthy Ca.",'General '!$N$34="HHC - Hsng for Healthy Ca.",'General '!$N$38="HHC - Hsng for Healthy Ca.",'General '!$N$24="NPLH -No Place Like Home",'General '!$N$29="NPLH -No Place Like Home",'General '!$N$34="NPLH -No Place Like Home",'General '!$N$38="NPLH -No Place Like Home"),'HHC COSR Calculation'!T46+'NPLH COSR Calculation'!T52,0)) -> 0 | S78: =MIN(S83,IF(OR('General '!$N$24="HHC - Hsng for Healthy Ca.",'General '!$N$29="HHC - Hsng for Healthy Ca.",'General '!$N$34="HHC - Hsng for Healthy Ca.",'General '!$N$38="HHC - Hsng for Healthy Ca.",'General '!$N$24="NPLH -No Place Like Home",'General '!$N$29="NPLH -No Place Like Home",'General '!$N$34="NPLH -No Place Like Home",'General '!$N$38="NPLH -No Place Like Home"),'HHC COSR Calculation'!U46+'NPLH COSR Calculation'!U52,0)) -> 0 | T78: =MIN(T83,IF(OR('General '!$N$24="HHC - Hsng for Healthy Ca.",'General '!$N$29="HHC - Hsng for Healthy Ca.",'General '!$N$34="HHC - Hsng for Healthy Ca.",'General '!$N$38="HHC - Hsng for Healthy Ca.",'General '!$N$24="NPLH -No Place Like Home",'General '!$N$29="NPLH -No Place Like Home",'General '!$N$34="NPLH -No Place Like Home",'General '!$N$38="NPLH -No Place Like Home"),'HHC COSR Calculation'!V46+'NPLH COSR Calculation'!V52,0)) -> 0 | U78: =MIN(U83,IF(OR('General '!$N$24="HHC - Hsng for Healthy Ca.",'General '!$N$29="HHC - Hsng for Healthy Ca.",'General '!$N$34="HHC - Hsng for Healthy Ca.",'General '!$N$38="HHC - Hsng for Healthy Ca.",'General '!$N$24="NPLH -No Place Like Home",'General '!$N$29="NPLH -No Place Like Home",'General '!$N$34="NPLH -No Place Like Home",'General '!$N$38="NPLH -No Place Like Home"),'HHC COSR Calculation'!W46+'NPLH COSR Calculation'!W52,0)) -> 0 | V78: =MIN(V83,IF(OR('General '!$N$24="HHC - Hsng for Healthy Ca.",'General '!$N$29="HHC - Hsng for Healthy Ca.",'General '!$N$34="HHC - Hsng for Healthy Ca.",'General '!$N$38="HHC - Hsng for Healthy Ca.",'General '!$N$24="NPLH -No Place Like Home",'General '!$N$29="NPLH -No Place Like Home",'General '!$N$34="NPLH -No Place Like Home",'General '!$N$38="NPLH -No Place Like Home"),'HHC COSR Calculation'!X46+'NPLH COSR Calculation'!X52,0)) -> 0 | W78: =MIN(W83,IF(OR('General '!$N$24="HHC - Hsng for Healthy Ca.",'General '!$N$29="HHC - Hsng for Healthy Ca.",'General '!$N$34="HHC - Hsng for Healthy Ca.",'General '!$N$38="HHC - Hsng for Healthy Ca.",'General '!$N$24="NPLH -No Place Like Home",'General '!$N$29="NPLH -No Place Like Home",'General '!$N$34="NPLH -No Place Like Home",'General '!$N$38="NPLH -No Place Like Home"),'HHC COSR Calculation'!Y46+'NPLH COSR Calculation'!Y52,0)) -> 0
A79: Cash Flow after COSR | D79: =D77+D78 -> 0 | E79: =E77+E78 -> 0 | F79: 0 | G79: 0 | H79: 0 | I79: 0 | J79: 0 | K79: 0 | L79: 0 | M79: 0 | N79: 0 | O79: 0 | P79: 0 | Q79: 0 | R79: 0 | S79: 0 | T79: 0 | U79: 0 | V79: 0 | W79: 0
A80: Net Operating Income after COSR | D80: =D76+D78 -> 0 | E80: 0 | F80: 0 | G80: 0 | H80: 0 | I80: 0 | J80: 0 | K80: 0 | L80: 0 | M80: 0 | N80: 0 | O80: 0 | P80: 0 | Q80: 0 | R80: 0 | S80: 0 | T80: 0 | U80: 0 | V80: 0 | W80: 0
A81: DSCR with COSR | D81: =IF(D51<=0,0,((D76+D78)/D51)) -> 0 | E81: =IF(E51<=0,0,((E76+E78)/E51)) -> 0 | F81: 0 | G81: 0 | H81: 0 | I81: 0 | J81: 0 | K81: 0 | L81: 0 | M81: 0 | N81: 0 | O81: 0 | P81: 0 | Q81: 0 | R81: 0 | S81: 0 | T81: 0 | U81: 0 | V81: 0 | W81: 0
A82: NOI to get to 1.2 DSCR | D82: =D51*1.2 -> 0 | E82: =E51*1.1 -> 0 | F82: =F51*1.1 -> 0 | G82: 0 | H82: 0 | I82: 0 | J82: 0 | K82: 0 | L82: 0 | M82: 0 | N82: 0 | O82: 0 | P82: 0 | Q82: 0 | R82: 0 | S82: 0
A83: NOI to get to 1.2 DSCR - NOI | D83: =IF(D82-D76<0,0,D82-D76) -> 0 | E83: =IF(E82-E76<0,0,E82-E76) -> 0 | F83: 0 | G83: 0 | H83: 0 | I83: 0 | J83: 0 | K83: 0 | L83: 0 | M83: 0 | N83: 0 | O83: 0 | P83: 0 | Q83: 0 | R83: 0 | S83: =S82-S76 -> 0

Sheet HHC COSR Calculation
A1: =CONCATENATE('General '!A45," HHC Article 1 Cash Flow (CF) for COSR") -> HHC Article 1 Cash Flow (CF) for COSR
A2: Total Number of Manager Units: | D2: Anticipated Tax Credits in Project: | J2: Project County: | L2: =IF('General '!AI45="","",'General '!AI45) -> 
A3: Total HHC Assisted Units: | C3: ='HHC Rents'!D48 -> 0
A4: Total Units: | C4: ='Rents '!D125 -> 0 | D4: AMI Level | E4: Loan Limit 0 Bedroom | F4: # of 0 Bedroom Units | G4: Total Loan 0 Bedrooms | H4: Loan Limit 1 Bedroom | I4: # of 1 Bedroom Units | J4: Total Loan 1 Bedroom | K4: Loan Limit 2 Bedroom | L4: # of 2 Bedroom Units | M4: Total Loan 2 Bedroom | N4: Loan Limit 3 Bedroom | O4: # of 3 Bedroom Units | P4: Total Loan 3 Bedroom | Q4: Loan Limit 4+ Bedroom | R4: # of 4 Bedroom Units | S4: Total Loan 4+ Bedroom
A5: Max HHC Assist. Units §102(e)(2) | C5: =IF(C4>20,ROUNDDOWN(C4*0.49,0),C4) -> 0
A6: COSR Per Unit Total §103(a)(5) | C6: =T10 -> 0 | D6: 30% | E6: =IF(OR($H$2="",$L$2=""),"",IF($H$2="9%",VLOOKUP(V6,'HHC COSR PU Amounts'!$A$1:$K$233,2,FALSE),VLOOKUP(V6,'HHC COSR PU Amounts'!$A$1:$K$233,7,FALSE))) ->  | G6: =IF(E6="","",E6*F6) ->  | H6: =IF(OR($H$2="",$L$2=""),"",IF($H$2="9%",VLOOKUP(V6,'HHC COSR PU Amounts'!$A$1:$K$233,3,FALSE),VLOOKUP(V6,'HHC COSR PU Amounts'!$A$1:$K$233,8,FALSE))) ->  | J6: =IF(H6="","",H6*I6) ->  | K6: =IF(OR($H$2="",$L$2=""),"",IF($H$2="9%",VLOOKUP(V6,'HHC COSR PU Amounts'!$A$1:$K$233,4,FALSE),VLOOKUP(V6,'HHC COSR PU Amounts'!$A$1:$K$233,9,FALSE))) ->  | M6: =IF(K6="","",K6*L6) ->  | N6: =IF(OR($H$2="",$L$2=""),"",IF($H$2="9%",VLOOKUP(V6,'HHC COSR PU Amounts'!$A$1:$K$233,5,FALSE),VLOOKUP(V6,'HHC COSR PU Amounts'!$A$1:$K$233,10,FALSE))) ->  | P6: =IF(N6="","",N6*O6) ->  | Q6: =IF(OR($H$2="",$L$2=""),"",IF($H$2="9%",VLOOKUP(V6,'HHC COSR PU Amounts'!$A$1:$K$233,6,FALSE),VLOOKUP(V6,'HHC COSR PU Amounts'!$A$1:$K$233,11,FALSE))) ->  | S6: =IF(Q6="","",Q6*R6) ->  | V6: =CONCATENATE($L$2,D6) -> 30%
A7: COSR CF Total §108(b) | C7: =-SUMIF(F41:T41,"<0") -> 0 | D7: 25% | E7: =IF(OR($H$2="",$L$2=""),"",IF($H$2="9%",VLOOKUP(V7,'HHC COSR PU Amounts'!$A$1:$K$233,2,FALSE),VLOOKUP(V7,'HHC COSR PU Amounts'!$A$1:$K$233,7,FALSE))) ->  | G7: =IF(E7="","",E7*F7) ->  | H7: =IF(OR($H$2="",$L$2=""),"",IF($H$2="9%",VLOOKUP(V7,'HHC COSR PU Amounts'!$A$1:$K$233,3,FALSE),VLOOKUP(V7,'HHC COSR PU Amounts'!$A$1:$K$233,8,FALSE))) ->  | J7: =IF(H7="","",H7*I7) ->  | K7: =IF(OR($H$2="",$L$2=""),"",IF($H$2="9%",VLOOKUP(V7,'HHC COSR PU Amounts'!$A$1:$K$233,4,FALSE),VLOOKUP(V7,'HHC COSR PU Amounts'!$A$1:$K$233,9,FALSE))) ->  | M7: =IF(K7="","",K7*L7) ->  | N7: =IF(OR($H$2="",$L$2=""),"",IF($H$2="9%",VLOOKUP(V7,'HHC COSR PU Amounts'!$A$1:$K$233,5,FALSE),VLOOKUP(V7,'HHC COSR PU Amounts'!$A$1:$K$233,10,FALSE))) ->  | P7: =IF(N7="","",N7*O7) ->  | Q7: =IF(OR($H$2="",$L$2=""),"",IF($H$2="9%",VLOOKUP(V7,'HHC COSR PU Amounts'!$A$1:$K$233,6,FALSE),VLOOKUP(V7,'HHC COSR PU Amounts'!$A$1:$K$233,11,FALSE))) ->  | S7: =IF(Q7="","",Q7*R7) ->  | V7: =CONCATENATE($L$2,D7) -> 25%
A8: COSR (lesser of Per Unit or CF) | C8: =MIN(C6,C7) -> 0 | D8: 20% | E8: =IF(OR($H$2="",$L$2=""),"",IF($H$2="9%",VLOOKUP(V8,'HHC COSR PU Amounts'!$A$1:$K$233,2,FALSE),VLOOKUP(V8,'HHC COSR PU Amounts'!$A$1:$K$233,7,FALSE))) ->  | H8: =IF(OR($H$2="",$L$2=""),"",IF($H$2="9%",VLOOKUP(V8,'HHC COSR PU Amounts'!$A$1:$K$233,3,FALSE),VLOOKUP(V8,'HHC COSR PU Amounts'!$A$1:$K$233,8,FALSE))) ->  | K8: =IF(OR($H$2="",$L$2=""),"",IF($H$2="9%",VLOOKUP(V8,'HHC COSR PU Amounts'!$A$1:$K$233,4,FALSE),VLOOKUP(V8,'HHC COSR PU Amounts'!$A$1:$K$233,9,FALSE))) ->  | N8: =IF(OR($H$2="",$L$2=""),"",IF($H$2="9%",VLOOKUP(V8,'HHC COSR PU Amounts'!$A$1:$K$233,5,FALSE),VLOOKUP(V8,'HHC COSR PU Amounts'!$A$1:$K$233,10,FALSE))) ->  | Q8: =IF(OR($H$2="",$L$2=""),"",IF($H$2="9%",VLOOKUP(V8,'HHC COSR PU Amounts'!$A$1:$K$233,6,FALSE),VLOOKUP(V8,'HHC COSR PU Amounts'!$A$1:$K$233,11,FALSE))) ->  | V8: =CONCATENATE($L$2,D8) -> 20%
A9: COSR 5% Max §108(e) | C9: =MIN(C6,C8)*0.05 -> 0 | D9: 15% | E9: =IF(OR($H$2="",$L$2=""),"",IF($H$2="9%",VLOOKUP(V9,'HHC COSR PU Amounts'!$A$1:$K$233,2,FALSE),VLOOKUP(V9,'HHC COSR PU Amounts'!$A$1:$K$233,7,FALSE))) ->  | H9: =IF(OR($H$2="",$L$2=""),"",IF($H$2="9%",VLOOKUP(V9,'HHC COSR PU Amounts'!$A$1:$K$233,3,FALSE),VLOOKUP(V9,'HHC COSR PU Amounts'!$A$1:$K$233,8,FALSE))) ->  | K9: =IF(OR($H$2="",$L$2=""),"",IF($H$2="9%",VLOOKUP(V9,'HHC COSR PU Amounts'!$A$1:$K$233,4,FALSE),VLOOKUP(V9,'HHC COSR PU Amounts'!$A$1:$K$233,9,FALSE))) ->  | N9: =IF(OR($H$2="",$L$2=""),"",IF($H$2="9%",VLOOKUP(V9,'HHC COSR PU Amounts'!$A$1:$K$233,5,FALSE),VLOOKUP(V9,'HHC COSR PU Amounts'!$A$1:$K$233,10,FALSE))) ->  | Q9: =IF(OR($H$2="",$L$2=""),"",IF($H$2="9%",VLOOKUP(V9,'HHC COSR PU Amounts'!$A$1:$K$233,6,FALSE),VLOOKUP(V9,'HHC COSR PU Amounts'!$A$1:$K$233,11,FALSE))) ->  | V9: =CONCATENATE($L$2,D9) -> 15%
A10: COSR 7% Max §108(e) | C10: =MIN(C6,C8)*0.07 -> 0 | D10: =SUM(F6:F9)+SUM(I6:I9)+SUM(L6:L9)+SUM(O6:O9)+SUM(R6:R9) -> 0 | E10: Efficiency: | F10: =SUM(F6:F9) -> 0 | G10: =SUM(G6:G9) -> 0 | H10: 1 Bedroom: | I10: =SUM(I6:I9) -> 0 | J10: =SUM(J6:J9) -> 0 | K10: 2 Bedroom: | L10: =SUM(L6:L9) -> 0 | M10: =SUM(M6:M9) -> 0 | N10: 3 Bedroom: | O10: =SUM(O6:O9) -> 0 | P10: =SUM(P6:P9) -> 0 | Q10: 4+ Bedrm: | R10: =SUM(R6:R9) -> 0 | S10: =SUM(S6:S9) -> 0 | T10: =G10+J10+M10+P10+S10 -> 0
A11: INCOME FROM HOUSING UNITS | C11: Project Amount | D11: Proration | E11: Inflation | F11: Year 1 | G11: Year 2 | H11: Year 3 | I11: Year 4 | J11: Year 5 | K11: Year 6 | L11: Year 7 | M11: Year 8 | N11: Year 9 | O11: Year 10 | P11: Year 11 | Q11: Year 12 | R11: Year 13 | S11: Year 14 | T11: Year 15
A12: Proposed HHC Assisted Unit Rents | D12: =IF($C$4=0,0,$C$3/($C$4-$C$2)) -> 0 | E12: 0.025 | F12: =IF('Cash Flow'!K3=1,'HHC Rents'!J48*12,'HHC Rents'!I48*12) -> 0 | G12: =F12*(1+$E12) -> 0 | H12: 0 | I12: 0 | J12: 0 | K12: 0 | L12: 0 | M12: 0 | N12: 0 | O12: 0 | P12: 0 | Q12: 0 | R12: 0 | S12: 0 | T12: 0
A13: Tenant Assistance Payments
A14: Program: | B14: =IF(ISTEXT(Subsidies!F13),Subsidies!F13," ") ->  | C14: ='Operating '!D36 -> 0 | D14: =$D$12 -> 0 | E14: 0.025 | F14: =IF(C14=0,0,C14*D14) -> 0 | G14: =F14*(1+$E14) -> 0 | H14: =G14*(1+$E14) -> 0 | I14: 0 | J14: 0 | K14: 0 | L14: 0 | M14: 0 | N14: 0 | O14: 0 | P14: 0 | Q14: 0 | R14: 0 | S14: 0 | T14: 0
A15: Program: | B15: =IF(ISTEXT(Subsidies!K13),Subsidies!K13," ") ->  | C15: ='Operating '!D37 -> 0 | D15: =$D$12 -> 0 | E15: 0.025 | F15: =IF(C15=0,0,C15*D15) -> 0 | G15: =F15*(1+$E15) -> 0 | H15: 0 | I15: 0 | J15: 0 | K15: 0 | L15: 0 | M15: 0 | N15: 0 | O15: 0 | P15: 0 | Q15: 0 | R15: 0 | S15: 0 | T15: 0
A16: ='Operating '!C38 -> Operating Subsidies | C16: ='Operating '!D38 -> 0 | D16: =$D$12 -> 0 | E16: 0.025 | F16: =IF(C16=0,0,C16*D16) -> 0 | G16: =F16*(1+$E16) -> 0 | H16: 0 | I16: 0 | J16: 0 | K16: 0 | L16: 0 | M16: 0 | N16: 0 | O16: 0 | P16: 0 | Q16: 0 | R16: 0 | S16: 0 | T16: 0
A17: ='Operating '!C39 -> Other: (specify) | C17: ='Operating '!D39 -> 0 | D17: =$D$12 -> 0 | E17: 0.025 | F17: =IF(C17=0,0,C17*D17) -> 0 | G17: =F17*(1+$E17) -> 0 | H17: 0 | I17: 0 | J17: 0 | K17: 0 | L17: 0 | M17: 0 | N17: 0 | O17: 0 | P17: 0 | Q17: 0 | R17: 0 | S17: 0 | T17: 0
A18: GROSS POTENTIAL INCOME - HOUSING | F18: =SUM(F12:F17) -> 0 | G18: 0 | H18: 0 | I18: 0 | J18: 0 | K18: 0 | L18: 0 | M18: 0 | N18: 0 | O18: 0 | P18: 0 | Q18: 0 | R18: 0 | S18: 0 | T18: 0
A20: OTHER INCOME | C20: Project Amount | D20: Proration | E20: Inflation
A21: Laundry & Vending | C21: ='Operating '!D40 -> 0 | D21: =$D$12 -> 0 | E21: 0.025 | F21: =IF(C21=0,0,C21*D21) -> 0 | G21: =F21*(1+$E21) -> 0 | H21: 0 | I21: 0 | J21: 0 | K21: 0 | L21: 0 | M21: 0 | N21: 0 | O21: 0 | P21: 0 | Q21: 0 | R21: 0 | S21: 0 | T21: 0
A22: Other Income | C22: ='Operating '!D41+'Operating '!D42 -> 0 | D22: =$D$12 -> 0 | E22: 0.025 | F22: =IF(C22=0,0,C22*D22) -> 0 | G22: 0 | H22: 0 | I22: 0 | J22: 0 | K22: 0 | L22: 0 | M22: 0 | N22: 0 | O22: 0 | P22: 0 | Q22: 0 | R22: 0 | S22: 0 | T22: 0
A23: GROSS POTENTIAL INCOME - OTHER | F23: =SUM(F21:F22) -> 0 | G23: 0 | H23: 0 | I23: 0 | J23: 0 | K23: 0 | L23: 0 | M23: 0 | N23: 0 | O23: 0 | P23: 0 | Q23: 0 | R23: 0 | S23: 0 | T23: 0
A24: GROSS POTENTIAL INCOME - TOTAL | F24: =F18+F23 -> 0 | G24: 0 | H24: 0 | I24: 0 | J24: 0 | K24: 0 | L24: 0 | M24: 0 | N24: 0 | O24: 0 | P24: 0 | Q24: 0 | R24: 0 | S24: 0 | T24: 0
A26: VACANCY ASSUMPTIONS
A27: HHC Assisted Units vacancy rate | F27: 0.1 | G27: 0.1 | H27: 0.1 | I27: 0.1 | J27: 0.1 | K27: 0.1 | L27: 0.1 | M27: 0.1 | N27: 0.1 | O27: 0.1 | P27: 0.1 | Q27: 0.1 | R27: 0.1 | S27: 0.1 | T27: 0.1
A28: HHC Assisted Units | F28: =F12*F27 -> 0 | G28: 0 | H28: 0 | I28: 0 | J28: 0 | K28: 0 | L28: 0 | M28: 0 | N28: 0 | O28: 0 | P28: 0 | Q28: 0 | R28: 0 | S28: 0 | T28: 0
A29: Tenant Assistance Payments | E29: ='Operating '!D47 -> 0.05 | F29: =$E$29*(F14+F15) -> 0 | G29: =$E$29*(G14+G15) -> 0 | H29: 0 | I29: 0 | J29: 0 | K29: 0 | L29: 0 | M29: 0 | N29: 0 | O29: 0 | P29: 0 | Q29: 0 | R29: 0 | S29: 0 | T29: 0
A30: =A17 -> Other: (specify) | E30: ='Operating '!D48 -> 0.05 | F30: =+$E30*F17 -> 0 | G30: 0 | H30: 0 | I30: 0 | J30: 0 | K30: 0 | L30: 0 | M30: 0 | N30: 0 | O30: 0 | P30: 0 | Q30: 0 | R30: 0 | S30: 0 | T30: 0
A31: Laundry, Vending & Other Income | E31: ='Operating '!D49 -> 0.05 | F31: =+$E31*(F21+F22) -> 0 | G31: 0 | H31: 0 | I31: 0 | J31: 0 | K31: 0 | L31: 0 | M31: 0 | N31: 0 | O31: 0 | P31: 0 | Q31: 0 | R31: 0 | S31: 0 | T31: 0
A32: TOTAL VACANCY LOSS | F32: =SUM(F28:F31) -> 0 | G32: 0 | H32: 0 | I32: 0 | J32: 0 | K32: 0 | L32: 0 | M32: 0 | N32: 0 | O32: 0 | P32: 0 | Q32: 0 | R32: 0 | S32: 0 | T32: 0
A33: EFFECTIVE GROSS INCOME | F33: =F24-F32 -> 0 | G33: 0 | H33: 0 | I33: 0 | J33: 0 | K33: 0 | L33: 0 | M33: 0 | N33: 0 | O33: 0 | P33: 0 | Q33: 0 | R33: 0 | S33: 0 | T33: 0
A35: OP. EXP. & RESERVE DEPOSITS | C35: Project Amount | D35: Proration | E35: Inflation
A36: Residential Expenses (w/o RE Taxes & Supportive Services Costs) | C36: ='Operating '!D110-'Operating '!D92-'Operating '!D108 -> 0 | D36: =$D$12 -> 0 | E36: 0.035 | F36: =IF(C36=0,0,C36*D36) -> 0 | G36: =F36*(1+$E36) -> 0 | H36: 0 | I36: 0 | J36: 0 | K36: 0 | L36: 0 | M36: 0 | N36: 0 | O36: 0 | P36: 0 | Q36: 0 | R36: 0 | S36: 0 | T36: 0
A37: Real Estate Taxes | C37: ='Operating '!D92 -> 0 | D37: =$D$12 -> 0 | E37: 0.02 | F37: =IF(C37=0,0,C37*D37) -> 0 | G37: 0 | H37: 0 | I37: 0 | J37: 0 | K37: 0 | L37: 0 | M37: 0 | N37: 0 | O37: 0 | P37: 0 | Q37: 0 | R37: 0 | S37: 0 | T37: 0
A38: HCD Required Replacement Reserve Deposits | C38: ='Operating '!D112 -> 0 | D38: =$D$12 -> 0 | E38: ='Cash Flow'!C37 -> 0 | F38: =IF(C38=0,0,C38*D38) -> 0 | G38: 0 | H38: 0 | I38: 0 | J38: 0 | K38: 0 | L38: 0 | M38: 0 | N38: 0 | O38: 0 | P38: 0 | Q38: 0 | R38: 0 | S38: 0 | T38: 0
A39: HCD Required Other Reserve Deposits | C39: ='Operating '!D113+'Operating '!D114+'Operating '!D115 -> 0 | D39: =$D$12 -> 0 | E39: ='Cash Flow'!C38 -> 0 | F39: =IF(D39=0,0,C39*D39) -> 0 | G39: 0 | H39: 0 | I39: 0 | J39: 0 | K39: 0 | L39: 0 | M39: 0 | N39: 0 | O39: 0 | P39: 0 | Q39: 0 | R39: 0 | S39: 0 | T39: 0
A40: TOTAL OPERATING EXPENSES & RESERVES | F40: =SUM(F36:F39) -> 0 | G40: 0 | H40: 0 | I40: 0 | J40: 0 | K40: 0 | L40: 0 | M40: 0 | N40: 0 | O40: 0 | P40: 0 | Q40: 0 | R40: 0 | S40: 0 | T40: 0
A41: HHC NET OPERATING INCOME - CASH FLOW | F41: =F33-F40 -> 0 | G41: 0 | H41: 0 | I41: 0 | J41: 0 | K41: 0 | L41: 0 | M41: 0 | N41: 0 | O41: 0 | P41: 0 | Q41: 0 | R41: 0 | S41: 0 | T41: 0
A42: HHC CASH FLOW
A43: HHC - COSR DISTRIBUTIONS (5% max per year) | F43: =IF(F41<0,MIN($C$9,-F41),0) -> 0 | G43: 0 | H43: 0 | I43: 0 | J43: 0 | K43: 0 | L43: 0 | M43: 0 | N43: 0 | O43: 0 | P43: 0 | Q43: 0 | R43: 0 | S43: 0 | T43: 0
A44: COSR distributions cumulative | F44: =F43 -> 0 | G44: =F44+G43 -> 0 | H44: =G44+H43 -> 0 | I44: 0 | J44: 0 | K44: 0 | L44: 0 | M44: 0 | N44: 0 | O44: 0 | P44: 0 | Q44: 0 | R44: 0 | S44: 0 | T44: 0
A45: Cash Flow with COSR distribution | F45: =F41+F43 -> 0 | G45: 0 | H45: 0 | I45: 0 | J45: 0 | K45: 0 | L45: 0 | M45: 0 | N45: 0 | O45: 0 | P45: 0 | Q45: 0 | R45: 0 | S45: 0 | T45: 0
A46: HHC - COSR DISTRIBUTIONS (7% max per year) | F46: =IF(F41<0,MIN($C$10,-F41),0) -> 0 | G46: 0 | H46: 0 | I46: 0 | J46: 0 | K46: 0 | L46: 0 | M46: 0 | N46: 0 | O46: 0 | P46: 0 | Q46: 0 | R46: 0 | S46: 0 | T46: 0
A47: COSR distributions cumulative | F47: =F46 -> 0 | G47: =F47+G46 -> 0 | H47: 0 | I47: 0 | J47: 0 | K47: 0 | L47: 0 | M47: 0 | N47: 0 | O47: 0 | P47: 0 | Q47: 0 | R47: 0 | S47: 0 | T47: 0
A48: Cash Flow with COSR distribution | F48: =F41+F46 -> 0 | G48: 0 | H48: 0 | I48: 0 | J48: 0 | K48: 0 | L48: 0 | M48: 0 | N48: 0 | O48: 0 | P48: 0 | Q48: 0 | R48: 0 | S48: 0 | T48: 0
A49: Proration % Explanation and Comments

Sheet UA Mapping (hidden)
A1: General | AG1: Site&Unit | BB1: Misc. | CK1: Rents | CQ1: Subsidies | DC1: Dev Sources | DE1: Dev Budget | DF1: TBL& High Cost Test | DI1: Reserves | DL1: Operating
A2: APP_DATE | B2: NAME_HCD_FUND | C2: AMOUNT | D2: NAME_HCD_FUND | E2: AMOUNT | F2: PROJECT_NAME | G2: PR_ADDRESS | H2: PR_CITY | I2: PR_ZIPCODE | J2: PR_COUNTY | K2: Development_type | L2: Age_Restrictions | M2: Special_Fa cility_Type | N2: Tenure_Type | O2: APN(s) | P2: Census_Tracts | Q2: #_of_Units | R2: LIHTC_Units | S2: Project_Site_Area_Acres | T2: Units_per_Acre | U2: Multiple Parcels? | V2: Relocation Req'd.? | W2: Commercial Space? | X2: Rental Subsidy? | Y2: HUD 811 Project? | Z2: Legal Name of Organization | AA2: Congressperson Name | AB2: District # | AC2: State Senator Name(s)1 | AD2: District # | AE2: State Senator Name(s)2 | AF2: District # | AG2: Site address or location: | AH2: Type of Site Control | AI2: Dated | AJ2: Purchase Price | AK2: Total Land Area | AL2: Ground Lease Planned? | AM2: Term | AN2: Current Use | AO2: Demolition Planned? | AP2: Total_#_Units(Existing) | AQ2: Total_#_Units(Proposed) | AR2: Total_#_buildings(Existing) | AS2: Total_#_buildings(Proposed) | AT2: Total_#_Mgr.Units(Exisitng) | AU2: Total_#_Mgr.Units(Proposed) | AV2: Total_#_Parking_Spaces(existig) | AW2: Total_#_Parking_Spaces(Proposed) | AX2: New_Construction_Units | AY2: New_Construction_Bldgs | AZ2: Rehab_Units | BA2: Rehab_Bldgs | BB2: Residential Units | BC2: Community Room | BD2: Leasing Office | BE2: Additional Storage Space | BF2: Subtotal | BG2: Maintenance Shop | BH2: Childcare Center | BI2: Service Area | BJ2: Service Office | BK2: Other | BL2: Total_res_SF | BM2: Uncovered Tenant Parking | BN2: Covered Tenant Parking | BO2: Enclosed Tenant Parking | BP2: Tenant Guest Spaces | BQ2: Subtotal_Parking_Space | BR2: Extra_Uncovered Parking | BS2: Extra_Covered Parking | BT2: Extra_Enclosed Parking | BU2: Grand_total_Parking_Space | BV2: Total Handicap Parking Spaces | BW2: Commercial Area | BX2: Offices | BY2: Childcare Center | BZ2: Storage Space | CA2: other | CB2: Total_Commerical_SF | CC2: Total_Spaces | CD2: Annual Total Laundry Income | CE2: Tenant Rental Spaces | CF2: Annual Residential Parking Income | CG2: Number of Rental Spaces | CH2: Annual Commercial Parking Income | CI2: Total Income from Other Leased Spaces | CJ2: Source for Utility Allowances_Name | CK2: Total Restricted Units | CL2: Monthly Rental Income from Restricted Units_Proposed | CM2: Monthly Rental Income from Restricted Units_Max_Rent | CN2: Total Unrestricted Units | CO2: Total Units | CP2: subtotal | CQ2: Subsidy Program Name: | CR2: Subsidy Program Name2: | CS2: Subsidy Program Name3: | CT2: Subsidy Program Name4: | CU2: Total_Units_Subsidized | CV2: Total_Monthly_Subsidy | CW2: Total_Units_Subsidized 2 | CX2: Total_Monthly_Subsidy2 | CY2: Subsidy Program Name | CZ2: Subsidy Program Name2 | DA2: Subsidy Program Name3 | DB2: Subsidy Program Name4 | DC2: TOTALS | DD2: Construction Totals | DE2: Deferred or Contributed Developer Fee | DF2: Adj. Threshold Basis Limit multiplied by 160%: | DG2: HCD HIGH COST TEST RESULT: | DH2: Total Eligible Basis (Dev Budget F116) | DI2: HCD Required Replacement Reserve Amount | DJ2: HCD Required Operating Reserve Amount | DK2: HCD Required Operating Reserve Amount (Non-Tax Credit Project - 4 months) - | DL2: FTE_onSite_mrg | DM2: FTE_On)Site)Assist)mrg | DN2: FTE_SS_Staff_Sup | DO2: FTE_SSC | DP2: FTE_Case_manager | DQ2: FTE_Mainenance_on_site | DR2: FTE_On_Site_leasing_agent | DS2: FTE_Security_employee
A3: ='General '!K10 -> 0 | B3: ='General '!N24 -> Name of HCD Funding | C3: ='General '!Q26 -> 0 | D3: ='General '!N29 -> Name of HCD Funding | E3: ='General '!Q31 -> 0 | F3: ='General '!A45 -> 0 | G3: ='General '!N45 -> 0 | H3: ='General '!Y45 -> 0 | I3: ='General '!AE45 -> 0 | J3: ='General '!AI45 -> 0 | K3: ='General '!A51 -> 0 | L3: ='General '!H51 -> 0 | M3: ='General '!N51 -> 0 | N3: ='General '!T51 -> 0 | O3: ='General '!Y51 -> 0 | P3: ='General '!AI51 -> 0 | Q3: ='General '!A53 -> 0 | R3: ='General '!D53 -> 0 | S3: ='General '!G53 -> 0 | T3: ='General '!L53 ->  | U3: ='General '!R53 -> 0 | V3: ='General '!A55 -> 0 | W3: ='General '!F55 -> 0 | X3: ='General '!AF55 -> 0 | Y3: ='General '!AK55 -> 0 | Z3: ='General '!A58 -> 0 | AA3: ='General '!A61 -> 0 | AB3: ='General '!J61 -> 0 | AC3: ='General '!M61 -> 0 | AD3: ='General '!X61 -> 0 | AE3: ='General '!AB61 -> 0 | AF3: ='General '!AM61 -> 0 | AG3: ='Site & Units'!H4 -> 0 | AH3: ='Site & Units'!A7 -> 0 | AI3: ='Site & Units'!M7 -> 0 | AJ3: ='Site & Units'!AF7 -> 0 | AK3: ='Site & Units'!AK7 -> 0 | AL3: ='Site & Units'!A12 -> 0 | AM3: ='Site & Units'!Z12 -> 0 | AN3: ='Site & Units'!A19 -> 0 | AO3: ='Site & Units'!A21 -> 0 | AP3: ='Site & Units'!Z37 -> 0 | AQ3: ='Site & Units'!Z38 -> 0 | AR3: ='Site & Units'!AF37 -> 0 | AS3: ='Site & Units'!AF38 -> 0 | AT3: ='Site & Units'!AI37 -> 0 | AU3: ='Site & Units'!AI38 -> 0 | AV3: ='Site & Units'!AL37 -> 0 | AW3: ='Site & Units'!AL38 -> 0 | AX3: ='Site & Units'!H49 -> 0 | AY3: ='Site & Units'!M49 -> 0 | AZ3: ='Site & Units'!P49 -> 0 | BA3: ='Site & Units'!U49 -> 0 | BB3: =Misc.!I5 -> 0 | BC3: =Misc.!I6 -> 0 | BD3: =Misc.!I7 -> 0 | BE3: =Misc.!I8 -> 0 | BF3: =Misc.!I9 -> 0 | BG3: =Misc.!I10 -> 0 | BH3: =Misc.!I11 -> 0 | BI3: =Misc.!I12 -> 0 | BJ3: =Misc.!I13 -> 0 | BK3: =Misc.!C14 -> 0 | BL3: =Misc.!I15 -> 0 | BM3: =Misc.!X6 -> 0 | BN3: =Misc.!X7 -> 0 | BO3: =Misc.!X8 -> 0 | BP3: =Misc.!X9 -> 0 | BQ3: =Misc.!X10 -> 0 | BR3: =Misc.!X12 -> 0 | BS3: =Misc.!X13 -> 0 | BT3: =Misc.!X14 -> 0 | BU3: =Misc.!X15 -> 0 | BV3: =Misc.!X17 -> 0 | BW3: =Misc.!AK6 -> 0 | BX3: =Misc.!AK7 -> 0 | BY3: =Misc.!AK8 -> 0 | BZ3: =Misc.!AK9 -> 0 | CA3: =Misc.!AE10 -> 0 | CB3: =Misc.!AK11 -> 0 | CC3: =Misc.!AL16 -> 0 | CD3: =Misc.!L27 -> 0 | CE3: =Misc.!L29 -> 0 | CF3: =Misc.!L31 -> 0 | CG3: =Misc.!L33 -> 0 | CH3: =Misc.!L35 -> 0 | CI3: =Misc.!AK35 -> 0 | CJ3: =Misc.!J51 -> 0 | CK3: ='Rents '!D110 -> 0 | CL3: ='Rents '!I110 -> 0 | CM3: ='Rents '!J110 -> 0 | CN3: ='Rents '!D124 -> 0 | CO3: ='Rents '!D125 -> 0 | CP3: ='Rents '!I124 -> 0 | CQ3: =Subsidies!F13 -> 0 | CR3: =Subsidies!K13 -> 0 | CS3: =Subsidies!F59 -> 0 | CT3: =Subsidies!K59 -> 0 | CU3: =Subsidies!F111 -> 0 | CV3: =Subsidies!G112 -> 0 | CW3: =Subsidies!K111 -> 0 | CX3: =Subsidies!L112 -> 0 | CY3: =Subsidies!E115 -> 0 | CZ3: =Subsidies!G115 -> 0 | DA3: =Subsidies!I115 -> 0 | DB3: =Subsidies!K115 -> 0 | DC3: ='Dev Sources'!E40 -> 0 | DD3: ='Dev Sources'!E20 -> 0 | DE3: ='Dev Budget'!E123 -> 0 | DF3: ='TBL and High Cost Test'!AO52 -> 0 | DG3: ='TBL and High Cost Test'!AE53 -> 0 | DH3: ='TBL and High Cost Test'!AE54 -> 0 | DI3: =Reserves!AI8 -> 0 | DJ3: =Reserves!AI19 -> 0 | DK3: =Reserves!AI20 -> 0 | DL3: ='Operating '!B6 -> 0 | DM3: ='Operating '!B7 -> 0 | DN3: ='Operating '!B8 -> 0 | DO3: ='Operating '!B9 -> 0 | DP3: ='Operating '!B10 -> 0 | DQ3: ='Operating '!B11 -> 0 | DR3: ='Operating '!B12 -> 0 | DS3: ='Operating '!B13 -> 0

Sheet Income Limits (hidden)
A1: Alameda | B1: 45700 | C1: 52200 | D1: 58750 | E1: 65250 | F1: 70500 | G1: 75700 | H1: 80950 | I1: 86150
A2: Alpine | B2: 29150 | C2: 33300 | D2: 37450 | E2: 41600 | F2: 44950 | G2: 48300 | H2: 51600 | I2: 54950
A3: Amador | B3: 27550 | C3: 31500 | D3: 35450 | E3: 39350 | F3: 42500 | G3: 45650 | H3: 48800 | I3: 51950
A4: Butte | B4: 24750 | C4: 28300 | D4: 31850 | E4: 35350 | F4: 38200 | G4: 41050 | H4: 43850 | I4: 46700
A5: Calaveras | B5: 28150 | C5: 32200 | D5: 36200 | E5: 40200 | F5: 43450 | G5: 46650 | H5: 49850 | I5: 53100
A6: Colusa | B6: 24500 | C6: 28000 | D6: 31500 | E6: 34950 | F6: 37750 | G6: 40550 | H6: 43350 | I6: 46150
A7: Contra Costa | B7: 45700 | C7: 52200 | D7: 58750 | E7: 65250 | F7: 70500 | G7: 75700 | H7: 80950 | I7: 86150
A8: Del Norte | B8: 24500 | C8: 28000 | D8: 31500 | E8: 34950 | F8: 37750 | G8: 40550 | H8: 43350 | I8: 46150
A9: El Dorado | B9: 30250 | C9: 34550 | D9: 38850 | E9: 43150 | F9: 46650 | G9: 50100 | H9: 53550 | I9: 57000
A10: Fresno | B10: 24500 | C10: 28000 | D10: 31500 | E10: 34950 | F10: 37750 | G10: 40550 | H10: 43350 | I10: 46150
A11: Glenn | B11: 24500 | C11: 28000 | D11: 31500 | E11: 34950 | F11: 37750 | G11: 40550 | H11: 43350 | I11: 46150
A12: Humboldt | B12: 24500 | C12: 28000 | D12: 31500 | E12: 34950 | F12: 37750 | G12: 40550 | H12: 43350 | I12: 46150
A13: Imperial | B13: 24500 | C13: 28000 | D13: 31500 | E13: 34950 | F13: 37750 | G13: 40550 | H13: 43350 | I13: 46150
A14: Inyo | B14: 26300 | C14: 30050 | D14: 33800 | E14: 37550 | F14: 40600 | G14: 43600 | H14: 46600 | I14: 49600
A15: Kern | B15: 24500 | C15: 28000 | D15: 31500 | E15: 34950 | F15: 37750 | G15: 40550 | H15: 43350 | I15: 46150
A16: Kings | B16: 24500 | C16: 28000 | D16: 31500 | E16: 34950 | F16: 37750 | G16: 40550 | H16: 43350 | I16: 46150
A17: Lake | B17: 24500 | C17: 28000 | D17: 31500 | E17: 34950 | F17: 37750 | G17: 40550 | H17: 43350 | I17: 46150
A18: Lassen | B18: 24750 | C18: 28300 | D18: 31850 | E18: 35350 | F18: 38200 | G18: 41050 | H18: 43850 | I18: 46700
A19: Los Angeles | B19: 39450 | C19: 45050 | D19: 50700 | E19: 56300 | F19: 60850 | G19: 65350 | H19: 69850 | I19: 74350
A20: Madera | B20: 24500 | C20: 28000 | D20: 31500 | E20: 34950 | F20: 37750 | G20: 40550 | H20: 43350 | I20: 46150
A21: Marin | B21: 60900 | C21: 69600 | D21: 78300 | E21: 87000 | F21: 94000 | G21: 100950 | H21: 107900 | I21: 114850
A22: Mariposa | B22: 24500 | C22: 28000 | D22: 31500 | E22: 34950 | F22: 37750 | G22: 40550 | H22: 43350 | I22: 46150
A23: Mendocino | B23: 24500 | C23: 28000 | D23: 31500 | E23: 34950 | F23: 37750 | G23: 40550 | H23: 43350 | I23: 46150
A24: Merced | B24: 24500 | C24: 28000 | D24: 31500 | E24: 34950 | F24: 37750 | G24: 40550 | H24: 43350 | I24: 46150
A25: Modoc | B25: 24500 | C25: 28000 | D25: 31500 | E25: 34950 | F25: 37750 | G25: 40550 | H25: 43350 | I25: 46150
A26: Mono | B26: 28350 | C26: 32400 | D26: 36450 | E26: 40450 | F26: 43700 | G26: 46950 | H26: 50200 | I26: 53400
A27: Monterey | B27: 33950 | C27: 38800 | D27: 43650 | E27: 48450 | F27: 52350 | G27: 56250 | H27: 60100 | I27: 64000
A28: Napa | B28: 37950 | C28: 43350 | D28: 48750 | E28: 54150 | F28: 58500 | G28: 62850 | H28: 67150 | I28: 71500
A29: Nevada | B29: 30100 | C29: 34400 | D29: 38700 | E29: 43000 | F29: 46450 | G29: 49900 | H29: 53350 | I29: 56800
A30: Orange | B30: 44850 | C30: 51250 | D30: 57650 | E30: 64050 | F30: 69200 | G30: 74300 | H30: 79450 | I30: 84550
A31: Placer | B31: 30250 | C31: 34550 | D31: 38850 | E31: 43150 | F31: 46650 | G31: 50100 | H31: 53550 | I31: 57000
A32: Plumas | B32: 25300 | C32: 28900 | D32: 32500 | E32: 36100 | F32: 39000 | G32: 41900 | H32: 44800 | I32: 47700
A33: Riverside | B33: 26400 | C33: 30150 | D33: 33900 | E33: 37650 | F33: 40700 | G33: 43700 | H33: 46700 | I33: 49700
A34: Sacramento | B34: 30250 | C34: 34550 | D34: 38850 | E34: 43150 | F34: 46650 | G34: 50100 | H34: 53550 | I34: 57000
A35: San Benito | B35: 34900 | C35: 39900 | D35: 44900 | E35: 49850 | F35: 53850 | G35: 57850 | H35: 61850 | I35: 65850
A36: San Bernardino | B36: 26400 | C36: 30150 | D36: 33900 | E36: 37650 | F36: 40700 | G36: 43700 | H36: 46700 | I36: 49700
A37: San Diego | B37: 40450 | C37: 46200 | D37: 52000 | E37: 57750 | F37: 62400 | G37: 67000 | H37: 71650 | I37: 76250
A38: San Francisco | B38: 60900 | C38: 69600 | D38: 78300 | E38: 87000 | F38: 94000 | G38: 100950 | H38: 107900 | I38: 114850
A39: San Joaquin | B39: 26250 | C39: 30000 | D39: 33750 | E39: 37500 | F39: 40500 | G39: 43500 | H39: 46500 | I39: 49500
A40: San Luis Obispo | B40: 33950 | C40: 38800 | D40: 43650 | E40: 48500 | F40: 52400 | G40: 56300 | H40: 60150 | I40: 64050
A41: San Mateo | B41: 60900 | C41: 69600 | D41: 78300 | E41: 87000 | F41: 94000 | G41: 100950 | H41: 107900 | I41: 114850
A42: Santa Barbara | B42: 41650 | C42: 47600 | D42: 53550 | E42: 59500 | F42: 64300 | G42: 69050 | H42: 73800 | I42: 78550
A43: Santa Clara | B43: 55300 | C43: 63200 | D43: 71100 | E43: 78950 | F43: 85300 | G43: 91600 | H43: 97900 | I43: 104250
A44: Santa Cruz | B44: 46350 | C44: 53000 | D44: 59600 | E44: 66200 | F44: 71500 | G44: 76800 | H44: 82100 | I44: 87400
A45: Shasta | B45: 24500 | C45: 28000 | D45: 31500 | E45: 34950 | F45: 37750 | G45: 40550 | H45: 43350 | I45: 46150
A46: Sierra | B46: 28200 | C46: 32200 | D46: 36250 | E46: 40250 | F46: 43500 | G46: 46700 | H46: 49950 | I46: 53150
A47: Siskiyou | B47: 24500 | C47: 28000 | D47: 31500 | E47: 34950 | F47: 37750 | G47: 40550 | H47: 43350 | I47: 46150
A48: Solano | B48: 32400 | C48: 37000 | D48: 41650 | E48: 46250 | F48: 49950 | G48: 53650 | H48: 57350 | I48: 61050
A49: Sonoma | B49: 39800 | C49: 45450 | D49: 51150 | E49: 56800 | F49: 61350 | G49: 65900 | H49: 70450 | I49: 75000
A50: Stanislaus | B50: 24500 | C50: 28000 | D50: 31500 | E50: 34950 | F50: 37750 | G50: 40550 | H50: 43350 | I50: 46150
A51: Sutter | B51: 24500 | C51: 28000 | D51: 31500 | E51: 34950 | F51: 37750 | G51: 40550 | H51: 43350 | I51: 46150
A52: Tehama | B52: 24500 | C52: 28000 | D52: 31500 | E52: 34950 | F52: 37750 | G52: 40550 | H52: 43350 | I52: 46150
A53: Trinity | B53: 24500 | C53: 28000 | D53: 31500 | E53: 34950 | F53: 37750 | G53: 40550 | H53: 43350 | I53: 46150
A54: Tulare | B54: 24500 | C54: 28000 | D54: 31500 | E54: 34950 | F54: 37750 | G54: 40550 | H54: 43350 | I54: 46150
A55: Tuolumne | B55: 24850 | C55: 28400 | D55: 31950 | E55: 35450 | F55: 38300 | G55: 41150 | H55: 44000 | I55: 46800
A56: Ventura | B56: 39550 | C56: 45200 | D56: 50850 | E56: 56450 | F56: 61000 | G56: 65500 | H56: 70000 | I56: 74550
A57: Yolo | B57: 32400 | C57: 37000 | D57: 41650 | E57: 46250 | F57: 49950 | G57: 53650 | H57: 57350 | I57: 61050
A58: Yuba | B58: 24500 | C58: 28000 | D58: 31500 | E58: 34950 | F58: 37750 | G58: 40550 | H58: 43350 | I58: 46150

Sheet NPLH COSR Calculation
A1: =CONCATENATE('General '!A45," NPLH Cash Flow for COSR") -> NPLH Cash Flow for COSR | I1: AMI Level | J1: Loan Limit 0 Bedroom | K1: # of 0 Bedroom Units | L1: Total Loan 0 Bedrooms | M1: Loan Limit 1 Bedroom | N1: # of 1 Bedroom Units | O1: Total Loan 1 Bedroom | P1: Loan Limit 2 Bedroom | Q1: # of 2 Bedroom Units | R1: Total Loan 2 Bedroom | S1: Loan Limit 3 Bedroom | T1: # of 3 Bedroom Units | U1: Total Loan 3 Bedroom | V1: Loan Limit 4+ Bedroom | W1: # of 4 Bedroom Units | X1: Total Loan 4+ Bedroom
A2: Anticipated Tax Credits in Project: | D2: COSR per NPLH Assist. Unit | G2: =IF(C5=0,0,186006) -> 0
A3: Project County | C3: Alameda | D3: COSR PU Total §209(a)(b) | G3: =IF(C2="9%",Y7,C5*G2) -> 0 | I3: 30% | J3: =IF($C$3="","",VLOOKUP($AB$3,'NPLH COSR PU Amounts'!$A$1:$F$233,2,FALSE)) -> 133000 | L3: =IF($C$3="","",J3*K3) -> 0 | M3: =IF($C$3="","",VLOOKUP($AB$3,'NPLH COSR PU Amounts'!$A$1:$F$233,3,FALSE)) -> 133000 | O3: =IF($C$3="","",M3*N3) -> 0 | P3: =IF($C$3="","",VLOOKUP($AB$3,'NPLH COSR PU Amounts'!$A$1:$F$233,4,FALSE)) -> 133000 | R3: =IF($C$3="","",P3*Q3) -> 0 | S3: =IF($C$3="","",VLOOKUP($AB$3,'NPLH COSR PU Amounts'!$A$1:$F$233,5,FALSE)) -> 133000 | U3: =IF($C$3="","",S3*T3) -> 0 | V3: =IF($C$3="","",VLOOKUP($AB$3,'NPLH COSR PU Amounts'!$A$1:$F$233,6,FALSE)) -> 133000 | X3: =IF($C$3="","",V3*W3) -> 0 | AB3: =CONCATENATE($C$3,I3) -> Alameda30%
A4: Total Number of Manager Units: | D4: COSR CF Total §209(d) | G4: =-SUMIF(F50:Y50,"<0")+SUM(F51:Y51) -> 0 | I4: 25% | J4: =IF($C$3="","",VLOOKUP($AB$4,'NPLH COSR PU Amounts'!$A$1:$F$233,2,FALSE)) -> 148701 | L4: =IF($C$3="","",J4*K4) -> 0 | M4: =IF($C$3="","",VLOOKUP($AB$4,'NPLH COSR PU Amounts'!$A$1:$F$233,3,FALSE)) -> 149709 | O4: =IF($C$3="","",M4*N4) -> 0 | P4: =IF($C$3="","",VLOOKUP($AB$4,'NPLH COSR PU Amounts'!$A$1:$F$233,4,FALSE)) -> 153167 | R4: =IF($C$3="","",P4*Q4) -> 0 | S4: =IF($C$3="","",VLOOKUP($AB$4,'NPLH COSR PU Amounts'!$A$1:$F$233,5,FALSE)) -> 156192 | U4: =IF($C$3="","",S4*T4) -> 0 | V4: =IF($C$3="","",VLOOKUP($AB$4,'NPLH COSR PU Amounts'!$A$1:$F$233,6,FALSE)) -> 158929 | X4: =IF($C$3="","",V4*W4) -> 0 | AB4: =CONCATENATE($C$3,I4) -> Alameda25%
A5: Total Number of NPLH Assisted Units: | C5: ='NPLH Rents'!D48 -> 0 | D5: COSR (lesser of PU or CF) | G5: =MIN(G3,G4) -> 0 | I5: 20% | J5: =IF($C$3="","",VLOOKUP($AB$5,'NPLH COSR PU Amounts'!$A$1:$F$233,2,FALSE)) -> 164258 | L5: =IF($C$3="","",J5*K5) -> 0 | M5: =IF($C$3="","",VLOOKUP($AB$5,'NPLH COSR PU Amounts'!$A$1:$F$233,3,FALSE)) -> 166419 | O5: =IF($C$3="","",M5*N5) -> 0 | P5: =IF($C$3="","",VLOOKUP($AB$5,'NPLH COSR PU Amounts'!$A$1:$F$233,4,FALSE)) -> 173189 | R5: =IF($C$3="","",P5*Q5) -> 0 | S5: =IF($C$3="","",VLOOKUP($AB$5,'NPLH COSR PU Amounts'!$A$1:$F$233,5,FALSE)) -> 179383 | U5: =IF($C$3="","",S5*T5) -> 0 | V5: =IF($C$3="","",VLOOKUP($AB$5,'NPLH COSR PU Amounts'!$A$1:$F$233,6,FALSE)) -> 184713 | X5: =IF($C$3="","",V5*W5) -> 0 | AB5: =CONCATENATE($C$3,I5) -> Alameda20%
A6: Total Number of Units: | C6: ='Rents '!D125 -> 0 | D6: COSR 5% Max §209(i)(1) | G6: =MIN(G3,G5)*0.05 -> 0 | I6: 15% | J6: =IF($C$3="","",VLOOKUP($AB$6,'NPLH COSR PU Amounts'!$A$1:$F$233,2,FALSE)) -> 179959 | L6: =IF($C$3="","",J6*K6) -> 0 | M6: =IF($C$3="","",VLOOKUP($AB$6,'NPLH COSR PU Amounts'!$A$1:$F$233,3,FALSE)) -> 183273 | O6: =IF($C$3="","",M6*N6) -> 0 | P6: =IF($C$3="","",VLOOKUP($AB$6,'NPLH COSR PU Amounts'!$A$1:$F$233,4,FALSE)) -> 193356 | R6: =IF($C$3="","",P6*Q6) -> 0 | S6: =IF($C$3="","",VLOOKUP($AB$6,'NPLH COSR PU Amounts'!$A$1:$F$233,5,FALSE)) -> 202575 | U6: =IF($C$3="","",S6*T6) -> 0 | V6: =IF($C$3="","",VLOOKUP($AB$6,'NPLH COSR PU Amounts'!$A$1:$F$233,6,FALSE)) -> 210641 | X6: =IF($C$3="","",V6*W6) -> 0 | Y6: TOTAL | AB6: =CONCATENATE($C$3,I6) -> Alameda15%
A7: Max NPLH Assist. Units §209(f)(2)&(3) | C7: =IF(C6>20,ROUNDDOWN(C6*0.49,0),C6) -> 0 | I7: =SUM(K3:K6)+SUM(N3:N6)+SUM(Q3:Q6)+SUM(T3:T6)+SUM(W3:W6) -> 0 | J7: Efficiency: | K7: =SUM(K3:K6) -> 0 | L7: =SUM(L3:L6) -> 0 | M7: 1 Bedroom: | N7: =SUM(N3:N6) -> 0 | O7: =SUM(O3:O6) -> 0 | P7: 2 Bedroom: | Q7: =SUM(Q3:Q6) -> 0 | R7: =SUM(R3:R6) -> 0 | S7: 3 Bedroom: | T7: =SUM(T3:T6) -> 0 | U7: =SUM(U3:U6) -> 0 | V7: 4+ Bedrm: | W7: =SUM(W3:W6) -> 0 | X7: =SUM(X3:X6) -> 0 | Y7: =L7+O7+R7+U7+X7 -> 0
A8: INCOME FROM HOUSING UNITS | C8: Project Amount | D8: Proration | E8: Inflation | F8: Year 1 | G8: Year 2 | H8: Year 3 | I8: Year 4 | J8: Year 5 | K8: Year 6 | L8: Year 7 | M8: Year 8 | N8: Year 9 | O8: Year 10 | P8: Year 11 | Q8: Year 12 | R8: Year 13 | S8: Year 14 | T8: Year 15 | U8: Year 16 | V8: Year 17 | W8: Year 18 | X8: Year 19 | Y8: Year 20
A9: Proposed NPLH Assisted Unit Rents | D9: =IF($C$6=0,0,$C$5/($C$6-$C$4)) -> 0 | E9: 0.025 | F9: =IF('Cash Flow'!K3=1,'NPLH Rents'!J48*12,'NPLH Rents'!I48*12) -> 0 | G9: =F9*(1+$E9) -> 0 | H9: 0 | I9: 0 | J9: 0 | K9: 0 | L9: 0 | M9: 0 | N9: 0 | O9: 0 | P9: 0 | Q9: 0 | R9: 0 | S9: 0 | T9: 0 | U9: 0 | V9: 0 | W9: 0 | X9: 0 | Y9: 0
A10: Tenant Assistance Payments
A11: Program: | B11: =IF(ISTEXT(Subsidies!F13),Subsidies!F13," ") ->  | C11: ='Operating '!D36 -> 0 | D11: =$D$9 -> 0 | E11: 0.025 | F11: =IF(C11=0,0,C11*D11) -> 0 | G11: =F11*(1+$E11) -> 0 | H11: 0 | I11: 0 | J11: 0 | K11: 0 | L11: 0 | M11: 0 | N11: 0 | O11: 0 | P11: 0 | Q11: 0 | R11: 0 | S11: 0 | T11: 0 | U11: 0 | V11: 0 | W11: 0 | X11: 0 | Y11: 0
A12: Program: | B12: =IF(ISTEXT(Subsidies!K13),Subsidies!K13," ") ->  | C12: ='Operating '!D37 -> 0 | D12: =$D$9 -> 0 | E12: 0.025 | F12: =IF(C12=0,0,C12*D12) -> 0 | G12: =F12*(1+$E12) -> 0 | H12: =G12*(1+$E12) -> 0 | I12: 0 | J12: 0 | K12: 0 | L12: 0 | M12: 0 | N12: 0 | O12: 0 | P12: 0 | Q12: 0 | R12: 0 | S12: 0 | T12: 0 | U12: 0 | V12: 0 | W12: 0 | X12: 0 | Y12: 0
A13: ='Operating '!C38 -> Operating Subsidies | C13: ='Operating '!D38 -> 0 | D13: =$D$9 -> 0 | E13: 0.025 | F13: =IF(C13=0,0,C13*D13) -> 0 | G13: =F13*(1+$E13) -> 0 | H13: =G13*(1+$E13) -> 0 | I13: 0 | J13: 0 | K13: 0 | L13: 0 | M13: 0 | N13: 0 | O13: 0 | P13: 0 | Q13: 0 | R13: 0 | S13: 0 | T13: 0 | U13: 0 | V13: 0 | W13: 0 | X13: 0 | Y13: 0
A14: ='Operating '!C39 -> Other: (specify) | C14: ='Operating '!D39 -> 0 | D14: =$D$9 -> 0 | E14: 0.025 | F14: =IF(C14=0,0,C14*D14) -> 0 | G14: =F14*(1+$E14) -> 0 | H14: =G14*(1+$E14) -> 0 | I14: 0 | J14: 0 | K14: 0 | L14: 0 | M14: 0 | N14: 0 | O14: 0 | P14: 0 | Q14: 0 | R14: 0 | S14: 0 | T14: 0 | U14: 0 | V14: 0 | W14: 0 | X14: 0 | Y14: 0
A15: GROSS POTENTIAL INCOME - HOUSING | F15: =SUM(F9:F14) -> 0 | G15: 0 | H15: 0 | I15: 0 | J15: 0 | K15: 0 | L15: 0 | M15: 0 | N15: 0 | O15: 0 | P15: 0 | Q15: 0 | R15: 0 | S15: 0 | T15: 0 | U15: 0 | V15: 0 | W15: 0 | X15: 0 | Y15: 0
A17: OTHER INCOME | C17: Project Amount | D17: Proration | E17: Inflation
A18: Laundry & Vending | C18: ='Operating '!D40 -> 0 | D18: =$D$9 -> 0 | E18: 0.025 | F18: =IF(C18=0,0,C18*D18) -> 0 | G18: =F18*(1+$E18) -> 0 | H18: 0 | I18: 0 | J18: 0 | K18: 0 | L18: 0 | M18: 0 | N18: 0 | O18: 0 | P18: 0 | Q18: 0 | R18: 0 | S18: 0 | T18: 0 | U18: 0 | V18: 0 | W18: =V18*(1+$E18) -> 0 | X18: 0 | Y18: 0
A19: Other Income | C19: ='Operating '!D41+'Operating '!D42 -> 0 | D19: =$D$9 -> 0 | E19: 0.025 | F19: =IF(C19=0,0,C19*D19) -> 0 | G19: 0 | H19: 0 | I19: 0 | J19: 0 | K19: 0 | L19: 0 | M19: 0 | N19: 0 | O19: 0 | P19: 0 | Q19: 0 | R19: 0 | S19: 0 | T19: 0 | U19: 0 | V19: 0 | W19: 0 | X19: 0 | Y19: 0
A20: GROSS POTENTIAL INCOME - OTHER | F20: =SUM(F18:F19) -> 0 | G20: 0 | H20: 0 | I20: 0 | J20: 0 | K20: 0 | L20: 0 | M20: 0 | N20: 0 | O20: 0 | P20: 0 | Q20: 0 | R20: 0 | S20: 0 | T20: 0 | U20: 0 | V20: 0 | W20: 0 | X20: 0 | Y20: 0
A21: GROSS POTENTIAL INCOME - TOTAL | F21: =F15+F20 -> 0 | G21: 0 | H21: 0 | I21: 0 | J21: 0 | K21: 0 | L21: 0 | M21: 0 | N21: 0 | O21: 0 | P21: 0 | Q21: 0 | R21: 0 | S21: 0 | T21: 0 | U21: 0 | V21: 0 | W21: 0 | X21: 0 | Y21: 0
A23: VACANCY ASSUMPTIONS
A24: NPLH Assisted Units vacancy rate | F24: 0.05 | G24: 0.05 | H24: 0.05 | I24: 0.05 | J24: 0.05 | K24: 0.05 | L24: 0.05 | M24: 0.05 | N24: 0.05 | O24: 0.05 | P24: 0.05 | Q24: 0.05 | R24: 0.05 | S24: 0.05 | T24: 0.05 | U24: 0.05 | V24: 0.05 | W24: 0.05 | X24: 0.05 | Y24: 0.05
A25: NPLH Assisted Units | F25: =F9*F24 -> 0 | G25: 0 | H25: 0 | I25: 0 | J25: 0 | K25: 0 | L25: 0 | M25: 0 | N25: 0 | O25: 0 | P25: 0 | Q25: 0 | R25: 0 | S25: 0 | T25: 0 | U25: 0 | V25: 0 | W25: 0 | X25: 0 | Y25: 0
A26: Tenant Assistance Payments | E26: ='Operating '!D47 -> 0.05 | F26: =$E$26*(F11+F12) -> 0 | G26: =$E$26*(G11+G12) -> 0 | H26: 0 | I26: 0 | J26: 0 | K26: 0 | L26: 0 | M26: 0 | N26: 0 | O26: 0 | P26: 0 | Q26: 0 | R26: 0 | S26: 0 | T26: 0 | U26: 0 | V26: 0 | W26: 0 | X26: 0 | Y26: 0
A27: =A14 -> Other: (specify) | E27: ='Operating '!D48 -> 0.05 | F27: =+$E27*F14 -> 0 | G27: 0 | H27: 0 | I27: 0 | J27: 0 | K27: 0 | L27: 0 | M27: 0 | N27: 0 | O27: 0 | P27: 0 | Q27: 0 | R27: 0 | S27: 0 | T27: 0 | U27: 0 | V27: 0 | W27: 0 | X27: 0 | Y27: 0
A28: Laundry, Vending & Other Income | E28: ='Operating '!D49 -> 0.05 | F28: =+$E28*(F18+F19) -> 0 | G28: 0 | H28: 0 | I28: 0 | J28: 0 | K28: 0 | L28: 0 | M28: 0 | N28: 0 | O28: 0 | P28: 0 | Q28: 0 | R28: 0 | S28: 0 | T28: 0 | U28: 0 | V28: 0 | W28: 0 | X28: 0 | Y28: 0
A29: TOTAL VACANCY LOSS | F29: =SUM(F25:F28) -> 0 | G29: 0 | H29: 0 | I29: 0 | J29: 0 | K29: 0 | L29: 0 | M29: 0 | N29: 0 | O29: 0 | P29: 0 | Q29: 0 | R29: 0 | S29: 0 | T29: 0 | U29: 0 | V29: 0 | W29: 0 | X29: 0 | Y29: 0
A30: EFFECTIVE GROSS INCOME | F30: =F21-F29 -> 0 | G30: 0 | H30: 0 | I30: 0 | J30: 0 | K30: 0 | L30: 0 | M30: 0 | N30: 0 | O30: 0 | P30: 0 | Q30: 0 | R30: 0 | S30: 0 | T30: 0 | U30: 0 | V30: 0 | W30: 0 | X30: 0 | Y30: 0
A32: OP. EXP. & RESERVE DEPOSITS | C32: Project Amount | D32: Proration | E32: Inflation
A33: Residential Expenses (w/o RE Taxes & Supportive Services Costs) | C33: ='Operating '!D110-'Operating '!D92-'Operating '!D108 -> 0 | D33: =$D$9 -> 0 | E33: 0.035 | F33: =IF(C33=0,0,C33*D33) -> 0 | G33: =F33*(1+$E33) -> 0 | H33: 0 | I33: 0 | J33: 0 | K33: 0 | L33: 0 | M33: 0 | N33: 0 | O33: 0 | P33: 0 | Q33: 0 | R33: 0 | S33: 0 | T33: 0 | U33: 0 | V33: 0 | W33: 0 | X33: 0 | Y33: 0
A34: Real Estate Taxes | C34: ='Operating '!D92 -> 0 | D34: =$D$9 -> 0 | E34: 0.02 | F34: =IF(C34=0,0,C34*D34) -> 0 | G34: 0 | H34: 0 | I34: 0 | J34: 0 | K34: 0 | L34: 0 | M34: 0 | N34: 0 | O34: 0 | P34: 0 | Q34: 0 | R34: 0 | S34: 0 | T34: 0 | U34: 0 | V34: 0 | W34: 0 | X34: 0 | Y34: 0
A35: Supportive Services Costs Enter proration % in yellow cell at right and explain rational for proration in yellow comments box below. | C35: ='Operating '!D108 -> 0 | D35: =$D$9 -> 0 | E35: ='Cash Flow'!C36 -> 0.025 | F35: =IF(C35=0,0,C35*D35) -> 0 | G35: =F35*(1+$E35) -> 0 | H35: 0 | I35: 0 | J35: 0 | K35: 0 | L35: 0 | M35: 0 | N35: 0 | O35: 0 | P35: 0 | Q35: 0 | R35: 0 | S35: 0 | T35: 0 | U35: 0 | V35: 0 | W35: 0 | X35: 0 | Y35: 0
A36: HCD Required Replacement Reserve Deposits | C36: ='Operating '!D112 -> 0 | D36: =$D$9 -> 0 | E36: ='Cash Flow'!C37 -> 0 | F36: =IF(C36=0,0,C36*D36) -> 0 | G36: 0 | H36: 0 | I36: 0 | J36: 0 | K36: 0 | L36: 0 | M36: 0 | N36: 0 | O36: 0 | P36: 0 | Q36: 0 | R36: 0 | S36: 0 | T36: 0 | U36: 0 | V36: 0 | W36: 0 | X36: 0 | Y36: 0
A37: HCD Required Other Reserve Deposits | C37: ='Operating '!D113+'Operating '!D114+'Operating '!D115 -> 0 | D37: =$D$9 -> 0 | E37: ='Cash Flow'!C38 -> 0 | F37: =IF(D37=0,0,C37*D37) -> 0 | G37: 0 | H37: 0 | I37: 0 | J37: 0 | K37: 0 | L37: 0 | M37: 0 | N37: 0 | O37: 0 | P37: 0 | Q37: 0 | R37: 0 | S37: 0 | T37: 0 | U37: 0 | V37: 0 | W37: 0 | X37: 0 | Y37: 0
A38: TOTAL OPERATING EXPENSES & RESERVES | F38: =SUM(F33:F37) -> 0 | G38: 0 | H38: 0 | I38: 0 | J38: 0 | K38: 0 | L38: 0 | M38: 0 | N38: 0 | O38: 0 | P38: 0 | Q38: 0 | R38: 0 | S38: 0 | T38: 0 | U38: 0 | V38: 0 | W38: 0 | X38: 0 | Y38: 0
A39: NPLH NET OPERATING INCOME | F39: =F30-F38 -> 0 | G39: 0 | H39: 0 | I39: 0 | J39: 0 | K39: 0 | L39: 0 | M39: 0 | N39: 0 | O39: 0 | P39: 0 | Q39: 0 | R39: 0 | S39: 0 | T39: 0 | U39: 0 | V39: 0 | W39: 0 | X39: 0 | Y39: 0
A40: NPLH .42% Monitoring Fee HCD Capital Loan Amount portion only | C40: 0 | D40: 1 | F40: =IF($C$40=0,0,$C$40*$D$40) -> 0 | G40: 0 | H40: 0 | I40: 0 | J40: 0 | K40: 0 | L40: 0 | M40: 0 | N40: 0 | O40: 0 | P40: 0 | Q40: 0 | R40: 0 | S40: 0 | T40: 0 | U40: 0 | V40: 0 | W40: 0 | X40: 0 | Y40: 0
A41: NPLH CASH FLOW after NPLH monitoring fee | F41: =F39-F40 -> 0 | G41: =G39-G40 -> 0 | H41: 0 | I41: 0 | J41: 0 | K41: 0 | L41: 0 | M41: 0 | N41: 0 | O41: 0 | P41: 0 | Q41: 0 | R41: 0 | S41: 0 | T41: 0 | U41: 0 | V41: 0 | W41: 0 | X41: 0 | Y41: 0
A42: NON-NPLH CASH FLOW | C42: Project Amount | D42: Proration | E42: Inflation
A43: Cash Flow (Project Cash Flow - NPLH Cash Flow) | F43: ='Cash Flow'!D54-'NPLH COSR Calculation'!F50 -> 0 | G43: ='Cash Flow'!E54-'NPLH COSR Calculation'!G50 -> 0 | H43: ='Cash Flow'!F54-'NPLH COSR Calculation'!H50 -> 0 | I43: ='Cash Flow'!G54-'NPLH COSR Calculation'!I50 -> 0 | J43: ='Cash Flow'!H54-'NPLH COSR Calculation'!J50 -> 0 | K43: ='Cash Flow'!I54-'NPLH COSR Calculation'!K50 -> 0 | L43: ='Cash Flow'!J54-'NPLH COSR Calculation'!L50 -> 0 | M43: ='Cash Flow'!K54-'NPLH COSR Calculation'!M50 -> 0 | N43: ='Cash Flow'!L54-'NPLH COSR Calculation'!N50 -> 0 | O43: ='Cash Flow'!M54-'NPLH COSR Calculation'!O50 -> 0 | P43: ='Cash Flow'!N54-'NPLH COSR Calculation'!P50 -> 0 | Q43: ='Cash Flow'!O54-'NPLH COSR Calculation'!Q50 -> 0 | R43: ='Cash Flow'!P54-'NPLH COSR Calculation'!R50 -> 0 | S43: ='Cash Flow'!Q54-'NPLH COSR Calculation'!S50 -> 0 | T43: ='Cash Flow'!R54-'NPLH COSR Calculation'!T50 -> 0 | U43: ='Cash Flow'!S54-'NPLH COSR Calculation'!U50 -> 0 | V43: ='Cash Flow'!T54-'NPLH COSR Calculation'!V50 -> 0 | W43: ='Cash Flow'!U54-'NPLH COSR Calculation'!W50 -> 0 | X43: ='Cash Flow'!V54-'NPLH COSR Calculation'!X50 -> 0 | Y43: ='Cash Flow'!W54-'NPLH COSR Calculation'!Y50 -> 0
A44: Asset Mgmt/Similar Fees | C44: ='Operating '!D133 -> 0 | D44: =IF($C$6=0,0,(1-$D$9)) -> 0 | E44: ='Cash Flow'!C70 -> 0.035 | F44: =IF(C44=0,0,C44*D44) -> 0 | G44: =F44*(1+$E44) -> 0 | H44: 0 | I44: 0 | J44: 0 | K44: 0 | L44: 0 | M44: 0 | N44: 0 | O44: 0 | P44: 0 | Q44: 0 | R44: 0 | S44: 0 | T44: 0 | U44: 0 | V44: 0 | W44: 0 | X44: 0 | Y44: 0
A45: Cash Flow after Asset Mgmt/Similar Fees | F45: =F43-F44 -> 0 | G45: 0 | H45: 0 | I45: 0 | J45: 0 | K45: 0 | L45: 0 | M45: 0 | N45: 0 | O45: 0 | P45: 0 | Q45: 0 | R45: 0 | S45: 0 | T45: 0 | U45: 0 | V45: 0 | W45: 0 | X45: 0 | Y45: 0
A46: NPLH Asset Mgmt/Similar Fees | C46: ='Operating '!D133 -> 0 | D46: =$D$9 -> 0 | E46: ='Cash Flow'!C70 -> 0.035 | F46: =IF(C46=0,0,C46*D46) -> 0 | G46: =F46*(1+$E46) -> 0 | H46: 0 | I46: 0 | J46: 0 | K46: 0 | L46: 0 | M46: 0 | N46: 0 | O46: 0 | P46: 0 | Q46: 0 | R46: 0 | S46: 0 | T46: 0 | U46: 0 | V46: 0 | W46: 0 | X46: 0 | Y46: 0
A47: Cash flow paid towards NPLH Asset Mgmt/Similar Fees | F47: =IF(F45>=F46,F46,IF(F45>0,F45,0)) -> 0 | G47: 0 | H47: 0 | I47: 0 | J47: 0 | K47: 0 | L47: 0 | M47: 0 | N47: 0 | O47: 0 | P47: 0 | Q47: 0 | R47: 0 | S47: 0 | T47: 0 | U47: 0 | V47: 0 | W47: 0 | X47: 0 | Y47: 0
A48: Cash flow after NPLH Asset Mgmt/Similar Fees | F48: =F45-F47 -> 0 | G48: =G45-G47 -> 0 | H48: 0 | I48: 0 | J48: 0 | K48: 0 | L48: 0 | M48: 0 | N48: 0 | O48: 0 | P48: 0 | Q48: 0 | R48: 0 | S48: 0 | T48: 0 | U48: 0 | V48: 0 | W48: 0 | X48: 0 | Y48: 0
A49: NPLH CASH FLOW
A50: NPLH Cash Flow | F50: =F41 -> 0 | G50: =G41 -> 0 | H50: 0 | I50: 0 | J50: 0 | K50: 0 | L50: 0 | M50: 0 | N50: 0 | O50: 0 | P50: 0 | Q50: 0 | R50: 0 | S50: 0 | T50: 0 | U50: 0 | V50: 0 | W50: 0 | X50: 0 | Y50: 0
A51: NPLH Asset Mgmt/Similar Fees - unpaid | F51: =F46-F47 -> 0 | G51: 0 | H51: 0 | I51: 0 | J51: 0 | K51: 0 | L51: 0 | M51: 0 | N51: 0 | O51: 0 | P51: 0 | Q51: 0 | R51: 0 | S51: 0 | T51: 0 | U51: 0 | V51: 0 | W51: 0 | X51: 0 | Y51: 0
A52: NPLH - COSR DISTRIBUTIONS (5% max per year) | F52: =IF(F50-F51<0,MIN($G$6,-(F50-F51)),0) -> 0 | G52: 0 | H52: 0 | I52: 0 | J52: 0 | K52: 0 | L52: 0 | M52: 0 | N52: 0 | O52: 0 | P52: 0 | Q52: 0 | R52: 0 | S52: 0 | T52: 0 | U52: 0 | V52: 0 | W52: 0 | X52: 0 | Y52: 0
A53: COSR distributions cumulative | F53: =F52 -> 0 | G53: =F53+G52 -> 0 | H53: =G53+H52 -> 0 | I53: 0 | J53: 0 | K53: 0 | L53: 0 | M53: 0 | N53: 0 | O53: 0 | P53: 0 | Q53: 0 | R53: 0 | S53: 0 | T53: 0 | U53: 0 | V53: 0 | W53: 0 | X53: 0 | Y53: 0
A54: Cash Flow with COSR distribution | F54: =F50+F52 -> 0 | G54: 0 | H54: 0 | I54: 0 | J54: 0 | K54: 0 | L54: 0 | M54: 0 | N54: 0 | O54: 0 | P54: 0 | Q54: 0 | R54: 0 | S54: 0 | T54: 0 | U54: 0 | V54: 0 | W54: 0 | X54: 0 | Y54: 0
A55: Asset Mgmt/Similar Fees paid by NPLH | F55: =IF(F54>=F51,F51,IF(F54<0,0,F54)) -> 0 | G55: =IF(G54>=G51,G51,IF(G54<0,0,G54)) -> 0 | H55: 0 | I55: 0 | J55: 0 | K55: 0 | L55: 0 | M55: 0 | N55: 0 | O55: 0 | P55: 0 | Q55: 0 | R55: 0 | S55: 0 | T55: 0 | U55: 0 | V55: 0 | W55: 0 | X55: 0 | Y55: 0
A56: Cash Flow after Asset Mgmt/Similar Fees | F56: =F54-F55 -> 0 | G56: =G54-G55 -> 0 | H56: 0 | I56: 0 | J56: 0 | K56: 0 | L56: 0 | M56: 0 | N56: 0 | O56: 0 | P56: 0 | Q56: 0 | R56: 0 | S56: 0 | T56: 0 | U56: 0 | V56: 0 | W56: 0 | X56: 0 | Y56: 0
A57: Proration % Explanation and Comments

Sheet Experience
A1: ='General '!A45 -> 0
A2: UA FORM XX PREVIOUS PARTICIPATION CERTIFICATE
A3: CTCAC Regs. 10325(g)(5)(B) & 10326(f)(6)(B), MHP Regulation 7320(b)(3), HOME Regulation 8212(d)(1)(C)
A4: Purpose | M4: ='General '!AO10 -> UA Version 5/1/20
A5: This form provides the Agencies with a certified report of all previous participation in all affordable multifamily rental housing projects. The Agencies require that you certify your records of previous participation in Agencies', other government-assisted, and nongovernment-assisted projects by completing and signing this form, before your Project application or participation can be approved.
A6: Instructions - Previous Participation Certificate
A7: 1. The Previous Participation Certificate, including Schedule A, must be completed in its entirety and signed by all applicants, proposed general partners, developer and development consultant with whom the sponsor has a comprehensive development services contract, and affiliates applying to any one of the Agencies.
A8: 2. For CTCAC only- applicants applying for points for the property management agent experience, and there is an executed property management agreement, the property management agency must also complete the Previous Participation Certificate and Schedule A.
A9: 3. All other participants, or members of the development team, who are only involved in the Project on a fee for service basis and for whom #1 and #2 above do not apply, must provide a resume or complete Schedule A which details rental housing projects in which they previously participated.
A10: 4. Attach extra sheets as you need them. Be sure to indicate "Continued on Attachments" wherever appropriate. Sign each additional page that you attach if it refers to you or your record.
A11: Specific Line Instructions
A12: Block 1: Fill in the name and location of the affordable multifamily rental housing Project.
A13: Block 2: Alphabetically list the full names, last name first, of all principals (including corporations) and affiliates and their addresses.
A14: Block 3: Beside the name of each principal, fill in the role that each party listed will perform.
A15: Block 4: Fill in the percentage ownership in the proposed Project that each principal is expected to have.
A16: Block 5: Fill in the IRS employer number of every party listed, including affiliates.
A17: Block 6: In the box below the statement of certification, fill in the name of all principals and affiliates. Beside the name of each principal and affiliate, each party must sign the form. In addition, each person who signs the form should fill in the date that he/she signs and their telephone number.
A18: Instructions - Schedule A
A19: 1. Be sure that Schedule A is filled in completely, accurately and the certification is properly dated and signed, because it will serve as a record of your previous experience. All multi-family rental housing projects must be listed. Applicants are reminded that previous participation pertains to the individual principal within an entity as well as the entity itself. HOME ONLY - to receive points for similar project experience, this information must be provided by the applicant, developer, owner, and managing general partner for subsidized projects of the same type proposed in the application. Such projects must have been completed during the 5-year period specified in the HOME NOFA. To receive points you must indicate whether the project is a rental new construction or rental rehabilitation project by entering "yes" or "no" underneath the P-I-S date.
A20: MHP ONLY - list subsidized rental housing projects completed by the developer or development consultant with whom the Project Sponsor has a comprehensive development services contract. Include the projects in which the entity was responsible for overseeing or performing the full range of comprehensive development activities including: financial packaging, selection of consultants, selection of the construction contractor and property management agent, oversight of architectural design, construction management and other aspects of the development process. In addition, for each project submitted for operation experience, attach a narrative describing the Project Sponsor's role and responsibilities using MHP's form.
A21: 2. Even if you have never participated in an affordable multi-family rental housing project, you must complete the Previous Participation Certificate. If you have no previous projects to list, fill in your name in column 1, and write across the form by your name - "No previous participation."
A22: Column 2: | B22: List all (nationwide) of your previous affordable multifamily rental housing projects. Identify all Agencies' projects first in Column 2A, then other government agency assisted projects in Column 2B, then nongovernment-assisted projects in Column 2C. Identify the project name, location, type of subsidy, number of units, and indicate if the project is being used in scoring to gain points, if applicable.
A23: Column 3: | B23: List your role in all previous projects. Give the month/day/year the principal's role began and ended and the month/day/year the project was placed-in-service (P-I-S). CTCAC ONLY - for the General partner and Management Company/Principal, to the extent that the type of information requested is the same between this attachment and UA XX and UA XY, the information should match or requested points may not be awarded in these categories.
A24: Column 4: | B24: Indicate all defaults, foreclosures, sales, instances of IRS noncompliance, and issuance of IRS Form 8823.
A25: Previous Participation Certification
A26: 1. Proposed Project Name | J26: City and Zip Code
A28: 2. List of All Proposed Principal Participants and Affiliates Names and addresses of all known principals and affiliates (people, businesses & organizations) proposing to participate in the Project described above. List names alphabetically: last, first, middle initial. | J28: 3. Role of Each Principal or Affiliate in Project | L28: 4. Expected % Ownership Interest in Project | N28: 5. IRS Employer Number
A35: Certifications: I (meaning the individual who signs as well as the corporations, partnerships or other parties listed above who certify) hereby apply to CTCAC, MHP, CalHFA, CDLAC, HOME (hereinafter referred to as Agencies) for approval to participate as a principal in the role and project listed above based upon my following previous participation record and this Certification. By executing this certificate, I hereby consent to the disclosure of information concerning my performance in the affordable multifamily rental housing developments by the Agencies to third parties, including, but not limited to, affordable housing agencies in other states and by such third parties to the Agencies. Neither the Agencies nor such third parties are required to give me notice of such disclosure or receipt of information.
A36: I certify that all the statements made by me are true, complete and correct to the best of my knowledge and belief and are made in good faith, including the data contained in Schedule A and Exhibits signed by me and attached to this form.
A37: I further certify that:
A38: 1. Schedule A contains a listing of every affordable multifamily housing rental project in which I have been or am now a principal.
A39: 2. Except as shown by me on the certification:
A40: a. I have not sold any project listed;
A41: b. No mortgage on a project listed by me has ever been in default, assigned to the government or foreclosed, nor has mortgage relief by the mortgagee been given;
A42: c. I have not experienced defaults or noncompliance under any contract or regulatory agreement in connection with a public housing project nor been issued IRS Form 8823 on any Low-Income Housing Tax Credit (LIHTC) project other than indicated on Schedule A;
A43: d. To the best of my knowledge, there are no unresolved findings raised as a result of Agencies' audits, management reviews or other investigations concerning me or my projects.
A44: e. I have not been suspended, debarred or otherwise restricted by any state agency from participating in the LIHTC program or other affordable housing program.
A45: f. I have not failed to use state funds or Low Income Housing Tax Credits (LIHTC) allocated to me in any state.
A46: 3. All the names of the parties, known to me to be principals in this Project(s) in which I propose to participate, are listed above.
A47: 4. (Applicable to General Partners or Project Owners Only) All parties who are principals or who are proposed as principals here are listed above and no principals, affiliates, or identities of interest are concealed or omitted.
A48: 5. Statements above (if any) to which I cannot certify have been deleted by striking through the words with a pen. I have initialed each deletion (if any) and have attached a true and accurate signed statement (if applicable) to explain the facts and circumstances which I think helps to qualify me as a responsible principal for participation in this Project.
A49: 6. Typed or Printed Name of Principal | G49: Signature of Principal | K49: Certification Date (mm/dd/yyyy) | M49: Area Code and Telephone No.
A54: Schedule A: List of Previous Projects. By my name below is the complete list of my previous projects and my participation history as a principal, affiliate, management agent, or participant in affordable multifamily rental housing programs of the Agencies, and other government and nongovernment assisted programs. Note: Read and follow the instruction sheet carefully. Abbreviate where possible. Make full disclosure. Add extra sheets if you need more space. Double check for accuracy. If you have no previous projects write, by your name, "No previous participation."
A55: 1. List Each Participant's, Affiliate's, Principal's Name | D55: 2. List Previous Projects | J55: 3. List Principal's, Affiliate's , Participant's Role(s) and Interest | L55: 4. Was project ever in default, foreclosure, sales, or have instances of IRS noncompliance or issuance of IRS Form 8823?
A56: List in alphabetical order, last name, first and sign. | D56: Give the project name, address, city location, & government agency (GA) involved, number of units in the project, & if it is being used for scoring points. | J56: Indicate when participation began and ended, when the project was placed-in-service (P-I-S), and whether the project is a new construction or a rehabilitation project.
G57: (A) Agencies (CTCAC, CalHFA, CDLAC, HOME, MHP) | H57: (B) Other Government Agencies | I57: (C) Non- Government Assisted | L57: Yes | M57: No | N57: If "Yes" explain
D58: Name | J58: Role
D59: Address | J59: Interest
D60: City | J60: Began Date
D61: GA | J61: Ended Date
D62: #Units | J62: P-I-S Date
D63: Points | J63: New Construction
J64: Rehabilitation
D65: Name | J65: Role
D66: Address | J66: Interest
D67: City | J67: Began Date
D68: GA | J68: Ended Date
D69: #Units | J69: P-I-S Date
D70: Points | J70: New Construction
J71: Rehabilitation
D72: Name | J72: Role
D73: Address | J73: Interest
D74: City | J74: Began Date
D75: GA | J75: Ended Date
D76: #Units | J76: P-I-S Date
D77: Points | J77: New Construction
J78: Rehabilitation
A79: 1. List Each Participant's, Affiliate's, Principal's Name | D79: 2. List Previous Projects | J79: 3. List Principal's, Affiliate's , Participant's Role(s) and Interest | L79: 4. Was project ever in default, foreclosure, sales, or have instances of IRS noncompliance or issuance of IRS Form 8823?
A80: List in alphabetical order, last name, first and sign. | D80: Give the project name, address, city location, & government agency (GA) involved, number of units in the project, & if it is being used for scoring points. | J80: Indicate when participation began and ended, when the project was placed-in-service (P-I-S), and whether the project is a new construction or a rehabilitation project.
G81: (A) Agencies (CTCAC, CalHFA, CDLAC, HOME, MHP) | H81: (B) Other Government Agencies | I81: (C) Non- Government Assisted | L81: Yes | M81: No | N81: If "Yes" explain
D82: Name | J82: Role
D83: Address | J83: Interest
D84: City | J84: Began Date
D85: GA | J85: Ended Date
D86: #Units | J86: P-I-S Date
D87: Points | J87: New Construction
J88: Rehabilitation
D89: Name | J89: Role
D90: Address | J90: Interest
D91: City | J91: Began Date
D92: GA | J92: Ended Date
D93: #Units | J93: P-I-S Date
D94: Points | J94: New Construction
J95: Rehabilitation
D96: Name | J96: Role
D97: Address | J97: Interest
D98: City | J98: Began Date
D99: GA | J99: Ended Date
D100: #Units | J100: P-I-S Date
D101: Points | J101: New Construction
J102: Rehabilitation
D103: Name | J103: Role
D104: Address | J104: Interest
D105: City | J105: Began Date
D106: GA | J106: Ended Date
D107: #Units | J107: P-I-S Date
D108: Points | J108: New Construction
J109: Rehabilitation
A110: 1. List Each Participant's, Affiliate's, Principal's Name | D110: 2. List Previous Projects | J110: 3. List Principal's, Affiliate's , Participant's Role(s) and Interest | L110: 4. Was project ever in default, foreclosure, sales, or have instances of IRS noncompliance or issuance of IRS Form 8823?
A111: List in alphabetical order, last name, first and sign. | D111: Give the project name, address, city location, & government agency (GA) involved, number of units in the project, & if it is being used for scoring points. | J111: Indicate when participation began and ended, when the project was placed-in-service (P-I-S), and whether the project is a new construction or a rehabilitation project.
G112: (A) Agencies (CTCAC, CalHFA, CDLAC, HOME, MHP) | H112: (B) Other Government Agencies | I112: (C) Non- Government Assisted | L112: Yes | M112: No | N112: If "Yes" explain
D113: Name | J113: Role
D114: Address | J114: Interest
D115: City | J115: Began Date
D116: GA | J116: Ended Date
D117: #Units | J117: P-I-S Date
D118: Points | J118: New Construction
J119: Rehabilitation
D120: Name | J120: Role
D121: Address | J121: Interest
D122: City | J122: Began Date
D123: GA | J123: Ended Date
D124: #Units | J124: P-I-S Date
D125: Points | J125: New Construction
J126: Rehabilitation
D127: Name | J127: Role
D128: Address | J128: Interest
D129: City | J129: Began Date
D130: GA | J130: Ended Date
D131: #Units | J131: P-I-S Date
D132: Points | J132: New Construction
J133: Rehabilitation
D134: Name | J134: Role
D135: Address | J135: Interest
D136: City | J136: Began Date
D137: GA | J137: Ended Date
D138: #Units | J138: P-I-S Date
D139: Points | J139: New Construction
J140: Rehabilitation
A141: For the General Partner and Management Company/Principal - to the extent that the type of information requested on this attachment is the same as requested on UA Form XX, the information should match or requested points may not be awarded (if applicable).
M142: ='General '!AO10 -> UA Version 5/1/20

Sheet Certifications
A1: ='General '!A45 -> 0
A2: UNIVERSAL CERTIFICATIONS AND IDENTITY OF INTEREST DISCLOSURE
F3: ='General '!AO10 -> UA Version 5/1/20
A4: State of California
A5: Universal Application for the Development of Affordable Rental Housing
A7: On behalf of the entity identified in the signature block below, I certify that:
A9: 1. | B9: The information, statements and attachments included in this application are, to the best of my knowledge and belief, true and correct.
A11: 2. | B11: I possess the legal authority to submit this application on behalf of the entity identified in the signature block below..
A13: 3. | B13: The following is a complete disclosure of all identities of interest -- of all persons or entities, including affiliates, that will provide goods or services to the Project either (a) in one or more capacity or (b) that qualify as a "Related Party" to any person or entity that will provide goods or services to the project. "Related Party" is defined in Section 10302 of the California Code of Regulations (CTCAC Regulations):
A36: In addition, I acknowledge that all information in this application and attachments is public, and may be disclosed by the State.
A38: Signature:
A40: Name:
A42: Title:
A44: Entity Represented:
A46: Date:

Sheet Legal Status
A1: ='General '!A45 -> 0
A2: LEGAL STATUS QUESTIONNAIRE
AF3: ='General '!AO10 -> UA Version 5/1/20
A4: For purposes of the following questions, and with the exceptions noted below, the term “Applicant” shall include the applicant and the project sponsor, the parent of the applicant and the project sponsor, and any subsidiary of the applicant or project sponsor if the subsidiary is involved in (for example, as a guarantor) or will be benefited by the application or the Project.
A5: In addition to each of these entities themselves, the term “Applicant” shall also include the direct and indirect holders of more than ten percent (10%) of the ownership interests in the entity, as well as the officers, directors, principals and senior executives of the entity if the entity is a corporation, the general and limited partners of the entity if the entity is a partnership, and the members or managers of the entity if the entity is a limited liability company. For projects using tax-exempt bonds, it shall also include the individual who will be executing the bond purchase agreement.
A6: The following questions must be responded to for each entity and person qualifying as an "Applicant," as defined above. Explain all positive responses on a separate sheet and include with this questionnaire in the application.
A8: Exceptions:
A9: Public entity applicants without an ownership interest in the proposed Project, including but not limited to cities, counties, and joint powers authorities with 100 or more members, are not required to respond to this questionnaire.
A10: Members of the boards of directors of non-profit corporations, including officers of the boards, are also not required to respond. However, chief executive officers (Executive Directors, Chief Executive Officers, Presidents or their equivalent) must respond, as must chief financial officers (Treasurers, Chief Financial Officers, or their equivalent).
D13: Printed Name of Applicant/Project Sponsor Entity
A14: Civil Matters
A16: 1. | C16: Has the Applicant filed a bankruptcy or receivership case or had a bankruptcy or receivership action commenced against it, defaulted on a loan, or been foreclosed against in the past ten years? If so, please explain. | AJ16: Yes
AJ17: No
A19: 2. | C19: Is the Applicant currently a party to, or been notified that it may become a party to, any civil litigation that may materially and adversely affect (a) the financial condition of the applicant’s business, or (b) the Project that is the subject of the application? If yes, please explain. | AJ19: Yes
AJ20: No
A22: 3. | C22: Have there been any administrative or civil settlements, decisions, or judgments against the Applicant within the past ten years that materially and adversely affected (a) the financial condition of the applicant’s business, or (b) the Project that is the subject of the application? If yes, please explain and state the amount. | AJ22: Yes
AJ23: No
A25: 4. | C25: Is the Applicant currently subject to, or been notified that it may become subject to, any civil or administrative proceeding, examination, or investigation by a local, state or federal licensing or accreditation agency, a local, state or federal taxing authority, or a local, state or federal regulatory or enforcement agency? If yes, please explain. | AJ25: Yes
AJ26: No
A28: 5. | C28: In the past ten years, has the Applicant been subject to any civil or administrative proceeding, examination, or investigation by a local, state or federal licensing or accreditation agency, a local, state or federal taxing authority, or a local, state or federal regulatory or enforcement agency that resulted in a settlement, decision, or judgment? If yes, please explain. | AJ28: Yes
AJ29: No
A31: Criminal Matters
A33: 6. | C33: Is the Applicant currently a party to, or the subject of, or been notified that it may become a party to or the subject of, any criminal litigation, proceeding, charge, complaint, examination or investigation, of any kind, involving, or that could result in, felony charges against the applicant? If yes, please explain. | AJ33: Yes
AJ34: No
A36: 7. | C36: Is the Applicant currently a party to, or the subject of, or been notified that it may become a party to or the subject of, any criminal litigation, proceeding, charge, complaint, examination or investigation, of any kind, involving, or that could result in, misdemeanor charges against the applicant for matters relating to the conduct of the applicant’s business? If yes, please explain. | AJ36: Yes
AJ37: No
A39: 8. | C39: Is the Applicant currently a party to or the subject of, or been notified that it may become a party to or the subject of, any criminal litigation, proceeding, charge, examination, investigation or complaint, of any kind, involving, or that could result in, criminal charges (whether misdemeanor or felony) against the applicant for any financial or fraud related crime? If yes, please explain. | AJ39: Yes
AJ40: No
A42: 9. | C42: Is the Applicant currently a party to, or the subject of, or been notified that it may become a party to or the subject of, any criminal litigation, proceeding, charge, complaint, examination or investigation, of any kind, that could materially affect the financial condition of the applicant’s business? If yes, please explain. | AJ42: Yes
AJ43: No
A45: 10. | C45: Within the past ten years, has the Applicant been convicted of any felony? If yes, please explain. | AJ45: Yes
AJ46: No
A48: 11. | C48: Within the past ten years, has the Applicant been convicted of any misdemeanor related to the conduct of the applicant’s business? If yes, please explain. | AJ48: Yes
AJ49: No
A51: 12. | C51: Within the past ten years, has the Applicant been convicted of any misdemeanor for any financial or fraud related crime? If yes, please explain. | AJ51: Yes
AJ52: No
D54: =IF(D12="","",D12) -> 
D55: Printed Name of Applicant/Project Sponsor Entity
D59: SIGNATURE (Applicant/Project Sponsor) | AA59: DATE
D63: PRINTED NAME OF SIGNATORY
D67: PRINTED TITLE OF SIGNATORY

Sheet Application Support
A1: Application Development Team (ADT) Support Form | AH1: ='General '!AO10 -> UA Version 5/1/20
A2: Complete the "yellow" cells in the form below and email entire workbook to: AppSupport@hcd.ca.gov. We will respond to your request ASAP.
A3: Full Name: | W3: Date Requested: | AE3: Application Version Date:
A4: Organization: | P4: Email: | AC4: Contact Phone:
A5: Justification:
A6: Issue # | C6: Program Name & Round | F6: Tab | J6: Section | P6: Cell# | R6: Update/Comment | AD6: Urgency | AG6: ADT Status | AJ6: Status Date | AM6: Requestor | AN6: Email | AO6: Phone | AP6: App Version
A7: 1 | AM7: =IF(C7="","",$D$3) ->  | AN7: =IF(C7="","",$R$4) ->  | AO7: =IF(C7="","",$AG$4) ->  | AP7: =IF(C7="","",$AI$3) -> 
A8: 2
A9: 3
A10: 4
A11: 5
A12: 6
A13: 7
A14: 8
A15: 9
A16: 10
A17: 11
A18: 12
A19: 13
A20: 14
A21: 15
A22: 16
A23: 17
A24: 18
A25: 19
A26: 20
A27: 21
A28: 22
A29: 23
A30: 24
A31: 25

Sheet Extractor (hidden)
B3: UNIVERSAL APPLICATION | AQ3: UNIVERSAL APPLICATION | AR3: UNIVERSAL APPLICATION | CC3: UNIVERSAL APPLICATION | CQ3: UNIVERSAL APPLICATION | CX3: UNIVERSAL APPLICATION | CY3: UNIVERSAL APPLICATION | CZ3: UNIVERSAL APPLICATION | DQ3: UNIVERSAL APPLICATION | QW3: UNIVERSAL APPLICATION | UU3: UNIVERSAL APPLICATION | YS3: UNIVERSAL APPLICATION | ACR3: UNIVERSAL APPLICATION | AGR3: UNIVERSAL APPLICATION | AGW3: UNIVERSAL APPLICATION | AHN3: UNIVERSAL APPLICATION | AIX3: UNIVERSAL APPLICATION | ALH3: UNIVERSAL APPLICATION | AMA3: UNIVERSAL APPLICATION | AMO3: UNIVERSAL APPLICATION | AMU3: UNIVERSAL APPLICATION | ANG3: UNIVERSAL APPLICATION | ANP3: UNIVERSAL APPLICATION | ANX3: UNIVERSAL APPLICATION | AOC3: UNIVERSAL APPLICATION | AOF3: UNIVERSAL APPLICATION | AOM3: UNIVERSAL APPLICATION | AOU3: UNIVERSAL APPLICATION | API3: UNIVERSAL APPLICATION | APO3: UNIVERSAL APPLICATION | AQA3: UNIVERSAL APPLICATION | AQJ3: UNIVERSAL APPLICATION | AQR3: UNIVERSAL APPLICATION | AQW3: UNIVERSAL APPLICATION | AQZ3: UNIVERSAL APPLICATION | ARG3: UNIVERSAL APPLICATION | ARJ3: UNIVERSAL APPLICATION | ASP3: UNIVERSAL APPLICATION | ATF3: UNIVERSAL APPLICATION | ATQ3: UNIVERSAL APPLICATION
A4: LOG | B4: "GENERAL" | AQ4: "NARRATIVE" | AR4: "SITE & UNITS" | CC4: "MISC" | CQ4: "RENTS" | CX4: "HHC RENTS" | CY4: "NPLH RENTS" | CZ4: "SUBSIDIES" | DQ4: "DEV SOURCES" | QW4: "DEV BUDGET - RESIDENTIAL COSTS" | UU4: "DEV BUDGET - COMMERCIAL COSTS" | YS4: "DEV BUDGET - PVC 1" | ACR4: "DEV BUDGET - PVC 2" | AGR4: "DEV BUDGET" | AGW4: "DEVELOPER FEE 2019" | AHN4: "TBL and High Cost Test" | AIX4: "OPERATING" / ANNUAL INCOME AND EXPENSES / EMPLOYEE INFORMATION | ALH4: "OPERATING" / ANNUAL OPERATING BUDGET / RESIDENTIAL | AMA4: "OPERATING" / ANNUAL OPERATING BUDGET / RESIDENTIAL | AMO4: "OPERATING" / ANNUAL OPERATING BUDGET / RESIDENTIAL | AMU4: "OPERATING" / ANNUAL OPERATING BUDGET / RESIDENTIAL | ANG4: "OPERATING" / ANNUAL OPERATING BUDGET / RESIDENTIAL | ANP4: "OPERATING" / ANNUAL OPERATING BUDGET / RESIDENTIAL | ANX4: "OPERATING" / ANNUAL OPERATING BUDGET / RESIDENTIAL | AOC4: "OPERATING" / RESIDENTIAL | AOF4: "OPERATING" / ANNUAL OPERATING BUDGET / RESIDENTIAL | AOM4: "OPERATING" / ANNUAL OPERATING BUDGET / COMMERCIAL | AOU4: "OPERATING" / ANNUAL OPERATING BUDGET / COMMERCIAL | API4: "OPERATING" / ANNUAL OPERATING BUDGET / COMMERCIAL | APO4: "OPERATING" / ANNUAL OPERATING BUDGET / COMMERCIAL | AQA4: "OPERATING" / ANNUAL OPERATING BUDGET / COMMERCIAL | AQJ4: "OPERATING" / ANNUAL OPERATING BUDGET / COMMERCIAL | AQR4: "OPERATING" / ANNUAL OPERATING BUDGET / COMMERCIAL | AQW4: "OPERATING" / COMMERCIAL | AQZ4: "OPERATING" / ANNUAL OPERATING BUDGET / COMMERCIAL | ARG4: "OPERATING" | ARJ4: "Cash Flow" | ASP4: SUPPORTIVE SERVICES COSTS | ATF4: "HHC COSR CALCULATION" | ATQ4: "NPLH COSR CALCULATION"
B5: PROJECT CHARACTERISTICS | DQ5: Construction Period Sources of Funds | IY5: Permanent Sources of Funds | QW5: Land Cost/Acquisition | RI5: REHABILITATION | RV5: NEW CONSTRUCTION | SH5: ARCHITECTURAL FEES | SL5: CONSTRUCTION INTEREST & FEES | SX5: PERMANENT FINANCING | TG5: LEGAL FEES | TJ5: RESERVES | TR5: CONTINGENCY COSTS | TU5: OTHER PROJECT COSTS | UM5: DEVELOPER COSTS | UU5: Land Cost/Acquisition | VG5: REHABILITATION | VT5: NEW CONSTRUCTION | WF5: ARCHITECTURAL FEES | WJ5: CONSTRUCTION INTEREST & FEES | WV5: PERMANENT FINANCING | XE5: LEGAL FEES | XH5: RESERVES | XP5: CONTINGENCY COSTS | XS5: OTHER PROJECT COSTS | YK5: DEVELOPER COSTS | YS5: Land Cost/Acquisition | ZE5: REHABILITATION | ZR5: NEW CONSTRUCTION | AAD5: ARCHITECTURAL FEES | AAH5: CONSTRUCTION INTEREST & FEES | AAT5: PERMANENT FINANCING | ABC5: LEGAL FEES | ABF5: RESERVES | ABN5: CONTINGENCY COSTS | ABQ5: OTHER PROJECT COSTS | ACI5: DEVELOPER COSTS | ACR5: Land Cost/Acquisition | ADD5: REHABILITATION | ADQ5: NEW CONSTRUCTION | AEC5: ARCHITECTURAL FEES | AEG5: CONSTRUCTION INTEREST & FEES | AES5: PERMANENT FINANCING | AFB5: LEGAL FEES | AFE5: RESERVES | AFM5: CONTINGENCY COSTS | AFP5: OTHER PROJECT COSTS | AGH5: DEVELOPER COSTS | AGR5: DF 2019 | AGW5: Entries | AHB5: Max Total Developer Fee | AHE5: MDF Dev Funding Sources | AHH5: DF Priority Basis CF | AHK5: DF Sponsor Distributions | AIX5: On-Site Manager(s) | AIY5: On-Site Manager(s) | AIZ5: On-Site Manager(s) | AJA5: On-Site Manager(s) | AJB5: On-Site Assistant Manager(s) | AJC5: On-Site Assistant Manager(s) | AJD5: On-Site Assistant Manager(s) | AJE5: On-Site Assistant Manager(s) | AJF5: Supportive Services Staff Supervisor(s) | AJG5: Supportive Services Staff Supervisor(s) | AJH5: Supportive Services Staff Supervisor(s) | AJI5: Supportive Services Staff Supervisor(s) | AJJ5: Supportive Services Coordinator, On-Site | AJK5: Supportive Services Coordinator, On-Site | AJL5: Supportive Services Coordinator, On-Site | AJM5: Supportive Services Coordinator, On-Site | AJN5: Other Supportive Services Staff (inc. Case Manager) | AJO5: Other Supportive Services Staff (inc. Case Manager) | AJP5: Other Supportive Services Staff (inc. Case Manager) | AJQ5: Other Supportive Services Staff (inc. Case Manager) | AJR5: On-Site Maintenance Employee(s) | AJS5: On-Site Maintenance Employee(s) | AJT5: On-Site Maintenance Employee(s) | AJU5: On-Site Maintenance Employee(s) | AJV5: On-Site Leasing Agent/Administrative Employee(s) | AJW5: On-Site Leasing Agent/Administrative Employee(s) | AJX5: On-Site Leasing Agent/Administrative Employee(s) | AJY5: On-Site Leasing Agent/Administrative Employee(s) | AJZ5: On-Site Security Employee(s) | AKA5: On-Site Security Employee(s) | AKB5: On-Site Security Employee(s) | AKC5: On-Site Security Employee(s) | AKD5: 0 | AKI5: 0 | AKN5: Total Salaries and Value of Free Rent Units | AKP5: Employee(s) Payroll Taxes, Workers Comp. & Benefits | AKT5: Total | AKU5: Employee Units | AKV5: Employee Units | AKW5: Employee Units | AKX5: Employee Units | AKY5: Employee Units | AKZ5: Employee Units | ALA5: Employee Units | ALB5: Employee Units | ALC5: Employee Units | ALD5: Employee Units | ALE5: Employee Units | ALF5: Employee Units | ALG5: Employee Units | ALH5: REVENUE - INCOME | AMA5: EXPENSES / ADMINISTRATIVE EXPENSES: 6200/6300 | AMO5: EXPENSES / UTILITIES EXPENSES: 6400 | AMU5: EXPENSES / OPERATING AND MAINTENANCE EXPENSES: 6500 | ANG5: EXPENSES / TAXES AND INSURANCE: 6700 | ANP5: EXPENSES / SUPPORTIVE SERVICES COSTS: 6900 | ANW5: TOTAL | ANX5: FUNDED RESERVES: 7200 | AOC5: GROUND LEASE | AOE5: TOTAL | AOF5: FINANCIAL EXPENSES: 6800 | AOK5: TOTAL | AOL5: Asset Mngmnt | AOM5: REVENUE - INCOME | AOU5: EXPENSES / ADMINISTRATIVE EXPENSES: 6200/6300 | API5: EXPENSES / UTILITIES EXPENSES: 6400 | APO5: EXPENSES / OPERATING AND MAINTENANCE EXPENSES: 6500 | AQA5: EXPENSES / TAXES AND INSURANCE: 6700 | AQJ5: EXPENSES / SUPPORTIVE SERVICES COSTS: 6900 | AQQ5: TOTAL | AQR5: FUNDED RESERVES: 7200 | AQW5: GROUND LEASE | AQY5: TOTAL | AQZ5: FINANCIAL EXPENSES: 6800 | ARE5: TOTAL | ARF5: Asset Mngmnt | ARG5: Total Operating Expenses Per Unit | ARL5: NPLH COSR Analysis - Year 1 | ARR5: NPLH COSR Analysis - Year 2 | ARX5: NPLH COSR Analysis - Year 3 | ASD5: NPLH COSR Analysis - Year 4 | ASJ5: NPLH COSR Analysis - Year 5 | ASP5: (1) UMR 8314(e )(1): | ASS5: (2) UMR 8314(e )(2): | ASV5: (3) UMR 8314(e )(3): | ASY5: (4) UMR 8314(e )(4): | ATB5: (5) Max SS Costs:
